Workbook

Sheet Disclaimer
A1: =MdlTtl -> Victorian Default Offer Model
A4: =Gen_A!J24 -> Essential Services Commission

Sheet Contents (hidden)
A1: =MdlTtl -> Victorian Default Offer Model
A2: =_xlfn.SHEET() -> 2 | B2: CONTENTS
B3: Description of worksheets contained within the model
B7: Worksheet No. | D7: Worksheet Name | E7: Worksheet Link | F7: Worksheet Description
B8: =INDIRECT(""&D8&"!"&"A2") -> 2 | D8: =MID(CELL("filename",$A$1),FIND("]",CELL("filename",$A$1))+1,255) -> Contents | E8: =HYPERLINK("#"&"'"&D8&"'!"&"A$1",D8) -> Contents | F8: =B3 -> Description of worksheets contained within the model
B9: =INDIRECT(""&D9&"!"&"A2") -> 3 | D9: =MID(CELL("filename",UserGuide!$A$1),FIND("]",CELL("filename",UserGuide!$A$1))+1,255) -> UserGuide | E9: =HYPERLINK("#"&"'"&D9&"'!"&"A$1",D9) -> UserGuide | F9: =UserGuide!B3 -> User guide for model operation including model use, logic, limitation, and maintenance guidance
B10: =INDIRECT(""&D10&"!"&"A2") -> 4 | D10: =MID(CELL("filename",Information!$A$1),FIND("]",CELL("filename",Information!$A$1))+1,255) -> Information | E10: =HYPERLINK("#"&"'"&D10&"'!"&"A$1",D10) -> Information | F10: =Information!B3 -> Model information including macros to assist in model use, model conventions, schematic, logic and scope of model
B11: 5 | D11: =MID(CELL("filename",Change!$A$1),FIND("]",CELL("filename",Change!$A$1))+1,255) -> Change | E11: Change | F11: =Change!B3 -> Allows recording of versions and updates to model
B12: 6 | D12: =MID(CELL("filename",Data!$A$1),FIND("]",CELL("filename",Data!$A$1))+1,255) -> Data | E12: Data | F12: =Data!B3 -> Allows the user to record the sources and amendments relating to model data
B13: 7 | D13: =MID(CELL("filename",Gen_A!$A$1),FIND("]",CELL("filename",Gen_A!$A$1))+1,255) -> Gen_A | E13: Gen_A | F13: =Gen_A!B3 -> Contains general assumptions and constants and data lists used for information purposes within assumption and calculation worksheets
B14: 8 | D14: =MID(CELL("filename",Time_A!$A$1),FIND("]",CELL("filename",Time_A!$A$1))+1,255) -> Time_A | E14: Time_A | F14: =Time_A!B3 -> Time based escalation assumptions
B15: =INDIRECT(""&D15&"!"&"A2") -> 9 | D15: =MID(CELL("filename",Tariff_O_F!$A$1),FIND("]",CELL("filename",Tariff_O_F!$A$1))+1,255) -> Tariff_O_F | E15: =HYPERLINK("#"&"'"&D15&"'!"&"A$1",D15) -> Tariff_O_F | F15: =Tariff_O_F!B3 -> Final VDO Tariff rates
B16: =INDIRECT(""&D16&"!"&"A2") -> 10 | D16: =MID(CELL("filename",Tariff_O_Dr!$A$1),FIND("]",CELL("filename",Tariff_O_Dr!$A$1))+1,255) -> Tariff_O_Dr | E16: =HYPERLINK("#"&"'"&D16&"'!"&"A$1",D16) -> Tariff_O_Dr | F16: =Tariff_O_Dr!B3 -> Draft VDO Tariff rates & bills
B17: =INDIRECT(""&D17&"!"&"A2") -> 11 | D17: =MID(CELL("filename",Compare_O!$A$1),FIND("]",CELL("filename",Compare_O!$A$1))+1,255) -> Compare_O | E17: =HYPERLINK("#"&"'"&D17&"'!"&"A$1",D17) -> Compare_O | F17: =Compare_O!B3 -> Output comparison between Draft and Final
B18: 12 | D18: =MID(CELL("filename",Calc_C_F!$A$1),FIND("]",CELL("filename",Calc_C_F!$A$1))+1,255) -> Calc_C_F | E18: Calc_C_F | F18: =Calc_C_F!B3 -> General model calculations using final inputs
B19: 13 | D19: =MID(CELL("filename",Calc_C_Dr!$A$1),FIND("]",CELL("filename",Calc_C_Dr!$A$1))+1,255) -> Calc_C_Dr | E19: Calc_C_Dr | F19: =Calc_C_Dr!B3 -> General model calculations using draft inputs
B20: =INDIRECT(""&D20&"!"&"A2") -> 14 | D20: =MID(CELL("filename",Inputs_A_F!$A$1),FIND("]",CELL("filename",Inputs_A_F!$A$1))+1,255) -> Inputs_A_F | E20: =HYPERLINK("#"&"'"&D20&"'!"&"A$1",D20) -> Inputs_A_F | F20: =Inputs_A_F!B3 -> Final time based cost and other assumptions for each zone
B21: 15 | D21: =MID(CELL("filename",Inputs_A_Dr!$A$1),FIND("]",CELL("filename",Inputs_A_Dr!$A$1))+1,255) -> Inputs_A_Dr | E21: Inputs_A_Dr | F21: =Inputs_A_Dr!B3 -> Draft time based cost and other assumptions for each retailer
B22: =INDIRECT(""&D22&"!"&"A2") -> 16 | D22: =MID(CELL("filename",Compare_A!$A$1),FIND("]",CELL("filename",Compare_A!$A$1))+1,255) -> Compare_A | E22: =HYPERLINK("#"&"'"&D22&"'!"&"A$1",D22) -> Compare_A | F22: =Compare_A!B3 -> Comparison of time based cost and other assumptions for each retailer
B23: =INDIRECT(""&D23&"!"&"A2") -> 17 | D23: =MID(CELL("filename",F_Chk!$A$1),FIND("]",CELL("filename",F_Chk!$A$1))+1,255) -> F_Chk | E23: =HYPERLINK("#"&"'"&D23&"'!"&"A$1",D23) -> F_Chk | F23: =F_Chk!B3 -> Year on year % change of final inputs
B24: 18 | D24: =MID(CELL("filename",Dr_Chk!$A$1),FIND("]",CELL("filename",Dr_Chk!$A$1))+1,255) -> Dr_Chk | E24: Dr_Chk | F24: =Dr_Chk!B3 -> Year on year % change of draft inputs
B25: 19 | D25: =MID(CELL("filename",Flags_C!$A$1),FIND("]",CELL("filename",Flags_C!$A$1))+1,255) -> Flags_C | E25: Flags_C | F25: =Flags_C!B3 -> Calculation of date specific flags
B26: 20 | D26: =MID(CELL("filename",Chk_C!$A$1),FIND("]",CELL("filename",Chk_C!$A$1))+1,255) -> Chk_C | E26: Chk_C | F26: =Chk_C!B3 -> Summarises all the error checks in the Model
B27: 21 | D27: =MID(CELL("filename",Style_O!$A$1),FIND("]",CELL("filename",Style_O!$A$1))+1,255) -> Style_O | E27: Style_O | F27: =Style_O!B3 -> Summary of model styles and ability to amend styles

Sheet UserGuide (hidden)
A1: =MdlTtl -> Victorian Default Offer Model
A2: 3 | B2: User_Guide
B3: User guide for model operation including model use, logic, limitation, and maintenance guidance
B4: =Chk_C!B10 -> Error check breaches: 16. Update model macro: 1
O5: Draft inputs/Draft and Final | P5: Final inputs
B9: User Guide - VDO Pricing Model
B13: Last updated: | C13: 2019-09-25
B15: 1. Purpose of the tool
B17: This model calculates electricity rates for the Victorian Default Order (VDO) scheme. Victorian households and small businesses will be able to request these rates from their electricity distribution zone as a default offer.
B19: This model provides electricity rates and indicative annual electricity bills under different consumption scenarios by customer segment for five Victorian electricity distribution zones: AusNet, CitiPower, Jemena, Powercor and United Energy.
B21: This model stores and displays electricity rates and bills that have been calculated in historical periods.
B23: This model allows the user to separate and compare draft inputs and outputs from final inputs and outputs.
B25: 2. Operation
B27: 2.1 General Model Information
B29: This model includes macros written using Visual Basic for Applications (VBA) and must be saved as a macro-enabled workbook.
B31: This model has been built using Microsoft Excel 2016.
B33: The worksheets in this model is locked. To unlock, please click on "Review" in the ribbon, then click on "Unprotect Sheet" by entering the password.
B35: - Please click on "Protect all worksheets" button on the output worksheets after unprotecting any worksheet. | O35: Protect all worksheets
B37: When operating the Model, the calculation options (under Formulas Tab > Calculation Options) should be set to automatic.
B39: When operating the model, workbook view (under View Tab>Workbook views) should be set to normal.
B41: To aid the user in navigating the model, the workbook should show (under View Tab>Show) the Formula Bar and Headings.
B43: 2.2 Worksheets
B45: For information on worksheet naming and colour conventions, please see section 4.02.01 Worksheets: | O45: Worksheets
B47: For information on worksheet structure, please see section 4.02.02 Worksheet structure: | O47: Worksheet structure
B49: For information on formatting of cells, please see section 4.02.03 Cell Formats: | O49: Cell Formats
B51: For information on how each worksheet fits into the model schematic, please see section 4.03.01 Diagram 1: ESC VDO Pricing Model Overall Structure: | O51: ESC VDO Pricing Model Overall Structure
B53: The worksheets in this Model include grouped ranges based on the level of headings. Users can expand, collapse and toggle through groupings using '+', '-', and numbered buttons respectively, which are located in the left margin of each worksheet.
B55: Specific worksheets distinguish between draft and final values:
B56: - Draft inputs are defined with the '_A_Dr' suffix. | O56: Inputs_A_Dr
B57: - Final inputs are defined with the '_A_F' suffix. | O57: Inputs_A_F
B58: - Draft calculations are defined with the '_C_Dr' suffix. | O58: Calc_C_Dr
B59: - Final calculations are defined with the '_C_F' suffix. | O59: Calc_C_F
B60: - Draft outputs are defined with the '_O_Dr' suffix. | O60: Tariff_O_Dr
B61: - Final outputs are defined with the '_O_F' suffix. | O61: Tariff_O_F
B63: Worksheets with draft and final versions are completely identical to each other. The distinction allows the user to separate draft values from final values.
B65: Worksheets without distinction between '_Dr' and '_F' suffixes indicate that the contents of that worksheet apply to both draft and final versions.
B67: 3. Key logic, use and calculations
B69: The functionality of this model relies on three key components:
B70: 1. Inputs: User-defined inputs and assumptions required to generate outputs.
B71: 2. Calculations: Transformation of inputs using appropriate methodology to generate outputs.
B72: 3. Outputs: Employable presentation of outputs
B74: 3.1. Inputs
B76: Inputs are organised into four main sections:
B77: A. General assumptions (Gen_A) | O77: Gen_A
B78: B. Escalation assumptions (Time_A) | O78: Time_A
B79: C. Time based cost & other assumptions (Inputs_A) | O79: Inputs_A_Dr | P79: Inputs_A_F
B81: 3.1.A. General assumptions
B83: The user has the ability to change the title of the project: | O83: 7.01.01 Project Title
B85: The user has the ability to select the desired period using a drop down menu. This drop down menu is also included in the banner of each worksheet: | O85: 7.02.01 Period Selection
B87: The user has the ability to edit various model details. It is recommended that these assumptions are not modified: | O87: 7.03 Model Details
B89: The user has the ability to make changes to constants referenced by calculations in the model. It is recommended that these assumptions are not modified: | O89: 19.01 Constants
B91: The user has the ability to change out electricity distribution zone or modify distributor names: | O91: 19.02.02 distributor
B93: The user has the ability to edit the names of the network usage charge categories: | O93: 19.02.03 Network usage charges
B95: The user has the ability to modify the consumption amounts for small, medium and large residential and small business consumers respectively: | O95: 19.02.04 Usage
B97: 3.1.B. Escalation assumptions
B99: The user is required to ensure the number of months in each period matches the duration of which the VDO rates are intended to be valid for. The model includes a dropdown menu for the user to select between either 3, 6, 9, 12, 15 or 18 months in a period: | O99: 8.01 Number of months in each period
B101: Escalation rates are based on quarterly Consumer Price Index (CPI) for Melbourne released by the Australian Bureau of Statistics (ABS). The user is required to input the quarterly CPI as they are made available by the ABS from https://www.abs.gov.au. | O101: 8.02.01 Escalation Rates
B103: 3.1.C. Time based cost & other assumptions
B105: All time-based cost and non-cost assumptions are contained in the following worksheets:
B106: - Inputs_A_Dr: Draft inputs | O106: Inputs_A_Dr
B107: - Inputs_A_F: Final inputs | O107: Inputs_A_F
B108: - Compare_A: Difference between draft and final inputs. No manual entries are required on this worksheet. | O108: Compare_A
B110: This worksheet is organised into three main sections:
B111: i. Fixed Costs | O111: Draft Fixed Costs | P111: Final Fixed Costs
B112: ii. Variable Costs | O112: Draft Variable Costs | P112: Final Variable Costs
B113: iii. Non-cost inputs | O113: Draft Non-cost Inputs | P113: Final Non-cost Inputs
B114: iv. Others | O114: Draft Others | P114: Final Others
B116: 3.1.D.i. Fixed Costs
B118: When a new period rolls over, all fixed cost inputs require the user to:
B119: - enter a value, taking note of the appropriate unit and category
B120: - select a date from the provided dropdown menu that most closely matches the date at which the input was sourced
B121: - provide any accompanying notes in the provided space labeled 'Source'. These may include but is not limited to source publications, page or table numbers, actual date of publication, URLs of websites etc.
B123: Fixed costs inputs include:
B124: - Retail costs: | O124: Draft Retail Costs | P124: Final Retail Costs
B125: - Solar costs: | O125: Draft Solar Costs | P125: Final Solar Costs
B126: - Ancillary costs: | O126: Draft Ancillary Costs | P126: Final Ancillary Costs
B127: - Metering costs: | O127: Draft Metering Charges | P127: Final Metering Charges
B128: - Residential network supply charges: | O128: Draft Residential Metwork Supply Charges | P128: Final Residential Network Supply Charges
B129: - Small business network supply charges: | O129: Draft Small Business Network Supply Charges | P129: Final Small Business Network Supply Charges
B131: 3.1.D.ii. Variable Costs
B133: When a new period rolls over, all variable cost inputs require the user to:
B134: - enter a value, taking note of the appropriate unit and category
B135: - select a date from the provided dropdown menu that most closely matches the date at which the input was sourced
B136: - provide any accompanying notes in the provided space labeled 'Source'. These may include but is not limited to source publications, page or table numbers, actual date of publication, URLs of websites etc.
B138: Variable costs inputs include:
B139: - Residential wholesale prices: | O139: Draft Residential Eholseale Prices | P139: Final Residential Eholseale Prices
B140: - Residential wholesale volatility: | O140: Draft Residential Wholesale Volatility | P140: Final Residential Wholesale Volatility
B141: - Small business wholesale prices: | O141: Draft Small Business Wholesale Prices | P141: Final Small Business Wholesale Prices
B142: - Small business wholesale volatility: | O142: Draft Small Business Wholesale Volatility | P142: Final Small Business Wholesale Volatility
B143: - Environmental programs prices: | O143: Draft Environmental Programs Prices | P143: Final Environmental Programs Prices
B144: - Environmental programs liability: | O144: Draft Environmental Programs Liability | P144: Final Environmental Programs Liability
B145: - Ancillary costs: | O145: Draft Ancillary Costs | P145: Final Ancillary Costs
B146: - Residential network usage charge: | O146: Draft Residential Network Usage Charges | P146: Final Residential Network Usage Charges
B147: - Small business network usage charge: | O147: Draft Small Business Network Usage Charges | P147: Final Small Business Network Usage Charges
B148: - Residential controlled load charges: | O148: Draft Residential Controlled Load Charges | P148: Final Residential Controlled Load Charges
B150: 3.1.D.iii. Non-cost inputs
B152: When a new period rolls over, all variable cost inputs require the user to:
B153: - enter a value, taking note of the appropriate unit and category
B155: Non-cost inputs include:
B156: - Distribution network loss factors: | O156: Draft Dsitribution Network Loss Factors | P156: Final Distribution Network Loss Factors
B157: - Marginal network loss factors: | O157: Draft Marginal Network Loss Factors | P157: Final Marginal Network Loss Factors
B158: - Retail inputs: | O158: Draft Retail Inputs | P158: Final Retail Inputs
B159: - Block 1 electricity consumption: | O159: Draft Block 1 Electrictiy Consumption | P159: Final Block 1 Electricity Consumption
B160: - Balance electricity consumption: | O160: Draft Balance Electricity Consumption | P160: Final Balance Electricity Consumption
B162: 3.1.D.iv. Others
B164: When a new period rolls over, all 'other'inputs require the user to:
B165: - enter a value, taking note of the appropriate unit and category
B167: Other inputs include:
B168: - GST: | O168: Draft GST | P168: Final GST
B170: 3.2. Calculations
B172: Calculations are organised into three main sections:
B173: A. Calculation of date and project specific flags (Flags_C) | O173: Flags_C
B174: B. General model calculations (Calc_C) | O174: Calc_C_Dr | P174: Calc_C_F
B175: C. Summary of error checks and alerts in the model (Chk_C) | O175: Chk_C
B177: These worksheets do not require any entry of inputs and should not be changed unless the user wishes to make modifications to the calculations to reflect new methodology.
B179: 3.2.A. Calculation of date and project specific flags
B181: Period start dates, end dates, and correspending financial year end are calculated based on the user-selected period duration and model start date. | O181: Date Flags
B183: General information on each period such as days in period, period counter, period proportion of full year and first period flag are calculated. | O183: General Flags
B185: Other information such as first period end date and model end date are calculated. | O185: Overview
B187: 3.2.B. General model calculations
B189: All distributors are assigned an index number. | O189: Draft Distributor | P189: Final Distributor
B191: The model returns the period end-date of the live period selected, the quarter-end date with the latest available CPI and the CPI itself. | O191: Draft CPI | P191: Final CPI
B193: The model performs the following calculations to fixed cost inputs:
B194: - Retail costs are adusted for inflation if necessary. | O194: Draft Retail Costs | P194: Final Retail Costs
B195: - Solar costs are adjusted for inflation if necessary. | O195: Draft Solar Costs | P195: Final Solar Costs
B196: - Ancillary costs are adjusted for inflation if necessary. - Electricity consumer advocacy panel is additionally scaled to reflect an annual cost value. | O196: Draft Ancillary Costs | P196: Final Ancillary Costs
B197: - Network supply charges are adjusted for inflation if necessary. - Total residential network charge is calculated as the sum of metering charges and residential supply charges - Total small business network charge is calculated as the sum of metering charges and small business network supply charges | O197: Draft Network Supply Charge | P197: Final Network Supply Charge
B199: The model performs the following calculations to variable cost inputs:
B200: - Residential wholesale prices and volatility are adjusted for inflation if necessary. - Final wholesale price for residential consumers is calculated as the sum of residential wholesale prices and residential wholesale volatility. | O200: Draft Residential Wholesale Price | P200: Final Residential Wholesale Price
B201: - Small business wholesale prices and volatility are adjusted for inflation if necessary. - Final wholesale price for small businesses is calculated as the sum of small business wholesale prices and small business wholesale volatility. | O201: Draft Small Business Wholesale Price | P201: Final Small Business Wholesale Price
B202: - Environmental program certificate prices are adjusted for inflation if necessary. - Final environmental programs cost is calculated as the sum-product certificate prices and their liability, then adjusted to reflect cost per kWh units. | O202: Draft Environmental Programs Cost | P202: Final Environmental Programs Cost
B203: - All ancillary costs are adjusted for inflation if necessary. | O203: Draft Ancillary Cost | P203: Final Ancillary Cost
B205: Network loss factor is calculated as the product of distribution loss factor and marginal loss factor, less the value of one. | O205: Draft Network Loss Factors | P205: Final Network Loss Factors
B207: All final fixed costs, variable costs, network loss factors, retail operating margins are summarised by distributor. | O207: Draft Summary of Unit Charges | P207: Final Summary of Unit Charges
B209: The model carries out calculations to arrive at variable tariff rates, supply charge and indicative annual bill for each electricity distributor and customer segment.
B211: 3.2.B.i. Ausnet
B212: - Residential
B213: - Supply charge | O213: Draft Ausnet Residential Supply Charge | P213: Final Ausnet Residential Supply Charge
B214: - Variable tariff | O214: Draft Ausnet Residential Variable Tariff | P214: Final Ausnet Residential Variable Tariff
B215: - Annual bill | O215: Draft Ausnet Residential Annual Bill | P215: Final Ausnet Residential Annual Bill
B216: - Small Business
B217: - Supply charge | O217: Draft Ausnet Small Business Supply Charge | P217: Final Ausnet Small Business Supply Charge
B218: - Variable tariff | O218: Draft Ausnet Small Business Variable Tariff | P218: Final Ausnet Small Business Variable Tariff
B219: - Annual bill | O219: Draft Ausnet Small Business Annual Bill | P219: Final Ausnet Small Business Annual Bill
B221: 3.2.B.ii. Citipower
B222: - Residential
B223: - Supply charge | O223: Draft Citipower Residential Supply Charge | P223: Final Citipower Residential Supply Charge
B224: - Variable tariff | O224: Draft Citipower Residential Variable Tariff | P224: Final Citipower Residential Variable Tariff
B225: - Annual bill | O225: Draft Citipower Residential Annual Bill | P225: Final Citipower Residential Annual Bill
B226: - Small business
B227: - Supply charge | O227: Draft Citipower Small Business Supply Charge | P227: Final Citipower Small Business Supply Charge
B228: - Variable tariff | O228: Draft Citipower Small Business Variable Tariff | P228: Final Citipower Small Business Variable Tariff
B229: - Annual bill | O229: Draft Citipower Small Business Annual Bill | P229: Final Citipower Small Business Annual Bill
B231: 3.2.B.iii. Jemena
B232: - Residential
B233: - Supply charge | O233: Draft Jemena Residential Supply Charge | P233: Final Jemena Residential Supply Charge
B234: - Variable tariff | O234: Draft Jemena Residential Variable Tariff | P234: Final Jemena Residential Variable Tariff
B235: - Annual bill | O235: Draft Jemena Residential Annual Bill | P235: Final Jemena Residential Annual Bill
B236: - Small business
B237: - Supply charge | O237: Draft Jemena Small Business Supply Charge | P237: Final Jemena Small Business Supply Charge
B238: - Variable tariff | O238: Draft Jemena Small Business Variable Tariff | P238: Final Jemena Small Business Variable Tariff
B239: - Annual bill | O239: Draft Jemena Small Business Annual Bill | P239: Final Jemena Small Business Annual Bill
B241: 3.2.B.iv. Powercor
B242: - Residential
B243: - Supply charge | O243: Draft Powercor Residential Supply Charge | P243: Final Powercor Residential Supply Charge
B244: - Variable tariff | O244: Draft Powercor Residential Variable Tariff | P244: Final Powercor Residential Variable Tariff
B245: - Annual bill | O245: Draft Powercor Residential Annual Bill | P245: Final Powercor Residential Annual Bill
B246: - Small business
B247: - Supply charge | O247: Draft Powercor Small Business Supply Charge | P247: Final Powercor Small Business Supply Charge
B248: - Variable tariff | O248: Draft Powercor Small Business Variable Tariff | P248: Final Powercor Small Business Variable Tariff
B249: - Annual bill | O249: Draft Powercor Small Business Annual Bill | P249: Final Powercor Small Business Annual Bill
B251: 3.2.B.v. United Energy
B252: - Residential
B253: - Supply charge | O253: Draft United Energy Residential Supply Charge | P253: Final United Energy Residential Supply Charge
B254: - Variable tariff | O254: Draft United Energy Residential Variable Tariff | P254: Final United Energy Residential Variable Tariff
B255: - Annual bill | O255: Draft United Energy Residential Annual Bill | P255: Final United Energy Residential Annual Bill
B256: - Small business
B257: - Supply charge | O257: Draft United Energy Small Business Supply Charge | P257: Final United Energy Small Business Supply Charge
B258: - Variable tariff | O258: Draft United Energy Small Business Variable Tariff | P258: Final United Energy Small Business Variable Tariff
B259: - Annual bill | O259: Draft United Energy Small Business Annual Bill | P259: Final United Energy Small Business Annual Bill
B261: For more information on calculation methodology to arrive at supply charge, variable tariff and annual bill, please refer to 3.03.02 Diagram 2: Tariff and bill calculations | O261: Tariff and bill calculations
B263: 3.2.C. Summary of error checks and alerts in the model
B265: All summary checks and alerts are consolidated into one worksheet Chk_C. Please see secton 4.1 of this User guide for more information. | O265: Chk_C
B267: 3.3. Output
B269: Outputs are organised into two main sections:
B270: A. Summary of model styles (Style_O) | O270: Style_O
B271: B. Dashboard report for executive use (Tariff_O) | O271: Tariff_O_Dr | P271: Tariff_O_F
B273: 3.3.A. Summary of model styles
B275: The user has the ability to amend Styles used in the model. | O275: Style_O
B277: 3.3.B. Dashboard report for executive use
B279: Key outputs of the model to be used for reporting and analysis are contained in the following worksheets:
B280: - Tariff_O_Dr: Outputs based on draft inputs. | O280: Tariff_O_Dr
B281: - Tariff_O_F: Outputs based on final inputs. | O281: Tariff_O_F
B282: - Compare_O: Difference between draft and final outputs. | O282: Compare_O
B284: The output worksheet is sectioned by:
B285: i. VDO tariff rates & bills from the period selected by the user | O285: Draft VDO Tariff Rates & Bills | P285: Final VDO Tariff Rates & Bills
B286: ii. Time series of historical and present tariff rates and bills | O286: Draft Time Series Graphs | P286: Final Time Series Graphs
B288: 3.3.B.i VDO tariff rates & bills from user-selected period
B290: The model presents the calculated VDO tariff rates and indicative bills per consumption scenario by customer segment and electricity distributor. | O290: Draft VDO Tariff Rates & Bills | P290: Final VDO Tariff Rates & Bills
B292: This output dynamically changes based on the period selected by the user using the drop-down menu located in the top banner of each worksheet. | O292: Period Selector | P292: Period Selector
... 69 more rows

Sheet Information (hidden)
A1: =MdlTtl -> Victorian Default Offer Model
A2: =_xlfn.SHEET() -> 4 | B2: MODEL INFORMATION
B3: Model information including macros to assist in model use, model conventions, schematic, logic and scope of model
B4: =Chk_C!B10 -> Error check breaches: 16. Update model macro: 1
A6: To Contents
A8: =ROUNDDOWN(MAX($A$7:OFFSET(A8,-One,0),$A$2*Sht)+Sxn,0) -> 401 | B8: Macros to Assist User Experience
AE16: Worksheet resizing % | AG16: 0.85
A18: =ROUNDDOWN(MAX($A$7:OFFSET(A18,-One,0),$A$2*Sht)+Sxn,0) -> 402 | B18: Model Conventions
A20: =MAX(A$2:OFFSET($A20,-One,0))+Sbsxn -> 402.01 | B20: Worksheets
B22: Information
B24: Assumptions "_A"
B26: Calculations "_C"
B28: Outputs "_O"
B31: The Model inputs, calculations and outputs are separated into distinct areas.
B32: Each worksheet tab in the Model has been colour-coded to allow the user to easily identify the different worksheet categories.
A34: =MAX(A$2:OFFSET($A34,-One,0))+Sbsxn -> 402.02 | B34: Worksheet structure
B35: A consistent worksheet structure has been utilised for easy reference by users as follows:
B36: Row | E36: Purpose
B37: 1 | E37: Model title
B38: 2 | E38: Worksheet number (column A), worksheet title (column B)
B39: 3 | E39: Worksheet description
B40: 4 | E40: Error notifications
B41: 5 | E41: Scenario notifications
B42: 6 | E42: Contents hyperlink
B44: Column | E44: Purpose
B45: A | E45: Section and sub-section numbering
B46: B | E46: Section and sub-section labels
B47: C | E47: Units (if required)
B48: D | E48: Spare - assumptions or sensitivities
B49: E | E49: Spare - assumptions or sensitivities
B50: F | E50: Spare - assumptions or sensitivities
B51: G | E51: Totals
B52: H | E52: Blank
B53: I | E53: Seed and initial values (if required)
B54: J | E54: Assumptions and calculations commence
A56: =MAX(A$2:OFFSET($A56,-One,0))+Sbsxn -> 402.03 | B56: Cell Formats | O56: Description
B58: Input/Assumptions | O58: Represents an input assumption. Unlocked on worksheet protection - Black font and light green shading
B59: Calculations and labels | O59: Labels or formulae. Locked on worksheet protection - Black font, white background
B60: Units of measure | O60: Unit labels - Grey font, white background
B61: [Comments, guidance] | O61: Guidance comments on particular assumptions or calculations - [Dark Green font in brackets]
B62: Hyperlink | O62: Hyperlinks to other cells/ranges in model - Grey font
B64: The colour-coding of cells allows the user to clearly distinguish input areas from calculation areas
B65: Input cells have been formatted with a black font and light green background. These are the only cells where the user should enter information
B66: Calculation and output cells have a black font and white background.
B67: Other cells may use other formatting techniques that either add wording to cells or format numbers as text
B68: Input cells will remain unlocked if the model is protected. All other cells are protected
A70: =ROUNDDOWN(MAX($A$7:OFFSET(A70,-One,0),$A$2*Sht)+Sxn,0) -> 403 | B70: Model Logic Schematic
A72: =MAX(A$2:OFFSET($A72,-One,0))+Sbsxn -> 403.01 | B72: Diagram 1: ESC VDO Pricing Model Overall Structure
A112: =MAX(A$2:OFFSET($A112,-One,0))+Sbsxn -> 403.02 | B112: Diagram 2: Tariff and bill calculations
A148: =MAX(A$2:OFFSET($A148,-One,0))+Sbsxn -> 403.03 | B148: Diagram 3: Period Selector Function
B182: Macros contained within model
B184: The model contains macros as detailed below:
B185: Module | F185: Name | T185: Activated | AH185: Purpose
B186: 1 | F186: Auto_Open | T186: Automatically occurs on opening workbook | AH186: Hides all worksheets except the cover worksheet and protects the file. Ensures disclaimer is accepted prior to accessing model contents
B187: 2 | F187: PrintWks | T187: Button on "Information" worksheet | AH187: Allows the user to select worksheets and ranges to be printed
B188: 3 | F188: ResetCellsA1 | T188: Button on "Information" worksheet | AH188: Selects the cell "A1" on all worksheets and scrolls to top of page. Useful in resetting the view of each worksheet
B189: 4 | F189: ResetZoom | T189: Button on "Information" worksheet | AH189: Sets the zoom level to 80% on all visible worksheets
B190: 5 | F190: UpdateLog | T190: Button on "Change" worksheet | AH190: Copies selected KPI's to track impact of model changes
B191: 6 | F191: ClearLog | T191: Button on "Change" worksheet | AH191: Removes the log of updated model changes
B192: 7
B193: Macros should be allowed to run for proper operation of the model
A195: =ROUNDDOWN(MAX($A$7:OFFSET(A195,-One,0),$A$2*Sht)+Sxn,0) -> 404 | B195: Model Conventions
A197: =MAX(A$2:OFFSET($A197,-One,0))+Sbsxn -> 404.01 | B197: Worksheets
B199: Information
B201: Assumptions "_A"
B203: Calculations "_C"
B205: Outputs "_O"
B208: The Model inputs, calculations and outputs are separated into distinct areas.
B209: Each worksheet tab in the Model has been colour-coded to allow the user to easily identify the different worksheet categories.
A211: =MAX(A$2:OFFSET($A211,-One,0))+Sbsxn -> 404.02 | B211: Worksheet structure
B212: A consistent worksheet structure has been utilised for easy reference by users as follows:
B213: Row | E213: Purpose
B214: 1 | E214: Model title
B215: 2 | E215: Worksheet number (column A), worksheet title (column B)
B216: 3 | E216: Worksheet description
B217: 4 | E217: Error notifications
B218: 5 | E218: Scenario notifications
B219: 6 | E219: Contents hyperlink
B221: Column | E221: Purpose
B222: A | E222: Section and sub-section numbering
B223: B | E223: Section and sub-section labels
B224: C | E224: Units (if required)
B225: D | E225: Spare - assumptions or sensitivities
B226: E | E226: Spare - assumptions or sensitivities
B227: F | E227: Spare - assumptions or sensitivities
B228: G | E228: Totals
B229: H | E229: Blank
B230: I | E230: Seed and initial values (if required)
B231: J | E231: Assumptions and calculations commence
A233: =MAX(A$2:OFFSET($A233,-One,0))+Sbsxn -> 404.03 | B233: Cell Formats | O233: Description
B235: Input/Assumptions | O235: Represents an input assumption. Unlocked on worksheet protection - Black font and light green shading
B236: Calculations and labels | O236: Labels or formulae. Locked on worksheet protection - Black font, white background
B237: Units of measure | O237: Unit labels - Grey font, white background
B238: [Comments, guidance] | O238: Guidance comments on particular assumptions or calculations - [Dark Green font in brackets]
B239: Hyperlink | O239: Hyperlinks to other cells/ranges in model - Grey font
B241: The colour-coding of cells allows the user to clearly distinguish input areas from calculation areas
B242: Input cells have been formatted with a black font and light green background. These are the only cells where the user should enter information
B243: Calculation and output cells have a black font and white background.
B244: Other cells may use other formatting techniques that either add wording to cells or format numbers as text
B245: Input cells will remain unlocked if the model is protected. All other cells are protected
A247: END

Sheet Change (hidden)
A1: =MdlTtl -> Victorian Default Offer Model
A2: =_xlfn.SHEET() -> 5 | B2: CHANGE CONTROL
B3: Allows recording of versions and updates to model
B4: =Chk_C!B10 -> Error check breaches: 16. Update model macro: 1
A6: To Contents
A8: =ROUNDDOWN(MAX($A$7:OFFSET(A8,-One,0),$A$2*Sht)+Sxn,0) -> 501 | B8: Change Log
B10: Instructions
B12: Use this sheet to log changes to the model
B13: ="Clicking the 'update log' button will paste the information in row "&ROW(B32)&" into the change log" -> Clicking the 'update log' button will paste the information in row 32 into the change log
B14: This can be used to keep track of changes made to the model, and the impact on key indicators
B16: ="Enter a name for the key indicators (KPI's) in row "&ROW(B31)&"" -> Enter a name for the key indicators (KPI's) in row 31
B17: ="Link the key indicators to be tracked to the input cells in row "&ROW(B32)&"" -> Link the key indicators to be tracked to the input cells in row 32
B19: ="Each time you log a change enter a description of the change in cell H"&ROW(F32) -> Each time you log a change enter a description of the change in cell H32
B20: All other information is auto populated
B22: To clear the log, please click the 'Clear log' button
B29: Current Log information
B31: # | C31: Current version | D31: Date and time | E31: User | F31: Description of change | H31: Checks | J31: KPI 1 | K31: KPI 2 | L31: KPI 3 | M31: KPI 4 | N31: KPI 5
B32: =sysCountVersions+1 -> 1 | C32: =MdlFileName -> VDO model - 2020 FINAL - to publish - 20191115.XLSM | D32: [Auto populated] | E32: [Auto populated] | H32: =Chk_C!B10 -> Error check breaches: 16. Update model macro: 1
C33: Number of previous versions | D33: =COUNTA(D37:D38)-1 -> 0 | E33: [Count_Versions]
B35: Change Log
B37: # | C37: Previous versions | D37: Date and time | E37: User | F37: Description of change | H37: Checks | J37: =IF(ISBLANK(J31),"",J31) -> KPI 1 | K37: =IF(ISBLANK(K31),"",K31) -> KPI 2 | L37: =IF(ISBLANK(L31),"",L31) -> KPI 3 | M37: =IF(ISBLANK(M31),"",M31) -> KPI 4 | N37: =IF(ISBLANK(N31),"",N31) -> KPI 5
B38: DO NOT DELETE THIS ROW
A44: =ROUNDDOWN(MAX($A$7:OFFSET(A44,-One,0),$A$2*Sht)+Sxn,0) -> 502 | B44: Change Control
B46: Model User Notes | J46: Template / Developer Notes
B47: Number | C47: Date | D47: Cell Reference | E47: Worksheet | F47: Priority (H/M/L) | G47: Issue | H47: Proposed Change | J47: Change Made | K47: Name | L47: Date | M47: Peer tested by | N47: Version
B48: 1 | C48: 2019-10-24 | D48: E149,J149,O149,T149,Y149 | E48: Calc_C_Dr | F48: H | G48: Cell formula refers to final inputs tab, not draft inputs tab. | H48: Update formula reference | J48: Yes | K48: Murry Greasley | L48: 2019-10-24 | M48: PHo, JEversham, SWijetunge | N48: 2
B49: 2 | C49: 2019-10-24 | D49: E222,J222,O222,T222,Y222 | E49: Calc_C_F | F49: H | G49: Cell formula refers to final inputs tab, not draft inputs tab. | H49: Update formula reference | J49: Yes | K49: Murry Greasley | L49: 2019-10-24 | M49: PHo, JEversham, SWijetunge | N49: 2
B50: 3 | C50: 2019-11-12 | D50: B341,B435,B529,B623,B717 | E50: Calc_C_F | F50: L | G50: Labelling issue, small bz WEC labelled as residential WEC | H50: Update formula reference | J50: Yes | K50: Murry Greasley | L50: 2019-11-12 | N50: 2
B51: 4 | C51: 2019-11-12 | D51: B341,B435,B529,B623,B717 | E51: Calc_C_Dr | F51: L | G51: Labelling issue, small bz WEC labelled as residential WEC | H51: Update formula reference | J51: Yes | K51: Murry Greasley | L51: 2019-11-12 | N51: 2
B52: 5 | C52: 2019-11-19 | D52: D17, Col I check cells | E52: F_Chk | F52: L | G52: Changed check cell formula to sum errrors only for periods less than or equal to the active period selected (D17). | H52: Update formula reference | J52: Yes | K52: Murry Greasley | L52: 2019-11-19 | N52: 2
B53: 6 | C53: 2019-11-19 | D53: D17, Col I check cells | E53: Dr_Chk | F53: L | G53: Changed check cell formula to sum errrors only for periods less than or equal to the active period selected (D17). | H53: Update formula reference | J53: Yes | K53: Murry Greasley | L53: 2019-11-19 | N53: 2
B54: 7
B55: 8
B56: 9
B57: 10
B58: 11
B59: 12
B60: 13
B61: 14
B62: 15
B63: 16
B64: 17
B65: 18
B66: 19
B67: 20
B68: 21
B69: 22
B70: 23
B71: 24
B72: 25
B73: 26
B74: 27
B75: 28
B76: 29
B77: 30
A79: END

Sheet Data (hidden)
A1: =MdlTtl -> Victorian Default Offer Model
A2: =_xlfn.SHEET() -> 6 | B2: DATA SOURCES
B3: Allows the user to record the sources and amendments relating to model data
B4: =Chk_C!B10 -> Error check breaches: 16. Update model macro: 1
A6: To Contents
A8: =ROUNDDOWN(MAX($A$7:OFFSET(A8,-One,0),$A$2*Sht)+Sxn,0) -> 601 | B8: Data Sources
B10: Input sheet | C10: Input Requirements | D10: Timeframes | F10: Last Updated | G10: Sourced From | H10: Source File names
B11: Gen_A | C11: General Assumptions | D11: Current period | F11: 2015-01-01 | G11: x | H11: x
B12: Gen_A | C12: Escalations | D12: Actual, Budget and 5 yr Forecast | G12: x | H12: x
A24: END

Sheet Gen_A (hidden)
A1: =MdlTtl -> Victorian Default Offer Model
A2: =_xlfn.SHEET() -> 7 | B2: GENERAL ASSUMPTIONS
B3: Contains general assumptions and constants and data lists used for information purposes within assumption and calculation worksheets
B4: =Chk_C!B10 -> Error check breaches: 16. Update model macro: 1
A6: To Contents
A8: =ROUNDDOWN(MAX($A$7:OFFSET(A8,-One,0),$A$2*Sht)+Sxn,0) -> 701 | B8: Project Details
A10: =MAX(A$2:OFFSET($A10,-One,0))+Sbsxn -> 701.01 | B10: Project Title
B11: Title | J11: Victorian Default Offer Model | M11: [MdlTtl]
A13: =ROUNDDOWN(MAX($A$7:OFFSET(A13,-One,0),$A$2*Sht)+Sxn,0) -> 702 | B13: =B15 -> Period Selection
A15: =MAX(A$2:OFFSET($A15,-One,0))+Sbsxn -> 702.01 | B15: Period Selection
B17: Period in use | C17: selection
A19: =ROUNDDOWN(MAX($A$7:OFFSET(A19,-One,0),$A$2*Sht)+Sxn,0) -> 703 | B19: Model Details
A21: =MAX(A$2:OFFSET($A21,-One,0))+Sbsxn -> 703.01 | B21: Model details
B23: Model Status | J23: Final
B24: Entitiy Name | J24: Essential Services Commission
B25: File name | J25: =IF(ISERROR(LEFT(RIGHT(CELL("filename",$A$6),LEN(CELL("filename",$A$6))-FIND("[",CELL("filename",$A$6))),FIND("]",RIGHT(CELL("filename",$A$6),LEN(CELL("filename",$A$6))-FIND("[",CELL("filename",$A$6))))-1)),"Please save the model",LEFT(RIGHT(CELL("filename",$A$6),LEN(CELL("filename",$A$6))-FIND("[",CELL("filename",$A$6))),FIND("]",RIGHT(CELL("filename",$A$6),LEN(CELL("filename",$A$6))-FIND("[",CELL("filename",$A$6))))-1)) -> VDO model - 2020 FINAL - to publish - 20191115.XLSM | M25: [MdlFileName]
A27: =MAX(A$2:OFFSET($A27,-One,0))+Sbsxn -> 703.02 | B27: Model timing
B29: Model start date | C29: dd/mm/yyyy | J29: 2019-07-01 | K29: [Start] | L29: [Utilised as beginning of first model period. Implicit model assumption; do not change]
A31: =MAX(A$2:OFFSET($A31,-One,0))+Sbsxn -> 703.03 | B31: Units
B33: Financial units | C33: text | J33: AUD | K33: [Units] | L33: [Implicit model assumption; do not change]
B34: Financial year end month number | C34: # | J34: 6 | L34: [Implicit model assumption; do not change]
A36: =ROUNDDOWN(MAX($A$7:OFFSET(A36,-One,0),$A$2*Sht)+Sxn,0) -> 704 | B36: Constants
A38: =MAX(A$2:OFFSET($A38,-One,0))+Sbsxn -> 704.01 | B38: Numbers
B39: One | J39: 1 | K39: [One]
B40: Zero | J40: 0 | K40: [Zero]
B41: Hundred | J41: 100 | K41: [Hundred]
B42: Thousand | J42: 1000 | K42: [Thousand]
B43: Million | J43: 1000000 | K43: [Million]
B44: Sheet units | J44: 100 | K44: [Sht]
B45: Section units | J45: 1 | K45: [Sxn]
B46: Sub-section units | J46: 0.01 | K46: [Sbsxn]
A48: =MAX(A$2:OFFSET($A48,-One,0))+Sbsxn -> 704.02 | B48: Time
B49: Number of days in a year | J49: 365 | K49: [DiY]
B50: Number of months in a year | J50: 12 | K50: [MiY]
B51: Number of months in a quarter year | J51: 3 | K51: [MiQ]
B52: Months in a period | J52: 12 | K52: [MiP]
B53: Weeks in a year | J53: 52 | K53: [WiY]
B55: Months in a period (drop-down list) | J55: 3
J56: 6
J57: 9
J58: 12
J59: 15
J60: 18
A61: =MAX(A$2:OFFSET($A61,-One,0))+Sbsxn -> 704.03 | B61: Others
B62: Not applicable | J62: n.a. | K62: [NA]
B63: Tolerance 1 | J63: 0.001 | K63: [Tolerance1]
A65: =MAX(A$2:OFFSET($A65,-One,0))+Sbsxn -> 704.04 | B65: Period Selection drop-down list
B68: 2 | J68: =INDEX(Flags_C!$J$12:$U$12,$B68) -> 2020-12-31
A80: =ROUNDDOWN(MAX($A$7:OFFSET(A80,-One,0),$A$2*Sht)+Sxn,0) -> 705 | B80: Technical
A82: =MAX(A$2:OFFSET($A82,-One,0))+Sbsxn -> 705.01 | B82: Type of customer
B84: Residential
B85: Small business
A87: =MAX(A$2:OFFSET($A87,-One,0))+Sbsxn -> 705.02 | B87: Distributor
A89: 1 | B89: Ausnet
A90: 2 | B90: Citipower
A91: 3 | B91: Jemena
A92: 4 | B92: Powercor
A93: 5 | B93: United Energy
A95: =MAX(A$2:OFFSET($A95,-One,0))+Sbsxn -> 705.03 | B95: Network usage charges
B97: Single rate
B98: Block 1
B99: Balance
B100: Controlled load
A102: =MAX(A$2:OFFSET($A102,-One,0))+Sbsxn -> 705.04 | B102: Usage
B104: Retail
B105: 2000 | D105: kWh/yr | J105: Customer - Small
B106: 4000 | D106: kWh/yr | J106: Customer - Medium
B107: 8000 | D107: kWh/yr | J107: Customer - Large
B109: Small business
B110: 12000 | D110: kWh/yr
B111: 20000 | D111: kWh/yr
B112: 40000 | D112: kWh/yr
A114: =MAX(A$2:OFFSET($A114,-One,0))+Sbsxn -> 705.05 | B114: Information to be displayed on the PDF
B116: Supply charge definition
B117: Single rate
B118: Block 1
B119: Balance
B120: Controlled load
B121: Other information to be displayed
A123: =MAX(A$2:OFFSET($A123,-One,0))+Sbsxn -> 705.06 | B123: Tolerance
B125: Year on year change - Inputs | C125: 0.8 | E125: [InputTol]
B126: Deviation of Final from Draft - Outputs | C126: 0.8 | E126: [OutputTol]
A128: END

Sheet Time_A
A1: =MdlTtl -> Victorian Default Offer Model
A2: =_xlfn.SHEET() -> 8 | B2: TIME BASED ASSUMPTIONS
B3: Time based escalation assumptions
C5: Instructions | D5: Assumptions | G5: Totals | H5: Sparkline | I5: Seed
A6: To Contents
A8: =ROUNDDOWN(MAX($A$7:OFFSET(A8,-One,0),$A$2*Sht)+Sxn,0) -> 801 | B8: Number of months in each period selector
B10: =Flags_C!B11 -> Period start | J10: =Flags_C!J11 -> 2019-07-01 | K10: =Flags_C!K11 -> 2020-01-01 | L10: =Flags_C!L11 -> 2021-01-01 | M10: =Flags_C!M11 -> 2022-01-01 | N10: =Flags_C!N11 -> 2023-01-01 | O10: =Flags_C!O11 -> 2024-01-01 | P10: =Flags_C!P11 -> 2025-01-01 | Q10: =Flags_C!Q11 -> 2026-01-01 | R10: =Flags_C!R11 -> 2027-01-01 | S10: =Flags_C!S11 -> 2028-01-01 | T10: =Flags_C!T11 -> 2029-01-01 | U10: =Flags_C!U11 -> 2030-01-01
B11: =Flags_C!B12 -> Period end | J11: =Flags_C!J12 -> 2019-12-31 | K11: =Flags_C!K12 -> 2020-12-31 | L11: =Flags_C!L12 -> 2021-12-31 | M11: =Flags_C!M12 -> 2022-12-31 | N11: =Flags_C!N12 -> 2023-12-31 | O11: =Flags_C!O12 -> 2024-12-31 | P11: =Flags_C!P12 -> 2025-12-31 | Q11: =Flags_C!Q12 -> 2026-12-31 | R11: =Flags_C!R12 -> 2027-12-31 | S11: =Flags_C!S12 -> 2028-12-31 | T11: =Flags_C!T12 -> 2029-12-31 | U11: =Flags_C!U12 -> 2030-12-31
B13: Months in period | C13: Please select | J13: 6 | K13: 12 | L13: 12 | M13: 12 | N13: 12 | O13: 12 | P13: 12 | Q13: 12 | R13: 12 | S13: 12 | T13: 12 | U13: 12
A15: =ROUNDDOWN(MAX($A$7:OFFSET(A15,-One,0),$A$2*Sht)+Sxn,0) -> 802 | B15: Escalation
A17: =MAX(A$2:OFFSET($A17,-One,0))+Sbsxn -> 802.01 | B17: Escalation Rates
B19: CPI Start Date (end of month) | D19: 2012-06-30
B20: Period End Date | D20: =Inputs_A_F!F4 -> 2020-12-31
B22: Period | D22: Indice | E22: Latest CPI Period
B23: =D19 -> 2012-06-30 | C23: =IF(B23<=$D$20,"Input CPI","Leave blank") -> Input CPI | D23: 100.4 | E23: =IF(AND(D23<>Zero,D24=Zero),One,Zero) -> 0 | G23: Group
B24: =EOMONTH(B23,MiQ) -> 2012-09-30 | C24: =IF(B24<=$D$20,"Input CPI","Leave blank") -> Input CPI | D24: 101.8 | E24: 0 | G24: ABS All groups CPI, Australia
B25: 2012-12-31 | C25: Input CPI | D25: 102 | E25: 0 | G25: Series ID A2325846C
B26: 2013-03-31 | C26: Input CPI | D26: 102.4 | E26: 0
B27: 2013-06-30 | C27: Input CPI | D27: 102.8 | E27: 0
B28: 2013-09-30 | C28: Input CPI | D28: 104 | E28: 0
B29: 2013-12-31 | C29: Input CPI | D29: 104.8 | E29: 0
B30: 2014-03-31 | C30: Input CPI | D30: 105.4 | E30: 0
B31: 2014-06-30 | C31: Input CPI | D31: 105.9 | E31: 0
B32: 2014-09-30 | C32: Input CPI | D32: 106.4 | E32: 0
B33: 2014-12-31 | C33: Input CPI | D33: 106.6 | E33: 0
B34: 2015-03-31 | C34: Input CPI | D34: 106.8 | E34: 0
B35: 2015-06-30 | C35: Input CPI | D35: 107.5 | E35: 0
B36: 2015-09-30 | C36: Input CPI | D36: 108 | E36: 0
B37: 2015-12-31 | C37: Input CPI | D37: 108.4 | E37: 0
B38: 2016-03-31 | C38: Input CPI | D38: 108.2 | E38: 0
B39: 2016-06-30 | C39: Input CPI | D39: 108.6 | E39: 0
B40: 2016-09-30 | C40: Input CPI | D40: 109.4 | E40: 0
B41: 2016-12-31 | C41: Input CPI | D41: 110 | E41: 0
B42: 2017-03-31 | C42: Input CPI | D42: 110.5 | E42: 0
B43: 2017-06-30 | C43: Input CPI | D43: 110.7 | E43: 0
B44: 2017-09-30 | C44: Input CPI | D44: 111.4 | E44: 0
B45: 2017-12-31 | C45: Input CPI | D45: 112.1 | E45: 0
B46: 2018-03-31 | C46: Input CPI | D46: 112.6 | E46: 0
B47: 2018-06-30 | C47: Input CPI | D47: 113 | E47: 0
B48: 2018-09-30 | C48: Input CPI | D48: 113.5 | E48: 0
B49: 2018-12-31 | C49: Input CPI | D49: 114.1 | E49: 0
B50: 2019-03-31 | C50: Input CPI | D50: 114.1 | E50: 0
B51: 2019-06-30 | C51: Input CPI | D51: 114.8 | E51: 0
B52: 2019-09-30 | C52: Input CPI | D52: 115.4 | E52: 1
B53: 2019-12-31 | C53: Input CPI | E53: 0
B54: 2020-03-31 | C54: Input CPI | E54: 0
B55: 2020-06-30 | C55: Input CPI | E55: =IF(AND(D55<>Zero,D56=Zero),One,Zero) -> 0
B56: =EOMONTH(B55,MiQ) -> 2020-09-30 | C56: Input CPI | E56: 0
B57: 2020-12-31 | C57: Input CPI | E57: 0
B58: 2021-03-31 | C58: Leave blank | E58: 0
B59: 2021-06-30 | C59: Leave blank | E59: 0
B60: 2021-09-30 | C60: Leave blank | E60: 0
B61: 2021-12-31 | C61: Leave blank | E61: 0
B62: 2022-03-31 | C62: Leave blank | E62: 0
B63: 2022-06-30 | C63: Leave blank | E63: 0
B64: 2022-09-30 | C64: Leave blank | E64: 0
B65: 2022-12-31 | C65: Leave blank | E65: 0
B66: 2023-03-31 | C66: Leave blank | E66: 0
B67: 2023-06-30 | C67: Leave blank | E67: 0
B68: 2023-09-30 | C68: Leave blank | E68: 0
B69: 2023-12-31 | C69: Leave blank | E69: 0
B70: 2024-03-31 | C70: Leave blank | E70: 0
B71: 2024-06-30 | C71: Leave blank | E71: 0
B72: 2024-09-30 | C72: Leave blank | E72: 0
B73: 2024-12-31 | C73: Leave blank | E73: 0
B74: 2025-03-31 | C74: Leave blank | E74: 0
B75: 2025-06-30 | C75: Leave blank | E75: 0
B76: 2025-09-30 | C76: Leave blank | E76: 0
B77: 2025-12-31 | C77: Leave blank | E77: 0
B78: 2026-03-31 | C78: Leave blank | E78: 0
B79: 2026-06-30 | C79: Leave blank | E79: 0
B80: 2026-09-30 | C80: Leave blank | E80: 0
B81: 2026-12-31 | C81: Leave blank | E81: 0
B82: 2027-03-31 | C82: Leave blank | E82: 0
B83: 2027-06-30 | C83: Leave blank | E83: 0
B84: 2027-09-30 | C84: Leave blank | E84: 0
B85: 2027-12-31 | C85: Leave blank | E85: 0
B86: 2028-03-31 | C86: Leave blank | E86: 0
B87: 2028-06-30 | C87: Leave blank | E87: =IF(AND(D87<>Zero,D88=Zero),One,Zero) -> 0
B88: =EOMONTH(B87,MiQ) -> 2028-09-30 | C88: =IF(B88<=$D$20,"Input CPI","Leave blank") -> Leave blank | E88: 0
B89: 2028-12-31 | C89: Leave blank | E89: 0
B90: 2029-03-31 | C90: Leave blank | E90: 0
B91: 2029-06-30 | C91: Leave blank | E91: 0
B92: 2029-09-30 | C92: Leave blank | E92: 0
B93: 2029-12-31 | C93: Leave blank | E93: 0
B94: 2030-03-31 | C94: Leave blank | E94: 0
B95: 2030-06-30 | C95: Leave blank | E95: 0
B96: 2030-09-30 | C96: Leave blank | E96: 0
B97: 2030-12-31 | C97: Leave blank | E97: 0
B98: 2031-03-31 | C98: Leave blank | E98: 0
B99: 2031-06-30 | C99: Leave blank | E99: 0
B100: 2031-09-30 | C100: Leave blank | E100: 0
B101: 2031-12-31 | C101: Leave blank | E101: 0
B102: 2032-03-31 | C102: Leave blank | E102: 0
B103: 2032-06-30 | C103: Leave blank | E103: 0
B104: 2032-09-30 | C104: Leave blank | E104: 0
B105: 2032-12-31 | C105: Leave blank | E105: 0
B106: 2033-03-31 | C106: Leave blank | E106: 0
B107: 2033-06-30 | C107: Leave blank | E107: 0
B108: 2033-09-30 | C108: Leave blank | E108: 0
B109: 2033-12-31 | C109: Leave blank | E109: 0
B110: 2034-03-31 | C110: Leave blank | E110: 0
B111: 2034-06-30 | C111: Leave blank | E111: 0
B112: 2034-09-30 | C112: Leave blank | E112: 0
B113: 2034-12-31 | C113: Leave blank | E113: 0
B114: 2035-03-31 | C114: Leave blank | E114: 0
B115: 2035-06-30 | C115: Leave blank | E115: 0
B116: 2035-09-30 | C116: Leave blank | E116: 0
B117: 2035-12-31 | C117: Leave blank | E117: 0
B118: 2036-03-31 | C118: Leave blank | E118: 0
B119: 2036-06-30 | C119: Leave blank | E119: =IF(AND(D119<>Zero,D120=Zero),One,Zero) -> 0
B120: =EOMONTH(B119,MiQ) -> 2036-09-30 | C120: Leave blank | E120: 0
B121: 2036-12-31 | C121: Leave blank | E121: 0
B122: 2037-03-31 | C122: Leave blank | E122: 0
B123: 2037-06-30 | C123: Leave blank | E123: 0
B124: 2037-09-30 | C124: Leave blank | E124: 0
B125: 2037-12-31 | C125: Leave blank | E125: 0
B126: 2038-03-31 | C126: Leave blank | E126: 0
B127: 2038-06-30 | C127: Leave blank | E127: 0
B128: 2038-09-30 | C128: Leave blank | E128: 0
B129: 2038-12-31 | C129: Leave blank | E129: 0
B130: 2039-03-31 | C130: Leave blank | E130: 0
B131: 2039-06-30 | C131: Leave blank | E131: 0
B132: 2039-09-30 | C132: Leave blank | E132: 0
B133: 2039-12-31 | C133: Leave blank | E133: 0
B134: 2040-03-31 | C134: Leave blank | E134: 0
B135: 2040-06-30 | C135: Leave blank | E135: 0
A137: END

Sheet Tariff_O_F
A1: =MdlTtl -> Victorian Default Offer Model
A2: =_xlfn.SHEET() -> 9 | B2: REPORTING FINAL OUTPUT | I2: Period Selected:
B3: Final VDO Tariff rates | G3: Start | H3: =Inputs_A_F!$C$17 -> 2020-01-01
G4: End | H4: =Inputs_A_F!$C$18 -> 2020-12-31
A6: To Contents
A8: =ROUNDDOWN(MAX($A$7:OFFSET(A8,-One,0),$A$2*Sht)+Sxn,0) -> 901 | B8: Final VDO Tariff Rates
B10: Period start | C10: =H3 -> 2020-01-01
B11: Period end | C11: =H4 -> 2020-12-31
B13: Residential | F13: Rates | M13: Bills
B15: Zone | F15: =Calc_C_F!F267 -> Supply charge per day | H15: =Gen_A!$B$97 -> Single rate | I15: =Gen_A!$B$98 -> Block 1 | J15: =Gen_A!$B$99 -> Balance | K15: =Gen_A!$B$100 -> Controlled load | M15: =Gen_A!$B$105&" kWh/yr" -> 2000 kWh/yr | N15: =Gen_A!$B$106&" kWh/yr" -> 4000 kWh/yr | O15: =Gen_A!$B$107&" kWh/yr" -> 8000 kWh/yr
F16: $/day | H16: $/kWh | I16: $/kWh | J16: $/kWh | K16: $/kWh | M16: $ | N16: $ | O16: $
B18: =INDEX(Gen_A!$B$89:$B$93,C18) -> Ausnet | C18: =Gen_A!A89 -> 1 | F18: =CHOOSE($C18,Calc_C_F!$F$281,Calc_C_F!$F$375,Calc_C_F!$F$469,Calc_C_F!$F$563,Calc_C_F!$F$657) -> 1.140821499 | H18: =CHOOSE($C18,Calc_C_F!$E$304,Calc_C_F!$E$398,Calc_C_F!$E$492,Calc_C_F!$E$586,Calc_C_F!$E$680) -> 0 | I18: =CHOOSE($C18,Calc_C_F!$F$304,Calc_C_F!$F$398,Calc_C_F!$F$492,Calc_C_F!$F$586,Calc_C_F!$F$680) -> 0.3071717459 | J18: =CHOOSE($C18,Calc_C_F!$G$304,Calc_C_F!$G$398,Calc_C_F!$G$492,Calc_C_F!$G$586,Calc_C_F!$G$680) -> 0.3272275153 | K18: =CHOOSE($C18,Calc_C_F!$H$304,Calc_C_F!$H$398,Calc_C_F!$H$492,Calc_C_F!$H$586,Calc_C_F!$H$680) -> 0.2230422609 | M18: =CHOOSE($C18,Calc_C_F!$K$308,Calc_C_F!$K$402,Calc_C_F!$K$496,Calc_C_F!$K$590,Calc_C_F!$K$684) -> 1030.743339 | N18: =CHOOSE($C18,Calc_C_F!$L$308,Calc_C_F!$L$402,Calc_C_F!$L$496,Calc_C_F!$L$590,Calc_C_F!$L$684) -> 1649.418877 | O18: =CHOOSE($C18,Calc_C_F!$M$308,Calc_C_F!$M$402,Calc_C_F!$M$496,Calc_C_F!$M$590,Calc_C_F!$M$684) -> 2952.39243
B19: =INDEX(Gen_A!$B$89:$B$93,C19) -> Citipower | C19: =Gen_A!A90 -> 2 | F19: =CHOOSE($C19,Calc_C_F!$F$281,Calc_C_F!$F$375,Calc_C_F!$F$469,Calc_C_F!$F$563,Calc_C_F!$F$657) -> 1.130914748 | H19: =CHOOSE($C19,Calc_C_F!$E$304,Calc_C_F!$E$398,Calc_C_F!$E$492,Calc_C_F!$E$586,Calc_C_F!$E$680) -> 0.2517048956 | I19: =CHOOSE($C19,Calc_C_F!$F$304,Calc_C_F!$F$398,Calc_C_F!$F$492,Calc_C_F!$F$586,Calc_C_F!$F$680) -> 0 | J19: =CHOOSE($C19,Calc_C_F!$G$304,Calc_C_F!$G$398,Calc_C_F!$G$492,Calc_C_F!$G$586,Calc_C_F!$G$680) -> 0 | K19: =CHOOSE($C19,Calc_C_F!$H$304,Calc_C_F!$H$398,Calc_C_F!$H$492,Calc_C_F!$H$586,Calc_C_F!$H$680) -> 0.1953658436 | M19: =CHOOSE($C19,Calc_C_F!$K$308,Calc_C_F!$K$402,Calc_C_F!$K$496,Calc_C_F!$K$590,Calc_C_F!$K$684) -> 916.1936743 | N19: =CHOOSE($C19,Calc_C_F!$L$308,Calc_C_F!$L$402,Calc_C_F!$L$496,Calc_C_F!$L$590,Calc_C_F!$L$684) -> 1419.603466 | O19: =CHOOSE($C19,Calc_C_F!$M$308,Calc_C_F!$M$402,Calc_C_F!$M$496,Calc_C_F!$M$590,Calc_C_F!$M$684) -> 2426.423048
B20: =INDEX(Gen_A!$B$89:$B$93,C20) -> Jemena | C20: =Gen_A!A91 -> 3 | F20: =CHOOSE($C20,Calc_C_F!$F$281,Calc_C_F!$F$375,Calc_C_F!$F$469,Calc_C_F!$F$563,Calc_C_F!$F$657) -> 1.043096197 | H20: =CHOOSE($C20,Calc_C_F!$E$304,Calc_C_F!$E$398,Calc_C_F!$E$492,Calc_C_F!$E$586,Calc_C_F!$E$680) -> 0.2786768163 | I20: =CHOOSE($C20,Calc_C_F!$F$304,Calc_C_F!$F$398,Calc_C_F!$F$492,Calc_C_F!$F$586,Calc_C_F!$F$680) -> 0 | J20: =CHOOSE($C20,Calc_C_F!$G$304,Calc_C_F!$G$398,Calc_C_F!$G$492,Calc_C_F!$G$586,Calc_C_F!$G$680) -> 0 | K20: =CHOOSE($C20,Calc_C_F!$H$304,Calc_C_F!$H$398,Calc_C_F!$H$492,Calc_C_F!$H$586,Calc_C_F!$H$680) -> 0.2085737723 | M20: =CHOOSE($C20,Calc_C_F!$K$308,Calc_C_F!$K$402,Calc_C_F!$K$496,Calc_C_F!$K$590,Calc_C_F!$K$684) -> 938.0837444 | N20: =CHOOSE($C20,Calc_C_F!$L$308,Calc_C_F!$L$402,Calc_C_F!$L$496,Calc_C_F!$L$590,Calc_C_F!$L$684) -> 1495.437377 | O20: =CHOOSE($C20,Calc_C_F!$M$308,Calc_C_F!$M$402,Calc_C_F!$M$496,Calc_C_F!$M$590,Calc_C_F!$M$684) -> 2610.144642
B21: =INDEX(Gen_A!$B$89:$B$93,C21) -> Powercor | C21: =Gen_A!A92 -> 4 | F21: =CHOOSE($C21,Calc_C_F!$F$281,Calc_C_F!$F$375,Calc_C_F!$F$469,Calc_C_F!$F$563,Calc_C_F!$F$657) -> 1.261939515 | H21: =CHOOSE($C21,Calc_C_F!$E$304,Calc_C_F!$E$398,Calc_C_F!$E$492,Calc_C_F!$E$586,Calc_C_F!$E$680) -> 0.2640456136 | I21: =CHOOSE($C21,Calc_C_F!$F$304,Calc_C_F!$F$398,Calc_C_F!$F$492,Calc_C_F!$F$586,Calc_C_F!$F$680) -> 0 | J21: =CHOOSE($C21,Calc_C_F!$G$304,Calc_C_F!$G$398,Calc_C_F!$G$492,Calc_C_F!$G$586,Calc_C_F!$G$680) -> 0 | K21: =CHOOSE($C21,Calc_C_F!$H$304,Calc_C_F!$H$398,Calc_C_F!$H$492,Calc_C_F!$H$586,Calc_C_F!$H$680) -> 0.2008245656 | M21: =CHOOSE($C21,Calc_C_F!$K$308,Calc_C_F!$K$402,Calc_C_F!$K$496,Calc_C_F!$K$590,Calc_C_F!$K$684) -> 988.6991502 | N21: =CHOOSE($C21,Calc_C_F!$L$308,Calc_C_F!$L$402,Calc_C_F!$L$496,Calc_C_F!$L$590,Calc_C_F!$L$684) -> 1516.790377 | O21: =CHOOSE($C21,Calc_C_F!$M$308,Calc_C_F!$M$402,Calc_C_F!$M$496,Calc_C_F!$M$590,Calc_C_F!$M$684) -> 2572.972832
B22: =INDEX(Gen_A!$B$89:$B$93,C22) -> United Energy | C22: =Gen_A!A93 -> 5 | F22: =CHOOSE($C22,Calc_C_F!$F$281,Calc_C_F!$F$375,Calc_C_F!$F$469,Calc_C_F!$F$563,Calc_C_F!$F$657) -> 0.9235904241 | H22: =CHOOSE($C22,Calc_C_F!$E$304,Calc_C_F!$E$398,Calc_C_F!$E$492,Calc_C_F!$E$586,Calc_C_F!$E$680) -> 0.2926535444 | I22: =CHOOSE($C22,Calc_C_F!$F$304,Calc_C_F!$F$398,Calc_C_F!$F$492,Calc_C_F!$F$586,Calc_C_F!$F$680) -> 0 | J22: =CHOOSE($C22,Calc_C_F!$G$304,Calc_C_F!$G$398,Calc_C_F!$G$492,Calc_C_F!$G$586,Calc_C_F!$G$680) -> 0 | K22: =CHOOSE($C22,Calc_C_F!$H$304,Calc_C_F!$H$398,Calc_C_F!$H$492,Calc_C_F!$H$586,Calc_C_F!$H$680) -> 0.2079700004 | M22: =CHOOSE($C22,Calc_C_F!$K$308,Calc_C_F!$K$402,Calc_C_F!$K$496,Calc_C_F!$K$590,Calc_C_F!$K$684) -> 922.4175937 | N22: =CHOOSE($C22,Calc_C_F!$L$308,Calc_C_F!$L$402,Calc_C_F!$L$496,Calc_C_F!$L$590,Calc_C_F!$L$684) -> 1507.724683 | O22: =CHOOSE($C22,Calc_C_F!$M$308,Calc_C_F!$M$402,Calc_C_F!$M$496,Calc_C_F!$M$590,Calc_C_F!$M$684) -> 2678.33886
B24: Small business | F24: Rates | M24: Bills
B26: Zone | F26: =F15 -> Supply charge per day | H26: =Gen_A!$B$97 -> Single rate | I26: =Gen_A!$B$98 -> Block 1 | J26: =Gen_A!$B$99 -> Balance | K26: =Gen_A!$B$100 -> Controlled load | M26: =Gen_A!$B$110&" kWh/yr" -> 12000 kWh/yr | N26: =Gen_A!$B$111&" kWh/yr" -> 20000 kWh/yr | O26: =Gen_A!$B$112&" kWh/yr" -> 40000 kWh/yr
F27: $/day | H27: $/kWh | I27: $/kWh | J27: $/kWh | K27: $/kWh | M27: $ | N27: $ | O27: $
B29: =B18 -> Ausnet | C29: =C18 -> 1 | F29: =CHOOSE($C29,Calc_C_F!$F$327,Calc_C_F!$F$421,Calc_C_F!$F$515,Calc_C_F!$F$609,Calc_C_F!$F$703) -> 1.140821499 | H29: =CHOOSE($C29,Calc_C_F!$E$350,Calc_C_F!$E$444,Calc_C_F!$E$538,Calc_C_F!$E$632,Calc_C_F!$E$726) -> 0 | I29: =CHOOSE($C29,Calc_C_F!$F$350,Calc_C_F!$F$444,Calc_C_F!$F$538,Calc_C_F!$F$632,Calc_C_F!$F$726) -> 0.3407250909 | J29: =CHOOSE($C29,Calc_C_F!$G$350,Calc_C_F!$G$444,Calc_C_F!$G$538,Calc_C_F!$G$632,Calc_C_F!$G$726) -> 0.3794975565 | M29: =CHOOSE($C29,Calc_C_F!$K$354,Calc_C_F!$K$448,Calc_C_F!$K$542,Calc_C_F!$K$636,Calc_C_F!$K$730) -> 4812.178865 | N29: =CHOOSE($C29,Calc_C_F!$L$354,Calc_C_F!$L$448,Calc_C_F!$L$542,Calc_C_F!$L$636,Calc_C_F!$L$730) -> 7848.159317 | O29: =CHOOSE($C29,Calc_C_F!$M$354,Calc_C_F!$M$448,Calc_C_F!$M$542,Calc_C_F!$M$636,Calc_C_F!$M$730) -> 15438.11045
B30: =B19 -> Citipower | C30: 2 | F30: =CHOOSE($C30,Calc_C_F!$F$327,Calc_C_F!$F$421,Calc_C_F!$F$515,Calc_C_F!$F$609,Calc_C_F!$F$703) -> 1.33863694 | H30: =CHOOSE($C30,Calc_C_F!$E$350,Calc_C_F!$E$444,Calc_C_F!$E$538,Calc_C_F!$E$632,Calc_C_F!$E$726) -> 0.2666613893 | I30: =CHOOSE($C30,Calc_C_F!$F$350,Calc_C_F!$F$444,Calc_C_F!$F$538,Calc_C_F!$F$632,Calc_C_F!$F$726) -> 0 | J30: =CHOOSE($C30,Calc_C_F!$G$350,Calc_C_F!$G$444,Calc_C_F!$G$538,Calc_C_F!$G$632,Calc_C_F!$G$726) -> 0 | M30: =CHOOSE($C30,Calc_C_F!$K$354,Calc_C_F!$K$448,Calc_C_F!$K$542,Calc_C_F!$K$636,Calc_C_F!$K$730) -> 3688.539154 | N30: =CHOOSE($C30,Calc_C_F!$L$354,Calc_C_F!$L$448,Calc_C_F!$L$542,Calc_C_F!$L$636,Calc_C_F!$L$730) -> 5821.830268 | O30: =CHOOSE($C30,Calc_C_F!$M$354,Calc_C_F!$M$448,Calc_C_F!$M$542,Calc_C_F!$M$636,Calc_C_F!$M$730) -> 11155.05805
B31: Jemena | C31: 3 | F31: =CHOOSE($C31,Calc_C_F!$F$327,Calc_C_F!$F$421,Calc_C_F!$F$515,Calc_C_F!$F$609,Calc_C_F!$F$703) -> 1.181567005 | H31: =CHOOSE($C31,Calc_C_F!$E$350,Calc_C_F!$E$444,Calc_C_F!$E$538,Calc_C_F!$E$632,Calc_C_F!$E$726) -> 0.2903622913 | I31: =CHOOSE($C31,Calc_C_F!$F$350,Calc_C_F!$F$444,Calc_C_F!$F$538,Calc_C_F!$F$632,Calc_C_F!$F$726) -> 0 | J31: =CHOOSE($C31,Calc_C_F!$G$350,Calc_C_F!$G$444,Calc_C_F!$G$538,Calc_C_F!$G$632,Calc_C_F!$G$726) -> 0 | M31: =CHOOSE($C31,Calc_C_F!$K$354,Calc_C_F!$K$448,Calc_C_F!$K$542,Calc_C_F!$K$636,Calc_C_F!$K$730) -> 3915.619453 | N31: =CHOOSE($C31,Calc_C_F!$L$354,Calc_C_F!$L$448,Calc_C_F!$L$542,Calc_C_F!$L$636,Calc_C_F!$L$730) -> 6238.517783 | O31: =CHOOSE($C31,Calc_C_F!$M$354,Calc_C_F!$M$448,Calc_C_F!$M$542,Calc_C_F!$M$636,Calc_C_F!$M$730) -> 12045.76361
B32: Powercor | C32: 4 | F32: =CHOOSE($C32,Calc_C_F!$F$327,Calc_C_F!$F$421,Calc_C_F!$F$515,Calc_C_F!$F$609,Calc_C_F!$F$703) -> 1.389768556 | H32: =CHOOSE($C32,Calc_C_F!$E$350,Calc_C_F!$E$444,Calc_C_F!$E$538,Calc_C_F!$E$632,Calc_C_F!$E$726) -> 0.2619090586 | I32: =CHOOSE($C32,Calc_C_F!$F$350,Calc_C_F!$F$444,Calc_C_F!$F$538,Calc_C_F!$F$632,Calc_C_F!$F$726) -> 0 | J32: =CHOOSE($C32,Calc_C_F!$G$350,Calc_C_F!$G$444,Calc_C_F!$G$538,Calc_C_F!$G$632,Calc_C_F!$G$726) -> 0 | M32: =CHOOSE($C32,Calc_C_F!$K$354,Calc_C_F!$K$448,Calc_C_F!$K$542,Calc_C_F!$K$636,Calc_C_F!$K$730) -> 3650.174227 | N32: =CHOOSE($C32,Calc_C_F!$L$354,Calc_C_F!$L$448,Calc_C_F!$L$542,Calc_C_F!$L$636,Calc_C_F!$L$730) -> 5745.446696 | O32: =CHOOSE($C32,Calc_C_F!$M$354,Calc_C_F!$M$448,Calc_C_F!$M$542,Calc_C_F!$M$636,Calc_C_F!$M$730) -> 10983.62787
B33: United Energy | C33: 5 | F33: =CHOOSE($C33,Calc_C_F!$F$327,Calc_C_F!$F$421,Calc_C_F!$F$515,Calc_C_F!$F$609,Calc_C_F!$F$703) -> 0.9863448961 | H33: =CHOOSE($C33,Calc_C_F!$E$350,Calc_C_F!$E$444,Calc_C_F!$E$538,Calc_C_F!$E$632,Calc_C_F!$E$726) -> 0.3004256818 | I33: =CHOOSE($C33,Calc_C_F!$F$350,Calc_C_F!$F$444,Calc_C_F!$F$538,Calc_C_F!$F$632,Calc_C_F!$F$726) -> 0 | J33: =CHOOSE($C33,Calc_C_F!$G$350,Calc_C_F!$G$444,Calc_C_F!$G$538,Calc_C_F!$G$632,Calc_C_F!$G$726) -> 0 | M33: =CHOOSE($C33,Calc_C_F!$K$354,Calc_C_F!$K$448,Calc_C_F!$K$542,Calc_C_F!$K$636,Calc_C_F!$K$730) -> 3965.124069 | N33: =CHOOSE($C33,Calc_C_F!$L$354,Calc_C_F!$L$448,Calc_C_F!$L$542,Calc_C_F!$L$636,Calc_C_F!$L$730) -> 6368.529524 | O33: =CHOOSE($C33,Calc_C_F!$M$354,Calc_C_F!$M$448,Calc_C_F!$M$542,Calc_C_F!$M$636,Calc_C_F!$M$730) -> 12377.04316
B35: =Gen_A!B116 -> Supply charge definition
B36: =Gen_A!B117 -> Single rate
B37: =Gen_A!B118 -> Block 1
B38: =Gen_A!B119 -> Balance
B39: =Gen_A!B120 -> Controlled load
B40: =Gen_A!B121 -> Other information to be displayed
A42: =ROUNDDOWN(MAX($A$7:OFFSET(A42,-One,0),$A$2*Sht)+Sxn,0) -> 902 | B42: Time Series Graphs
H44: Match
B45: Residential | E45: Please select customer type | H45: =MATCH(B45,Gen_A!$B$84:$B$85,0) -> 1
B46: Single rate | E46: Please select the type of rate | H46: =MATCH(B46,Gen_A!$B$97:$B$100,0) -> 1
B47: Customer - Small | E47: Please select the customer size | H47: =MATCH(B47,Gen_A!$J$105:$J$107,0) -> 1
A68: =ROUNDDOWN(MAX($A$7:OFFSET(A68,-One,0),$A$2*Sht)+Sxn,0) -> 903 | B68: Selected Output
B70: Period start | J70: =Flags_C!J11 -> 2019-07-01 | K70: =Flags_C!K11 -> 2020-01-01 | L70: =Flags_C!L11 -> 2021-01-01 | M70: =Flags_C!M11 -> 2022-01-01 | N70: =Flags_C!N11 -> 2023-01-01 | O70: =Flags_C!O11 -> 2024-01-01 | P70: =Flags_C!P11 -> 2025-01-01 | Q70: =Flags_C!Q11 -> 2026-01-01 | R70: =Flags_C!R11 -> 2027-01-01 | S70: =Flags_C!S11 -> 2028-01-01 | T70: =Flags_C!T11 -> 2029-01-01 | U70: =Flags_C!U11 -> 2030-01-01
B71: Period end | J71: =Flags_C!J12 -> 2019-12-31 | K71: =Flags_C!K12 -> 2020-12-31 | L71: =Flags_C!L12 -> 2021-12-31 | M71: =Flags_C!M12 -> 2022-12-31 | N71: =Flags_C!N12 -> 2023-12-31 | O71: =Flags_C!O12 -> 2024-12-31 | P71: =Flags_C!P12 -> 2025-12-31 | Q71: =Flags_C!Q12 -> 2026-12-31 | R71: =Flags_C!R12 -> 2027-12-31 | S71: =Flags_C!S12 -> 2028-12-31 | T71: =Flags_C!T12 -> 2029-12-31 | U71: =Flags_C!U12 -> 2030-12-31
B73: =B149 -> Supply charge per day
B74: Ausnet | J74: =CHOOSE($H$45,J150,J208) -> 1.136786299 | K74: =CHOOSE($H$45,K150,K208) -> 1.136786299 | L74: 1.136786299 | M74: 1.136786299 | N74: 1.136786299 | O74: 1.136786299 | P74: 1.136786299 | Q74: 1.136786299 | R74: 1.136786299 | S74: 1.136786299 | T74: 1.136786299 | U74: 1.136786299
B75: Citipower | J75: =CHOOSE($H$45,J151,J209) -> 1.105468184 | K75: 1.105468184 | L75: 1.105468184 | M75: 1.105468184 | N75: 1.105468184 | O75: 1.105468184 | P75: 1.105468184 | Q75: 1.105468184 | R75: 1.105468184 | S75: 1.105468184 | T75: 1.105468184 | U75: 1.105468184
B76: Jemena | J76: 1.003677918 | K76: 1.003677918 | L76: 1.003677918 | M76: 1.003677918 | N76: 1.003677918 | O76: 1.003677918 | P76: 1.003677918 | Q76: 1.003677918 | R76: 1.003677918 | S76: 1.003677918 | T76: 1.003677918 | U76: 1.003677918
B77: Powercor | J77: 1.233297225 | K77: 1.233297225 | L77: 1.233297225 | M77: 1.233297225 | N77: 1.233297225 | O77: 1.233297225 | P77: 1.233297225 | Q77: 1.233297225 | R77: 1.233297225 | S77: 1.233297225 | T77: 1.233297225 | U77: 1.233297225
B78: United Energy | J78: 0.9114764286 | K78: 0.9114764286 | L78: 0.9114764286 | M78: 0.9114764286 | N78: 0.9114764286 | O78: 0.9114764286 | P78: 0.9114764286 | Q78: 0.9114764286 | R78: 0.9114764286 | S78: 0.9114764286 | T78: 0.9114764286 | U78: 0.9114764286
B80: Rate Selected | F80: =B46 -> Single rate | G80: =H46 -> 1
B81: =B74 -> Ausnet | J81: =CHOOSE($G$80,J88,J95,J102,J109) -> 0 | K81: =CHOOSE($G$80,K88,K95,K102,K109) -> 0 | L81: 0 | M81: 0 | N81: 0 | O81: 0 | P81: 0 | Q81: 0 | R81: 0 | S81: 0 | T81: 0 | U81: 0
B82: =B75 -> Citipower | J82: =CHOOSE($G$80,J89,J96,J103,J110) -> 0.2325333774 | K82: 0.2325333774 | L82: 0.2325333774 | M82: 0.2325333774 | N82: 0.2325333774 | O82: 0.2325333774 | P82: 0.2325333774 | Q82: 0.2325333774 | R82: 0.2325333774 | S82: 0.2325333774 | T82: 0.2325333774 | U82: 0.2325333774
B83: Jemena | J83: 0.2547359722 | K83: 0.2547359722 | L83: 0.2547359722 | M83: 0.2547359722 | N83: 0.2547359722 | O83: 0.2547359722 | P83: 0.2547359722 | Q83: 0.2547359722 | R83: 0.2547359722 | S83: 0.2547359722 | T83: 0.2547359722 | U83: 0.2547359722
B84: Powercor | J84: 0.2402755784 | K84: 0.2402755784 | L84: 0.2402755784 | M84: 0.2402755784 | N84: 0.2402755784 | O84: 0.2402755784 | P84: 0.2402755784 | Q84: 0.2402755784 | R84: 0.2402755784 | S84: 0.2402755784 | T84: 0.2402755784 | U84: 0.2402755784
B85: United Energy | J85: 0.2619521142 | K85: 0.2619521142 | L85: 0.2619521142 | M85: 0.2619521142 | N85: 0.2619521142 | O85: 0.2619521142 | P85: 0.2619521142 | Q85: 0.2619521142 | R85: 0.2619521142 | S85: 0.2619521142 | T85: 0.2619521142 | U85: 0.2619521142
B87: =B156 -> Single rate
B88: Ausnet | J88: =CHOOSE($H$45,J157,J215) -> 0 | K88: 0 | L88: 0 | M88: 0 | N88: 0 | O88: 0 | P88: 0 | Q88: 0 | R88: 0 | S88: 0 | T88: 0 | U88: 0
B89: Citipower | J89: 0.2325333774 | K89: 0.2325333774 | L89: 0.2325333774 | M89: 0.2325333774 | N89: 0.2325333774 | O89: 0.2325333774 | P89: 0.2325333774 | Q89: 0.2325333774 | R89: 0.2325333774 | S89: 0.2325333774 | T89: 0.2325333774 | U89: 0.2325333774
B90: Jemena | J90: 0.2547359722 | K90: 0.2547359722 | L90: 0.2547359722 | M90: 0.2547359722 | N90: 0.2547359722 | O90: 0.2547359722 | P90: 0.2547359722 | Q90: 0.2547359722 | R90: 0.2547359722 | S90: 0.2547359722 | T90: 0.2547359722 | U90: 0.2547359722
B91: Powercor | J91: 0.2402755784 | K91: 0.2402755784 | L91: 0.2402755784 | M91: 0.2402755784 | N91: 0.2402755784 | O91: 0.2402755784 | P91: 0.2402755784 | Q91: 0.2402755784 | R91: 0.2402755784 | S91: 0.2402755784 | T91: 0.2402755784 | U91: 0.2402755784
B92: United Energy | J92: 0.2619521142 | K92: 0.2619521142 | L92: 0.2619521142 | M92: 0.2619521142 | N92: 0.2619521142 | O92: 0.2619521142 | P92: 0.2619521142 | Q92: 0.2619521142 | R92: 0.2619521142 | S92: 0.2619521142 | T92: 0.2619521142 | U92: 0.2619521142
B94: =B163 -> Block 1
B95: Ausnet | J95: =CHOOSE($H$45,J164,J222) -> 0.2763409792 | K95: 0.2763409792 | L95: 0.2763409792 | M95: 0.2763409792 | N95: 0.2763409792 | O95: 0.2763409792 | P95: 0.2763409792 | Q95: 0.2763409792 | R95: 0.2763409792 | S95: 0.2763409792 | T95: 0.2763409792 | U95: 0.2763409792
B96: Citipower | J96: 0 | K96: 0 | L96: 0 | M96: 0 | N96: 0 | O96: 0 | P96: 0 | Q96: 0 | R96: 0 | S96: 0 | T96: 0 | U96: 0
B97: Jemena | J97: 0 | K97: 0 | L97: 0 | M97: 0 | N97: 0 | O97: 0 | P97: 0 | Q97: 0 | R97: 0 | S97: 0 | T97: 0 | U97: 0
B98: Powercor | J98: 0 | K98: 0 | L98: 0 | M98: 0 | N98: 0 | O98: 0 | P98: 0 | Q98: 0 | R98: 0 | S98: 0 | T98: 0 | U98: 0
B99: United Energy | J99: 0 | K99: 0 | L99: 0 | M99: 0 | N99: 0 | O99: 0 | P99: 0 | Q99: 0 | R99: 0 | S99: 0 | T99: 0 | U99: 0
B101: =B170 -> Balance
B102: Ausnet | J102: =CHOOSE($H$45,J171,J229) -> 0.3113411778 | K102: 0.3113411778 | L102: 0.3113411778 | M102: 0.3113411778 | N102: 0.3113411778 | O102: 0.3113411778 | P102: 0.3113411778 | Q102: 0.3113411778 | R102: 0.3113411778 | S102: 0.3113411778 | T102: 0.3113411778 | U102: 0.3113411778
B103: Citipower | J103: 0 | K103: 0 | L103: 0 | M103: 0 | N103: 0 | O103: 0 | P103: 0 | Q103: 0 | R103: 0 | S103: 0 | T103: 0 | U103: 0
B104: Jemena | J104: 0 | K104: 0 | L104: 0 | M104: 0 | N104: 0 | O104: 0 | P104: 0 | Q104: 0 | R104: 0 | S104: 0 | T104: 0 | U104: 0
B105: Powercor | J105: 0 | K105: 0 | L105: 0 | M105: 0 | N105: 0 | O105: 0 | P105: 0 | Q105: 0 | R105: 0 | S105: 0 | T105: 0 | U105: 0
B106: United Energy | J106: 0 | K106: 0 | L106: 0 | M106: 0 | N106: 0 | O106: 0 | P106: 0 | Q106: 0 | R106: 0 | S106: 0 | T106: 0 | U106: 0
B108: =B177 -> Controlled load
B109: Ausnet | J109: =CHOOSE($H$45,J178,J236) -> 0.2023863503 | K109: 0.2023863503 | L109: 0.2023863503 | M109: 0.2023863503 | N109: 0.2023863503 | O109: 0.2023863503 | P109: 0.2023863503 | Q109: 0.2023863503 | R109: 0.2023863503 | S109: 0.2023863503 | T109: 0.2023863503 | U109: 0.2023863503
B110: Citipower | J110: 0.1808600854 | K110: 0.1808600854 | L110: 0.1808600854 | M110: 0.1808600854 | N110: 0.1808600854 | O110: 0.1808600854 | P110: 0.1808600854 | Q110: 0.1808600854 | R110: 0.1808600854 | S110: 0.1808600854 | T110: 0.1808600854 | U110: 0.1808600854
B111: Jemena | J111: 0.1917248834 | K111: 0.1917248834 | L111: 0.1917248834 | M111: 0.1917248834 | N111: 0.1917248834 | O111: 0.1917248834 | P111: 0.1917248834 | Q111: 0.1917248834 | R111: 0.1917248834 | S111: 0.1917248834 | T111: 0.1917248834 | U111: 0.1917248834
B112: Powercor | J112: 0.1831200184 | K112: 0.1831200184 | L112: 0.1831200184 | M112: 0.1831200184 | N112: 0.1831200184 | O112: 0.1831200184 | P112: 0.1831200184 | Q112: 0.1831200184 | R112: 0.1831200184 | S112: 0.1831200184 | T112: 0.1831200184 | U112: 0.1831200184
B113: United Energy | J113: 0.1872676108 | K113: 0.1872676108 | L113: 0.1872676108 | M113: 0.1872676108 | N113: 0.1872676108 | O113: 0.1872676108 | P113: 0.1872676108 | Q113: 0.1872676108 | R113: 0.1872676108 | S113: 0.1872676108 | T113: 0.1872676108 | U113: 0.1872676108
B115: Customer Size | F115: =B47 -> Customer - Small | G115: =H47 -> 1
B116: =B123 -> Ausnet | J116: =CHOOSE($G$115,J123,J130,J137) -> 967.6089573 | K116: =CHOOSE($G$115,K123,K130,K137) -> 967.6089573 | L116: 967.6089573 | M116: 967.6089573 | N116: 967.6089573 | O116: 967.6089573 | P116: 967.6089573 | Q116: 967.6089573 | R116: 967.6089573 | S116: 967.6089573 | T116: 967.6089573 | U116: 967.6089573
B117: =B124 -> Citipower | J117: =CHOOSE($G$115,J124,J131,J138) -> 868.5626418 | K117: 868.5626418 | L117: 868.5626418 | M117: 868.5626418 | N117: 868.5626418 | O117: 868.5626418 | P117: 868.5626418 | Q117: 868.5626418 | R117: 868.5626418 | S117: 868.5626418 | T117: 868.5626418 | U117: 868.5626418
B118: Jemena | J118: 875.8143845 | K118: 875.8143845 | L118: 875.8143845 | M118: 875.8143845 | N118: 875.8143845 | O118: 875.8143845 | P118: 875.8143845 | Q118: 875.8143845 | R118: 875.8143845 | S118: 875.8143845 | T118: 875.8143845 | U118: 875.8143845
B119: Powercor | J119: 930.7046438 | K119: 930.7046438 | L119: 930.7046438 | M119: 930.7046438 | N119: 930.7046438 | O119: 930.7046438 | P119: 930.7046438 | Q119: 930.7046438 | R119: 930.7046438 | S119: 930.7046438 | T119: 930.7046438 | U119: 930.7046438
B120: United Energy | J120: 856.5931249 | K120: 856.5931249 | L120: 856.5931249 | M120: 856.5931249 | N120: 856.5931249 | O120: 856.5931249 | P120: 856.5931249 | Q120: 856.5931249 | R120: 856.5931249 | S120: 856.5931249 | T120: 856.5931249 | U120: 856.5931249
B122: Bills - Small
B123: =B185 -> Ausnet | J123: =CHOOSE($H$45,J185,J243) -> 967.6089573 | K123: 967.6089573 | L123: 967.6089573 | M123: 967.6089573 | N123: 967.6089573 | O123: 967.6089573 | P123: 967.6089573 | Q123: 967.6089573 | R123: 967.6089573 | S123: 967.6089573 | T123: 967.6089573 | U123: 967.6089573
B124: =B186 -> Citipower | J124: 868.5626418 | K124: 868.5626418 | L124: 868.5626418 | M124: 868.5626418 | N124: 868.5626418 | O124: 868.5626418 | P124: 868.5626418 | Q124: 868.5626418 | R124: 868.5626418 | S124: 868.5626418 | T124: 868.5626418 | U124: 868.5626418
B125: =B187 -> Jemena | J125: 875.8143845 | K125: 875.8143845 | L125: 875.8143845 | M125: 875.8143845 | N125: 875.8143845 | O125: 875.8143845 | P125: 875.8143845 | Q125: 875.8143845 | R125: 875.8143845 | S125: 875.8143845 | T125: 875.8143845 | U125: 875.8143845
B126: =B188 -> Powercor | J126: 930.7046438 | K126: 930.7046438 | L126: 930.7046438 | M126: 930.7046438 | N126: 930.7046438 | O126: 930.7046438 | P126: 930.7046438 | Q126: 930.7046438 | R126: 930.7046438 | S126: 930.7046438 | T126: 930.7046438 | U126: 930.7046438
B127: =B189 -> United Energy | J127: 856.5931249 | K127: 856.5931249 | L127: 856.5931249 | M127: 856.5931249 | N127: 856.5931249 | O127: 856.5931249 | P127: 856.5931249 | Q127: 856.5931249 | R127: 856.5931249 | S127: 856.5931249 | T127: 856.5931249 | U127: 856.5931249
B129: Bills - Medium
B130: =B192 -> Ausnet | J130: =CHOOSE($H$45,J192,J250) -> 1527.850959 | K130: 1527.850959 | L130: 1527.850959 | M130: 1527.850959 | N130: 1527.850959 | O130: 1527.850959 | P130: 1527.850959 | Q130: 1527.850959 | R130: 1527.850959 | S130: 1527.850959 | T130: 1527.850959 | U130: 1527.850959
B131: =B193 -> Citipower | J131: 1333.629397 | K131: 1333.629397 | L131: 1333.629397 | M131: 1333.629397 | N131: 1333.629397 | O131: 1333.629397 | P131: 1333.629397 | Q131: 1333.629397 | R131: 1333.629397 | S131: 1333.629397 | T131: 1333.629397 | U131: 1333.629397
B132: =B194 -> Jemena | J132: 1385.286329 | K132: 1385.286329 | L132: 1385.286329 | M132: 1385.286329 | N132: 1385.286329 | O132: 1385.286329 | P132: 1385.286329 | Q132: 1385.286329 | R132: 1385.286329 | S132: 1385.286329 | T132: 1385.286329 | U132: 1385.286329
B133: =B195 -> Powercor | J133: 1411.255801 | K133: 1411.255801 | L133: 1411.255801 | M133: 1411.255801 | N133: 1411.255801 | O133: 1411.255801 | P133: 1411.255801 | Q133: 1411.255801 | R133: 1411.255801 | S133: 1411.255801 | T133: 1411.255801 | U133: 1411.255801
B134: =B196 -> United Energy | J134: 1380.497353 | K134: 1380.497353 | L134: 1380.497353 | M134: 1380.497353 | N134: 1380.497353 | O134: 1380.497353 | P134: 1380.497353 | Q134: 1380.497353 | R134: 1380.497353 | S134: 1380.497353 | T134: 1380.497353 | U134: 1380.497353
B136: Bills - Large
B137: =B199 -> Ausnet | J137: =CHOOSE($H$45,J199,J257) -> 2762.855611 | K137: 2762.855611 | L137: 2762.855611 | M137: 2762.855611 | N137: 2762.855611 | O137: 2762.855611 | P137: 2762.855611 | Q137: 2762.855611 | R137: 2762.855611 | S137: 2762.855611 | T137: 2762.855611 | U137: 2762.855611
B138: =B200 -> Citipower | J138: 2263.762906 | K138: 2263.762906 | L138: 2263.762906 | M138: 2263.762906 | N138: 2263.762906 | O138: 2263.762906 | P138: 2263.762906 | Q138: 2263.762906 | R138: 2263.762906 | S138: 2263.762906 | T138: 2263.762906 | U138: 2263.762906
B139: =B201 -> Jemena | J139: 2404.230218 | K139: 2404.230218 | L139: 2404.230218 | M139: 2404.230218 | N139: 2404.230218 | O139: 2404.230218 | P139: 2404.230218 | Q139: 2404.230218 | R139: 2404.230218 | S139: 2404.230218 | T139: 2404.230218 | U139: 2404.230218
B140: =B202 -> Powercor | J140: 2372.358114 | K140: 2372.358114 | L140: 2372.358114 | M140: 2372.358114 | N140: 2372.358114 | O140: 2372.358114 | P140: 2372.358114 | Q140: 2372.358114 | R140: 2372.358114 | S140: 2372.358114 | T140: 2372.358114 | U140: 2372.358114
B141: =B203 -> United Energy | J141: 2428.30581 | K141: 2428.30581 | L141: 2428.30581 | M141: 2428.30581 | N141: 2428.30581 | O141: 2428.30581 | P141: 2428.30581 | Q141: 2428.30581 | R141: 2428.30581 | S141: 2428.30581 | T141: 2428.30581 | U141: 2428.30581
A143: =ROUNDDOWN(MAX($A$7:OFFSET(A143,-One,0),$A$2*Sht)+Sxn,0) -> 904 | B143: Macro Output
B145: Period Start | J145: =J70 -> 2019-07-01 | K145: =K70 -> 2020-01-01 | L145: 2021-01-01 | M145: 2022-01-01 | N145: 2023-01-01 | O145: 2024-01-01 | P145: 2025-01-01 | Q145: 2026-01-01 | R145: 2027-01-01 | S145: 2028-01-01 | T145: 2029-01-01 | U145: 2030-01-01
B146: Period end | I146: Live | J146: =J71 -> 2019-12-31 | K146: 2020-12-31 | L146: 2021-12-31 | M146: 2022-12-31 | N146: 2023-12-31 | O146: 2024-12-31 | P146: 2025-12-31 | Q146: 2026-12-31 | R146: 2027-12-31 | S146: 2028-12-31 | T146: 2029-12-31 | U146: 2030-12-31
B147: Residential
B149: =F15 -> Supply charge per day
B150: =B18 -> Ausnet | F150: =$F$16 -> $/day | I150: =F18 -> 1.140821499 | J150: 1.136786299 | K150: 1.136786299 | L150: 1.136786299 | M150: 1.136786299 | N150: 1.136786299 | O150: 1.136786299 | P150: 1.136786299 | Q150: 1.136786299 | R150: 1.136786299 | S150: 1.136786299 | T150: 1.136786299 | U150: 1.136786299
B151: =B19 -> Citipower | F151: =$F$16 -> $/day | I151: =F19 -> 1.130914748 | J151: 1.105468184 | K151: 1.105468184 | L151: 1.105468184 | M151: 1.105468184 | N151: 1.105468184 | O151: 1.105468184 | P151: 1.105468184 | Q151: 1.105468184 | R151: 1.105468184 | S151: 1.105468184 | T151: 1.105468184 | U151: 1.105468184
B152: =B20 -> Jemena | F152: $/day | I152: =F20 -> 1.043096197 | J152: 1.003677918 | K152: 1.003677918 | L152: 1.003677918 | M152: 1.003677918 | N152: 1.003677918 | O152: 1.003677918 | P152: 1.003677918 | Q152: 1.003677918 | R152: 1.003677918 | S152: 1.003677918 | T152: 1.003677918 | U152: 1.003677918
B153: =B21 -> Powercor | F153: $/day | I153: =F21 -> 1.261939515 | J153: 1.233297225 | K153: 1.233297225 | L153: 1.233297225 | M153: 1.233297225 | N153: 1.233297225 | O153: 1.233297225 | P153: 1.233297225 | Q153: 1.233297225 | R153: 1.233297225 | S153: 1.233297225 | T153: 1.233297225 | U153: 1.233297225
B154: =B22 -> United Energy | F154: $/day | I154: =F22 -> 0.9235904241 | J154: 0.9114764286 | K154: 0.9114764286 | L154: 0.9114764286 | M154: 0.9114764286 | N154: 0.9114764286 | O154: 0.9114764286 | P154: 0.9114764286 | Q154: 0.9114764286 | R154: 0.9114764286 | S154: 0.9114764286 | T154: 0.9114764286 | U154: 0.9114764286
B156: =H15 -> Single rate
B157: =B150 -> Ausnet | F157: =$H$16 -> $/kWh | I157: =H18 -> 0 | J157: 0 | K157: 0 | L157: 0 | M157: 0 | N157: 0 | O157: 0 | P157: 0 | Q157: 0 | R157: 0 | S157: 0 | T157: 0 | U157: 0
B158: =B151 -> Citipower | F158: =$H$16 -> $/kWh | I158: =H19 -> 0.2517048956 | J158: 0.2325333774 | K158: 0.2325333774 | L158: 0.2325333774 | M158: 0.2325333774 | N158: 0.2325333774 | O158: 0.2325333774 | P158: 0.2325333774 | Q158: 0.2325333774 | R158: 0.2325333774 | S158: 0.2325333774 | T158: 0.2325333774 | U158: 0.2325333774
B159: Jemena | F159: $/kWh | I159: =H20 -> 0.2786768163 | J159: 0.2547359722 | K159: 0.2547359722 | L159: 0.2547359722 | M159: 0.2547359722 | N159: 0.2547359722 | O159: 0.2547359722 | P159: 0.2547359722 | Q159: 0.2547359722 | R159: 0.2547359722 | S159: 0.2547359722 | T159: 0.2547359722 | U159: 0.2547359722
B160: Powercor | F160: $/kWh | I160: =H21 -> 0.2640456136 | J160: 0.2402755784 | K160: 0.2402755784 | L160: 0.2402755784 | M160: 0.2402755784 | N160: 0.2402755784 | O160: 0.2402755784 | P160: 0.2402755784 | Q160: 0.2402755784 | R160: 0.2402755784 | S160: 0.2402755784 | T160: 0.2402755784 | U160: 0.2402755784
B161: United Energy | F161: $/kWh | I161: =H22 -> 0.2926535444 | J161: 0.2619521142 | K161: 0.2619521142 | L161: 0.2619521142 | M161: 0.2619521142 | N161: 0.2619521142 | O161: 0.2619521142 | P161: 0.2619521142 | Q161: 0.2619521142 | R161: 0.2619521142 | S161: 0.2619521142 | T161: 0.2619521142 | U161: 0.2619521142
B163: =I15 -> Block 1
B164: =B157 -> Ausnet | F164: =$I$16 -> $/kWh | I164: =I18 -> 0.3071717459 | J164: 0.2763409792 | K164: 0.2763409792 | L164: 0.2763409792 | M164: 0.2763409792 | N164: 0.2763409792 | O164: 0.2763409792 | P164: 0.2763409792 | Q164: 0.2763409792 | R164: 0.2763409792 | S164: 0.2763409792 | T164: 0.2763409792 | U164: 0.2763409792
B165: =B158 -> Citipower | F165: =$I$16 -> $/kWh | I165: =I19 -> 0 | J165: 0 | K165: 0 | L165: 0 | M165: 0 | N165: 0 | O165: 0 | P165: 0 | Q165: 0 | R165: 0 | S165: 0 | T165: 0 | U165: 0
B166: Jemena | F166: $/kWh | I166: =I20 -> 0 | J166: 0 | K166: 0 | L166: 0 | M166: 0 | N166: 0 | O166: 0 | P166: 0 | Q166: 0 | R166: 0 | S166: 0 | T166: 0 | U166: 0
B167: Powercor | F167: $/kWh | I167: =I21 -> 0 | J167: 0 | K167: 0 | L167: 0 | M167: 0 | N167: 0 | O167: 0 | P167: 0 | Q167: 0 | R167: 0 | S167: 0 | T167: 0 | U167: 0
B168: United Energy | F168: $/kWh | I168: =I22 -> 0 | J168: 0 | K168: 0 | L168: 0 | M168: 0 | N168: 0 | O168: 0 | P168: 0 | Q168: 0 | R168: 0 | S168: 0 | T168: 0 | U168: 0
B170: =J15 -> Balance
B171: =B164 -> Ausnet | F171: =$J$16 -> $/kWh | I171: =J18 -> 0.3272275153 | J171: 0.3113411778 | K171: 0.3113411778 | L171: 0.3113411778 | M171: 0.3113411778 | N171: 0.3113411778 | O171: 0.3113411778 | P171: 0.3113411778 | Q171: 0.3113411778 | R171: 0.3113411778 | S171: 0.3113411778 | T171: 0.3113411778 | U171: 0.3113411778
B172: =B165 -> Citipower | F172: =$J$16 -> $/kWh | I172: =J19 -> 0 | J172: 0 | K172: 0 | L172: 0 | M172: 0 | N172: 0 | O172: 0 | P172: 0 | Q172: 0 | R172: 0 | S172: 0 | T172: 0 | U172: 0
B173: Jemena | F173: $/kWh | I173: =J20 -> 0 | J173: 0 | K173: 0 | L173: 0 | M173: 0 | N173: 0 | O173: 0 | P173: 0 | Q173: 0 | R173: 0 | S173: 0 | T173: 0 | U173: 0
B174: Powercor | F174: $/kWh | I174: =J21 -> 0 | J174: 0 | K174: 0 | L174: 0 | M174: 0 | N174: 0 | O174: 0 | P174: 0 | Q174: 0 | R174: 0 | S174: 0 | T174: 0 | U174: 0
B175: United Energy | F175: $/kWh | I175: =J22 -> 0 | J175: 0 | K175: 0 | L175: 0 | M175: 0 | N175: 0 | O175: 0 | P175: 0 | Q175: 0 | R175: 0 | S175: 0 | T175: 0 | U175: 0
B177: =K15 -> Controlled load
B178: =B171 -> Ausnet | F178: =$K$16 -> $/kWh | I178: =K18 -> 0.2230422609 | J178: 0.2023863503 | K178: 0.2023863503 | L178: 0.2023863503 | M178: 0.2023863503 | N178: 0.2023863503 | O178: 0.2023863503 | P178: 0.2023863503 | Q178: 0.2023863503 | R178: 0.2023863503 | S178: 0.2023863503 | T178: 0.2023863503 | U178: 0.2023863503
B179: =B172 -> Citipower | F179: =$K$16 -> $/kWh | I179: =K19 -> 0.1953658436 | J179: 0.1808600854 | K179: 0.1808600854 | L179: 0.1808600854 | M179: 0.1808600854 | N179: 0.1808600854 | O179: 0.1808600854 | P179: 0.1808600854 | Q179: 0.1808600854 | R179: 0.1808600854 | S179: 0.1808600854 | T179: 0.1808600854 | U179: 0.1808600854
B180: =B173 -> Jemena | F180: $/kWh | I180: =K20 -> 0.2085737723 | J180: 0.1917248834 | K180: 0.1917248834 | L180: 0.1917248834 | M180: 0.1917248834 | N180: 0.1917248834 | O180: 0.1917248834 | P180: 0.1917248834 | Q180: 0.1917248834 | R180: 0.1917248834 | S180: 0.1917248834 | T180: 0.1917248834 | U180: 0.1917248834
B181: =B174 -> Powercor | F181: $/kWh | I181: =K21 -> 0.2008245656 | J181: 0.1831200184 | K181: 0.1831200184 | L181: 0.1831200184 | M181: 0.1831200184 | N181: 0.1831200184 | O181: 0.1831200184 | P181: 0.1831200184 | Q181: 0.1831200184 | R181: 0.1831200184 | S181: 0.1831200184 | T181: 0.1831200184 | U181: 0.1831200184
B182: =B175 -> United Energy | F182: $/kWh | I182: =K22 -> 0.2079700004 | J182: 0.1872676108 | K182: 0.1872676108 | L182: 0.1872676108 | M182: 0.1872676108 | N182: 0.1872676108 | O182: 0.1872676108 | P182: 0.1872676108 | Q182: 0.1872676108 | R182: 0.1872676108 | S182: 0.1872676108 | T182: 0.1872676108 | U182: 0.1872676108
B184: ="Bills - "&$M$15 -> Bills - 2000 kWh/yr
B185: =B178 -> Ausnet | F185: =$M$16 -> $ | I185: =M18 -> 1030.743339 | J185: 967.6089573 | K185: 967.6089573 | L185: 967.6089573 | M185: 967.6089573 | N185: 967.6089573 | O185: 967.6089573 | P185: 967.6089573 | Q185: 967.6089573 | R185: 967.6089573 | S185: 967.6089573 | T185: 967.6089573 | U185: 967.6089573
B186: =B179 -> Citipower | F186: =$M$16 -> $ | I186: =M19 -> 916.1936743 | J186: 868.5626418 | K186: 868.5626418 | L186: 868.5626418 | M186: 868.5626418 | N186: 868.5626418 | O186: 868.5626418 | P186: 868.5626418 | Q186: 868.5626418 | R186: 868.5626418 | S186: 868.5626418 | T186: 868.5626418 | U186: 868.5626418
B187: Jemena | F187: $ | I187: =M20 -> 938.0837444 | J187: 875.8143845 | K187: 875.8143845 | L187: 875.8143845 | M187: 875.8143845 | N187: 875.8143845 | O187: 875.8143845 | P187: 875.8143845 | Q187: 875.8143845 | R187: 875.8143845 | S187: 875.8143845 | T187: 875.8143845 | U187: 875.8143845
B188: Powercor | F188: $ | I188: =M21 -> 988.6991502 | J188: 930.7046438 | K188: 930.7046438 | L188: 930.7046438 | M188: 930.7046438 | N188: 930.7046438 | O188: 930.7046438 | P188: 930.7046438 | Q188: 930.7046438 | R188: 930.7046438 | S188: 930.7046438 | T188: 930.7046438 | U188: 930.7046438
B189: United Energy | F189: $ | I189: =M22 -> 922.4175937 | J189: 856.5931249 | K189: 856.5931249 | L189: 856.5931249 | M189: 856.5931249 | N189: 856.5931249 | O189: 856.5931249 | P189: 856.5931249 | Q189: 856.5931249 | R189: 856.5931249 | S189: 856.5931249 | T189: 856.5931249 | U189: 856.5931249
B191: ="Bills - "&$N$15 -> Bills - 4000 kWh/yr
B192: =B185 -> Ausnet | F192: =$M$16 -> $ | I192: =N18 -> 1649.418877 | J192: 1527.850959 | K192: 1527.850959 | L192: 1527.850959 | M192: 1527.850959 | N192: 1527.850959 | O192: 1527.850959 | P192: 1527.850959 | Q192: 1527.850959 | R192: 1527.850959 | S192: 1527.850959 | T192: 1527.850959 | U192: 1527.850959
B193: =B186 -> Citipower | F193: =$M$16 -> $ | I193: =N19 -> 1419.603466 | J193: 1333.629397 | K193: 1333.629397 | L193: 1333.629397 | M193: 1333.629397 | N193: 1333.629397 | O193: 1333.629397 | P193: 1333.629397 | Q193: 1333.629397 | R193: 1333.629397 | S193: 1333.629397 | T193: 1333.629397 | U193: 1333.629397
B194: Jemena | F194: $ | I194: =N20 -> 1495.437377 | J194: 1385.286329 | K194: 1385.286329 | L194: 1385.286329 | M194: 1385.286329 | N194: 1385.286329 | O194: 1385.286329 | P194: 1385.286329 | Q194: 1385.286329 | R194: 1385.286329 | S194: 1385.286329 | T194: 1385.286329 | U194: 1385.286329
B195: Powercor | F195: $ | I195: =N21 -> 1516.790377 | J195: 1411.255801 | K195: 1411.255801 | L195: 1411.255801 | M195: 1411.255801 | N195: 1411.255801 | O195: 1411.255801 | P195: 1411.255801 | Q195: 1411.255801 | R195: 1411.255801 | S195: 1411.255801 | T195: 1411.255801 | U195: 1411.255801
B196: United Energy | F196: $ | I196: =N22 -> 1507.724683 | J196: 1380.497353 | K196: 1380.497353 | L196: 1380.497353 | M196: 1380.497353 | N196: 1380.497353 | O196: 1380.497353 | P196: 1380.497353 | Q196: 1380.497353 | R196: 1380.497353 | S196: 1380.497353 | T196: 1380.497353 | U196: 1380.497353
B198: ="Bills - "&$O$15 -> Bills - 8000 kWh/yr
B199: =B192 -> Ausnet | F199: =$M$16 -> $ | I199: =O18 -> 2952.39243 | J199: 2762.855611 | K199: 2762.855611 | L199: 2762.855611 | M199: 2762.855611 | N199: 2762.855611 | O199: 2762.855611 | P199: 2762.855611 | Q199: 2762.855611 | R199: 2762.855611 | S199: 2762.855611 | T199: 2762.855611 | U199: 2762.855611
B200: =B193 -> Citipower | F200: =$M$16 -> $ | I200: =O19 -> 2426.423048 | J200: 2263.762906 | K200: 2263.762906 | L200: 2263.762906 | M200: 2263.762906 | N200: 2263.762906 | O200: 2263.762906 | P200: 2263.762906 | Q200: 2263.762906 | R200: 2263.762906 | S200: 2263.762906 | T200: 2263.762906 | U200: 2263.762906
B201: Jemena | F201: $ | I201: =O20 -> 2610.144642 | J201: 2404.230218 | K201: 2404.230218 | L201: 2404.230218 | M201: 2404.230218 | N201: 2404.230218 | O201: 2404.230218 | P201: 2404.230218 | Q201: 2404.230218 | R201: 2404.230218 | S201: 2404.230218 | T201: 2404.230218 | U201: 2404.230218
B202: Powercor | F202: $ | I202: =O21 -> 2572.972832 | J202: 2372.358114 | K202: 2372.358114 | L202: 2372.358114 | M202: 2372.358114 | N202: 2372.358114 | O202: 2372.358114 | P202: 2372.358114 | Q202: 2372.358114 | R202: 2372.358114 | S202: 2372.358114 | T202: 2372.358114 | U202: 2372.358114
B203: United Energy | F203: $ | I203: =O22 -> 2678.33886 | J203: 2428.30581 | K203: 2428.30581 | L203: 2428.30581 | M203: 2428.30581 | N203: 2428.30581 | O203: 2428.30581 | P203: 2428.30581 | Q203: 2428.30581 | R203: 2428.30581 | S203: 2428.30581 | T203: 2428.30581 | U203: 2428.30581
B205: Small business
B207: =B149 -> Supply charge per day
B208: =B150 -> Ausnet | F208: =$F$16 -> $/day | I208: =F29 -> 1.140821499 | J208: 1.136786299 | K208: 1.136786299 | L208: 1.136786299 | M208: 1.136786299 | N208: 1.136786299 | O208: 1.136786299 | P208: 1.136786299 | Q208: 1.136786299 | R208: 1.136786299 | S208: 1.136786299 | T208: 1.136786299 | U208: 1.136786299
B209: Citipower | F209: =$F$16 -> $/day | I209: =F30 -> 1.33863694 | J209: 1.297211745 | K209: 1.297211745 | L209: 1.297211745 | M209: 1.297211745 | N209: 1.297211745 | O209: 1.297211745 | P209: 1.297211745 | Q209: 1.297211745 | R209: 1.297211745 | S209: 1.297211745 | T209: 1.297211745 | U209: 1.297211745
B210: Jemena | F210: $/day | I210: =F31 -> 1.181567005 | J210: 1.145012097 | K210: 1.145012097 | L210: 1.145012097 | M210: 1.145012097 | N210: 1.145012097 | O210: 1.145012097 | P210: 1.145012097 | Q210: 1.145012097 | R210: 1.145012097 | S210: 1.145012097 | T210: 1.145012097 | U210: 1.145012097
B211: Powercor | F211: $/day | I211: =F32 -> 1.389768556 | J211: 1.361126266 | K211: 1.361126266 | L211: 1.361126266 | M211: 1.361126266 | N211: 1.361126266 | O211: 1.361126266 | P211: 1.361126266 | Q211: 1.361126266 | R211: 1.361126266 | S211: 1.361126266 | T211: 1.361126266 | U211: 1.361126266
B212: United Energy | F212: $/day | I212: =F33 -> 0.9863448961 | J212: 0.9690985646 | K212: 0.9690985646 | L212: 0.9690985646 | M212: 0.9690985646 | N212: 0.9690985646 | O212: 0.9690985646 | P212: 0.9690985646 | Q212: 0.9690985646 | R212: 0.9690985646 | S212: 0.9690985646 | T212: 0.9690985646 | U212: 0.9690985646
B214: Single rate
B215: Ausnet | F215: =$H$16 -> $/kWh | I215: =H29 -> 0 | J215: 0 | K215: 0 | L215: 0 | M215: 0 | N215: 0 | O215: 0 | P215: 0 | Q215: 0 | R215: 0 | S215: 0 | T215: 0 | U215: 0
B216: Citipower | F216: =$H$16 -> $/kWh | I216: =H30 -> 0.2666613893 | J216: 0.246371119 | K216: 0.246371119 | L216: 0.246371119 | M216: 0.246371119 | N216: 0.246371119 | O216: 0.246371119 | P216: 0.246371119 | Q216: 0.246371119 | R216: 0.246371119 | S216: 0.246371119 | T216: 0.246371119 | U216: 0.246371119
B217: Jemena | F217: $/kWh | I217: =H31 -> 0.2903622913 | J217: 0.2681991896 | K217: 0.2681991896 | L217: 0.2681991896 | M217: 0.2681991896 | N217: 0.2681991896 | O217: 0.2681991896 | P217: 0.2681991896 | Q217: 0.2681991896 | R217: 0.2681991896 | S217: 0.2681991896 | T217: 0.2681991896 | U217: 0.2681991896
B218: Powercor | F218: $/kWh | I218: =H32 -> 0.2619090586 | J218: 0.2394163115 | K218: 0.2394163115 | L218: 0.2394163115 | M218: 0.2394163115 | N218: 0.2394163115 | O218: 0.2394163115 | P218: 0.2394163115 | Q218: 0.2394163115 | R218: 0.2394163115 | S218: 0.2394163115 | T218: 0.2394163115 | U218: 0.2394163115
B219: United Energy | F219: $/kWh | I219: =H33 -> 0.3004256818 | J219: 0.2717289456 | K219: 0.2717289456 | L219: 0.2717289456 | M219: 0.2717289456 | N219: 0.2717289456 | O219: 0.2717289456 | P219: 0.2717289456 | Q219: 0.2717289456 | R219: 0.2717289456 | S219: 0.2717289456 | T219: 0.2717289456 | U219: 0.2717289456
B221: Block 1
B222: Ausnet | F222: =$I$16 -> $/kWh | I222: =I29 -> 0.3407250909 | J222: 0.3154288638 | K222: 0.3154288638 | L222: 0.3154288638 | M222: 0.3154288638 | N222: 0.3154288638 | O222: 0.3154288638 | P222: 0.3154288638 | Q222: 0.3154288638 | R222: 0.3154288638 | S222: 0.3154288638 | T222: 0.3154288638 | U222: 0.3154288638
B223: Citipower | F223: =$I$16 -> $/kWh | I223: =I30 -> 0 | J223: 0 | K223: 0 | L223: 0 | M223: 0 | N223: 0 | O223: 0 | P223: 0 | Q223: 0 | R223: 0 | S223: 0 | T223: 0 | U223: 0
B224: Jemena | F224: $/kWh | I224: =I31 -> 0 | J224: 0 | K224: 0 | L224: 0 | M224: 0 | N224: 0 | O224: 0 | P224: 0 | Q224: 0 | R224: 0 | S224: 0 | T224: 0 | U224: 0
B225: Powercor | F225: $/kWh | I225: =I32 -> 0 | J225: 0 | K225: 0 | L225: 0 | M225: 0 | N225: 0 | O225: 0 | P225: 0 | Q225: 0 | R225: 0 | S225: 0 | T225: 0 | U225: 0
B226: United Energy | F226: $/kWh | I226: =I33 -> 0 | J226: 0 | K226: 0 | L226: 0 | M226: 0 | N226: 0 | O226: 0 | P226: 0 | Q226: 0 | R226: 0 | S226: 0 | T226: 0 | U226: 0
B228: Balance
B229: Ausnet | F229: =$J$16 -> $/kWh | I229: =J29 -> 0.3794975565 | J229: 0.3604791095 | K229: 0.3604791095 | L229: 0.3604791095 | M229: 0.3604791095 | N229: 0.3604791095 | O229: 0.3604791095 | P229: 0.3604791095 | Q229: 0.3604791095 | R229: 0.3604791095 | S229: 0.3604791095 | T229: 0.3604791095 | U229: 0.3604791095
B230: Citipower | F230: =$J$16 -> $/kWh | I230: =J30 -> 0 | J230: 0 | K230: 0 | L230: 0 | M230: 0 | N230: 0 | O230: 0 | P230: 0 | Q230: 0 | R230: 0 | S230: 0 | T230: 0 | U230: 0
B231: Jemena | F231: $/kWh | I231: =J31 -> 0 | J231: 0 | K231: 0 | L231: 0 | M231: 0 | N231: 0 | O231: 0 | P231: 0 | Q231: 0 | R231: 0 | S231: 0 | T231: 0 | U231: 0
B232: Powercor | F232: $/kWh | I232: =J32 -> 0 | J232: 0 | K232: 0 | L232: 0 | M232: 0 | N232: 0 | O232: 0 | P232: 0 | Q232: 0 | R232: 0 | S232: 0 | T232: 0 | U232: 0
B233: United Energy | F233: $/kWh | I233: =J33 -> 0 | J233: 0 | K233: 0 | L233: 0 | M233: 0 | N233: 0 | O233: 0 | P233: 0 | Q233: 0 | R233: 0 | S233: 0 | T233: 0 | U233: 0
B235: Controlled load
B236: Ausnet | F236: =$K$16 -> $/kWh
B237: Citipower | F237: =$K$16 -> $/kWh
B238: Jemena | F238: $/kWh
B239: Powercor | F239: $/kWh
B240: United Energy | F240: $/kWh
B242: ="Bills - "&$M$26 -> Bills - 12000 kWh/yr
B243: Ausnet | F243: =$M$16 -> $ | I243: =M29 -> 4812.178865 | J243: 4556.87131 | K243: 4556.87131 | L243: 4556.87131 | M243: 4556.87131 | N243: 4556.87131 | O243: 4556.87131 | P243: 4556.87131 | Q243: 4556.87131 | R243: 4556.87131 | S243: 4556.87131 | T243: 4556.87131 | U243: 4556.87131
B244: Citipower | F244: =$M$16 -> $ | I244: =M30 -> 3688.539154 | J244: 3429.935714 | K244: 3429.935714 | L244: 3429.935714 | M244: 3429.935714 | N244: 3429.935714 | O244: 3429.935714 | P244: 3429.935714 | Q244: 3429.935714 | R244: 3429.935714 | S244: 3429.935714 | T244: 3429.935714 | U244: 3429.935714
B245: Jemena | F245: $ | I245: =M31 -> 3915.619453 | J245: 3636.31969 | K245: 3636.31969 | L245: 3636.31969 | M245: 3636.31969 | N245: 3636.31969 | O245: 3636.31969 | P245: 3636.31969 | Q245: 3636.31969 | R245: 3636.31969 | S245: 3636.31969 | T245: 3636.31969 | U245: 3636.31969
B246: Powercor | F246: $ | I246: =M32 -> 3650.174227 | J246: 3369.806825 | K246: 3369.806825 | L246: 3369.806825 | M246: 3369.806825 | N246: 3369.806825 | O246: 3369.806825 | P246: 3369.806825 | Q246: 3369.806825 | R246: 3369.806825 | S246: 3369.806825 | T246: 3369.806825 | U246: 3369.806825
B247: United Energy | F247: $ | I247: =M33 -> 3965.124069 | J247: 3614.468323 | K247: 3614.468323 | L247: 3614.468323 | M247: 3614.468323 | N247: 3614.468323 | O247: 3614.468323 | P247: 3614.468323 | Q247: 3614.468323 | R247: 3614.468323 | S247: 3614.468323 | T247: 3614.468323 | U247: 3614.468323
B249: ="Bills - "&$N$26 -> Bills - 20000 kWh/yr
B250: Ausnet | F250: =$M$16 -> $ | I250: =N29 -> 7848.159317 | J250: 7440.704186 | K250: 7440.704186 | L250: 7440.704186 | M250: 7440.704186 | N250: 7440.704186 | O250: 7440.704186 | P250: 7440.704186 | Q250: 7440.704186 | R250: 7440.704186 | S250: 7440.704186 | T250: 7440.704186 | U250: 7440.704186
B251: Citipower | F251: =$M$16 -> $ | I251: =N30 -> 5821.830268 | J251: 5400.904666 | K251: 5400.904666 | L251: 5400.904666 | M251: 5400.904666 | N251: 5400.904666 | O251: 5400.904666 | P251: 5400.904666 | Q251: 5400.904666 | R251: 5400.904666 | S251: 5400.904666 | T251: 5400.904666 | U251: 5400.904666
B252: Jemena | F252: $ | I252: =N31 -> 6238.517783 | J252: 5781.913207 | K252: 5781.913207 | L252: 5781.913207 | M252: 5781.913207 | N252: 5781.913207 | O252: 5781.913207 | P252: 5781.913207 | Q252: 5781.913207 | R252: 5781.913207 | S252: 5781.913207 | T252: 5781.913207 | U252: 5781.913207
B253: Powercor | F253: $ | I253: =N32 -> 5745.446696 | J253: 5285.137317 | K253: 5285.137317 | L253: 5285.137317 | M253: 5285.137317 | N253: 5285.137317 | O253: 5285.137317 | P253: 5285.137317 | Q253: 5285.137317 | R253: 5285.137317 | S253: 5285.137317 | T253: 5285.137317 | U253: 5285.137317
B254: United Energy | F254: $ | I254: =N33 -> 6368.529524 | J254: 5788.299888 | K254: 5788.299888 | L254: 5788.299888 | M254: 5788.299888 | N254: 5788.299888 | O254: 5788.299888 | P254: 5788.299888 | Q254: 5788.299888 | R254: 5788.299888 | S254: 5788.299888 | T254: 5788.299888 | U254: 5788.299888
B256: ="Bills - "&$O$26 -> Bills - 40000 kWh/yr
B257: Ausnet | F257: =$M$16 -> $ | I257: =O29 -> 15438.11045 | J257: 14650.28637 | K257: 14650.28637 | L257: 14650.28637 | M257: 14650.28637 | N257: 14650.28637 | O257: 14650.28637 | P257: 14650.28637 | Q257: 14650.28637 | R257: 14650.28637 | S257: 14650.28637 | T257: 14650.28637 | U257: 14650.28637
B258: Citipower | F258: =$M$16 -> $ | I258: =O30 -> 11155.05805 | J258: 10328.32705 | K258: 10328.32705 | L258: 10328.32705 | M258: 10328.32705 | N258: 10328.32705 | O258: 10328.32705 | P258: 10328.32705 | Q258: 10328.32705 | R258: 10328.32705 | S258: 10328.32705 | T258: 10328.32705 | U258: 10328.32705
B259: Jemena | F259: $ | I259: =O31 -> 12045.76361 | J259: 11145.897 | K259: 11145.897 | L259: 11145.897 | M259: 11145.897 | N259: 11145.897 | O259: 11145.897 | P259: 11145.897 | Q259: 11145.897 | R259: 11145.897 | S259: 11145.897 | T259: 11145.897 | U259: 11145.897
B260: Powercor | F260: $ | I260: =O32 -> 10983.62787 | J260: 10073.46355 | K260: 10073.46355 | L260: 10073.46355 | M260: 10073.46355 | N260: 10073.46355 | O260: 10073.46355 | P260: 10073.46355 | Q260: 10073.46355 | R260: 10073.46355 | S260: 10073.46355 | T260: 10073.46355 | U260: 10073.46355
B261: United Energy | F261: $ | I261: =O33 -> 12377.04316 | J261: 11222.8788 | K261: 11222.8788 | L261: 11222.8788 | M261: 11222.8788 | N261: 11222.8788 | O261: 11222.8788 | P261: 11222.8788 | Q261: 11222.8788 | R261: 11222.8788 | S261: 11222.8788 | T261: 11222.8788 | U261: 11222.8788
A263: END

Sheet Tariff_O_Dr (hidden)
A1: =MdlTtl -> Victorian Default Offer Model
A2: =_xlfn.SHEET() -> 10 | B2: REPORTING DRAFT OUTPUT | I2: Period Selected:
B3: Draft VDO Tariff rates & bills | G3: Start | H3: =Inputs_A_Dr!$C$17 -> 2020-01-01
B4: =Chk_C!B10 -> Error check breaches: 16. Update model macro: 1 | G4: End | H4: =Inputs_A_Dr!$C$18 -> 2020-12-31
A6: To Contents
A8: =ROUNDDOWN(MAX($A$7:OFFSET(A8,-One,0),$A$2*Sht)+Sxn,0) -> 1001 | B8: Draft VDO Tariff Rates
B10: Period start | C10: =H3 -> 2020-01-01
B11: Period end | C11: =H4 -> 2020-12-31
B13: Residential | F13: Rates | M13: Bills
B15: Zone | F15: =Calc_C_Dr!F267 -> Supply charge per day | H15: =Gen_A!$B$97 -> Single rate | I15: =Gen_A!$B$98 -> Block 1 | J15: =Gen_A!$B$99 -> Balance | K15: =Gen_A!$B$100 -> Controlled load | M15: =Gen_A!$B$105&" kWh/yr" -> 2000 kWh/yr | N15: =Gen_A!$B$106&" kWh/yr" -> 4000 kWh/yr | O15: =Gen_A!$B$107&" kWh/yr" -> 8000 kWh/yr
F16: $/day | H16: $/kWh | I16: $/kWh | J16: $/kWh | K16: $/kWh | M16: $ | N16: $ | O16: $
B18: =INDEX(Gen_A!$B$89:$B$93,C18) -> Ausnet | C18: =Gen_A!A89 -> 1 | F18: =CHOOSE($C18,Calc_C_Dr!$F$281,Calc_C_Dr!$F$375,Calc_C_Dr!$F$469,Calc_C_Dr!$F$563,Calc_C_Dr!$F$657) -> 1.167201671 | H18: =CHOOSE($C18,Calc_C_Dr!$E$304,Calc_C_Dr!$E$398,Calc_C_Dr!$E$492,Calc_C_Dr!$E$586,Calc_C_Dr!$E$680) -> 0 | I18: =CHOOSE($C18,Calc_C_Dr!$F$304,Calc_C_Dr!$F$398,Calc_C_Dr!$F$492,Calc_C_Dr!$F$586,Calc_C_Dr!$F$680) -> 0.2801218038 | J18: =CHOOSE($C18,Calc_C_Dr!$G$304,Calc_C_Dr!$G$398,Calc_C_Dr!$G$492,Calc_C_Dr!$G$586,Calc_C_Dr!$G$680) -> 0.3170979518 | K18: =CHOOSE($C18,Calc_C_Dr!$H$304,Calc_C_Dr!$H$398,Calc_C_Dr!$H$492,Calc_C_Dr!$H$586,Calc_C_Dr!$H$680) -> 0.2011879073 | M18: =CHOOSE($C18,Calc_C_Dr!$K$308,Calc_C_Dr!$K$402,Calc_C_Dr!$K$496,Calc_C_Dr!$K$590,Calc_C_Dr!$K$684) -> 986.2722176 | N18: =CHOOSE($C18,Calc_C_Dr!$L$308,Calc_C_Dr!$L$402,Calc_C_Dr!$L$496,Calc_C_Dr!$L$590,Calc_C_Dr!$L$684) -> 1554.502673 | O18: =CHOOSE($C18,Calc_C_Dr!$M$308,Calc_C_Dr!$M$402,Calc_C_Dr!$M$496,Calc_C_Dr!$M$590,Calc_C_Dr!$M$684) -> 2811.949541
B19: =INDEX(Gen_A!$B$89:$B$93,C19) -> Citipower | C19: =Gen_A!A90 -> 2 | F19: =CHOOSE($C19,Calc_C_Dr!$F$281,Calc_C_Dr!$F$375,Calc_C_Dr!$F$469,Calc_C_Dr!$F$563,Calc_C_Dr!$F$657) -> 1.133241271 | H19: =CHOOSE($C19,Calc_C_Dr!$E$304,Calc_C_Dr!$E$398,Calc_C_Dr!$E$492,Calc_C_Dr!$E$586,Calc_C_Dr!$E$680) -> 0.2334388476 | I19: =CHOOSE($C19,Calc_C_Dr!$F$304,Calc_C_Dr!$F$398,Calc_C_Dr!$F$492,Calc_C_Dr!$F$586,Calc_C_Dr!$F$680) -> 0 | J19: =CHOOSE($C19,Calc_C_Dr!$G$304,Calc_C_Dr!$G$398,Calc_C_Dr!$G$492,Calc_C_Dr!$G$586,Calc_C_Dr!$G$680) -> 0 | K19: =CHOOSE($C19,Calc_C_Dr!$H$304,Calc_C_Dr!$H$398,Calc_C_Dr!$H$492,Calc_C_Dr!$H$586,Calc_C_Dr!$H$680) -> 0.1791993876 | M19: =CHOOSE($C19,Calc_C_Dr!$K$308,Calc_C_Dr!$K$402,Calc_C_Dr!$K$496,Calc_C_Dr!$K$590,Calc_C_Dr!$K$684) -> 880.5107589 | N19: =CHOOSE($C19,Calc_C_Dr!$L$308,Calc_C_Dr!$L$402,Calc_C_Dr!$L$496,Calc_C_Dr!$L$590,Calc_C_Dr!$L$684) -> 1347.388454 | O19: =CHOOSE($C19,Calc_C_Dr!$M$308,Calc_C_Dr!$M$402,Calc_C_Dr!$M$496,Calc_C_Dr!$M$590,Calc_C_Dr!$M$684) -> 2281.143844
B20: =INDEX(Gen_A!$B$89:$B$93,C20) -> Jemena | C20: =Gen_A!A91 -> 3 | F20: =CHOOSE($C20,Calc_C_Dr!$F$281,Calc_C_Dr!$F$375,Calc_C_Dr!$F$469,Calc_C_Dr!$F$563,Calc_C_Dr!$F$657) -> 1.040139966 | H20: =CHOOSE($C20,Calc_C_Dr!$E$304,Calc_C_Dr!$E$398,Calc_C_Dr!$E$492,Calc_C_Dr!$E$586,Calc_C_Dr!$E$680) -> 0.2588097893 | I20: =CHOOSE($C20,Calc_C_Dr!$F$304,Calc_C_Dr!$F$398,Calc_C_Dr!$F$492,Calc_C_Dr!$F$586,Calc_C_Dr!$F$680) -> 0 | J20: =CHOOSE($C20,Calc_C_Dr!$G$304,Calc_C_Dr!$G$398,Calc_C_Dr!$G$492,Calc_C_Dr!$G$586,Calc_C_Dr!$G$680) -> 0 | K20: =CHOOSE($C20,Calc_C_Dr!$H$304,Calc_C_Dr!$H$398,Calc_C_Dr!$H$492,Calc_C_Dr!$H$586,Calc_C_Dr!$H$680) -> 0.1910834205 | M20: =CHOOSE($C20,Calc_C_Dr!$K$308,Calc_C_Dr!$K$402,Calc_C_Dr!$K$496,Calc_C_Dr!$K$590,Calc_C_Dr!$K$684) -> 897.2706662 | N20: =CHOOSE($C20,Calc_C_Dr!$L$308,Calc_C_Dr!$L$402,Calc_C_Dr!$L$496,Calc_C_Dr!$L$590,Calc_C_Dr!$L$684) -> 1414.890245 | O20: =CHOOSE($C20,Calc_C_Dr!$M$308,Calc_C_Dr!$M$402,Calc_C_Dr!$M$496,Calc_C_Dr!$M$590,Calc_C_Dr!$M$684) -> 2450.129402
B21: =INDEX(Gen_A!$B$89:$B$93,C21) -> Powercor | C21: =Gen_A!A92 -> 4 | F21: =CHOOSE($C21,Calc_C_Dr!$F$281,Calc_C_Dr!$F$375,Calc_C_Dr!$F$469,Calc_C_Dr!$F$563,Calc_C_Dr!$F$657) -> 1.261070312 | H21: =CHOOSE($C21,Calc_C_Dr!$E$304,Calc_C_Dr!$E$398,Calc_C_Dr!$E$492,Calc_C_Dr!$E$586,Calc_C_Dr!$E$680) -> 0.2427119738 | I21: =CHOOSE($C21,Calc_C_Dr!$F$304,Calc_C_Dr!$F$398,Calc_C_Dr!$F$492,Calc_C_Dr!$F$586,Calc_C_Dr!$F$680) -> 0 | J21: =CHOOSE($C21,Calc_C_Dr!$G$304,Calc_C_Dr!$G$398,Calc_C_Dr!$G$492,Calc_C_Dr!$G$586,Calc_C_Dr!$G$680) -> 0 | K21: =CHOOSE($C21,Calc_C_Dr!$H$304,Calc_C_Dr!$H$398,Calc_C_Dr!$H$492,Calc_C_Dr!$H$586,Calc_C_Dr!$H$680) -> 0.1832235338 | M21: =CHOOSE($C21,Calc_C_Dr!$K$308,Calc_C_Dr!$K$402,Calc_C_Dr!$K$496,Calc_C_Dr!$K$590,Calc_C_Dr!$K$684) -> 945.7146113 | N21: =CHOOSE($C21,Calc_C_Dr!$L$308,Calc_C_Dr!$L$402,Calc_C_Dr!$L$496,Calc_C_Dr!$L$590,Calc_C_Dr!$L$684) -> 1431.138559 | O21: =CHOOSE($C21,Calc_C_Dr!$M$308,Calc_C_Dr!$M$402,Calc_C_Dr!$M$496,Calc_C_Dr!$M$590,Calc_C_Dr!$M$684) -> 2401.986454
B22: =INDEX(Gen_A!$B$89:$B$93,C22) -> United Energy | C22: =Gen_A!A93 -> 5 | F22: =CHOOSE($C22,Calc_C_Dr!$F$281,Calc_C_Dr!$F$375,Calc_C_Dr!$F$469,Calc_C_Dr!$F$563,Calc_C_Dr!$F$657) -> 0.9250211968 | H22: =CHOOSE($C22,Calc_C_Dr!$E$304,Calc_C_Dr!$E$398,Calc_C_Dr!$E$492,Calc_C_Dr!$E$586,Calc_C_Dr!$E$680) -> 0.2637966721 | I22: =CHOOSE($C22,Calc_C_Dr!$F$304,Calc_C_Dr!$F$398,Calc_C_Dr!$F$492,Calc_C_Dr!$F$586,Calc_C_Dr!$F$680) -> 0 | J22: =CHOOSE($C22,Calc_C_Dr!$G$304,Calc_C_Dr!$G$398,Calc_C_Dr!$G$492,Calc_C_Dr!$G$586,Calc_C_Dr!$G$680) -> 0 | K22: =CHOOSE($C22,Calc_C_Dr!$H$304,Calc_C_Dr!$H$398,Calc_C_Dr!$H$492,Calc_C_Dr!$H$586,Calc_C_Dr!$H$680) -> 0.1869146975 | M22: =CHOOSE($C22,Calc_C_Dr!$K$308,Calc_C_Dr!$K$402,Calc_C_Dr!$K$496,Calc_C_Dr!$K$590,Calc_C_Dr!$K$684) -> 865.226081 | N22: =CHOOSE($C22,Calc_C_Dr!$L$308,Calc_C_Dr!$L$402,Calc_C_Dr!$L$496,Calc_C_Dr!$L$590,Calc_C_Dr!$L$684) -> 1392.819425 | O22: =CHOOSE($C22,Calc_C_Dr!$M$308,Calc_C_Dr!$M$402,Calc_C_Dr!$M$496,Calc_C_Dr!$M$590,Calc_C_Dr!$M$684) -> 2448.006113
B24: Small business | F24: Rates | M24: Bills
B26: Zone | F26: =F15 -> Supply charge per day | H26: =Gen_A!$B$97 -> Single rate | I26: =Gen_A!$B$98 -> Block 1 | J26: =Gen_A!$B$99 -> Balance | K26: =Gen_A!$B$100 -> Controlled load | M26: =Gen_A!$B$110&" kWh/yr" -> 12000 kWh/yr | N26: =Gen_A!$B$111&" kWh/yr" -> 20000 kWh/yr | O26: =Gen_A!$B$112&" kWh/yr" -> 40000 kWh/yr
F27: $/day | H27: $/kWh | I27: $/kWh | J27: $/kWh | K27: $/kWh | M27: $ | N27: $ | O27: $
B29: =B18 -> Ausnet | C29: =C18 -> 1 | F29: =CHOOSE($C29,Calc_C_Dr!$F$327,Calc_C_Dr!$F$421,Calc_C_Dr!$F$515,Calc_C_Dr!$F$609,Calc_C_Dr!$F$703) -> 1.167201671 | H29: =CHOOSE($C29,Calc_C_Dr!$E$350,Calc_C_Dr!$E$444,Calc_C_Dr!$E$538,Calc_C_Dr!$E$632,Calc_C_Dr!$E$726) -> 0 | I29: =CHOOSE($C29,Calc_C_Dr!$F$350,Calc_C_Dr!$F$444,Calc_C_Dr!$F$538,Calc_C_Dr!$F$632,Calc_C_Dr!$F$726) -> 0.3211779501 | J29: =CHOOSE($C29,Calc_C_Dr!$G$350,Calc_C_Dr!$G$444,Calc_C_Dr!$G$538,Calc_C_Dr!$G$632,Calc_C_Dr!$G$726) -> 0.3687687021 | M29: =CHOOSE($C29,Calc_C_Dr!$K$354,Calc_C_Dr!$K$448,Calc_C_Dr!$K$542,Calc_C_Dr!$K$636,Calc_C_Dr!$K$730) -> 4657.082768 | N29: =CHOOSE($C29,Calc_C_Dr!$L$354,Calc_C_Dr!$L$448,Calc_C_Dr!$L$542,Calc_C_Dr!$L$636,Calc_C_Dr!$L$730) -> 7607.232385 | O29: =CHOOSE($C29,Calc_C_Dr!$M$354,Calc_C_Dr!$M$448,Calc_C_Dr!$M$542,Calc_C_Dr!$M$636,Calc_C_Dr!$M$730) -> 14982.60643
B30: =B19 -> Citipower | C30: 2 | F30: =CHOOSE($C30,Calc_C_Dr!$F$327,Calc_C_Dr!$F$421,Calc_C_Dr!$F$515,Calc_C_Dr!$F$609,Calc_C_Dr!$F$703) -> 1.340963462 | H30: =CHOOSE($C30,Calc_C_Dr!$E$350,Calc_C_Dr!$E$444,Calc_C_Dr!$E$538,Calc_C_Dr!$E$632,Calc_C_Dr!$E$726) -> 0.2502402771 | I30: =CHOOSE($C30,Calc_C_Dr!$F$350,Calc_C_Dr!$F$444,Calc_C_Dr!$F$538,Calc_C_Dr!$F$632,Calc_C_Dr!$F$726) -> 0 | J30: =CHOOSE($C30,Calc_C_Dr!$G$350,Calc_C_Dr!$G$444,Calc_C_Dr!$G$538,Calc_C_Dr!$G$632,Calc_C_Dr!$G$726) -> 0 | M30: =CHOOSE($C30,Calc_C_Dr!$K$354,Calc_C_Dr!$K$448,Calc_C_Dr!$K$542,Calc_C_Dr!$K$636,Calc_C_Dr!$K$730) -> 3492.334989 | N30: =CHOOSE($C30,Calc_C_Dr!$L$354,Calc_C_Dr!$L$448,Calc_C_Dr!$L$542,Calc_C_Dr!$L$636,Calc_C_Dr!$L$730) -> 5494.257206 | O30: =CHOOSE($C30,Calc_C_Dr!$M$354,Calc_C_Dr!$M$448,Calc_C_Dr!$M$542,Calc_C_Dr!$M$636,Calc_C_Dr!$M$730) -> 10499.06275
B31: Jemena | C31: 3 | F31: =CHOOSE($C31,Calc_C_Dr!$F$327,Calc_C_Dr!$F$421,Calc_C_Dr!$F$515,Calc_C_Dr!$F$609,Calc_C_Dr!$F$703) -> 1.236600419 | H31: =CHOOSE($C31,Calc_C_Dr!$E$350,Calc_C_Dr!$E$444,Calc_C_Dr!$E$538,Calc_C_Dr!$E$632,Calc_C_Dr!$E$726) -> 0.2729653449 | I31: =CHOOSE($C31,Calc_C_Dr!$F$350,Calc_C_Dr!$F$444,Calc_C_Dr!$F$538,Calc_C_Dr!$F$632,Calc_C_Dr!$F$726) -> 0 | J31: =CHOOSE($C31,Calc_C_Dr!$G$350,Calc_C_Dr!$G$444,Calc_C_Dr!$G$538,Calc_C_Dr!$G$632,Calc_C_Dr!$G$726) -> 0 | M31: =CHOOSE($C31,Calc_C_Dr!$K$354,Calc_C_Dr!$K$448,Calc_C_Dr!$K$542,Calc_C_Dr!$K$636,Calc_C_Dr!$K$730) -> 3726.943291 | N31: =CHOOSE($C31,Calc_C_Dr!$L$354,Calc_C_Dr!$L$448,Calc_C_Dr!$L$542,Calc_C_Dr!$L$636,Calc_C_Dr!$L$730) -> 5910.66605 | O31: =CHOOSE($C31,Calc_C_Dr!$M$354,Calc_C_Dr!$M$448,Calc_C_Dr!$M$542,Calc_C_Dr!$M$636,Calc_C_Dr!$M$730) -> 11369.97295
B32: Powercor | C32: 4 | F32: =CHOOSE($C32,Calc_C_Dr!$F$327,Calc_C_Dr!$F$421,Calc_C_Dr!$F$515,Calc_C_Dr!$F$609,Calc_C_Dr!$F$703) -> 1.388899353 | H32: =CHOOSE($C32,Calc_C_Dr!$E$350,Calc_C_Dr!$E$444,Calc_C_Dr!$E$538,Calc_C_Dr!$E$632,Calc_C_Dr!$E$726) -> 0.2435490576 | I32: =CHOOSE($C32,Calc_C_Dr!$F$350,Calc_C_Dr!$F$444,Calc_C_Dr!$F$538,Calc_C_Dr!$F$632,Calc_C_Dr!$F$726) -> 0 | J32: =CHOOSE($C32,Calc_C_Dr!$G$350,Calc_C_Dr!$G$444,Calc_C_Dr!$G$538,Calc_C_Dr!$G$632,Calc_C_Dr!$G$726) -> 0 | M32: =CHOOSE($C32,Calc_C_Dr!$K$354,Calc_C_Dr!$K$448,Calc_C_Dr!$K$542,Calc_C_Dr!$K$636,Calc_C_Dr!$K$730) -> 3429.536955 | N32: =CHOOSE($C32,Calc_C_Dr!$L$354,Calc_C_Dr!$L$448,Calc_C_Dr!$L$542,Calc_C_Dr!$L$636,Calc_C_Dr!$L$730) -> 5377.929416 | O32: =CHOOSE($C32,Calc_C_Dr!$M$354,Calc_C_Dr!$M$448,Calc_C_Dr!$M$542,Calc_C_Dr!$M$636,Calc_C_Dr!$M$730) -> 10248.91057
B33: United Energy | C33: 5 | F33: =CHOOSE($C33,Calc_C_Dr!$F$327,Calc_C_Dr!$F$421,Calc_C_Dr!$F$515,Calc_C_Dr!$F$609,Calc_C_Dr!$F$703) -> 0.9843929928 | H33: =CHOOSE($C33,Calc_C_Dr!$E$350,Calc_C_Dr!$E$444,Calc_C_Dr!$E$538,Calc_C_Dr!$E$632,Calc_C_Dr!$E$726) -> 0.2739841924 | I33: =CHOOSE($C33,Calc_C_Dr!$F$350,Calc_C_Dr!$F$444,Calc_C_Dr!$F$538,Calc_C_Dr!$F$632,Calc_C_Dr!$F$726) -> 0 | J33: =CHOOSE($C33,Calc_C_Dr!$G$350,Calc_C_Dr!$G$444,Calc_C_Dr!$G$538,Calc_C_Dr!$G$632,Calc_C_Dr!$G$726) -> 0 | M33: =CHOOSE($C33,Calc_C_Dr!$K$354,Calc_C_Dr!$K$448,Calc_C_Dr!$K$542,Calc_C_Dr!$K$636,Calc_C_Dr!$K$730) -> 3647.113751 | N33: =CHOOSE($C33,Calc_C_Dr!$L$354,Calc_C_Dr!$L$448,Calc_C_Dr!$L$542,Calc_C_Dr!$L$636,Calc_C_Dr!$L$730) -> 5838.987291 | O33: =CHOOSE($C33,Calc_C_Dr!$M$354,Calc_C_Dr!$M$448,Calc_C_Dr!$M$542,Calc_C_Dr!$M$636,Calc_C_Dr!$M$730) -> 11318.67114
B35: =Gen_A!B116 -> Supply charge definition
B36: =Gen_A!B117 -> Single rate
B37: =Gen_A!B118 -> Block 1
B38: =Gen_A!B119 -> Balance
B39: =Gen_A!B120 -> Controlled load
B40: =Gen_A!B121 -> Other information to be displayed
A42: =ROUNDDOWN(MAX($A$7:OFFSET(A42,-One,0),$A$2*Sht)+Sxn,0) -> 1002 | B42: Time Series Graphs
H44: Match
B45: Residential | E45: Please select customer type | H45: =MATCH(B45,Gen_A!$B$84:$B$85,0) -> 1
B46: Balance | E46: Please select the type of rate | H46: =MATCH(B46,Gen_A!$B$97:$B$100,0) -> 3
B47: Customer - Small | E47: Please select the customer size | H47: =MATCH(B47,Gen_A!$J$105:$J$107,0) -> 1
A68: =ROUNDDOWN(MAX($A$7:OFFSET(A68,-One,0),$A$2*Sht)+Sxn,0) -> 1003 | B68: Selected Output
B70: Period start | J70: =Flags_C!J11 -> 2019-07-01 | K70: =Flags_C!K11 -> 2020-01-01 | L70: =Flags_C!L11 -> 2021-01-01 | M70: =Flags_C!M11 -> 2022-01-01 | N70: =Flags_C!N11 -> 2023-01-01 | O70: =Flags_C!O11 -> 2024-01-01 | P70: =Flags_C!P11 -> 2025-01-01 | Q70: =Flags_C!Q11 -> 2026-01-01 | R70: =Flags_C!R11 -> 2027-01-01 | S70: =Flags_C!S11 -> 2028-01-01 | T70: =Flags_C!T11 -> 2029-01-01 | U70: =Flags_C!U11 -> 2030-01-01
B71: Period end | J71: =Flags_C!J12 -> 2019-12-31 | K71: =Flags_C!K12 -> 2020-12-31 | L71: =Flags_C!L12 -> 2021-12-31 | M71: =Flags_C!M12 -> 2022-12-31 | N71: =Flags_C!N12 -> 2023-12-31 | O71: =Flags_C!O12 -> 2024-12-31 | P71: =Flags_C!P12 -> 2025-12-31 | Q71: =Flags_C!Q12 -> 2026-12-31 | R71: =Flags_C!R12 -> 2027-12-31 | S71: =Flags_C!S12 -> 2028-12-31 | T71: =Flags_C!T12 -> 2029-12-31 | U71: =Flags_C!U12 -> 2030-12-31
B73: =B149 -> Supply charge per day
B74: Ausnet | J74: =CHOOSE($H$45,J150,J208) -> 1.136786299 | K74: =CHOOSE($H$45,K150,K208) -> 1.155960655 | L74: 1.155960655 | M74: 1.155960655 | N74: 1.136786299 | O74: 1.136786299 | P74: 1.136786299 | Q74: 1.136786299 | R74: 1.136786299 | S74: 1.136786299 | T74: 1.136786299 | U74: =CHOOSE($H$45,U150,U208) -> 1.136786299
B75: Citipower | J75: =CHOOSE($H$45,J151,J209) -> 1.105468184 | K75: 1.12464254 | L75: 1.12464254 | M75: 1.12464254 | N75: 1.105468184 | O75: 1.105468184 | P75: 1.105468184 | Q75: 1.105468184 | R75: 1.105468184 | S75: 1.105468184 | T75: 1.105468184 | U75: 1.105468184
B76: Jemena | J76: =CHOOSE($H$45,J152,J210) -> 1.003677918 | K76: 1.012280813 | L76: 1.022852274 | M76: 1.022852274 | N76: 1.003677918 | O76: 1.003677918 | P76: 1.003677918 | Q76: 1.003677918 | R76: 1.003677918 | S76: 1.003677918 | T76: 1.003677918 | U76: 1.003677918
B77: Powercor | J77: =CHOOSE($H$45,J153,J211) -> 1.233297225 | K77: 1.252471581 | L77: 1.252471581 | M77: 1.252471581 | N77: 1.233297225 | O77: 1.249275855 | P77: 1.233297225 | Q77: 1.233297225 | R77: 1.233297225 | S77: 1.233297225 | T77: 1.233297225 | U77: 1.233297225
B78: United Energy | J78: =CHOOSE($H$45,J154,J212) -> 0.9114764286 | K78: 0.9306507848 | L78: 0.9306507848 | M78: 0.9306507848 | N78: 0.9114764286 | O78: 0.9114764286 | P78: 0.9009417178 | Q78: 0.9114764286 | R78: 0.9114764286 | S78: 0.9114764286 | T78: 0.9114764286 | U78: 0.9114764286
B80: Rate Selected | F80: =B46 -> Balance | G80: =H46 -> 3
B81: =B74 -> Ausnet | J81: =CHOOSE($G$80,J88,J95,J102,J109) -> 0.3113411778 | K81: =CHOOSE($G$80,K88,K95,K102,K109) -> 0.3113411778 | L81: 0.3113411778 | M81: 0.3113411778 | N81: 0.3106308158 | O81: 0.3113411778 | P81: 0.3113411778 | Q81: 0.3113411778 | R81: 0.3113411778 | S81: 0.3113411778 | T81: 0.3113411778 | U81: 0.3113411778
B82: =B75 -> Citipower | J82: =CHOOSE($G$80,J89,J96,J103,J110) -> 0 | K82: 0 | L82: 0 | M82: 0 | N82: 0 | O82: 0 | P82: 0 | Q82: 0 | R82: 0 | S82: 0 | T82: 0 | U82: 0
B83: Jemena | J83: =CHOOSE($G$80,J90,J97,J104,J111) -> 0 | K83: 0 | L83: 0 | M83: 0 | N83: 0 | O83: 0 | P83: 0 | Q83: 0 | R83: 0 | S83: 0 | T83: 0 | U83: 0
B84: Powercor | J84: =CHOOSE($G$80,J91,J98,J105,J112) -> 0 | K84: 0 | L84: 0 | M84: 0 | N84: 0 | O84: 0 | P84: 0 | Q84: 0 | R84: 0 | S84: 0 | T84: 0 | U84: 0
B85: United Energy | J85: =CHOOSE($G$80,J92,J99,J106,J113) -> 0 | K85: 0 | L85: 0 | M85: 0 | N85: 0 | O85: 0 | P85: 0 | Q85: 0 | R85: 0 | S85: 0 | T85: 0 | U85: 0
B87: =B156 -> Single rate
B88: Ausnet | J88: =CHOOSE($H$45,J157,J215) -> 0 | K88: 0 | L88: 0 | M88: 0 | N88: 0 | O88: 0 | P88: 0 | Q88: 0 | R88: 0 | S88: 0 | T88: 0 | U88: 0
B89: Citipower | J89: =CHOOSE($H$45,J158,J216) -> 0.2325333774 | K89: 0.2325333774 | L89: 0.2325333774 | M89: 0.2349829014 | N89: 0.2325333774 | O89: 0.2325333774 | P89: 0.2325333774 | Q89: 0.2325333774 | R89: 0.2325333774 | S89: 0.2325333774 | T89: 0.2325333774 | U89: 0.2325333774
B90: Jemena | J90: =CHOOSE($H$45,J159,J217) -> 0.2547359722 | K90: 0.2547359722 | L90: 0.2547359722 | M90: 0.2547359722 | N90: 0.2547359722 | O90: 0.2547359722 | P90: 0.2547359722 | Q90: 0.2547359722 | R90: 0.2547359722 | S90: 0.2547359722 | T90: 0.2547359722 | U90: 0.2547359722
B91: Powercor | J91: =CHOOSE($H$45,J160,J218) -> 0.2402755784 | K91: 0.2402755784 | L91: 0.2402755784 | M91: 0.2402755784 | N91: 0.2402755784 | O91: 0.2402755784 | P91: 0.2402755784 | Q91: 0.2402755784 | R91: 0.2402755784 | S91: 0.2402755784 | T91: 0.2402755784 | U91: 0.2402755784
B92: United Energy | J92: =CHOOSE($H$45,J161,J219) -> 0.2619521142 | K92: 0.2619521142 | L92: 0.2619521142 | M92: 0.2619521142 | N92: 0.2619521142 | O92: 0.2619521142 | P92: 0.2619521142 | Q92: 0.2619521142 | R92: 0.2619521142 | S92: 0.2619521142 | T92: 0.2619521142 | U92: 0.2619521142
B94: =B163 -> Block 1
B95: Ausnet | J95: =CHOOSE($H$45,J164,J222) -> 0.2763409792 | K95: 0.2763409792 | L95: 0.2763409792 | M95: 0.2763409792 | N95: 0.2873020158 | O95: 0.2763409792 | P95: 0.2763409792 | Q95: 0.2763409792 | R95: 0.2763409792 | S95: 0.2763409792 | T95: 0.2763409792 | U95: =CHOOSE($H$45,U164,U222) -> 0.2763409792
B96: Citipower | J96: =CHOOSE($H$45,J165,J223) -> 0 | K96: 0 | L96: 0 | M96: 0 | N96: 0 | O96: 0 | P96: 0 | Q96: 0 | R96: 0 | S96: 0 | T96: 0 | U96: =CHOOSE($H$45,U165,U223) -> 0
B97: Jemena | J97: =CHOOSE($H$45,J166,J224) -> 0 | K97: 0 | L97: 0 | M97: 0 | N97: 0 | O97: 0 | P97: 0 | Q97: 0 | R97: 0 | S97: 0 | T97: 0 | U97: =CHOOSE($H$45,U166,U224) -> 0
B98: Powercor | J98: =CHOOSE($H$45,J167,J225) -> 0 | K98: 0 | L98: 0 | M98: 0 | N98: 0 | O98: 0 | P98: 0 | Q98: 0 | R98: 0 | S98: 0 | T98: 0 | U98: =CHOOSE($H$45,U167,U225) -> 0
B99: United Energy | J99: =CHOOSE($H$45,J168,J226) -> 0 | K99: 0 | L99: 0 | M99: 0 | N99: 0 | O99: 0 | P99: 0 | Q99: 0 | R99: 0 | S99: 0 | T99: 0 | U99: =CHOOSE($H$45,U168,U226) -> 0
B101: =B170 -> Balance
B102: Ausnet | J102: =CHOOSE($H$45,J171,J229) -> 0.3113411778 | K102: 0.3113411778 | L102: 0.3113411778 | M102: 0.3113411778 | N102: 0.3106308158 | O102: 0.3113411778 | P102: 0.3113411778 | Q102: 0.3113411778 | R102: 0.3113411778 | S102: 0.3113411778 | T102: 0.3113411778 | U102: 0.3113411778
B103: Citipower | J103: =CHOOSE($H$45,J172,J230) -> 0 | K103: 0 | L103: 0 | M103: 0 | N103: 0 | O103: 0 | P103: 0 | Q103: 0 | R103: 0 | S103: 0 | T103: 0 | U103: 0
B104: Jemena | J104: =CHOOSE($H$45,J173,J231) -> 0 | K104: 0 | L104: 0 | M104: 0 | N104: 0 | O104: 0 | P104: 0 | Q104: 0 | R104: 0 | S104: 0 | T104: 0 | U104: 0
B105: Powercor | J105: =CHOOSE($H$45,J174,J232) -> 0 | K105: 0 | L105: 0 | M105: 0 | N105: 0 | O105: 0 | P105: 0 | Q105: 0 | R105: 0 | S105: 0 | T105: 0 | U105: 0
B106: United Energy | J106: =CHOOSE($H$45,J175,J233) -> 0 | K106: 0 | L106: 0 | M106: 0 | N106: 0 | O106: 0 | P106: 0 | Q106: 0 | R106: 0 | S106: 0 | T106: 0 | U106: 0
B108: =B177 -> Controlled load
B109: Ausnet | J109: =CHOOSE($H$45,J178,J236) -> 0.2023863503 | K109: 0.2023863503 | L109: 0.2023863503 | M109: 0.2023863503 | N109: 0.2023863503 | O109: 0.2023863503 | P109: 0.2023863503 | Q109: 0.2023863503 | R109: 0.2023863503 | S109: 0.2023863503 | T109: 0.2023863503 | U109: 0.2023863503
B110: Citipower | J110: =CHOOSE($H$45,J179,J237) -> 0.1808600854 | K110: 0.1808600854 | L110: 0.1808600854 | M110: 0.1808600854 | N110: 0.1808600854 | O110: 0.1808600854 | P110: 0.1808600854 | Q110: 0.1808600854 | R110: 0.1808600854 | S110: 0.1808600854 | T110: 0.1808600854 | U110: 0.1808600854
B111: Jemena | J111: =CHOOSE($H$45,J180,J238) -> 0.1917248834 | K111: 0.1917248834 | L111: 0.1917248834 | M111: 0.1917248834 | N111: 0.1917248834 | O111: 0.1917248834 | P111: 0.1917248834 | Q111: 0.1917248834 | R111: 0.1917248834 | S111: 0.1917248834 | T111: 0.1917248834 | U111: 0.1917248834
B112: Powercor | J112: =CHOOSE($H$45,J181,J239) -> 0.1831200184 | K112: 0.1831200184 | L112: 0.1831200184 | M112: 0.1831200184 | N112: 0.1831200184 | O112: 0.1831200184 | P112: 0.1831200184 | Q112: 0.1831200184 | R112: 0.1831200184 | S112: 0.1831200184 | T112: 0.1831200184 | U112: 0.1831200184
B113: United Energy | J113: =CHOOSE($H$45,J182,J240) -> 0.1872676108 | K113: 0.1872676108 | L113: 0.1872676108 | M113: 0.1872676108 | N113: 0.1872676108 | O113: 0.1872676108 | P113: 0.1872676108 | Q113: 0.1872676108 | R113: 0.1872676108 | S113: 0.1872676108 | T113: 0.1872676108 | U113: 0.1872676108
B115: Customer Size | F115: =B47 -> Customer - Small | G115: =H47 -> 1
B116: =B123 -> Ausnet | J116: =CHOOSE($G$115,J123,J130,J137) -> 967.6089573 | K116: =CHOOSE($G$115,K123,K130,K137) -> 974.6075973 | L116: 974.6075973 | M116: 974.6075973 | N116: 989.5310307 | O116: 967.6089573 | P116: 967.6089573 | Q116: 967.6089573 | R116: 967.6089573 | S116: 967.6089573 | T116: 967.6089573 | U116: 967.6089573
B117: =B124 -> Citipower | J117: =CHOOSE($G$115,J124,J131,J138) -> 868.5626418 | K117: 875.5612818 | L117: 875.5612818 | M117: 880.4603298 | N117: 868.5626418 | O117: 868.5626418 | P117: 868.5626418 | Q117: 868.5626418 | R117: 868.5626418 | S117: 868.5626418 | T117: 868.5626418 | U117: 868.5626418
B118: Jemena | J118: 875.8143845 | K118: 878.954441 | L118: 882.8130245 | M118: 882.8130245 | N118: 875.8143845 | O118: 875.8143845 | P118: 875.8143845 | Q118: 875.8143845 | R118: 875.8143845 | S118: 875.8143845 | T118: 875.8143845 | U118: 875.8143845
B119: Powercor | J119: 930.7046438 | K119: 937.7032838 | L119: 937.7032838 | M119: 937.7032838 | N119: 930.7046438 | O119: 936.5368438 | P119: 930.7046438 | Q119: 930.7046438 | R119: 930.7046438 | S119: 930.7046438 | T119: 930.7046438 | U119: 930.7046438
B120: United Energy | J120: 856.5931249 | K120: 863.5917649 | L120: 863.5917649 | M120: 863.5917649 | N120: 856.5931249 | O120: 856.5931249 | P120: 852.7479555 | Q120: 856.5931249 | R120: 856.5931249 | S120: 856.5931249 | T120: 856.5931249 | U120: 856.5931249
B122: Bills - Small
B123: =B185 -> Ausnet | J123: =CHOOSE($H$45,J185,J243) -> 967.6089573 | K123: 974.6075973 | L123: 974.6075973 | M123: 974.6075973 | N123: 989.5310307 | O123: 967.6089573 | P123: 967.6089573 | Q123: 967.6089573 | R123: 967.6089573 | S123: 967.6089573 | T123: 967.6089573 | U123: 967.6089573
B124: =B186 -> Citipower | J124: =CHOOSE($H$45,J186,J244) -> 868.5626418 | K124: 875.5612818 | L124: 875.5612818 | M124: 880.4603298 | N124: 868.5626418 | O124: 868.5626418 | P124: 868.5626418 | Q124: 868.5626418 | R124: 868.5626418 | S124: 868.5626418 | T124: 868.5626418 | U124: 868.5626418
B125: =B187 -> Jemena | J125: =CHOOSE($H$45,J187,J245) -> 875.8143845 | K125: 878.954441 | L125: 882.8130245 | M125: 882.8130245 | N125: 875.8143845 | O125: 875.8143845 | P125: 875.8143845 | Q125: 875.8143845 | R125: 875.8143845 | S125: 875.8143845 | T125: 875.8143845 | U125: 875.8143845
B126: =B188 -> Powercor | J126: =CHOOSE($H$45,J188,J246) -> 930.7046438 | K126: 937.7032838 | L126: 937.7032838 | M126: 937.7032838 | N126: 930.7046438 | O126: 936.5368438 | P126: 930.7046438 | Q126: 930.7046438 | R126: 930.7046438 | S126: 930.7046438 | T126: 930.7046438 | U126: 930.7046438
B127: =B189 -> United Energy | J127: =CHOOSE($H$45,J189,J247) -> 856.5931249 | K127: 863.5917649 | L127: 863.5917649 | M127: 863.5917649 | N127: 856.5931249 | O127: 856.5931249 | P127: 852.7479555 | Q127: 856.5931249 | R127: 856.5931249 | S127: 856.5931249 | T127: 856.5931249 | U127: 856.5931249
B129: Bills - Medium
B130: =B192 -> Ausnet | J130: =CHOOSE($H$45,J192,J250) -> 1527.850959 | K130: 1534.849599 | L130: 1534.849599 | M130: 1534.849599 | N130: 1569.174083 | O130: 1527.850959 | P130: 1527.850959 | Q130: 1527.850959 | R130: 1527.850959 | S130: 1527.850959 | T130: 1527.850959 | U130: 1527.850959
B131: =B193 -> Citipower | J131: =CHOOSE($H$45,J193,J251) -> 1333.629397 | K131: 1340.628037 | L131: 1340.628037 | M131: 1350.426133 | N131: 1333.629397 | O131: 1333.629397 | P131: 1333.629397 | Q131: 1333.629397 | R131: 1333.629397 | S131: 1333.629397 | T131: 1333.629397 | U131: 1333.629397
B132: =B194 -> Jemena | J132: =CHOOSE($H$45,J194,J252) -> 1385.286329 | K132: 1388.426385 | L132: 1392.284969 | M132: 1392.284969 | N132: 1385.286329 | O132: 1385.286329 | P132: 1385.286329 | Q132: 1385.286329 | R132: 1385.286329 | S132: 1385.286329 | T132: 1385.286329 | U132: 1385.286329
B133: =B195 -> Powercor | J133: =CHOOSE($H$45,J195,J253) -> 1411.255801 | K133: 1418.254441 | L133: 1418.254441 | M133: 1418.254441 | N133: 1411.255801 | O133: 1417.088001 | P133: 1411.255801 | Q133: 1411.255801 | R133: 1411.255801 | S133: 1411.255801 | T133: 1411.255801 | U133: 1411.255801
B134: =B196 -> United Energy | J134: =CHOOSE($H$45,J196,J254) -> 1380.497353 | K134: 1387.495993 | L134: 1387.495993 | M134: 1387.495993 | N134: 1380.497353 | O134: 1380.497353 | P134: 1376.652184 | Q134: 1380.497353 | R134: 1380.497353 | S134: 1380.497353 | T134: 1380.497353 | U134: 1380.497353
B136: Bills - Large
B137: =B199 -> Ausnet | J137: =CHOOSE($H$45,J199,J257) -> 2762.855611 | K137: 2769.854251 | L137: 2769.854251 | M137: 2769.854251 | N137: 2804.792022 | O137: 2762.855611 | P137: 2762.855611 | Q137: 2762.855611 | R137: 2762.855611 | S137: 2762.855611 | T137: 2762.855611 | U137: 2762.855611
B138: =B200 -> Citipower | J138: =CHOOSE($H$45,J200,J258) -> 2263.762906 | K138: 2270.761546 | L138: 2270.761546 | M138: 2290.357738 | N138: 2263.762906 | O138: 2263.762906 | P138: 2263.762906 | Q138: 2263.762906 | R138: 2263.762906 | S138: 2263.762906 | T138: 2263.762906 | U138: 2263.762906
B139: =B201 -> Jemena | J139: =CHOOSE($H$45,J201,J259) -> 2404.230218 | K139: 2407.370274 | L139: 2411.228858 | M139: 2411.228858 | N139: 2404.230218 | O139: 2404.230218 | P139: 2404.230218 | Q139: 2404.230218 | R139: 2404.230218 | S139: 2404.230218 | T139: 2404.230218 | U139: 2404.230218
B140: =B202 -> Powercor | J140: =CHOOSE($H$45,J202,J260) -> 2372.358114 | K140: 2379.356754 | L140: 2379.356754 | M140: 2379.356754 | N140: 2372.358114 | O140: 2378.190314 | P140: 2372.358114 | Q140: 2372.358114 | R140: 2372.358114 | S140: 2372.358114 | T140: 2372.358114 | U140: 2372.358114
B141: =B203 -> United Energy | J141: =CHOOSE($H$45,J203,J261) -> 2428.30581 | K141: 2435.30445 | L141: 2435.30445 | M141: 2435.30445 | N141: 2428.30581 | O141: 2428.30581 | P141: 2424.460641 | Q141: 2428.30581 | R141: 2428.30581 | S141: 2428.30581 | T141: 2428.30581 | U141: 2428.30581
A143: =ROUNDDOWN(MAX($A$7:OFFSET(A143,-One,0),$A$2*Sht)+Sxn,0) -> 1004 | B143: Macro Output
B145: Period Start | J145: =J70 -> 2019-07-01 | K145: =K70 -> 2020-01-01 | L145: 2021-01-01 | M145: 2022-01-01 | N145: 2023-01-01 | O145: 2024-01-01 | P145: 2025-01-01 | Q145: 2026-01-01 | R145: 2027-01-01 | S145: 2028-01-01 | T145: 2029-01-01 | U145: 2030-01-01
B146: Period end | I146: Live | J146: =J71 -> 2019-12-31 | K146: 2020-12-31 | L146: 2021-12-31 | M146: 2022-12-31 | N146: 2023-12-31 | O146: 2024-12-31 | P146: 2025-12-31 | Q146: 2026-12-31 | R146: 2027-12-31 | S146: 2028-12-31 | T146: 2029-12-31 | U146: 2030-12-31
B147: Residential
B149: =F15 -> Supply charge per day
B150: =B18 -> Ausnet | F150: =$F$16 -> $/day | I150: =F18 -> 1.167201671 | J150: 1.136786299 | K150: 1.155960655 | L150: 1.155960655 | M150: 1.155960655 | N150: 1.136786299 | O150: 1.136786299 | P150: 1.136786299 | Q150: 1.136786299 | R150: 1.136786299 | S150: 1.136786299 | T150: 1.136786299 | U150: 1.136786299
B151: =B19 -> Citipower | F151: =$F$16 -> $/day | I151: =F19 -> 1.133241271 | J151: 1.105468184 | K151: 1.12464254 | L151: 1.12464254 | M151: 1.12464254 | N151: 1.105468184 | O151: 1.105468184 | P151: 1.105468184 | Q151: 1.105468184 | R151: 1.105468184 | S151: 1.105468184 | T151: 1.105468184 | U151: 1.105468184
B152: =B20 -> Jemena | F152: $/day | I152: =F20 -> 1.040139966 | J152: 1.003677918 | K152: 1.012280813 | L152: 1.022852274 | M152: 1.022852274 | N152: 1.003677918 | O152: 1.003677918 | P152: 1.003677918 | Q152: 1.003677918 | R152: 1.003677918 | S152: 1.003677918 | T152: 1.003677918 | U152: 1.003677918
B153: =B21 -> Powercor | F153: $/day | I153: =F21 -> 1.261070312 | J153: 1.233297225 | K153: 1.252471581 | L153: 1.252471581 | M153: 1.252471581 | N153: 1.233297225 | O153: 1.249275855 | P153: 1.233297225 | Q153: 1.233297225 | R153: 1.233297225 | S153: 1.233297225 | T153: 1.233297225 | U153: 1.233297225
B154: =B22 -> United Energy | F154: $/day | I154: =F22 -> 0.9250211968 | J154: 0.9114764286 | K154: 0.9306507848 | L154: 0.9306507848 | M154: 0.9306507848 | N154: 0.9114764286 | O154: 0.9114764286 | P154: 0.9009417178 | Q154: 0.9114764286 | R154: 0.9114764286 | S154: 0.9114764286 | T154: 0.9114764286 | U154: 0.9114764286
B156: =H15 -> Single rate
B157: =B150 -> Ausnet | F157: =$H$16 -> $/kWh | I157: =H18 -> 0 | J157: 0 | K157: 0 | L157: 0 | M157: 0 | N157: 0 | O157: 0 | P157: 0 | Q157: 0 | R157: 0 | S157: 0 | T157: 0 | U157: 0
B158: =B151 -> Citipower | F158: =$H$16 -> $/kWh | I158: =H19 -> 0.2334388476 | J158: 0.2325333774 | K158: 0.2325333774 | L158: 0.2325333774 | M158: 0.2349829014 | N158: 0.2325333774 | O158: 0.2325333774 | P158: 0.2325333774 | Q158: 0.2325333774 | R158: 0.2325333774 | S158: 0.2325333774 | T158: 0.2325333774 | U158: 0.2325333774
B159: Jemena | F159: $/kWh | I159: =H20 -> 0.2588097893 | J159: 0.2547359722 | K159: 0.2547359722 | L159: 0.2547359722 | M159: 0.2547359722 | N159: 0.2547359722 | O159: 0.2547359722 | P159: 0.2547359722 | Q159: 0.2547359722 | R159: 0.2547359722 | S159: 0.2547359722 | T159: 0.2547359722 | U159: 0.2547359722
B160: Powercor | F160: $/kWh | I160: =H21 -> 0.2427119738 | J160: 0.2402755784 | K160: 0.2402755784 | L160: 0.2402755784 | M160: 0.2402755784 | N160: 0.2402755784 | O160: 0.2402755784 | P160: 0.2402755784 | Q160: 0.2402755784 | R160: 0.2402755784 | S160: 0.2402755784 | T160: 0.2402755784 | U160: 0.2402755784
B161: United Energy | F161: $/kWh | I161: =H22 -> 0.2637966721 | J161: 0.2619521142 | K161: 0.2619521142 | L161: 0.2619521142 | M161: 0.2619521142 | N161: 0.2619521142 | O161: 0.2619521142 | P161: 0.2619521142 | Q161: 0.2619521142 | R161: 0.2619521142 | S161: 0.2619521142 | T161: 0.2619521142 | U161: 0.2619521142
B163: =I15 -> Block 1
B164: =B157 -> Ausnet | F164: =$I$16 -> $/kWh | I164: =I18 -> 0.2801218038 | J164: 0.2763409792 | K164: 0.2763409792 | L164: 0.2763409792 | M164: 0.2763409792 | N164: 0.2873020158 | O164: 0.2763409792 | P164: 0.2763409792 | Q164: 0.2763409792 | R164: 0.2763409792 | S164: 0.2763409792 | T164: 0.2763409792 | U164: 0.2763409792
B165: =B158 -> Citipower | F165: =$I$16 -> $/kWh | I165: =I19 -> 0 | J165: 0 | K165: 0 | L165: 0 | M165: 0 | N165: 0 | O165: 0 | P165: 0 | Q165: 0 | R165: 0 | S165: 0 | T165: 0 | U165: 0
B166: Jemena | F166: $/kWh | I166: =I20 -> 0 | J166: 0 | K166: 0 | L166: 0 | M166: 0 | N166: 0 | O166: 0 | P166: 0 | Q166: 0 | R166: 0 | S166: 0 | T166: 0 | U166: 0
B167: Powercor | F167: $/kWh | I167: =I21 -> 0 | J167: 0 | K167: 0 | L167: 0 | M167: 0 | N167: 0 | O167: 0 | P167: 0 | Q167: 0 | R167: 0 | S167: 0 | T167: 0 | U167: 0
B168: United Energy | F168: $/kWh | I168: =I22 -> 0 | J168: 0 | K168: 0 | L168: 0 | M168: 0 | N168: 0 | O168: 0 | P168: 0 | Q168: 0 | R168: 0 | S168: 0 | T168: 0 | U168: 0
B170: =J15 -> Balance
B171: =B164 -> Ausnet | F171: =$J$16 -> $/kWh | I171: =J18 -> 0.3170979518 | J171: 0.3113411778 | K171: 0.3113411778 | L171: 0.3113411778 | M171: 0.3113411778 | N171: 0.3106308158 | O171: 0.3113411778 | P171: 0.3113411778 | Q171: 0.3113411778 | R171: 0.3113411778 | S171: 0.3113411778 | T171: 0.3113411778 | U171: 0.3113411778
B172: =B165 -> Citipower | F172: =$J$16 -> $/kWh | I172: =J19 -> 0 | J172: 0 | K172: 0 | L172: 0 | M172: 0 | N172: 0 | O172: 0 | P172: 0 | Q172: 0 | R172: 0 | S172: 0 | T172: 0 | U172: 0
B173: Jemena | F173: $/kWh | I173: =J20 -> 0 | J173: 0 | K173: 0 | L173: 0 | M173: 0 | N173: 0 | O173: 0 | P173: 0 | Q173: 0 | R173: 0 | S173: 0 | T173: 0 | U173: 0
B174: Powercor | F174: $/kWh | I174: =J21 -> 0 | J174: 0 | K174: 0 | L174: 0 | M174: 0 | N174: 0 | O174: 0 | P174: 0 | Q174: 0 | R174: 0 | S174: 0 | T174: 0 | U174: 0
B175: United Energy | F175: $/kWh | I175: =J22 -> 0 | J175: 0 | K175: 0 | L175: 0 | M175: 0 | N175: 0 | O175: 0 | P175: 0 | Q175: 0 | R175: 0 | S175: 0 | T175: 0 | U175: 0
B177: =K15 -> Controlled load
B178: =B171 -> Ausnet | F178: =$K$16 -> $/kWh | I178: =K18 -> 0.2011879073 | J178: 0.2023863503 | K178: 0.2023863503 | L178: 0.2023863503 | M178: 0.2023863503 | N178: 0.2023863503 | O178: 0.2023863503 | P178: 0.2023863503 | Q178: 0.2023863503 | R178: 0.2023863503 | S178: 0.2023863503 | T178: 0.2023863503 | U178: 0.2023863503
B179: =B172 -> Citipower | F179: =$K$16 -> $/kWh | I179: =K19 -> 0.1791993876 | J179: 0.1808600854 | K179: 0.1808600854 | L179: 0.1808600854 | M179: 0.1808600854 | N179: 0.1808600854 | O179: 0.1808600854 | P179: 0.1808600854 | Q179: 0.1808600854 | R179: 0.1808600854 | S179: 0.1808600854 | T179: 0.1808600854 | U179: 0.1808600854
B180: =B173 -> Jemena | F180: $/kWh | I180: =K20 -> 0.1910834205 | J180: 0.1917248834 | K180: 0.1917248834 | L180: 0.1917248834 | M180: 0.1917248834 | N180: 0.1917248834 | O180: 0.1917248834 | P180: 0.1917248834 | Q180: 0.1917248834 | R180: 0.1917248834 | S180: 0.1917248834 | T180: 0.1917248834 | U180: 0.1917248834
B181: =B174 -> Powercor | F181: $/kWh | I181: =K21 -> 0.1832235338 | J181: 0.1831200184 | K181: 0.1831200184 | L181: 0.1831200184 | M181: 0.1831200184 | N181: 0.1831200184 | O181: 0.1831200184 | P181: 0.1831200184 | Q181: 0.1831200184 | R181: 0.1831200184 | S181: 0.1831200184 | T181: 0.1831200184 | U181: 0.1831200184
B182: =B175 -> United Energy | F182: $/kWh | I182: =K22 -> 0.1869146975 | J182: 0.1872676108 | K182: 0.1872676108 | L182: 0.1872676108 | M182: 0.1872676108 | N182: 0.1872676108 | O182: 0.1872676108 | P182: 0.1872676108 | Q182: 0.1872676108 | R182: 0.1872676108 | S182: 0.1872676108 | T182: 0.1872676108 | U182: 0.1872676108
B184: ="Bills - "&$M$15 -> Bills - 2000 kWh/yr
B185: =B178 -> Ausnet | F185: =$M$16 -> $ | I185: =M18 -> 986.2722176 | J185: 967.6089573 | K185: 974.6075973 | L185: 974.6075973 | M185: 974.6075973 | N185: 989.5310307 | O185: 967.6089573 | P185: 967.6089573 | Q185: 967.6089573 | R185: 967.6089573 | S185: 967.6089573 | T185: 967.6089573 | U185: 967.6089573
B186: =B179 -> Citipower | F186: =$M$16 -> $ | I186: =M19 -> 880.5107589 | J186: 868.5626418 | K186: 875.5612818 | L186: 875.5612818 | M186: 880.4603298 | N186: 868.5626418 | O186: 868.5626418 | P186: 868.5626418 | Q186: 868.5626418 | R186: 868.5626418 | S186: 868.5626418 | T186: 868.5626418 | U186: 868.5626418
B187: Jemena | F187: $ | I187: =M20 -> 897.2706662 | J187: 875.8143845 | K187: 878.954441 | L187: 882.8130245 | M187: 882.8130245 | N187: 875.8143845 | O187: 875.8143845 | P187: 875.8143845 | Q187: 875.8143845 | R187: 875.8143845 | S187: 875.8143845 | T187: 875.8143845 | U187: 875.8143845
B188: Powercor | F188: $ | I188: =M21 -> 945.7146113 | J188: 930.7046438 | K188: 937.7032838 | L188: 937.7032838 | M188: 937.7032838 | N188: 930.7046438 | O188: 936.5368438 | P188: 930.7046438 | Q188: 930.7046438 | R188: 930.7046438 | S188: 930.7046438 | T188: 930.7046438 | U188: 930.7046438
B189: United Energy | F189: $ | I189: =M22 -> 865.226081 | J189: 856.5931249 | K189: 863.5917649 | L189: 863.5917649 | M189: 863.5917649 | N189: 856.5931249 | O189: 856.5931249 | P189: 852.7479555 | Q189: 856.5931249 | R189: 856.5931249 | S189: 856.5931249 | T189: 856.5931249 | U189: 856.5931249
B191: ="Bills - "&$N$15 -> Bills - 4000 kWh/yr
B192: =B185 -> Ausnet | F192: =$M$16 -> $ | I192: =N18 -> 1554.502673 | J192: 1527.850959 | K192: 1534.849599 | L192: 1534.849599 | M192: 1534.849599 | N192: 1569.174083 | O192: 1527.850959 | P192: 1527.850959 | Q192: 1527.850959 | R192: 1527.850959 | S192: 1527.850959 | T192: 1527.850959 | U192: 1527.850959
B193: =B186 -> Citipower | F193: =$M$16 -> $ | I193: =N19 -> 1347.388454 | J193: 1333.629397 | K193: 1340.628037 | L193: 1340.628037 | M193: 1350.426133 | N193: 1333.629397 | O193: 1333.629397 | P193: 1333.629397 | Q193: 1333.629397 | R193: 1333.629397 | S193: 1333.629397 | T193: 1333.629397 | U193: 1333.629397
B194: Jemena | F194: $ | I194: =N20 -> 1414.890245 | J194: 1385.286329 | K194: 1388.426385 | L194: 1392.284969 | M194: 1392.284969 | N194: 1385.286329 | O194: 1385.286329 | P194: 1385.286329 | Q194: 1385.286329 | R194: 1385.286329 | S194: 1385.286329 | T194: 1385.286329 | U194: 1385.286329
B195: Powercor | F195: $ | I195: =N21 -> 1431.138559 | J195: 1411.255801 | K195: 1418.254441 | L195: 1418.254441 | M195: 1418.254441 | N195: 1411.255801 | O195: 1417.088001 | P195: 1411.255801 | Q195: 1411.255801 | R195: 1411.255801 | S195: 1411.255801 | T195: 1411.255801 | U195: 1411.255801
B196: United Energy | F196: $ | I196: =N22 -> 1392.819425 | J196: 1380.497353 | K196: 1387.495993 | L196: 1387.495993 | M196: 1387.495993 | N196: 1380.497353 | O196: 1380.497353 | P196: 1376.652184 | Q196: 1380.497353 | R196: 1380.497353 | S196: 1380.497353 | T196: 1380.497353 | U196: 1380.497353
B198: ="Bills - "&$O$15 -> Bills - 8000 kWh/yr
B199: =B192 -> Ausnet | F199: =$M$16 -> $ | I199: =O18 -> 2811.949541 | J199: 2762.855611 | K199: 2769.854251 | L199: 2769.854251 | M199: 2769.854251 | N199: 2804.792022 | O199: 2762.855611 | P199: 2762.855611 | Q199: 2762.855611 | R199: 2762.855611 | S199: 2762.855611 | T199: 2762.855611 | U199: 2762.855611
B200: =B193 -> Citipower | F200: =$M$16 -> $ | I200: =O19 -> 2281.143844 | J200: 2263.762906 | K200: 2270.761546 | L200: 2270.761546 | M200: 2290.357738 | N200: 2263.762906 | O200: 2263.762906 | P200: 2263.762906 | Q200: 2263.762906 | R200: 2263.762906 | S200: 2263.762906 | T200: 2263.762906 | U200: 2263.762906
B201: Jemena | F201: $ | I201: =O20 -> 2450.129402 | J201: 2404.230218 | K201: 2407.370274 | L201: 2411.228858 | M201: 2411.228858 | N201: 2404.230218 | O201: 2404.230218 | P201: 2404.230218 | Q201: 2404.230218 | R201: 2404.230218 | S201: 2404.230218 | T201: 2404.230218 | U201: 2404.230218
B202: Powercor | F202: $ | I202: =O21 -> 2401.986454 | J202: 2372.358114 | K202: 2379.356754 | L202: 2379.356754 | M202: 2379.356754 | N202: 2372.358114 | O202: 2378.190314 | P202: 2372.358114 | Q202: 2372.358114 | R202: 2372.358114 | S202: 2372.358114 | T202: 2372.358114 | U202: 2372.358114
B203: United Energy | F203: $ | I203: =O22 -> 2448.006113 | J203: 2428.30581 | K203: 2435.30445 | L203: 2435.30445 | M203: 2435.30445 | N203: 2428.30581 | O203: 2428.30581 | P203: 2424.460641 | Q203: 2428.30581 | R203: 2428.30581 | S203: 2428.30581 | T203: 2428.30581 | U203: 2428.30581
B205: Small business
B207: =B149 -> Supply charge per day
B208: =B150 -> Ausnet | F208: =$F$16 -> $/day | I208: =F29 -> 1.167201671 | J208: 1.136786299 | K208: 1.155960655 | L208: 1.155960655 | M208: 1.155960655 | N208: 1.136786299 | O208: 1.136786299 | P208: 1.136786299 | Q208: 1.136786299 | R208: 1.136786299 | S208: 1.136786299 | T208: 1.136786299 | U208: 1.136786299
B209: Citipower | F209: =$F$16 -> $/day | I209: =F30 -> 1.340963462 | J209: 1.297211745 | K209: 1.316386101 | L209: 1.316386101 | M209: 1.316386101 | N209: 1.297211745 | O209: 1.297211745 | P209: 1.297211745 | Q209: 1.297211745 | R209: 1.297211745 | S209: 1.297211745 | T209: 1.297211745 | U209: 1.297211745
B210: Jemena | F210: $/day | I210: =F31 -> 1.236600419 | J210: 1.145012097 | K210: 1.164186454 | L210: 1.164186454 | M210: 1.164186454 | N210: 1.145012097 | O210: 1.145012097 | P210: 1.145012097 | Q210: 1.145012097 | R210: 1.145012097 | S210: 1.145012097 | T210: 1.145012097 | U210: 1.145012097
B211: Powercor | F211: $/day | I211: =F32 -> 1.388899353 | J211: 1.361126266 | K211: 1.380300622 | L211: 1.380300622 | M211: 1.380300622 | N211: 1.361126266 | O211: 1.361126266 | P211: 1.361126266 | Q211: 1.361126266 | R211: 1.361126266 | S211: 1.361126266 | T211: 1.361126266 | U211: 1.361126266
B212: United Energy | F212: $/day | I212: =F33 -> 0.9843929928 | J212: 0.9690985646 | K212: 0.9882729208 | L212: 0.9882729208 | M212: 0.9882729208 | N212: 0.9690985646 | O212: 0.9690985646 | P212: 0.9690985646 | Q212: 0.9690985646 | R212: 0.9690985646 | S212: 0.9690985646 | T212: 0.9690985646 | U212: 0.9690985646
B214: Single rate
B215: Ausnet | F215: =$H$16 -> $/kWh | I215: =H29 -> 0 | J215: 0 | K215: 0 | L215: 0 | M215: 0 | N215: 0 | O215: 0 | P215: 0 | Q215: 0 | R215: 0 | S215: 0 | T215: 0 | U215: 0
B216: Citipower | F216: =$H$16 -> $/kWh | I216: =H30 -> 0.2502402771 | J216: 0.246371119 | K216: 0.246371119 | L216: 0.246371119 | M216: 0.246371119 | N216: 0.246371119 | O216: 0.246371119 | P216: 0.246371119 | Q216: 0.246371119 | R216: 0.246371119 | S216: 0.246371119 | T216: 0.246371119 | U216: 0.246371119
B217: Jemena | F217: $/kWh | I217: =H31 -> 0.2729653449 | J217: 0.2681991896 | K217: 0.2681991896 | L217: 0.2681991896 | M217: 0.2681991896 | N217: 0.2681991896 | O217: 0.2681991896 | P217: 0.2681991896 | Q217: 0.2681991896 | R217: 0.2681991896 | S217: 0.2681991896 | T217: 0.2681991896 | U217: 0.2681991896
B218: Powercor | F218: $/kWh | I218: =H32 -> 0.2435490576 | J218: 0.2394163115 | K218: 0.2394163115 | L218: 0.2394163115 | M218: 0.2394163115 | N218: 0.2394163115 | O218: 0.2394163115 | P218: 0.2394163115 | Q218: 0.2394163115 | R218: 0.2394163115 | S218: 0.2394163115 | T218: 0.2394163115 | U218: 0.2394163115
B219: United Energy | F219: $/kWh | I219: =H33 -> 0.2739841924 | J219: 0.2717289456 | K219: 0.2717289456 | L219: 0.2717289456 | M219: 0.2717289456 | N219: 0.2717289456 | O219: 0.2717289456 | P219: 0.2717289456 | Q219: 0.2717289456 | R219: 0.2717289456 | S219: 0.2717289456 | T219: 0.2717289456 | U219: 0.2717289456
B221: Block 1
B222: Ausnet | F222: =$I$16 -> $/kWh | I222: =I29 -> 0.3211779501 | J222: 0.3154288638 | K222: 0.3268483114 | L222: 0.3154288638 | M222: 0.3154288638 | N222: 0.3385127114 | O222: 0.3154288638 | P222: 0.3154288638 | Q222: 0.3154288638 | R222: 0.3154288638 | S222: 0.3154288638 | T222: 0.3154288638 | U222: 0.3154288638
B223: Citipower | F223: =$I$16 -> $/kWh | I223: =I30 -> 0 | J223: 0 | K223: 0 | L223: 0 | M223: 0 | N223: 0 | O223: 0 | P223: 0 | Q223: 0 | R223: 0 | S223: 0 | T223: 0 | U223: 0
B224: Jemena | F224: $/kWh | I224: =I31 -> 0 | J224: 0 | K224: 0 | L224: 0 | M224: 0 | N224: 0 | O224: 0 | P224: 0 | Q224: 0 | R224: 0 | S224: 0 | T224: 0 | U224: 0
B225: Powercor | F225: $/kWh | I225: =I32 -> 0 | J225: 0 | K225: 0 | L225: 0 | M225: 0 | N225: 0 | O225: 0 | P225: 0 | Q225: 0 | R225: 0 | S225: 0 | T225: 0 | U225: 0
B226: United Energy | F226: $/kWh | I226: =I33 -> 0 | J226: 0 | K226: 0 | L226: 0 | M226: 0 | N226: 0 | O226: 0 | P226: 0 | Q226: 0 | R226: 0 | S226: 0 | T226: 0 | U226: 0
B228: Balance
B229: Ausnet | F229: =$J$16 -> $/kWh | I229: =J29 -> 0.3687687021 | J229: 0.3604791095 | K229: 0.3604791095 | L229: 0.3604791095 | M229: 0.3604791095 | N229: 0.3604791095 | O229: 0.3604791095 | P229: 0.3604791095 | Q229: 0.3604791095 | R229: 0.3604791095 | S229: 0.3604791095 | T229: 0.3604791095 | U229: 0.3604791095
B230: Citipower | F230: =$J$16 -> $/kWh | I230: =J30 -> 0 | J230: 0 | K230: 0 | L230: 0 | M230: 0 | N230: 0 | O230: 0 | P230: 0 | Q230: 0 | R230: 0 | S230: 0 | T230: 0 | U230: 0
B231: Jemena | F231: $/kWh | I231: =J31 -> 0 | J231: 0 | K231: 0 | L231: 0 | M231: 0 | N231: 0 | O231: 0 | P231: 0 | Q231: 0 | R231: 0 | S231: 0 | T231: 0 | U231: 0
B232: Powercor | F232: $/kWh | I232: =J32 -> 0 | J232: 0 | K232: 0 | L232: 0 | M232: 0 | N232: 0 | O232: 0 | P232: 0 | Q232: 0 | R232: 0 | S232: 0 | T232: 0 | U232: 0
B233: United Energy | F233: $/kWh | I233: =J33 -> 0 | J233: 0 | K233: 0 | L233: 0 | M233: 0 | N233: 0 | O233: 0 | P233: 0 | Q233: 0 | R233: 0 | S233: 0 | T233: 0 | U233: 0
B235: Controlled load
B236: Ausnet | F236: =$K$16 -> $/kWh
B237: Citipower | F237: =$K$16 -> $/kWh
B238: Jemena | F238: $/kWh
B239: Powercor | F239: $/kWh
B240: United Energy | F240: $/kWh
B242: ="Bills - "&$M$26 -> Bills - 12000 kWh/yr
B243: Ausnet | F243: =$M$16 -> $ | I243: =M29 -> 4657.082768 | J243: 4556.87131 | K243: 4610.461296 | L243: 4563.86995 | M243: 4563.86995 | N243: 4651.053408 | O243: 4556.87131 | P243: 4556.87131 | Q243: 4556.87131 | R243: 4556.87131 | S243: 4556.87131 | T243: 4556.87131 | U243: 4556.87131
B244: Citipower | F244: =$M$16 -> $ | I244: =M30 -> 3492.334989 | J244: 3429.935714 | K244: 3436.934354 | L244: 3436.934354 | M244: 3436.934354 | N244: 3429.935714 | O244: 3429.935714 | P244: 3429.935714 | Q244: 3429.935714 | R244: 3429.935714 | S244: 3429.935714 | T244: 3429.935714 | U244: 3429.935714
B245: Jemena | F245: $ | I245: =M31 -> 3726.943291 | J245: 3636.31969 | K245: 3643.31833 | L245: 3643.31833 | M245: 3643.31833 | N245: 3636.31969 | O245: 3636.31969 | P245: 3636.31969 | Q245: 3636.31969 | R245: 3636.31969 | S245: 3636.31969 | T245: 3636.31969 | U245: 3636.31969
B246: Powercor | F246: $ | I246: =M32 -> 3429.536955 | J246: 3369.806825 | K246: 3376.805465 | L246: 3376.805465 | M246: 3376.805465 | N246: 3369.806825 | O246: 3369.806825 | P246: 3369.806825 | Q246: 3369.806825 | R246: 3369.806825 | S246: 3369.806825 | T246: 3369.806825 | U246: 3369.806825
B247: United Energy | F247: $ | I247: =M33 -> 3647.113751 | J247: 3614.468323 | K247: 3621.466963 | L247: 3621.466963 | M247: 3621.466963 | N247: 3614.468323 | O247: 3614.468323 | P247: 3614.468323 | Q247: 3614.468323 | R247: 3614.468323 | S247: 3614.468323 | T247: 3614.468323 | U247: 3614.468323
B249: ="Bills - "&$N$26 -> Bills - 20000 kWh/yr
B250: Ausnet | F250: =$M$16 -> $ | I250: =N29 -> 7607.232385 | J250: 7440.704186 | K250: 7494.294172 | L250: 7447.702826 | M250: 7447.702826 | N250: 7534.886284 | O250: 7440.704186 | P250: 7440.704186 | Q250: 7440.704186 | R250: 7440.704186 | S250: 7440.704186 | T250: 7440.704186 | U250: 7440.704186
B251: Citipower | F251: =$M$16 -> $ | I251: =N30 -> 5494.257206 | J251: 5400.904666 | K251: 5407.903306 | L251: 5407.903306 | M251: 5407.903306 | N251: 5400.904666 | O251: 5400.904666 | P251: 5400.904666 | Q251: 5400.904666 | R251: 5400.904666 | S251: 5400.904666 | T251: 5400.904666 | U251: 5400.904666
B252: Jemena | F252: $ | I252: =N31 -> 5910.66605 | J252: 5781.913207 | K252: 5788.911847 | L252: 5788.911847 | M252: 5788.911847 | N252: 5781.913207 | O252: 5781.913207 | P252: 5781.913207 | Q252: 5781.913207 | R252: 5781.913207 | S252: 5781.913207 | T252: 5781.913207 | U252: 5781.913207
B253: Powercor | F253: $ | I253: =N32 -> 5377.929416 | J253: 5285.137317 | K253: 5292.135957 | L253: 5292.135957 | M253: 5292.135957 | N253: 5285.137317 | O253: 5285.137317 | P253: 5285.137317 | Q253: 5285.137317 | R253: 5285.137317 | S253: 5285.137317 | T253: 5285.137317 | U253: 5285.137317
B254: United Energy | F254: $ | I254: =N33 -> 5838.987291 | J254: 5788.299888 | K254: 5795.298528 | L254: 5795.298528 | M254: 5795.298528 | N254: 5788.299888 | O254: 5788.299888 | P254: 5788.299888 | Q254: 5788.299888 | R254: 5788.299888 | S254: 5788.299888 | T254: 5788.299888 | U254: 5788.299888
B256: ="Bills - "&$O$26 -> Bills - 40000 kWh/yr
B257: Ausnet | F257: =$M$16 -> $ | I257: =O29 -> 14982.60643 | J257: 14650.28637 | K257: 14703.87636 | L257: 14657.28501 | M257: 14657.28501 | N257: 14744.46847 | O257: 14650.28637 | P257: 14650.28637 | Q257: 14650.28637 | R257: 14650.28637 | S257: 14650.28637 | T257: 14650.28637 | U257: 14650.28637
B258: Citipower | F258: =$M$16 -> $ | I258: =O30 -> 10499.06275 | J258: 10328.32705 | K258: 10335.32569 | L258: 10335.32569 | M258: 10335.32569 | N258: 10328.32705 | O258: 10328.32705 | P258: 10328.32705 | Q258: 10328.32705 | R258: 10328.32705 | S258: 10328.32705 | T258: 10328.32705 | U258: 10328.32705
B259: Jemena | F259: $ | I259: =O31 -> 11369.97295 | J259: 11145.897 | K259: 11152.89564 | L259: 11152.89564 | M259: 11152.89564 | N259: 11145.897 | O259: 11145.897 | P259: 11145.897 | Q259: 11145.897 | R259: 11145.897 | S259: 11145.897 | T259: 11145.897 | U259: 11145.897
B260: Powercor | F260: $ | I260: =O32 -> 10248.91057 | J260: 10073.46355 | K260: 10080.46219 | L260: 10080.46219 | M260: 10080.46219 | N260: 10073.46355 | O260: 10073.46355 | P260: 10073.46355 | Q260: 10073.46355 | R260: 10073.46355 | S260: 10073.46355 | T260: 10073.46355 | U260: 10073.46355
B261: United Energy | F261: $ | I261: =O33 -> 11318.67114 | J261: 11222.8788 | K261: 11229.87744 | L261: 11229.87744 | M261: 11229.87744 | N261: 11222.8788 | O261: 11222.8788 | P261: 11222.8788 | Q261: 11222.8788 | R261: 11222.8788 | S261: 11222.8788 | T261: 11222.8788 | U261: 11222.8788
A263: END

Sheet Compare_O (hidden)
A1: =MdlTtl -> Victorian Default Offer Model
A2: =_xlfn.SHEET() -> 11 | B2: COMPARISON OF DRAFT AND FINAL OUTPUTS | I2: Period Selected:
B3: Output comparison between Draft and Final | G3: Start | H3: =Inputs_A_Dr!$C$17 -> 2020-01-01
B4: =Chk_C!B10 -> Error check breaches: 16. Update model macro: 1 | G4: End | H4: =Inputs_A_Dr!$C$18 -> 2020-12-31
A6: To Contents
A8: =ROUNDDOWN(MAX($A$7:OFFSET(A8,-One,0),$A$2*Sht)+Sxn,0) -> 1101 | B8: VDO Tariff Rates & Bills for comparison
B10: Period start | C10: =H3 -> 2020-01-01
B11: Period end | C11: =H4 -> 2020-12-31
B13: Residential | F13: Rates | M13: Bills
B15: Zone | F15: =Calc_C_Dr!F267 -> Supply charge per day | H15: =Gen_A!$B$97 -> Single rate | I15: =Gen_A!$B$98 -> Block 1 | J15: =Gen_A!$B$99 -> Balance | K15: =Gen_A!$B$100 -> Controlled load | M15: =Gen_A!$B$105&" kWh/yr" -> 2000 kWh/yr | N15: =Gen_A!$B$106&" kWh/yr" -> 4000 kWh/yr | O15: =Gen_A!$B$107&" kWh/yr" -> 8000 kWh/yr
F16: $/day | H16: $/kWh | I16: $/kWh | J16: $/kWh | K16: $/kWh | M16: $ | N16: $ | O16: $
B18: =INDEX(Gen_A!$B$89:$B$93,C18) -> Ausnet | C18: =Gen_A!A89 -> 1 | F18: =IFERROR((Tariff_O_F!F18-Tariff_O_Dr!F18)/Tariff_O_Dr!F18,Zero) -> -0.02260121223 | H18: =IFERROR((Tariff_O_F!H18-Tariff_O_Dr!H18)/Tariff_O_Dr!H18,Zero) -> 0 | I18: =IFERROR((Tariff_O_F!I18-Tariff_O_Dr!I18)/Tariff_O_Dr!I18,Zero) -> 0.09656492917 | J18: =IFERROR((Tariff_O_F!J18-Tariff_O_Dr!J18)/Tariff_O_Dr!J18,Zero) -> 0.03194458824 | K18: =IFERROR((Tariff_O_F!K18-Tariff_O_Dr!K18)/Tariff_O_Dr!K18,Zero) -> 0.1086265765 | M18: =IFERROR((Tariff_O_F!M18-Tariff_O_Dr!M18)/Tariff_O_Dr!M18,Zero) -> 0.04509010845 | N18: =IFERROR((Tariff_O_F!N18-Tariff_O_Dr!N18)/Tariff_O_Dr!N18,Zero) -> 0.06105888744 | O18: =IFERROR((Tariff_O_F!O18-Tariff_O_Dr!O18)/Tariff_O_Dr!O18,Zero) -> 0.04994502491
B19: =INDEX(Gen_A!$B$89:$B$93,C19) -> Citipower | C19: =Gen_A!A90 -> 2 | F19: =IFERROR((Tariff_O_F!F19-Tariff_O_Dr!F19)/Tariff_O_Dr!F19,Zero) -> -0.002052980866 | H19: =IFERROR((Tariff_O_F!H19-Tariff_O_Dr!H19)/Tariff_O_Dr!H19,Zero) -> 0.07824767933 | I19: =IFERROR((Tariff_O_F!I19-Tariff_O_Dr!I19)/Tariff_O_Dr!I19,Zero) -> 0 | J19: =IFERROR((Tariff_O_F!J19-Tariff_O_Dr!J19)/Tariff_O_Dr!J19,Zero) -> 0 | K19: =IFERROR((Tariff_O_F!K19-Tariff_O_Dr!K19)/Tariff_O_Dr!K19,Zero) -> 0.09021490702 | M19: =IFERROR((Tariff_O_F!M19-Tariff_O_Dr!M19)/Tariff_O_Dr!M19,Zero) -> 0.04052524634 | N19: =IFERROR((Tariff_O_F!N19-Tariff_O_Dr!N19)/Tariff_O_Dr!N19,Zero) -> 0.05359628203 | O19: =IFERROR((Tariff_O_F!O19-Tariff_O_Dr!O19)/Tariff_O_Dr!O19,Zero) -> 0.06368699821
B20: =INDEX(Gen_A!$B$89:$B$93,C20) -> Jemena | C20: =Gen_A!A91 -> 3 | F20: =IFERROR((Tariff_O_F!F20-Tariff_O_Dr!F20)/Tariff_O_Dr!F20,Zero) -> 0.002842147248 | H20: =IFERROR((Tariff_O_F!H20-Tariff_O_Dr!H20)/Tariff_O_Dr!H20,Zero) -> 0.07676304293 | I20: =IFERROR((Tariff_O_F!I20-Tariff_O_Dr!I20)/Tariff_O_Dr!I20,Zero) -> 0 | J20: =IFERROR((Tariff_O_F!J20-Tariff_O_Dr!J20)/Tariff_O_Dr!J20,Zero) -> 0 | K20: =IFERROR((Tariff_O_F!K20-Tariff_O_Dr!K20)/Tariff_O_Dr!K20,Zero) -> 0.09153254507 | M20: =IFERROR((Tariff_O_F!M20-Tariff_O_Dr!M20)/Tariff_O_Dr!M20,Zero) -> 0.04548580464 | N20: =IFERROR((Tariff_O_F!N20-Tariff_O_Dr!N20)/Tariff_O_Dr!N20,Zero) -> 0.05692818398 | O20: =IFERROR((Tariff_O_F!O20-Tariff_O_Dr!O20)/Tariff_O_Dr!O20,Zero) -> 0.06530889344
B21: =INDEX(Gen_A!$B$89:$B$93,C21) -> Powercor | C21: =Gen_A!A92 -> 4 | F21: =IFERROR((Tariff_O_F!F21-Tariff_O_Dr!F21)/Tariff_O_Dr!F21,Zero) -> 0.000689258461 | H21: =IFERROR((Tariff_O_F!H21-Tariff_O_Dr!H21)/Tariff_O_Dr!H21,Zero) -> 0.08789694001 | I21: =IFERROR((Tariff_O_F!I21-Tariff_O_Dr!I21)/Tariff_O_Dr!I21,Zero) -> 0 | J21: =IFERROR((Tariff_O_F!J21-Tariff_O_Dr!J21)/Tariff_O_Dr!J21,Zero) -> 0 | K21: =IFERROR((Tariff_O_F!K21-Tariff_O_Dr!K21)/Tariff_O_Dr!K21,Zero) -> 0.09606316086 | M21: =IFERROR((Tariff_O_F!M21-Tariff_O_Dr!M21)/Tariff_O_Dr!M21,Zero) -> 0.04545191363 | N21: =IFERROR((Tariff_O_F!N21-Tariff_O_Dr!N21)/Tariff_O_Dr!N21,Zero) -> 0.05984872527 | O21: =IFERROR((Tariff_O_F!O21-Tariff_O_Dr!O21)/Tariff_O_Dr!O21,Zero) -> 0.07118540462
B22: =INDEX(Gen_A!$B$89:$B$93,C22) -> United Energy | C22: =Gen_A!A93 -> 5 | F22: =IFERROR((Tariff_O_F!F22-Tariff_O_Dr!F22)/Tariff_O_Dr!F22,Zero) -> -0.001546745835 | H22: =IFERROR((Tariff_O_F!H22-Tariff_O_Dr!H22)/Tariff_O_Dr!H22,Zero) -> 0.1093905853 | I22: =IFERROR((Tariff_O_F!I22-Tariff_O_Dr!I22)/Tariff_O_Dr!I22,Zero) -> 0 | J22: =IFERROR((Tariff_O_F!J22-Tariff_O_Dr!J22)/Tariff_O_Dr!J22,Zero) -> 0 | K22: =IFERROR((Tariff_O_F!K22-Tariff_O_Dr!K22)/Tariff_O_Dr!K22,Zero) -> 0.112646588 | M22: =IFERROR((Tariff_O_F!M22-Tariff_O_Dr!M22)/Tariff_O_Dr!M22,Zero) -> 0.06610007946 | N22: =IFERROR((Tariff_O_F!N22-Tariff_O_Dr!N22)/Tariff_O_Dr!N22,Zero) -> 0.08249831627 | O22: =IFERROR((Tariff_O_F!O22-Tariff_O_Dr!O22)/Tariff_O_Dr!O22,Zero) -> 0.09408993942
B24: =B18 -> Ausnet | F24: =IF(ABS(F18)>OutputTol,One,Zero) -> 0 | H24: =IF(ABS(H18)>OutputTol,One,Zero) -> 0 | I24: 0 | J24: 0 | K24: 0
B25: =B19 -> Citipower | F25: =IF(ABS(F19)>OutputTol,One,Zero) -> 0 | H25: 0 | I25: 0 | J25: 0 | K25: 0
B26: Jemena | F26: =IF(ABS(F20)>OutputTol,One,Zero) -> 0 | H26: 0 | I26: 0 | J26: 0 | K26: 0
B27: Powercor | F27: =IF(ABS(F21)>OutputTol,One,Zero) -> 0 | H27: 0 | I27: 0 | J27: 0 | K27: 0
B28: United Energy | F28: =IF(ABS(F22)>OutputTol,One,Zero) -> 0 | H28: 0 | I28: 0 | J28: 0 | K28: 0 | M28: Check: Residential deviation of final from draft | Q28: =SUM(F24:F28,H24:K28) -> 0
B30: Small business | F30: Rates | M30: Bills
B32: Zone | F32: =F15 -> Supply charge per day | H32: =Gen_A!$B$97 -> Single rate | I32: =Gen_A!$B$98 -> Block 1 | J32: =Gen_A!$B$99 -> Balance | K32: =Gen_A!$B$100 -> Controlled load | M32: =Gen_A!$B$110&" kWh/yr" -> 12000 kWh/yr | N32: =Gen_A!$B$111&" kWh/yr" -> 20000 kWh/yr | O32: =Gen_A!$B$112&" kWh/yr" -> 40000 kWh/yr
F33: $/day | H33: $/kWh | I33: $/kWh | J33: $/kWh | K33: $/kWh | M33: $ | N33: $ | O33: $
B35: =B18 -> Ausnet | C35: 1 | F35: =IFERROR((Tariff_O_F!F29-Tariff_O_Dr!F29)/Tariff_O_Dr!F29,Zero) -> -0.02260121223 | H35: =IFERROR((Tariff_O_F!H29-Tariff_O_Dr!H29)/Tariff_O_Dr!H29,Zero) -> 0 | I35: =IFERROR((Tariff_O_F!I29-Tariff_O_Dr!I29)/Tariff_O_Dr!I29,Zero) -> 0.06086078053 | J35: =IFERROR((Tariff_O_F!J29-Tariff_O_Dr!J29)/Tariff_O_Dr!J29,Zero) -> 0.02909372263 | M35: =IFERROR((Tariff_O_F!M29-Tariff_O_Dr!M29)/Tariff_O_Dr!M29,Zero) -> 0.03330327272 | N35: =IFERROR((Tariff_O_F!N29-Tariff_O_Dr!N29)/Tariff_O_Dr!N29,Zero) -> 0.03167077328 | O35: =IFERROR((Tariff_O_F!O29-Tariff_O_Dr!O29)/Tariff_O_Dr!O29,Zero) -> 0.0304021881
B36: Citipower | C36: 2 | F36: =IFERROR((Tariff_O_F!F30-Tariff_O_Dr!F30)/Tariff_O_Dr!F30,Zero) -> -0.001734963487 | H36: =IFERROR((Tariff_O_F!H30-Tariff_O_Dr!H30)/Tariff_O_Dr!H30,Zero) -> 0.06562137929 | I36: =IFERROR((Tariff_O_F!I30-Tariff_O_Dr!I30)/Tariff_O_Dr!I30,Zero) -> 0 | J36: =IFERROR((Tariff_O_F!J30-Tariff_O_Dr!J30)/Tariff_O_Dr!J30,Zero) -> 0 | M36: =IFERROR((Tariff_O_F!M30-Tariff_O_Dr!M30)/Tariff_O_Dr!M30,Zero) -> 0.0561813702 | N36: =IFERROR((Tariff_O_F!N30-Tariff_O_Dr!N30)/Tariff_O_Dr!N30,Zero) -> 0.05962099146 | O36: =IFERROR((Tariff_O_F!O30-Tariff_O_Dr!O30)/Tariff_O_Dr!O30,Zero) -> 0.06248132052
B37: Jemena | C37: 3 | F37: =IFERROR((Tariff_O_F!F31-Tariff_O_Dr!F31)/Tariff_O_Dr!F31,Zero) -> -0.04450379662 | H37: =IFERROR((Tariff_O_F!H31-Tariff_O_Dr!H31)/Tariff_O_Dr!H31,Zero) -> 0.06373316888 | I37: =IFERROR((Tariff_O_F!I31-Tariff_O_Dr!I31)/Tariff_O_Dr!I31,Zero) -> 0 | J37: =IFERROR((Tariff_O_F!J31-Tariff_O_Dr!J31)/Tariff_O_Dr!J31,Zero) -> 0 | M37: =IFERROR((Tariff_O_F!M31-Tariff_O_Dr!M31)/Tariff_O_Dr!M31,Zero) -> 0.05062490797 | N37: =IFERROR((Tariff_O_F!N31-Tariff_O_Dr!N31)/Tariff_O_Dr!N31,Zero) -> 0.05546781525 | O37: =IFERROR((Tariff_O_F!O31-Tariff_O_Dr!O31)/Tariff_O_Dr!O31,Zero) -> 0.05943643525
B38: Powercor | C38: 4 | F38: =IFERROR((Tariff_O_F!F32-Tariff_O_Dr!F32)/Tariff_O_Dr!F32,Zero) -> 0.0006258217202 | H38: =IFERROR((Tariff_O_F!H32-Tariff_O_Dr!H32)/Tariff_O_Dr!H32,Zero) -> 0.07538522715 | I38: =IFERROR((Tariff_O_F!I32-Tariff_O_Dr!I32)/Tariff_O_Dr!I32,Zero) -> 0 | J38: =IFERROR((Tariff_O_F!J32-Tariff_O_Dr!J32)/Tariff_O_Dr!J32,Zero) -> 0 | M38: =IFERROR((Tariff_O_F!M32-Tariff_O_Dr!M32)/Tariff_O_Dr!M32,Zero) -> 0.06433442021 | N38: =IFERROR((Tariff_O_F!N32-Tariff_O_Dr!N32)/Tariff_O_Dr!N32,Zero) -> 0.06833806311 | O38: =IFERROR((Tariff_O_F!O32-Tariff_O_Dr!O32)/Tariff_O_Dr!O32,Zero) -> 0.07168735599
B39: United Energy | C39: 5 | F39: =IFERROR((Tariff_O_F!F33-Tariff_O_Dr!F33)/Tariff_O_Dr!F33,Zero) -> 0.001982849666 | H39: =IFERROR((Tariff_O_F!H33-Tariff_O_Dr!H33)/Tariff_O_Dr!H33,Zero) -> 0.09650735392 | I39: =IFERROR((Tariff_O_F!I33-Tariff_O_Dr!I33)/Tariff_O_Dr!I33,Zero) -> 0 | J39: =IFERROR((Tariff_O_F!J33-Tariff_O_Dr!J33)/Tariff_O_Dr!J33,Zero) -> 0 | M39: =IFERROR((Tariff_O_F!M33-Tariff_O_Dr!M33)/Tariff_O_Dr!M33,Zero) -> 0.08719506423 | N39: =IFERROR((Tariff_O_F!N33-Tariff_O_Dr!N33)/Tariff_O_Dr!N33,Zero) -> 0.09069076654 | O39: =IFERROR((Tariff_O_F!O33-Tariff_O_Dr!O33)/Tariff_O_Dr!O33,Zero) -> 0.09350673844
B41: =B35 -> Ausnet | F41: =IF(ABS(F35)>OutputTol,One,Zero) -> 0 | H41: =IF(ABS(H35)>OutputTol,One,Zero) -> 0 | I41: 0 | J41: 0
B42: =B36 -> Citipower | F42: =IF(ABS(F36)>OutputTol,One,Zero) -> 0 | H42: 0 | I42: 0 | J42: 0
B43: Jemena | F43: =IF(ABS(F37)>OutputTol,One,Zero) -> 0 | H43: 0 | I43: 0 | J43: 0
B44: Powercor | F44: =IF(ABS(F38)>OutputTol,One,Zero) -> 0 | H44: 0 | I44: 0 | J44: 0
B45: United Energy | F45: =IF(ABS(F39)>OutputTol,One,Zero) -> 0 | H45: 0 | I45: 0 | J45: 0 | M45: Check: Small business deviation of final from draft | Q45: =SUM(F41:F45,H41:K45) -> 0
A47: =ROUNDDOWN(MAX($A$7:OFFSET(A47,-One,0),$A$2*Sht)+Sxn,0) -> 1102 | B47: Time Series Graphs for comparison - Deviation of Final from Draft
H49: Match
B50: Residential | E50: Please select customer type | H50: =MATCH(B50,Gen_A!$B$84:$B$85,0) -> 1
B51: Single rate | E51: Please select the type of rate | H51: =MATCH(B51,Gen_A!$B$97:$B$100,0) -> 1
B52: Customer - Medium | E52: Please select the customer size | H52: =MATCH(B52,Gen_A!$J$105:$J$107,0) -> 2
A73: =ROUNDDOWN(MAX($A$7:OFFSET(A73,-One,0),$A$2*Sht)+Sxn,0) -> 1103 | B73: Selected Output - Deviation of Final from Draft
B75: Period start | J75: =Flags_C!J11 -> 2019-07-01 | K75: =Flags_C!K11 -> 2020-01-01 | L75: =Flags_C!L11 -> 2021-01-01 | M75: =Flags_C!M11 -> 2022-01-01 | N75: =Flags_C!N11 -> 2023-01-01 | O75: =Flags_C!O11 -> 2024-01-01 | P75: =Flags_C!P11 -> 2025-01-01 | Q75: =Flags_C!Q11 -> 2026-01-01 | R75: =Flags_C!R11 -> 2027-01-01 | S75: =Flags_C!S11 -> 2028-01-01 | T75: =Flags_C!T11 -> 2029-01-01 | U75: =Flags_C!U11 -> 2030-01-01
B76: Period end | J76: =Flags_C!J12 -> 2019-12-31 | K76: =Flags_C!K12 -> 2020-12-31 | L76: =Flags_C!L12 -> 2021-12-31 | M76: =Flags_C!M12 -> 2022-12-31 | N76: =Flags_C!N12 -> 2023-12-31 | O76: =Flags_C!O12 -> 2024-12-31 | P76: =Flags_C!P12 -> 2025-12-31 | Q76: =Flags_C!Q12 -> 2026-12-31 | R76: =Flags_C!R12 -> 2027-12-31 | S76: =Flags_C!S12 -> 2028-12-31 | T76: =Flags_C!T12 -> 2029-12-31 | U76: =Flags_C!U12 -> 2030-12-31
B78: =B169 -> Supply charge per day
B79: Ausnet | J79: =CHOOSE($H$50,J170,J228) -> 0 | K79: -0.01658737785 | L79: -0.01658737785 | M79: -0.01658737785 | N79: 0 | O79: 0 | P79: 0 | Q79: 0 | R79: 0 | S79: 0 | T79: 0 | U79: 0
B80: Citipower | J80: =CHOOSE($H$50,J171,J229) -> 0 | K80: -0.01704928943 | L80: -0.01704928943 | M80: -0.01704928943 | N80: 0 | O80: 0 | P80: 0 | Q80: 0 | R80: 0 | S80: 0 | T80: 0 | U80: 0
B81: Jemena | J81: =CHOOSE($H$50,J172,J230) -> 0 | K81: -0.008498525665 | L81: -0.01874596816 | M81: -0.01874596816 | N81: 0 | O81: 0 | P81: 0 | Q81: 0 | R81: 0 | S81: 0 | T81: 0 | U81: 0
B82: Powercor | J82: =CHOOSE($H$50,J173,J231) -> 0 | K82: -0.01530921456 | L82: -0.01530921456 | M82: -0.01530921456 | N82: 0 | O82: -0.01279031375 | P82: 0 | Q82: 0 | R82: 0 | S82: 0 | T82: 0 | U82: 0
B83: United Energy | J83: =CHOOSE($H$50,J174,J232) -> 0 | K83: -0.02060316982 | L83: -0.02060316982 | M83: -0.02060316982 | N83: 0 | O83: 0 | P83: 0.01169299927 | Q83: 0 | R83: 0 | S83: 0 | T83: 0 | U83: 0
B84: Maximum graph height | J84: =MAX(ABS(J87),ABS(J88)) -> 0 | K84: 0.02060316982 | L84: 0.02060316982 | M84: 0.02060316982 | N84: 0 | O84: 0.01279031375 | P84: 0.01169299927 | Q84: 0 | R84: 0 | S84: 0 | T84: 0 | U84: 0
B85: Minimum graph height | J85: =-J84 -> 0 | K85: =-K84 -> -0.02060316982 | L85: -0.02060316982 | M85: -0.02060316982 | N85: 0 | O85: -0.01279031375 | P85: -0.01169299927 | Q85: 0 | R85: 0 | S85: 0 | T85: 0 | U85: 0
B87: Maximum | J87: =MAX(J79:J83) -> 0 | K87: =MAX(K79:K83) -> -0.008498525665 | L87: -0.01530921456 | M87: -0.01530921456 | N87: 0 | O87: 0 | P87: 0.01169299927 | Q87: 0 | R87: 0 | S87: 0 | T87: 0 | U87: 0
B88: Minimum | J88: =MIN(J79:J83) -> 0 | K88: =MIN(K79:K83) -> -0.02060316982 | L88: -0.02060316982 | M88: -0.02060316982 | N88: 0 | O88: -0.01279031375 | P88: 0 | Q88: 0 | R88: 0 | S88: 0 | T88: 0 | U88: 0
B90: Rate Selected | F90: =B51 -> Single rate | G90: =H51 -> 1
B91: =B79 -> Ausnet | J91: =CHOOSE($G$90,J103,J110,J117,J124) -> 0 | K91: 0 | L91: 0 | M91: 0 | N91: 0 | O91: 0 | P91: 0 | Q91: 0 | R91: 0 | S91: 0 | T91: 0 | U91: 0
B92: =B80 -> Citipower | J92: =CHOOSE($G$90,J104,J111,J118,J125) -> 0 | K92: 0 | L92: 0 | M92: -0.01042426485 | N92: 0 | O92: 0 | P92: 0 | Q92: 0 | R92: 0 | S92: 0 | T92: 0 | U92: 0
B93: =B81 -> Jemena | J93: =CHOOSE($G$90,J105,J112,J119,J126) -> 0 | K93: 0 | L93: 0 | M93: 0 | N93: 0 | O93: 0 | P93: 0 | Q93: 0 | R93: 0 | S93: 0 | T93: 0 | U93: 0
B94: =B82 -> Powercor | J94: =CHOOSE($G$90,J106,J113,J120,J127) -> 0 | K94: 0 | L94: 0 | M94: 0 | N94: 0 | O94: 0 | P94: 0 | Q94: 0 | R94: 0 | S94: 0 | T94: 0 | U94: 0
B95: =B83 -> United Energy | J95: =CHOOSE($G$90,J107,J114,J121,J128) -> 0 | K95: 0 | L95: 0 | M95: 0 | N95: 0 | O95: 0 | P95: 0 | Q95: 0 | R95: 0 | S95: 0 | T95: 0 | U95: 0
B96: Maximum graph height | J96: =MAX(ABS(J99),ABS(J100)) -> 0 | K96: 0 | L96: 0 | M96: 0.01042426485 | N96: 0 | O96: 0 | P96: 0 | Q96: 0 | R96: 0 | S96: 0 | T96: 0 | U96: 0
B97: Minimum graph height | J97: =-J96 -> 0 | K97: =-K96 -> 0 | L97: =-L96 -> 0 | M97: =-M96 -> -0.01042426485 | N97: =-N96 -> 0 | O97: =-O96 -> 0 | P97: =-P96 -> 0 | Q97: =-Q96 -> 0 | R97: =-R96 -> 0 | S97: =-S96 -> 0 | T97: =-T96 -> 0 | U97: =-U96 -> 0
B99: Maximum | J99: =MAX(J91:J95) -> 0 | K99: =MAX(K91:K95) -> 0 | L99: 0 | M99: 0 | N99: 0 | O99: 0 | P99: 0 | Q99: 0 | R99: 0 | S99: 0 | T99: 0 | U99: 0
B100: Minimum | J100: =MIN(J91:J95) -> 0 | K100: =MIN(K91:K95) -> 0 | L100: 0 | M100: -0.01042426485 | N100: 0 | O100: 0 | P100: 0 | Q100: 0 | R100: 0 | S100: 0 | T100: 0 | U100: 0
B102: =B176 -> Single rate
B103: Ausnet | J103: =CHOOSE($H$50,J177,J235) -> 0 | K103: 0 | L103: 0 | M103: 0 | N103: 0 | O103: 0 | P103: 0 | Q103: 0 | R103: 0 | S103: 0 | T103: 0 | U103: 0
B104: Citipower | J104: 0 | K104: 0 | L104: 0 | M104: -0.01042426485 | N104: 0 | O104: 0 | P104: 0 | Q104: 0 | R104: 0 | S104: 0 | T104: 0 | U104: 0
B105: Jemena | J105: 0 | K105: 0 | L105: 0 | M105: 0 | N105: 0 | O105: 0 | P105: 0 | Q105: 0 | R105: 0 | S105: 0 | T105: 0 | U105: 0
B106: Powercor | J106: 0 | K106: 0 | L106: 0 | M106: 0 | N106: 0 | O106: 0 | P106: 0 | Q106: 0 | R106: 0 | S106: 0 | T106: 0 | U106: 0
B107: United Energy | J107: 0 | K107: 0 | L107: 0 | M107: 0 | N107: 0 | O107: 0 | P107: 0 | Q107: 0 | R107: 0 | S107: 0 | T107: 0 | U107: 0
B109: =B183 -> Block 1
B110: Ausnet | J110: =CHOOSE($H$50,J184,J242) -> 0 | K110: 0 | L110: 0 | M110: 0 | N110: -0.03815161773 | O110: 0 | P110: 0 | Q110: 0 | R110: 0 | S110: 0 | T110: 0 | U110: 0
B111: Citipower | J111: 0 | K111: 0 | L111: 0 | M111: 0 | N111: 0 | O111: 0 | P111: 0 | Q111: 0 | R111: 0 | S111: 0 | T111: 0 | U111: 0
B112: Jemena | J112: 0 | K112: 0 | L112: 0 | M112: 0 | N112: 0 | O112: 0 | P112: 0 | Q112: 0 | R112: 0 | S112: 0 | T112: 0 | U112: 0
B113: Powercor | J113: 0 | K113: 0 | L113: 0 | M113: 0 | N113: 0 | O113: 0 | P113: 0 | Q113: 0 | R113: 0 | S113: 0 | T113: 0 | U113: 0
B114: United Energy | J114: 0 | K114: 0 | L114: 0 | M114: 0 | N114: 0 | O114: 0 | P114: 0 | Q114: 0 | R114: 0 | S114: 0 | T114: 0 | U114: 0
B116: =B190 -> Balance
B117: Ausnet | J117: =CHOOSE($H$50,J191,J249) -> 0 | K117: 0 | L117: 0 | M117: 0 | N117: 0.002286836733 | O117: 0 | P117: 0 | Q117: 0 | R117: 0 | S117: 0 | T117: 0 | U117: 0
B118: Citipower | J118: 0 | K118: 0 | L118: 0 | M118: 0 | N118: 0 | O118: 0 | P118: 0 | Q118: 0 | R118: 0 | S118: 0 | T118: 0 | U118: 0
B119: Jemena | J119: 0 | K119: 0 | L119: 0 | M119: 0 | N119: 0 | O119: 0 | P119: 0 | Q119: 0 | R119: 0 | S119: 0 | T119: 0 | U119: 0
B120: Powercor | J120: 0 | K120: 0 | L120: 0 | M120: 0 | N120: 0 | O120: 0 | P120: 0 | Q120: 0 | R120: 0 | S120: 0 | T120: 0 | U120: 0
B121: United Energy | J121: 0 | K121: 0 | L121: 0 | M121: 0 | N121: 0 | O121: 0 | P121: 0 | Q121: 0 | R121: 0 | S121: 0 | T121: 0 | U121: 0
B123: =B197 -> Controlled load
B124: Ausnet | J124: =CHOOSE($H$50,J198,J256) -> 0 | K124: 0 | L124: 0 | M124: 0 | N124: 0 | O124: 0 | P124: 0 | Q124: 0 | R124: 0 | S124: 0 | T124: 0 | U124: 0
B125: Citipower | J125: 0 | K125: 0 | L125: 0 | M125: 0 | N125: 0 | O125: 0 | P125: 0 | Q125: 0 | R125: 0 | S125: 0 | T125: 0 | U125: 0
B126: Jemena | J126: 0 | K126: 0 | L126: 0 | M126: 0 | N126: 0 | O126: 0 | P126: 0 | Q126: 0 | R126: 0 | S126: 0 | T126: 0 | U126: 0
B127: Powercor | J127: 0 | K127: 0 | L127: 0 | M127: 0 | N127: 0 | O127: 0 | P127: 0 | Q127: 0 | R127: 0 | S127: 0 | T127: 0 | U127: 0
B128: United Energy | J128: 0 | K128: 0 | L128: 0 | M128: 0 | N128: 0 | O128: 0 | P128: 0 | Q128: 0 | R128: 0 | S128: 0 | T128: 0 | U128: 0
B130: Customer Size | F130: =B52 -> Customer - Medium | G130: =H52 -> 2
B131: =B143 -> Ausnet | J131: =CHOOSE($G$130,J143,J150,J157) -> 0 | K131: =CHOOSE($G$130,K143,K150,K157) -> -0.004559821371 | L131: -0.004559821371 | M131: -0.004559821371 | N131: -0.02633431501 | O131: 0 | P131: 0 | Q131: 0 | R131: 0 | S131: 0 | T131: 0 | U131: 0
B132: =B144 -> Citipower | J132: =CHOOSE($G$130,J144,J151,J158) -> 0 | K132: -0.005220418945 | L132: -0.005220418945 | M132: -0.01243810053 | N132: 0 | O132: 0 | P132: 0 | Q132: 0 | R132: 0 | S132: 0 | T132: 0 | U132: 0
B133: Jemena | J133: 0 | K133: -0.002261593782 | L133: -0.005026729553 | M133: -0.005026729553 | N133: 0 | O133: 0 | P133: 0 | Q133: 0 | R133: 0 | S133: 0 | T133: 0 | U133: 0
B134: Powercor | J134: 0 | K134: -0.004934685765 | L134: -0.004934685765 | M134: -0.004934685765 | N134: 0 | O134: -0.004115623022 | P134: 0 | Q134: 0 | R134: 0 | S134: 0 | T134: 0 | U134: 0
B135: United Energy | J135: 0 | K135: -0.00504407943 | L135: -0.00504407943 | M135: -0.00504407943 | N135: 0 | O135: 0 | P135: 0.002793130687 | Q135: 0 | R135: 0 | S135: 0 | T135: 0 | U135: 0
B136: Maximum graph height | J136: =MAX(ABS(J139),ABS(J140)) -> 0 | K136: 0.005220418945 | L136: 0.005220418945 | M136: 0.01243810053 | N136: 0.02633431501 | O136: 0.004115623022 | P136: 0.002793130687 | Q136: 0 | R136: 0 | S136: 0 | T136: 0 | U136: 0
B137: Minimum graph height | J137: =-J136 -> 0 | K137: =-K136 -> -0.005220418945 | L137: =-L136 -> -0.005220418945 | M137: =-M136 -> -0.01243810053 | N137: =-N136 -> -0.02633431501 | O137: =-O136 -> -0.004115623022 | P137: =-P136 -> -0.002793130687 | Q137: =-Q136 -> 0 | R137: =-R136 -> 0 | S137: =-S136 -> 0 | T137: =-T136 -> 0 | U137: =-U136 -> 0
B139: Maximum | J139: =MAX(J131:J135) -> 0 | K139: =MAX(K131:K135) -> -0.002261593782 | L139: -0.004559821371 | M139: -0.004559821371 | N139: 0 | O139: 0 | P139: 0.002793130687 | Q139: 0 | R139: 0 | S139: 0 | T139: 0 | U139: 0
B140: Minimum | J140: =MIN(J131:J135) -> 0 | K140: =MIN(K131:K135) -> -0.005220418945 | L140: -0.005220418945 | M140: -0.01243810053 | N140: -0.02633431501 | O140: -0.004115623022 | P140: 0 | Q140: 0 | R140: 0 | S140: 0 | T140: 0 | U140: 0
B142: Bills - Small
B143: =B205 -> Ausnet | J143: =CHOOSE($H$50,J205,J263) -> 0 | K143: -0.007180982397 | L143: -0.007180982397 | M143: -0.007180982397 | N143: -0.02215400294 | O143: 0 | P143: 0 | Q143: 0 | R143: 0 | S143: 0 | T143: 0 | U143: 0
B144: =B206 -> Citipower | J144: 0 | K144: -0.007993318281 | L144: -0.007993318281 | M144: -0.01351303131 | N144: 0 | O144: 0 | P144: 0 | Q144: 0 | R144: 0 | S144: 0 | T144: 0 | U144: 0
B145: =B207 -> Jemena | J145: 0 | K145: -0.003572490602 | L145: -0.007927658299 | M145: -0.007927658299 | N145: 0 | O145: 0 | P145: 0 | Q145: 0 | R145: 0 | S145: 0 | T145: 0 | U145: 0
B146: =B208 -> Powercor | J146: 0 | K146: -0.007463597623 | L146: -0.007463597623 | M146: -0.007463597623 | N146: 0 | O146: -0.006227411168 | P146: 0 | Q146: 0 | R146: 0 | S146: 0 | T146: 0 | U146: 0
B147: =B209 -> United Energy | J147: 0 | K147: -0.008104106922 | L147: -0.008104106922 | M147: -0.008104106922 | N147: 0 | O147: 0 | P147: 0.004509151192 | Q147: 0 | R147: 0 | S147: 0 | T147: 0 | U147: 0
B149: Bills - Medium
B150: =B212 -> Ausnet | J150: =CHOOSE($H$50,J212,J270) -> 0 | K150: -0.004559821371 | L150: -0.004559821371 | M150: -0.004559821371 | N150: -0.02633431501 | O150: 0 | P150: 0 | Q150: 0 | R150: 0 | S150: 0 | T150: 0 | U150: 0
B151: =B213 -> Citipower | J151: 0 | K151: -0.005220418945 | L151: -0.005220418945 | M151: -0.01243810053 | N151: 0 | O151: 0 | P151: 0 | Q151: 0 | R151: 0 | S151: 0 | T151: 0 | U151: 0
B152: =B214 -> Jemena | J152: 0 | K152: -0.002261593782 | L152: -0.005026729553 | M152: -0.005026729553 | N152: 0 | O152: 0 | P152: 0 | Q152: 0 | R152: 0 | S152: 0 | T152: 0 | U152: 0
B153: =B215 -> Powercor | J153: 0 | K153: -0.004934685765 | L153: -0.004934685765 | M153: -0.004934685765 | N153: 0 | O153: -0.004115623022 | P153: 0 | Q153: 0 | R153: 0 | S153: 0 | T153: 0 | U153: 0
B154: =B216 -> United Energy | J154: 0 | K154: -0.00504407943 | L154: -0.00504407943 | M154: -0.00504407943 | N154: 0 | O154: 0 | P154: 0.002793130687 | Q154: 0 | R154: 0 | S154: 0 | T154: 0 | U154: 0
B156: Bills - Large
B157: =B219 -> Ausnet | J157: =CHOOSE($H$50,J219,J277) -> 0 | K157: -0.002526717786 | L157: -0.002526717786 | M157: -0.002526717786 | N157: -0.01495170068 | O157: 0 | P157: 0 | Q157: 0 | R157: 0 | S157: 0 | T157: 0 | U157: 0
B158: =B220 -> Citipower | J158: 0 | K158: -0.003082067341 | L158: -0.003082067341 | M158: -0.01161164981 | N158: 0 | O158: 0 | P158: 0 | Q158: 0 | R158: 0 | S158: 0 | T158: 0 | U158: 0
B159: =B221 -> Jemena | J159: 0 | K159: -0.001304351272 | L159: -0.002902520007 | M159: -0.002902520007 | N159: 0 | O159: 0 | P159: 0 | Q159: 0 | R159: 0 | S159: 0 | T159: 0 | U159: 0
B160: =B222 -> Powercor | J160: 0 | K160: -0.002941400018 | L160: -0.002941400018 | M160: -0.002941400018 | N160: 0 | O160: -0.002452368915 | P160: 0 | Q160: 0 | R160: 0 | S160: 0 | T160: 0 | U160: 0
B161: =B223 -> United Energy | J161: 0 | K161: -0.002873825488 | L161: -0.002873825488 | M161: -0.002873825488 | N161: 0 | O161: 0 | P161: 0.00158598964 | Q161: 0 | R161: 0 | S161: 0 | T161: 0 | U161: 0
A163: =ROUNDDOWN(MAX($A$7:OFFSET(A163,-One,0),$A$2*Sht)+Sxn,0) -> 1104 | B163: Output Comparison
B165: Period Start | J165: =J75 -> 2019-07-01 | K165: 2020-01-01 | L165: 2021-01-01 | M165: 2022-01-01 | N165: 2023-01-01 | O165: 2024-01-01 | P165: 2025-01-01 | Q165: 2026-01-01 | R165: 2027-01-01 | S165: 2028-01-01 | T165: 2029-01-01 | U165: 2030-01-01
B166: Period end | I166: Live | J166: =J76 -> 2019-12-31 | K166: 2020-12-31 | L166: 2021-12-31 | M166: 2022-12-31 | N166: 2023-12-31 | O166: 2024-12-31 | P166: 2025-12-31 | Q166: 2026-12-31 | R166: 2027-12-31 | S166: 2028-12-31 | T166: 2029-12-31 | U166: 2030-12-31
B167: Residential
B169: =F15 -> Supply charge per day
B170: =B18 -> Ausnet | F170: =$F$16 -> $/day | I170: =IFERROR((Tariff_O_F!I150-Tariff_O_Dr!I150)/Tariff_O_Dr!I150,Zero) -> -0.02260121223 | J170: =IFERROR((Tariff_O_F!J150-Tariff_O_Dr!J150)/Tariff_O_Dr!J150,Zero) -> 0 | K170: =IFERROR((Tariff_O_F!K150-Tariff_O_Dr!K150)/Tariff_O_Dr!K150,Zero) -> -0.01658737785 | L170: =IFERROR((Tariff_O_F!L150-Tariff_O_Dr!L150)/Tariff_O_Dr!L150,Zero) -> -0.01658737785 | M170: =IFERROR((Tariff_O_F!M150-Tariff_O_Dr!M150)/Tariff_O_Dr!M150,Zero) -> -0.01658737785 | N170: =IFERROR((Tariff_O_F!N150-Tariff_O_Dr!N150)/Tariff_O_Dr!N150,Zero) -> 0 | O170: =IFERROR((Tariff_O_F!O150-Tariff_O_Dr!O150)/Tariff_O_Dr!O150,Zero) -> 0 | P170: =IFERROR((Tariff_O_F!P150-Tariff_O_Dr!P150)/Tariff_O_Dr!P150,Zero) -> 0 | Q170: =IFERROR((Tariff_O_F!Q150-Tariff_O_Dr!Q150)/Tariff_O_Dr!Q150,Zero) -> 0 | R170: =IFERROR((Tariff_O_F!R150-Tariff_O_Dr!R150)/Tariff_O_Dr!R150,Zero) -> 0 | S170: =IFERROR((Tariff_O_F!S150-Tariff_O_Dr!S150)/Tariff_O_Dr!S150,Zero) -> 0 | T170: =IFERROR((Tariff_O_F!T150-Tariff_O_Dr!T150)/Tariff_O_Dr!T150,Zero) -> 0 | U170: =IFERROR((Tariff_O_F!U150-Tariff_O_Dr!U150)/Tariff_O_Dr!U150,Zero) -> 0
B171: =B19 -> Citipower | F171: =$F$16 -> $/day | I171: =IFERROR((Tariff_O_F!I151-Tariff_O_Dr!I151)/Tariff_O_Dr!I151,Zero) -> -0.002052980866 | J171: =IFERROR((Tariff_O_F!J151-Tariff_O_Dr!J151)/Tariff_O_Dr!J151,Zero) -> 0 | K171: =IFERROR((Tariff_O_F!K151-Tariff_O_Dr!K151)/Tariff_O_Dr!K151,Zero) -> -0.01704928943 | L171: =IFERROR((Tariff_O_F!L151-Tariff_O_Dr!L151)/Tariff_O_Dr!L151,Zero) -> -0.01704928943 | M171: =IFERROR((Tariff_O_F!M151-Tariff_O_Dr!M151)/Tariff_O_Dr!M151,Zero) -> -0.01704928943 | N171: =IFERROR((Tariff_O_F!N151-Tariff_O_Dr!N151)/Tariff_O_Dr!N151,Zero) -> 0 | O171: =IFERROR((Tariff_O_F!O151-Tariff_O_Dr!O151)/Tariff_O_Dr!O151,Zero) -> 0 | P171: =IFERROR((Tariff_O_F!P151-Tariff_O_Dr!P151)/Tariff_O_Dr!P151,Zero) -> 0 | Q171: =IFERROR((Tariff_O_F!Q151-Tariff_O_Dr!Q151)/Tariff_O_Dr!Q151,Zero) -> 0 | R171: =IFERROR((Tariff_O_F!R151-Tariff_O_Dr!R151)/Tariff_O_Dr!R151,Zero) -> 0 | S171: =IFERROR((Tariff_O_F!S151-Tariff_O_Dr!S151)/Tariff_O_Dr!S151,Zero) -> 0 | T171: =IFERROR((Tariff_O_F!T151-Tariff_O_Dr!T151)/Tariff_O_Dr!T151,Zero) -> 0 | U171: =IFERROR((Tariff_O_F!U151-Tariff_O_Dr!U151)/Tariff_O_Dr!U151,Zero) -> 0
B172: =B20 -> Jemena | F172: $/day | I172: =IFERROR((Tariff_O_F!I152-Tariff_O_Dr!I152)/Tariff_O_Dr!I152,Zero) -> 0.002842147248 | J172: =IFERROR((Tariff_O_F!J152-Tariff_O_Dr!J152)/Tariff_O_Dr!J152,Zero) -> 0 | K172: =IFERROR((Tariff_O_F!K152-Tariff_O_Dr!K152)/Tariff_O_Dr!K152,Zero) -> -0.008498525665 | L172: =IFERROR((Tariff_O_F!L152-Tariff_O_Dr!L152)/Tariff_O_Dr!L152,Zero) -> -0.01874596816 | M172: =IFERROR((Tariff_O_F!M152-Tariff_O_Dr!M152)/Tariff_O_Dr!M152,Zero) -> -0.01874596816 | N172: =IFERROR((Tariff_O_F!N152-Tariff_O_Dr!N152)/Tariff_O_Dr!N152,Zero) -> 0 | O172: =IFERROR((Tariff_O_F!O152-Tariff_O_Dr!O152)/Tariff_O_Dr!O152,Zero) -> 0 | P172: =IFERROR((Tariff_O_F!P152-Tariff_O_Dr!P152)/Tariff_O_Dr!P152,Zero) -> 0 | Q172: =IFERROR((Tariff_O_F!Q152-Tariff_O_Dr!Q152)/Tariff_O_Dr!Q152,Zero) -> 0 | R172: =IFERROR((Tariff_O_F!R152-Tariff_O_Dr!R152)/Tariff_O_Dr!R152,Zero) -> 0 | S172: =IFERROR((Tariff_O_F!S152-Tariff_O_Dr!S152)/Tariff_O_Dr!S152,Zero) -> 0 | T172: =IFERROR((Tariff_O_F!T152-Tariff_O_Dr!T152)/Tariff_O_Dr!T152,Zero) -> 0 | U172: =IFERROR((Tariff_O_F!U152-Tariff_O_Dr!U152)/Tariff_O_Dr!U152,Zero) -> 0
B173: =B21 -> Powercor | F173: $/day | I173: =IFERROR((Tariff_O_F!I153-Tariff_O_Dr!I153)/Tariff_O_Dr!I153,Zero) -> 0.000689258461 | J173: =IFERROR((Tariff_O_F!J153-Tariff_O_Dr!J153)/Tariff_O_Dr!J153,Zero) -> 0 | K173: =IFERROR((Tariff_O_F!K153-Tariff_O_Dr!K153)/Tariff_O_Dr!K153,Zero) -> -0.01530921456 | L173: =IFERROR((Tariff_O_F!L153-Tariff_O_Dr!L153)/Tariff_O_Dr!L153,Zero) -> -0.01530921456 | M173: =IFERROR((Tariff_O_F!M153-Tariff_O_Dr!M153)/Tariff_O_Dr!M153,Zero) -> -0.01530921456 | N173: =IFERROR((Tariff_O_F!N153-Tariff_O_Dr!N153)/Tariff_O_Dr!N153,Zero) -> 0 | O173: =IFERROR((Tariff_O_F!O153-Tariff_O_Dr!O153)/Tariff_O_Dr!O153,Zero) -> -0.01279031375 | P173: =IFERROR((Tariff_O_F!P153-Tariff_O_Dr!P153)/Tariff_O_Dr!P153,Zero) -> 0 | Q173: =IFERROR((Tariff_O_F!Q153-Tariff_O_Dr!Q153)/Tariff_O_Dr!Q153,Zero) -> 0 | R173: =IFERROR((Tariff_O_F!R153-Tariff_O_Dr!R153)/Tariff_O_Dr!R153,Zero) -> 0 | S173: =IFERROR((Tariff_O_F!S153-Tariff_O_Dr!S153)/Tariff_O_Dr!S153,Zero) -> 0 | T173: =IFERROR((Tariff_O_F!T153-Tariff_O_Dr!T153)/Tariff_O_Dr!T153,Zero) -> 0 | U173: =IFERROR((Tariff_O_F!U153-Tariff_O_Dr!U153)/Tariff_O_Dr!U153,Zero) -> 0
B174: =B22 -> United Energy | F174: $/day | I174: =IFERROR((Tariff_O_F!I154-Tariff_O_Dr!I154)/Tariff_O_Dr!I154,Zero) -> -0.001546745835 | J174: =IFERROR((Tariff_O_F!J154-Tariff_O_Dr!J154)/Tariff_O_Dr!J154,Zero) -> 0 | K174: =IFERROR((Tariff_O_F!K154-Tariff_O_Dr!K154)/Tariff_O_Dr!K154,Zero) -> -0.02060316982 | L174: =IFERROR((Tariff_O_F!L154-Tariff_O_Dr!L154)/Tariff_O_Dr!L154,Zero) -> -0.02060316982 | M174: =IFERROR((Tariff_O_F!M154-Tariff_O_Dr!M154)/Tariff_O_Dr!M154,Zero) -> -0.02060316982 | N174: =IFERROR((Tariff_O_F!N154-Tariff_O_Dr!N154)/Tariff_O_Dr!N154,Zero) -> 0 | O174: =IFERROR((Tariff_O_F!O154-Tariff_O_Dr!O154)/Tariff_O_Dr!O154,Zero) -> 0 | P174: =IFERROR((Tariff_O_F!P154-Tariff_O_Dr!P154)/Tariff_O_Dr!P154,Zero) -> 0.01169299927 | Q174: =IFERROR((Tariff_O_F!Q154-Tariff_O_Dr!Q154)/Tariff_O_Dr!Q154,Zero) -> 0 | R174: =IFERROR((Tariff_O_F!R154-Tariff_O_Dr!R154)/Tariff_O_Dr!R154,Zero) -> 0 | S174: =IFERROR((Tariff_O_F!S154-Tariff_O_Dr!S154)/Tariff_O_Dr!S154,Zero) -> 0 | T174: =IFERROR((Tariff_O_F!T154-Tariff_O_Dr!T154)/Tariff_O_Dr!T154,Zero) -> 0 | U174: =IFERROR((Tariff_O_F!U154-Tariff_O_Dr!U154)/Tariff_O_Dr!U154,Zero) -> 0
B176: =H15 -> Single rate
B177: =B170 -> Ausnet | F177: =$H$16 -> $/kWh | I177: =IFERROR((Tariff_O_F!I157-Tariff_O_Dr!I157)/Tariff_O_Dr!I157,Zero) -> 0 | J177: =IFERROR((Tariff_O_F!J157-Tariff_O_Dr!J157)/Tariff_O_Dr!J157,Zero) -> 0 | K177: =IFERROR((Tariff_O_F!K157-Tariff_O_Dr!K157)/Tariff_O_Dr!K157,Zero) -> 0 | L177: =IFERROR((Tariff_O_F!L157-Tariff_O_Dr!L157)/Tariff_O_Dr!L157,Zero) -> 0 | M177: =IFERROR((Tariff_O_F!M157-Tariff_O_Dr!M157)/Tariff_O_Dr!M157,Zero) -> 0 | N177: =IFERROR((Tariff_O_F!N157-Tariff_O_Dr!N157)/Tariff_O_Dr!N157,Zero) -> 0 | O177: =IFERROR((Tariff_O_F!O157-Tariff_O_Dr!O157)/Tariff_O_Dr!O157,Zero) -> 0 | P177: =IFERROR((Tariff_O_F!P157-Tariff_O_Dr!P157)/Tariff_O_Dr!P157,Zero) -> 0 | Q177: =IFERROR((Tariff_O_F!Q157-Tariff_O_Dr!Q157)/Tariff_O_Dr!Q157,Zero) -> 0 | R177: =IFERROR((Tariff_O_F!R157-Tariff_O_Dr!R157)/Tariff_O_Dr!R157,Zero) -> 0 | S177: =IFERROR((Tariff_O_F!S157-Tariff_O_Dr!S157)/Tariff_O_Dr!S157,Zero) -> 0 | T177: =IFERROR((Tariff_O_F!T157-Tariff_O_Dr!T157)/Tariff_O_Dr!T157,Zero) -> 0 | U177: =IFERROR((Tariff_O_F!U157-Tariff_O_Dr!U157)/Tariff_O_Dr!U157,Zero) -> 0
B178: =B171 -> Citipower | F178: =$H$16 -> $/kWh | I178: =IFERROR((Tariff_O_F!I158-Tariff_O_Dr!I158)/Tariff_O_Dr!I158,Zero) -> 0.07824767933 | J178: =IFERROR((Tariff_O_F!J158-Tariff_O_Dr!J158)/Tariff_O_Dr!J158,Zero) -> 0 | K178: =IFERROR((Tariff_O_F!K158-Tariff_O_Dr!K158)/Tariff_O_Dr!K158,Zero) -> 0 | L178: =IFERROR((Tariff_O_F!L158-Tariff_O_Dr!L158)/Tariff_O_Dr!L158,Zero) -> 0 | M178: =IFERROR((Tariff_O_F!M158-Tariff_O_Dr!M158)/Tariff_O_Dr!M158,Zero) -> -0.01042426485 | N178: =IFERROR((Tariff_O_F!N158-Tariff_O_Dr!N158)/Tariff_O_Dr!N158,Zero) -> 0 | O178: =IFERROR((Tariff_O_F!O158-Tariff_O_Dr!O158)/Tariff_O_Dr!O158,Zero) -> 0 | P178: =IFERROR((Tariff_O_F!P158-Tariff_O_Dr!P158)/Tariff_O_Dr!P158,Zero) -> 0 | Q178: =IFERROR((Tariff_O_F!Q158-Tariff_O_Dr!Q158)/Tariff_O_Dr!Q158,Zero) -> 0 | R178: =IFERROR((Tariff_O_F!R158-Tariff_O_Dr!R158)/Tariff_O_Dr!R158,Zero) -> 0 | S178: =IFERROR((Tariff_O_F!S158-Tariff_O_Dr!S158)/Tariff_O_Dr!S158,Zero) -> 0 | T178: =IFERROR((Tariff_O_F!T158-Tariff_O_Dr!T158)/Tariff_O_Dr!T158,Zero) -> 0 | U178: =IFERROR((Tariff_O_F!U158-Tariff_O_Dr!U158)/Tariff_O_Dr!U158,Zero) -> 0
B179: Jemena | F179: $/kWh | I179: =IFERROR((Tariff_O_F!I159-Tariff_O_Dr!I159)/Tariff_O_Dr!I159,Zero) -> 0.07676304293 | J179: =IFERROR((Tariff_O_F!J159-Tariff_O_Dr!J159)/Tariff_O_Dr!J159,Zero) -> 0 | K179: =IFERROR((Tariff_O_F!K159-Tariff_O_Dr!K159)/Tariff_O_Dr!K159,Zero) -> 0 | L179: =IFERROR((Tariff_O_F!L159-Tariff_O_Dr!L159)/Tariff_O_Dr!L159,Zero) -> 0 | M179: =IFERROR((Tariff_O_F!M159-Tariff_O_Dr!M159)/Tariff_O_Dr!M159,Zero) -> 0 | N179: =IFERROR((Tariff_O_F!N159-Tariff_O_Dr!N159)/Tariff_O_Dr!N159,Zero) -> 0 | O179: =IFERROR((Tariff_O_F!O159-Tariff_O_Dr!O159)/Tariff_O_Dr!O159,Zero) -> 0 | P179: =IFERROR((Tariff_O_F!P159-Tariff_O_Dr!P159)/Tariff_O_Dr!P159,Zero) -> 0 | Q179: =IFERROR((Tariff_O_F!Q159-Tariff_O_Dr!Q159)/Tariff_O_Dr!Q159,Zero) -> 0 | R179: =IFERROR((Tariff_O_F!R159-Tariff_O_Dr!R159)/Tariff_O_Dr!R159,Zero) -> 0 | S179: =IFERROR((Tariff_O_F!S159-Tariff_O_Dr!S159)/Tariff_O_Dr!S159,Zero) -> 0 | T179: =IFERROR((Tariff_O_F!T159-Tariff_O_Dr!T159)/Tariff_O_Dr!T159,Zero) -> 0 | U179: =IFERROR((Tariff_O_F!U159-Tariff_O_Dr!U159)/Tariff_O_Dr!U159,Zero) -> 0
B180: Powercor | F180: $/kWh | I180: =IFERROR((Tariff_O_F!I160-Tariff_O_Dr!I160)/Tariff_O_Dr!I160,Zero) -> 0.08789694001 | J180: =IFERROR((Tariff_O_F!J160-Tariff_O_Dr!J160)/Tariff_O_Dr!J160,Zero) -> 0 | K180: =IFERROR((Tariff_O_F!K160-Tariff_O_Dr!K160)/Tariff_O_Dr!K160,Zero) -> 0 | L180: =IFERROR((Tariff_O_F!L160-Tariff_O_Dr!L160)/Tariff_O_Dr!L160,Zero) -> 0 | M180: =IFERROR((Tariff_O_F!M160-Tariff_O_Dr!M160)/Tariff_O_Dr!M160,Zero) -> 0 | N180: =IFERROR((Tariff_O_F!N160-Tariff_O_Dr!N160)/Tariff_O_Dr!N160,Zero) -> 0 | O180: =IFERROR((Tariff_O_F!O160-Tariff_O_Dr!O160)/Tariff_O_Dr!O160,Zero) -> 0 | P180: =IFERROR((Tariff_O_F!P160-Tariff_O_Dr!P160)/Tariff_O_Dr!P160,Zero) -> 0 | Q180: =IFERROR((Tariff_O_F!Q160-Tariff_O_Dr!Q160)/Tariff_O_Dr!Q160,Zero) -> 0 | R180: =IFERROR((Tariff_O_F!R160-Tariff_O_Dr!R160)/Tariff_O_Dr!R160,Zero) -> 0 | S180: =IFERROR((Tariff_O_F!S160-Tariff_O_Dr!S160)/Tariff_O_Dr!S160,Zero) -> 0 | T180: =IFERROR((Tariff_O_F!T160-Tariff_O_Dr!T160)/Tariff_O_Dr!T160,Zero) -> 0 | U180: =IFERROR((Tariff_O_F!U160-Tariff_O_Dr!U160)/Tariff_O_Dr!U160,Zero) -> 0
B181: United Energy | F181: $/kWh | I181: =IFERROR((Tariff_O_F!I161-Tariff_O_Dr!I161)/Tariff_O_Dr!I161,Zero) -> 0.1093905853 | J181: =IFERROR((Tariff_O_F!J161-Tariff_O_Dr!J161)/Tariff_O_Dr!J161,Zero) -> 0 | K181: =IFERROR((Tariff_O_F!K161-Tariff_O_Dr!K161)/Tariff_O_Dr!K161,Zero) -> 0 | L181: =IFERROR((Tariff_O_F!L161-Tariff_O_Dr!L161)/Tariff_O_Dr!L161,Zero) -> 0 | M181: =IFERROR((Tariff_O_F!M161-Tariff_O_Dr!M161)/Tariff_O_Dr!M161,Zero) -> 0 | N181: =IFERROR((Tariff_O_F!N161-Tariff_O_Dr!N161)/Tariff_O_Dr!N161,Zero) -> 0 | O181: =IFERROR((Tariff_O_F!O161-Tariff_O_Dr!O161)/Tariff_O_Dr!O161,Zero) -> 0 | P181: =IFERROR((Tariff_O_F!P161-Tariff_O_Dr!P161)/Tariff_O_Dr!P161,Zero) -> 0 | Q181: =IFERROR((Tariff_O_F!Q161-Tariff_O_Dr!Q161)/Tariff_O_Dr!Q161,Zero) -> 0 | R181: =IFERROR((Tariff_O_F!R161-Tariff_O_Dr!R161)/Tariff_O_Dr!R161,Zero) -> 0 | S181: =IFERROR((Tariff_O_F!S161-Tariff_O_Dr!S161)/Tariff_O_Dr!S161,Zero) -> 0 | T181: =IFERROR((Tariff_O_F!T161-Tariff_O_Dr!T161)/Tariff_O_Dr!T161,Zero) -> 0 | U181: =IFERROR((Tariff_O_F!U161-Tariff_O_Dr!U161)/Tariff_O_Dr!U161,Zero) -> 0
B183: =I15 -> Block 1
B184: =B177 -> Ausnet | F184: =$I$16 -> $/kWh | I184: =IFERROR((Tariff_O_F!I164-Tariff_O_Dr!I164)/Tariff_O_Dr!I164,Zero) -> 0.09656492917 | J184: =IFERROR((Tariff_O_F!J164-Tariff_O_Dr!J164)/Tariff_O_Dr!J164,Zero) -> 0 | K184: =IFERROR((Tariff_O_F!K164-Tariff_O_Dr!K164)/Tariff_O_Dr!K164,Zero) -> 0 | L184: =IFERROR((Tariff_O_F!L164-Tariff_O_Dr!L164)/Tariff_O_Dr!L164,Zero) -> 0 | M184: =IFERROR((Tariff_O_F!M164-Tariff_O_Dr!M164)/Tariff_O_Dr!M164,Zero) -> 0 | N184: =IFERROR((Tariff_O_F!N164-Tariff_O_Dr!N164)/Tariff_O_Dr!N164,Zero) -> -0.03815161773 | O184: =IFERROR((Tariff_O_F!O164-Tariff_O_Dr!O164)/Tariff_O_Dr!O164,Zero) -> 0 | P184: =IFERROR((Tariff_O_F!P164-Tariff_O_Dr!P164)/Tariff_O_Dr!P164,Zero) -> 0 | Q184: =IFERROR((Tariff_O_F!Q164-Tariff_O_Dr!Q164)/Tariff_O_Dr!Q164,Zero) -> 0 | R184: =IFERROR((Tariff_O_F!R164-Tariff_O_Dr!R164)/Tariff_O_Dr!R164,Zero) -> 0 | S184: =IFERROR((Tariff_O_F!S164-Tariff_O_Dr!S164)/Tariff_O_Dr!S164,Zero) -> 0 | T184: =IFERROR((Tariff_O_F!T164-Tariff_O_Dr!T164)/Tariff_O_Dr!T164,Zero) -> 0 | U184: =IFERROR((Tariff_O_F!U164-Tariff_O_Dr!U164)/Tariff_O_Dr!U164,Zero) -> 0
B185: =B178 -> Citipower | F185: =$I$16 -> $/kWh | I185: =IFERROR((Tariff_O_F!I165-Tariff_O_Dr!I165)/Tariff_O_Dr!I165,Zero) -> 0 | J185: =IFERROR((Tariff_O_F!J165-Tariff_O_Dr!J165)/Tariff_O_Dr!J165,Zero) -> 0 | K185: =IFERROR((Tariff_O_F!K165-Tariff_O_Dr!K165)/Tariff_O_Dr!K165,Zero) -> 0 | L185: =IFERROR((Tariff_O_F!L165-Tariff_O_Dr!L165)/Tariff_O_Dr!L165,Zero) -> 0 | M185: =IFERROR((Tariff_O_F!M165-Tariff_O_Dr!M165)/Tariff_O_Dr!M165,Zero) -> 0 | N185: =IFERROR((Tariff_O_F!N165-Tariff_O_Dr!N165)/Tariff_O_Dr!N165,Zero) -> 0 | O185: =IFERROR((Tariff_O_F!O165-Tariff_O_Dr!O165)/Tariff_O_Dr!O165,Zero) -> 0 | P185: =IFERROR((Tariff_O_F!P165-Tariff_O_Dr!P165)/Tariff_O_Dr!P165,Zero) -> 0 | Q185: =IFERROR((Tariff_O_F!Q165-Tariff_O_Dr!Q165)/Tariff_O_Dr!Q165,Zero) -> 0 | R185: =IFERROR((Tariff_O_F!R165-Tariff_O_Dr!R165)/Tariff_O_Dr!R165,Zero) -> 0 | S185: =IFERROR((Tariff_O_F!S165-Tariff_O_Dr!S165)/Tariff_O_Dr!S165,Zero) -> 0 | T185: =IFERROR((Tariff_O_F!T165-Tariff_O_Dr!T165)/Tariff_O_Dr!T165,Zero) -> 0 | U185: =IFERROR((Tariff_O_F!U165-Tariff_O_Dr!U165)/Tariff_O_Dr!U165,Zero) -> 0
B186: Jemena | F186: $/kWh | I186: =IFERROR((Tariff_O_F!I166-Tariff_O_Dr!I166)/Tariff_O_Dr!I166,Zero) -> 0 | J186: =IFERROR((Tariff_O_F!J166-Tariff_O_Dr!J166)/Tariff_O_Dr!J166,Zero) -> 0 | K186: =IFERROR((Tariff_O_F!K166-Tariff_O_Dr!K166)/Tariff_O_Dr!K166,Zero) -> 0 | L186: =IFERROR((Tariff_O_F!L166-Tariff_O_Dr!L166)/Tariff_O_Dr!L166,Zero) -> 0 | M186: =IFERROR((Tariff_O_F!M166-Tariff_O_Dr!M166)/Tariff_O_Dr!M166,Zero) -> 0 | N186: =IFERROR((Tariff_O_F!N166-Tariff_O_Dr!N166)/Tariff_O_Dr!N166,Zero) -> 0 | O186: =IFERROR((Tariff_O_F!O166-Tariff_O_Dr!O166)/Tariff_O_Dr!O166,Zero) -> 0 | P186: =IFERROR((Tariff_O_F!P166-Tariff_O_Dr!P166)/Tariff_O_Dr!P166,Zero) -> 0 | Q186: =IFERROR((Tariff_O_F!Q166-Tariff_O_Dr!Q166)/Tariff_O_Dr!Q166,Zero) -> 0 | R186: =IFERROR((Tariff_O_F!R166-Tariff_O_Dr!R166)/Tariff_O_Dr!R166,Zero) -> 0 | S186: =IFERROR((Tariff_O_F!S166-Tariff_O_Dr!S166)/Tariff_O_Dr!S166,Zero) -> 0 | T186: =IFERROR((Tariff_O_F!T166-Tariff_O_Dr!T166)/Tariff_O_Dr!T166,Zero) -> 0 | U186: =IFERROR((Tariff_O_F!U166-Tariff_O_Dr!U166)/Tariff_O_Dr!U166,Zero) -> 0
B187: Powercor | F187: $/kWh | I187: =IFERROR((Tariff_O_F!I167-Tariff_O_Dr!I167)/Tariff_O_Dr!I167,Zero) -> 0 | J187: =IFERROR((Tariff_O_F!J167-Tariff_O_Dr!J167)/Tariff_O_Dr!J167,Zero) -> 0 | K187: =IFERROR((Tariff_O_F!K167-Tariff_O_Dr!K167)/Tariff_O_Dr!K167,Zero) -> 0 | L187: =IFERROR((Tariff_O_F!L167-Tariff_O_Dr!L167)/Tariff_O_Dr!L167,Zero) -> 0 | M187: =IFERROR((Tariff_O_F!M167-Tariff_O_Dr!M167)/Tariff_O_Dr!M167,Zero) -> 0 | N187: =IFERROR((Tariff_O_F!N167-Tariff_O_Dr!N167)/Tariff_O_Dr!N167,Zero) -> 0 | O187: =IFERROR((Tariff_O_F!O167-Tariff_O_Dr!O167)/Tariff_O_Dr!O167,Zero) -> 0 | P187: =IFERROR((Tariff_O_F!P167-Tariff_O_Dr!P167)/Tariff_O_Dr!P167,Zero) -> 0 | Q187: =IFERROR((Tariff_O_F!Q167-Tariff_O_Dr!Q167)/Tariff_O_Dr!Q167,Zero) -> 0 | R187: =IFERROR((Tariff_O_F!R167-Tariff_O_Dr!R167)/Tariff_O_Dr!R167,Zero) -> 0 | S187: =IFERROR((Tariff_O_F!S167-Tariff_O_Dr!S167)/Tariff_O_Dr!S167,Zero) -> 0 | T187: =IFERROR((Tariff_O_F!T167-Tariff_O_Dr!T167)/Tariff_O_Dr!T167,Zero) -> 0 | U187: =IFERROR((Tariff_O_F!U167-Tariff_O_Dr!U167)/Tariff_O_Dr!U167,Zero) -> 0
B188: United Energy | F188: $/kWh | I188: =IFERROR((Tariff_O_F!I168-Tariff_O_Dr!I168)/Tariff_O_Dr!I168,Zero) -> 0 | J188: =IFERROR((Tariff_O_F!J168-Tariff_O_Dr!J168)/Tariff_O_Dr!J168,Zero) -> 0 | K188: =IFERROR((Tariff_O_F!K168-Tariff_O_Dr!K168)/Tariff_O_Dr!K168,Zero) -> 0 | L188: =IFERROR((Tariff_O_F!L168-Tariff_O_Dr!L168)/Tariff_O_Dr!L168,Zero) -> 0 | M188: =IFERROR((Tariff_O_F!M168-Tariff_O_Dr!M168)/Tariff_O_Dr!M168,Zero) -> 0 | N188: =IFERROR((Tariff_O_F!N168-Tariff_O_Dr!N168)/Tariff_O_Dr!N168,Zero) -> 0 | O188: =IFERROR((Tariff_O_F!O168-Tariff_O_Dr!O168)/Tariff_O_Dr!O168,Zero) -> 0 | P188: =IFERROR((Tariff_O_F!P168-Tariff_O_Dr!P168)/Tariff_O_Dr!P168,Zero) -> 0 | Q188: =IFERROR((Tariff_O_F!Q168-Tariff_O_Dr!Q168)/Tariff_O_Dr!Q168,Zero) -> 0 | R188: =IFERROR((Tariff_O_F!R168-Tariff_O_Dr!R168)/Tariff_O_Dr!R168,Zero) -> 0 | S188: =IFERROR((Tariff_O_F!S168-Tariff_O_Dr!S168)/Tariff_O_Dr!S168,Zero) -> 0 | T188: =IFERROR((Tariff_O_F!T168-Tariff_O_Dr!T168)/Tariff_O_Dr!T168,Zero) -> 0 | U188: =IFERROR((Tariff_O_F!U168-Tariff_O_Dr!U168)/Tariff_O_Dr!U168,Zero) -> 0
B190: =J15 -> Balance
B191: =B184 -> Ausnet | F191: =$J$16 -> $/kWh | I191: =IFERROR((Tariff_O_F!I171-Tariff_O_Dr!I171)/Tariff_O_Dr!I171,Zero) -> 0.03194458824 | J191: =IFERROR((Tariff_O_F!J171-Tariff_O_Dr!J171)/Tariff_O_Dr!J171,Zero) -> 0 | K191: =IFERROR((Tariff_O_F!K171-Tariff_O_Dr!K171)/Tariff_O_Dr!K171,Zero) -> 0 | L191: =IFERROR((Tariff_O_F!L171-Tariff_O_Dr!L171)/Tariff_O_Dr!L171,Zero) -> 0 | M191: =IFERROR((Tariff_O_F!M171-Tariff_O_Dr!M171)/Tariff_O_Dr!M171,Zero) -> 0 | N191: =IFERROR((Tariff_O_F!N171-Tariff_O_Dr!N171)/Tariff_O_Dr!N171,Zero) -> 0.002286836733 | O191: =IFERROR((Tariff_O_F!O171-Tariff_O_Dr!O171)/Tariff_O_Dr!O171,Zero) -> 0 | P191: =IFERROR((Tariff_O_F!P171-Tariff_O_Dr!P171)/Tariff_O_Dr!P171,Zero) -> 0 | Q191: =IFERROR((Tariff_O_F!Q171-Tariff_O_Dr!Q171)/Tariff_O_Dr!Q171,Zero) -> 0 | R191: =IFERROR((Tariff_O_F!R171-Tariff_O_Dr!R171)/Tariff_O_Dr!R171,Zero) -> 0 | S191: =IFERROR((Tariff_O_F!S171-Tariff_O_Dr!S171)/Tariff_O_Dr!S171,Zero) -> 0 | T191: =IFERROR((Tariff_O_F!T171-Tariff_O_Dr!T171)/Tariff_O_Dr!T171,Zero) -> 0 | U191: =IFERROR((Tariff_O_F!U171-Tariff_O_Dr!U171)/Tariff_O_Dr!U171,Zero) -> 0
B192: =B185 -> Citipower | F192: =$J$16 -> $/kWh | I192: =IFERROR((Tariff_O_F!I172-Tariff_O_Dr!I172)/Tariff_O_Dr!I172,Zero) -> 0 | J192: =IFERROR((Tariff_O_F!J172-Tariff_O_Dr!J172)/Tariff_O_Dr!J172,Zero) -> 0 | K192: =IFERROR((Tariff_O_F!K172-Tariff_O_Dr!K172)/Tariff_O_Dr!K172,Zero) -> 0 | L192: =IFERROR((Tariff_O_F!L172-Tariff_O_Dr!L172)/Tariff_O_Dr!L172,Zero) -> 0 | M192: =IFERROR((Tariff_O_F!M172-Tariff_O_Dr!M172)/Tariff_O_Dr!M172,Zero) -> 0 | N192: =IFERROR((Tariff_O_F!N172-Tariff_O_Dr!N172)/Tariff_O_Dr!N172,Zero) -> 0 | O192: =IFERROR((Tariff_O_F!O172-Tariff_O_Dr!O172)/Tariff_O_Dr!O172,Zero) -> 0 | P192: =IFERROR((Tariff_O_F!P172-Tariff_O_Dr!P172)/Tariff_O_Dr!P172,Zero) -> 0 | Q192: =IFERROR((Tariff_O_F!Q172-Tariff_O_Dr!Q172)/Tariff_O_Dr!Q172,Zero) -> 0 | R192: =IFERROR((Tariff_O_F!R172-Tariff_O_Dr!R172)/Tariff_O_Dr!R172,Zero) -> 0 | S192: =IFERROR((Tariff_O_F!S172-Tariff_O_Dr!S172)/Tariff_O_Dr!S172,Zero) -> 0 | T192: =IFERROR((Tariff_O_F!T172-Tariff_O_Dr!T172)/Tariff_O_Dr!T172,Zero) -> 0 | U192: =IFERROR((Tariff_O_F!U172-Tariff_O_Dr!U172)/Tariff_O_Dr!U172,Zero) -> 0
B193: Jemena | F193: $/kWh | I193: =IFERROR((Tariff_O_F!I173-Tariff_O_Dr!I173)/Tariff_O_Dr!I173,Zero) -> 0 | J193: =IFERROR((Tariff_O_F!J173-Tariff_O_Dr!J173)/Tariff_O_Dr!J173,Zero) -> 0 | K193: =IFERROR((Tariff_O_F!K173-Tariff_O_Dr!K173)/Tariff_O_Dr!K173,Zero) -> 0 | L193: =IFERROR((Tariff_O_F!L173-Tariff_O_Dr!L173)/Tariff_O_Dr!L173,Zero) -> 0 | M193: =IFERROR((Tariff_O_F!M173-Tariff_O_Dr!M173)/Tariff_O_Dr!M173,Zero) -> 0 | N193: =IFERROR((Tariff_O_F!N173-Tariff_O_Dr!N173)/Tariff_O_Dr!N173,Zero) -> 0 | O193: =IFERROR((Tariff_O_F!O173-Tariff_O_Dr!O173)/Tariff_O_Dr!O173,Zero) -> 0 | P193: =IFERROR((Tariff_O_F!P173-Tariff_O_Dr!P173)/Tariff_O_Dr!P173,Zero) -> 0 | Q193: =IFERROR((Tariff_O_F!Q173-Tariff_O_Dr!Q173)/Tariff_O_Dr!Q173,Zero) -> 0 | R193: =IFERROR((Tariff_O_F!R173-Tariff_O_Dr!R173)/Tariff_O_Dr!R173,Zero) -> 0 | S193: =IFERROR((Tariff_O_F!S173-Tariff_O_Dr!S173)/Tariff_O_Dr!S173,Zero) -> 0 | T193: =IFERROR((Tariff_O_F!T173-Tariff_O_Dr!T173)/Tariff_O_Dr!T173,Zero) -> 0 | U193: =IFERROR((Tariff_O_F!U173-Tariff_O_Dr!U173)/Tariff_O_Dr!U173,Zero) -> 0
B194: Powercor | F194: $/kWh | I194: =IFERROR((Tariff_O_F!I174-Tariff_O_Dr!I174)/Tariff_O_Dr!I174,Zero) -> 0 | J194: =IFERROR((Tariff_O_F!J174-Tariff_O_Dr!J174)/Tariff_O_Dr!J174,Zero) -> 0 | K194: =IFERROR((Tariff_O_F!K174-Tariff_O_Dr!K174)/Tariff_O_Dr!K174,Zero) -> 0 | L194: =IFERROR((Tariff_O_F!L174-Tariff_O_Dr!L174)/Tariff_O_Dr!L174,Zero) -> 0 | M194: =IFERROR((Tariff_O_F!M174-Tariff_O_Dr!M174)/Tariff_O_Dr!M174,Zero) -> 0 | N194: =IFERROR((Tariff_O_F!N174-Tariff_O_Dr!N174)/Tariff_O_Dr!N174,Zero) -> 0 | O194: =IFERROR((Tariff_O_F!O174-Tariff_O_Dr!O174)/Tariff_O_Dr!O174,Zero) -> 0 | P194: =IFERROR((Tariff_O_F!P174-Tariff_O_Dr!P174)/Tariff_O_Dr!P174,Zero) -> 0 | Q194: =IFERROR((Tariff_O_F!Q174-Tariff_O_Dr!Q174)/Tariff_O_Dr!Q174,Zero) -> 0 | R194: =IFERROR((Tariff_O_F!R174-Tariff_O_Dr!R174)/Tariff_O_Dr!R174,Zero) -> 0 | S194: =IFERROR((Tariff_O_F!S174-Tariff_O_Dr!S174)/Tariff_O_Dr!S174,Zero) -> 0 | T194: =IFERROR((Tariff_O_F!T174-Tariff_O_Dr!T174)/Tariff_O_Dr!T174,Zero) -> 0 | U194: =IFERROR((Tariff_O_F!U174-Tariff_O_Dr!U174)/Tariff_O_Dr!U174,Zero) -> 0
B195: United Energy | F195: $/kWh | I195: =IFERROR((Tariff_O_F!I175-Tariff_O_Dr!I175)/Tariff_O_Dr!I175,Zero) -> 0 | J195: =IFERROR((Tariff_O_F!J175-Tariff_O_Dr!J175)/Tariff_O_Dr!J175,Zero) -> 0 | K195: =IFERROR((Tariff_O_F!K175-Tariff_O_Dr!K175)/Tariff_O_Dr!K175,Zero) -> 0 | L195: =IFERROR((Tariff_O_F!L175-Tariff_O_Dr!L175)/Tariff_O_Dr!L175,Zero) -> 0 | M195: =IFERROR((Tariff_O_F!M175-Tariff_O_Dr!M175)/Tariff_O_Dr!M175,Zero) -> 0 | N195: =IFERROR((Tariff_O_F!N175-Tariff_O_Dr!N175)/Tariff_O_Dr!N175,Zero) -> 0 | O195: =IFERROR((Tariff_O_F!O175-Tariff_O_Dr!O175)/Tariff_O_Dr!O175,Zero) -> 0 | P195: =IFERROR((Tariff_O_F!P175-Tariff_O_Dr!P175)/Tariff_O_Dr!P175,Zero) -> 0 | Q195: =IFERROR((Tariff_O_F!Q175-Tariff_O_Dr!Q175)/Tariff_O_Dr!Q175,Zero) -> 0 | R195: =IFERROR((Tariff_O_F!R175-Tariff_O_Dr!R175)/Tariff_O_Dr!R175,Zero) -> 0 | S195: =IFERROR((Tariff_O_F!S175-Tariff_O_Dr!S175)/Tariff_O_Dr!S175,Zero) -> 0 | T195: =IFERROR((Tariff_O_F!T175-Tariff_O_Dr!T175)/Tariff_O_Dr!T175,Zero) -> 0 | U195: =IFERROR((Tariff_O_F!U175-Tariff_O_Dr!U175)/Tariff_O_Dr!U175,Zero) -> 0
B197: =K15 -> Controlled load
B198: =B191 -> Ausnet | F198: =$K$16 -> $/kWh | I198: =IFERROR((Tariff_O_F!I178-Tariff_O_Dr!I178)/Tariff_O_Dr!I178,Zero) -> 0.1086265765 | J198: =IFERROR((Tariff_O_F!J178-Tariff_O_Dr!J178)/Tariff_O_Dr!J178,Zero) -> 0 | K198: =IFERROR((Tariff_O_F!K178-Tariff_O_Dr!K178)/Tariff_O_Dr!K178,Zero) -> 0 | L198: =IFERROR((Tariff_O_F!L178-Tariff_O_Dr!L178)/Tariff_O_Dr!L178,Zero) -> 0 | M198: =IFERROR((Tariff_O_F!M178-Tariff_O_Dr!M178)/Tariff_O_Dr!M178,Zero) -> 0 | N198: =IFERROR((Tariff_O_F!N178-Tariff_O_Dr!N178)/Tariff_O_Dr!N178,Zero) -> 0 | O198: =IFERROR((Tariff_O_F!O178-Tariff_O_Dr!O178)/Tariff_O_Dr!O178,Zero) -> 0 | P198: =IFERROR((Tariff_O_F!P178-Tariff_O_Dr!P178)/Tariff_O_Dr!P178,Zero) -> 0 | Q198: =IFERROR((Tariff_O_F!Q178-Tariff_O_Dr!Q178)/Tariff_O_Dr!Q178,Zero) -> 0 | R198: =IFERROR((Tariff_O_F!R178-Tariff_O_Dr!R178)/Tariff_O_Dr!R178,Zero) -> 0 | S198: =IFERROR((Tariff_O_F!S178-Tariff_O_Dr!S178)/Tariff_O_Dr!S178,Zero) -> 0 | T198: =IFERROR((Tariff_O_F!T178-Tariff_O_Dr!T178)/Tariff_O_Dr!T178,Zero) -> 0 | U198: =IFERROR((Tariff_O_F!U178-Tariff_O_Dr!U178)/Tariff_O_Dr!U178,Zero) -> 0
B199: =B192 -> Citipower | F199: =$K$16 -> $/kWh | I199: =IFERROR((Tariff_O_F!I179-Tariff_O_Dr!I179)/Tariff_O_Dr!I179,Zero) -> 0.09021490702 | J199: =IFERROR((Tariff_O_F!J179-Tariff_O_Dr!J179)/Tariff_O_Dr!J179,Zero) -> 0 | K199: =IFERROR((Tariff_O_F!K179-Tariff_O_Dr!K179)/Tariff_O_Dr!K179,Zero) -> 0 | L199: =IFERROR((Tariff_O_F!L179-Tariff_O_Dr!L179)/Tariff_O_Dr!L179,Zero) -> 0 | M199: =IFERROR((Tariff_O_F!M179-Tariff_O_Dr!M179)/Tariff_O_Dr!M179,Zero) -> 0 | N199: =IFERROR((Tariff_O_F!N179-Tariff_O_Dr!N179)/Tariff_O_Dr!N179,Zero) -> 0 | O199: =IFERROR((Tariff_O_F!O179-Tariff_O_Dr!O179)/Tariff_O_Dr!O179,Zero) -> 0 | P199: =IFERROR((Tariff_O_F!P179-Tariff_O_Dr!P179)/Tariff_O_Dr!P179,Zero) -> 0 | Q199: =IFERROR((Tariff_O_F!Q179-Tariff_O_Dr!Q179)/Tariff_O_Dr!Q179,Zero) -> 0 | R199: =IFERROR((Tariff_O_F!R179-Tariff_O_Dr!R179)/Tariff_O_Dr!R179,Zero) -> 0 | S199: =IFERROR((Tariff_O_F!S179-Tariff_O_Dr!S179)/Tariff_O_Dr!S179,Zero) -> 0 | T199: =IFERROR((Tariff_O_F!T179-Tariff_O_Dr!T179)/Tariff_O_Dr!T179,Zero) -> 0 | U199: =IFERROR((Tariff_O_F!U179-Tariff_O_Dr!U179)/Tariff_O_Dr!U179,Zero) -> 0
B200: =B193 -> Jemena | F200: $/kWh | I200: =IFERROR((Tariff_O_F!I180-Tariff_O_Dr!I180)/Tariff_O_Dr!I180,Zero) -> 0.09153254507 | J200: =IFERROR((Tariff_O_F!J180-Tariff_O_Dr!J180)/Tariff_O_Dr!J180,Zero) -> 0 | K200: =IFERROR((Tariff_O_F!K180-Tariff_O_Dr!K180)/Tariff_O_Dr!K180,Zero) -> 0 | L200: =IFERROR((Tariff_O_F!L180-Tariff_O_Dr!L180)/Tariff_O_Dr!L180,Zero) -> 0 | M200: =IFERROR((Tariff_O_F!M180-Tariff_O_Dr!M180)/Tariff_O_Dr!M180,Zero) -> 0 | N200: =IFERROR((Tariff_O_F!N180-Tariff_O_Dr!N180)/Tariff_O_Dr!N180,Zero) -> 0 | O200: =IFERROR((Tariff_O_F!O180-Tariff_O_Dr!O180)/Tariff_O_Dr!O180,Zero) -> 0 | P200: =IFERROR((Tariff_O_F!P180-Tariff_O_Dr!P180)/Tariff_O_Dr!P180,Zero) -> 0 | Q200: =IFERROR((Tariff_O_F!Q180-Tariff_O_Dr!Q180)/Tariff_O_Dr!Q180,Zero) -> 0 | R200: =IFERROR((Tariff_O_F!R180-Tariff_O_Dr!R180)/Tariff_O_Dr!R180,Zero) -> 0 | S200: =IFERROR((Tariff_O_F!S180-Tariff_O_Dr!S180)/Tariff_O_Dr!S180,Zero) -> 0 | T200: =IFERROR((Tariff_O_F!T180-Tariff_O_Dr!T180)/Tariff_O_Dr!T180,Zero) -> 0 | U200: =IFERROR((Tariff_O_F!U180-Tariff_O_Dr!U180)/Tariff_O_Dr!U180,Zero) -> 0
B201: =B194 -> Powercor | F201: $/kWh | I201: =IFERROR((Tariff_O_F!I181-Tariff_O_Dr!I181)/Tariff_O_Dr!I181,Zero) -> 0.09606316086 | J201: =IFERROR((Tariff_O_F!J181-Tariff_O_Dr!J181)/Tariff_O_Dr!J181,Zero) -> 0 | K201: =IFERROR((Tariff_O_F!K181-Tariff_O_Dr!K181)/Tariff_O_Dr!K181,Zero) -> 0 | L201: =IFERROR((Tariff_O_F!L181-Tariff_O_Dr!L181)/Tariff_O_Dr!L181,Zero) -> 0 | M201: =IFERROR((Tariff_O_F!M181-Tariff_O_Dr!M181)/Tariff_O_Dr!M181,Zero) -> 0 | N201: =IFERROR((Tariff_O_F!N181-Tariff_O_Dr!N181)/Tariff_O_Dr!N181,Zero) -> 0 | O201: =IFERROR((Tariff_O_F!O181-Tariff_O_Dr!O181)/Tariff_O_Dr!O181,Zero) -> 0 | P201: =IFERROR((Tariff_O_F!P181-Tariff_O_Dr!P181)/Tariff_O_Dr!P181,Zero) -> 0 | Q201: =IFERROR((Tariff_O_F!Q181-Tariff_O_Dr!Q181)/Tariff_O_Dr!Q181,Zero) -> 0 | R201: =IFERROR((Tariff_O_F!R181-Tariff_O_Dr!R181)/Tariff_O_Dr!R181,Zero) -> 0 | S201: =IFERROR((Tariff_O_F!S181-Tariff_O_Dr!S181)/Tariff_O_Dr!S181,Zero) -> 0 | T201: =IFERROR((Tariff_O_F!T181-Tariff_O_Dr!T181)/Tariff_O_Dr!T181,Zero) -> 0 | U201: =IFERROR((Tariff_O_F!U181-Tariff_O_Dr!U181)/Tariff_O_Dr!U181,Zero) -> 0
B202: =B195 -> United Energy | F202: $/kWh | I202: =IFERROR((Tariff_O_F!I182-Tariff_O_Dr!I182)/Tariff_O_Dr!I182,Zero) -> 0.112646588 | J202: =IFERROR((Tariff_O_F!J182-Tariff_O_Dr!J182)/Tariff_O_Dr!J182,Zero) -> 0 | K202: =IFERROR((Tariff_O_F!K182-Tariff_O_Dr!K182)/Tariff_O_Dr!K182,Zero) -> 0 | L202: =IFERROR((Tariff_O_F!L182-Tariff_O_Dr!L182)/Tariff_O_Dr!L182,Zero) -> 0 | M202: =IFERROR((Tariff_O_F!M182-Tariff_O_Dr!M182)/Tariff_O_Dr!M182,Zero) -> 0 | N202: =IFERROR((Tariff_O_F!N182-Tariff_O_Dr!N182)/Tariff_O_Dr!N182,Zero) -> 0 | O202: =IFERROR((Tariff_O_F!O182-Tariff_O_Dr!O182)/Tariff_O_Dr!O182,Zero) -> 0 | P202: =IFERROR((Tariff_O_F!P182-Tariff_O_Dr!P182)/Tariff_O_Dr!P182,Zero) -> 0 | Q202: =IFERROR((Tariff_O_F!Q182-Tariff_O_Dr!Q182)/Tariff_O_Dr!Q182,Zero) -> 0 | R202: =IFERROR((Tariff_O_F!R182-Tariff_O_Dr!R182)/Tariff_O_Dr!R182,Zero) -> 0 | S202: =IFERROR((Tariff_O_F!S182-Tariff_O_Dr!S182)/Tariff_O_Dr!S182,Zero) -> 0 | T202: =IFERROR((Tariff_O_F!T182-Tariff_O_Dr!T182)/Tariff_O_Dr!T182,Zero) -> 0 | U202: =IFERROR((Tariff_O_F!U182-Tariff_O_Dr!U182)/Tariff_O_Dr!U182,Zero) -> 0
B204: ="Bills - "&$M$15 -> Bills - 2000 kWh/yr
B205: =B198 -> Ausnet | F205: =$M$16 -> $ | I205: =IFERROR((Tariff_O_F!I185-Tariff_O_Dr!I185)/Tariff_O_Dr!I185,Zero) -> 0.04509010845 | J205: =IFERROR((Tariff_O_F!J185-Tariff_O_Dr!J185)/Tariff_O_Dr!J185,Zero) -> 0 | K205: =IFERROR((Tariff_O_F!K185-Tariff_O_Dr!K185)/Tariff_O_Dr!K185,Zero) -> -0.007180982397 | L205: =IFERROR((Tariff_O_F!L185-Tariff_O_Dr!L185)/Tariff_O_Dr!L185,Zero) -> -0.007180982397 | M205: =IFERROR((Tariff_O_F!M185-Tariff_O_Dr!M185)/Tariff_O_Dr!M185,Zero) -> -0.007180982397 | N205: =IFERROR((Tariff_O_F!N185-Tariff_O_Dr!N185)/Tariff_O_Dr!N185,Zero) -> -0.02215400294 | O205: =IFERROR((Tariff_O_F!O185-Tariff_O_Dr!O185)/Tariff_O_Dr!O185,Zero) -> 0 | P205: =IFERROR((Tariff_O_F!P185-Tariff_O_Dr!P185)/Tariff_O_Dr!P185,Zero) -> 0 | Q205: =IFERROR((Tariff_O_F!Q185-Tariff_O_Dr!Q185)/Tariff_O_Dr!Q185,Zero) -> 0 | R205: =IFERROR((Tariff_O_F!R185-Tariff_O_Dr!R185)/Tariff_O_Dr!R185,Zero) -> 0 | S205: =IFERROR((Tariff_O_F!S185-Tariff_O_Dr!S185)/Tariff_O_Dr!S185,Zero) -> 0 | T205: =IFERROR((Tariff_O_F!T185-Tariff_O_Dr!T185)/Tariff_O_Dr!T185,Zero) -> 0 | U205: =IFERROR((Tariff_O_F!U185-Tariff_O_Dr!U185)/Tariff_O_Dr!U185,Zero) -> 0
B206: =B199 -> Citipower | F206: =$M$16 -> $ | I206: =IFERROR((Tariff_O_F!I186-Tariff_O_Dr!I186)/Tariff_O_Dr!I186,Zero) -> 0.04052524634 | J206: =IFERROR((Tariff_O_F!J186-Tariff_O_Dr!J186)/Tariff_O_Dr!J186,Zero) -> 0 | K206: =IFERROR((Tariff_O_F!K186-Tariff_O_Dr!K186)/Tariff_O_Dr!K186,Zero) -> -0.007993318281 | L206: =IFERROR((Tariff_O_F!L186-Tariff_O_Dr!L186)/Tariff_O_Dr!L186,Zero) -> -0.007993318281 | M206: =IFERROR((Tariff_O_F!M186-Tariff_O_Dr!M186)/Tariff_O_Dr!M186,Zero) -> -0.01351303131 | N206: =IFERROR((Tariff_O_F!N186-Tariff_O_Dr!N186)/Tariff_O_Dr!N186,Zero) -> 0 | O206: =IFERROR((Tariff_O_F!O186-Tariff_O_Dr!O186)/Tariff_O_Dr!O186,Zero) -> 0 | P206: =IFERROR((Tariff_O_F!P186-Tariff_O_Dr!P186)/Tariff_O_Dr!P186,Zero) -> 0 | Q206: =IFERROR((Tariff_O_F!Q186-Tariff_O_Dr!Q186)/Tariff_O_Dr!Q186,Zero) -> 0 | R206: =IFERROR((Tariff_O_F!R186-Tariff_O_Dr!R186)/Tariff_O_Dr!R186,Zero) -> 0 | S206: =IFERROR((Tariff_O_F!S186-Tariff_O_Dr!S186)/Tariff_O_Dr!S186,Zero) -> 0 | T206: =IFERROR((Tariff_O_F!T186-Tariff_O_Dr!T186)/Tariff_O_Dr!T186,Zero) -> 0 | U206: =IFERROR((Tariff_O_F!U186-Tariff_O_Dr!U186)/Tariff_O_Dr!U186,Zero) -> 0
B207: Jemena | F207: $ | I207: =IFERROR((Tariff_O_F!I187-Tariff_O_Dr!I187)/Tariff_O_Dr!I187,Zero) -> 0.04548580464 | J207: =IFERROR((Tariff_O_F!J187-Tariff_O_Dr!J187)/Tariff_O_Dr!J187,Zero) -> 0 | K207: =IFERROR((Tariff_O_F!K187-Tariff_O_Dr!K187)/Tariff_O_Dr!K187,Zero) -> -0.003572490602 | L207: =IFERROR((Tariff_O_F!L187-Tariff_O_Dr!L187)/Tariff_O_Dr!L187,Zero) -> -0.007927658299 | M207: =IFERROR((Tariff_O_F!M187-Tariff_O_Dr!M187)/Tariff_O_Dr!M187,Zero) -> -0.007927658299 | N207: =IFERROR((Tariff_O_F!N187-Tariff_O_Dr!N187)/Tariff_O_Dr!N187,Zero) -> 0 | O207: =IFERROR((Tariff_O_F!O187-Tariff_O_Dr!O187)/Tariff_O_Dr!O187,Zero) -> 0 | P207: =IFERROR((Tariff_O_F!P187-Tariff_O_Dr!P187)/Tariff_O_Dr!P187,Zero) -> 0 | Q207: =IFERROR((Tariff_O_F!Q187-Tariff_O_Dr!Q187)/Tariff_O_Dr!Q187,Zero) -> 0 | R207: =IFERROR((Tariff_O_F!R187-Tariff_O_Dr!R187)/Tariff_O_Dr!R187,Zero) -> 0 | S207: =IFERROR((Tariff_O_F!S187-Tariff_O_Dr!S187)/Tariff_O_Dr!S187,Zero) -> 0 | T207: =IFERROR((Tariff_O_F!T187-Tariff_O_Dr!T187)/Tariff_O_Dr!T187,Zero) -> 0 | U207: =IFERROR((Tariff_O_F!U187-Tariff_O_Dr!U187)/Tariff_O_Dr!U187,Zero) -> 0
B208: Powercor | F208: $ | I208: =IFERROR((Tariff_O_F!I188-Tariff_O_Dr!I188)/Tariff_O_Dr!I188,Zero) -> 0.04545191363 | J208: =IFERROR((Tariff_O_F!J188-Tariff_O_Dr!J188)/Tariff_O_Dr!J188,Zero) -> 0 | K208: =IFERROR((Tariff_O_F!K188-Tariff_O_Dr!K188)/Tariff_O_Dr!K188,Zero) -> -0.007463597623 | L208: =IFERROR((Tariff_O_F!L188-Tariff_O_Dr!L188)/Tariff_O_Dr!L188,Zero) -> -0.007463597623 | M208: =IFERROR((Tariff_O_F!M188-Tariff_O_Dr!M188)/Tariff_O_Dr!M188,Zero) -> -0.007463597623 | N208: =IFERROR((Tariff_O_F!N188-Tariff_O_Dr!N188)/Tariff_O_Dr!N188,Zero) -> 0 | O208: =IFERROR((Tariff_O_F!O188-Tariff_O_Dr!O188)/Tariff_O_Dr!O188,Zero) -> -0.006227411168 | P208: =IFERROR((Tariff_O_F!P188-Tariff_O_Dr!P188)/Tariff_O_Dr!P188,Zero) -> 0 | Q208: =IFERROR((Tariff_O_F!Q188-Tariff_O_Dr!Q188)/Tariff_O_Dr!Q188,Zero) -> 0 | R208: =IFERROR((Tariff_O_F!R188-Tariff_O_Dr!R188)/Tariff_O_Dr!R188,Zero) -> 0 | S208: =IFERROR((Tariff_O_F!S188-Tariff_O_Dr!S188)/Tariff_O_Dr!S188,Zero) -> 0 | T208: =IFERROR((Tariff_O_F!T188-Tariff_O_Dr!T188)/Tariff_O_Dr!T188,Zero) -> 0 | U208: =IFERROR((Tariff_O_F!U188-Tariff_O_Dr!U188)/Tariff_O_Dr!U188,Zero) -> 0
B209: United Energy | F209: $ | I209: =IFERROR((Tariff_O_F!I189-Tariff_O_Dr!I189)/Tariff_O_Dr!I189,Zero) -> 0.06610007946 | J209: =IFERROR((Tariff_O_F!J189-Tariff_O_Dr!J189)/Tariff_O_Dr!J189,Zero) -> 0 | K209: =IFERROR((Tariff_O_F!K189-Tariff_O_Dr!K189)/Tariff_O_Dr!K189,Zero) -> -0.008104106922 | L209: =IFERROR((Tariff_O_F!L189-Tariff_O_Dr!L189)/Tariff_O_Dr!L189,Zero) -> -0.008104106922 | M209: =IFERROR((Tariff_O_F!M189-Tariff_O_Dr!M189)/Tariff_O_Dr!M189,Zero) -> -0.008104106922 | N209: =IFERROR((Tariff_O_F!N189-Tariff_O_Dr!N189)/Tariff_O_Dr!N189,Zero) -> 0 | O209: =IFERROR((Tariff_O_F!O189-Tariff_O_Dr!O189)/Tariff_O_Dr!O189,Zero) -> 0 | P209: =IFERROR((Tariff_O_F!P189-Tariff_O_Dr!P189)/Tariff_O_Dr!P189,Zero) -> 0.004509151192 | Q209: =IFERROR((Tariff_O_F!Q189-Tariff_O_Dr!Q189)/Tariff_O_Dr!Q189,Zero) -> 0 | R209: =IFERROR((Tariff_O_F!R189-Tariff_O_Dr!R189)/Tariff_O_Dr!R189,Zero) -> 0 | S209: =IFERROR((Tariff_O_F!S189-Tariff_O_Dr!S189)/Tariff_O_Dr!S189,Zero) -> 0 | T209: =IFERROR((Tariff_O_F!T189-Tariff_O_Dr!T189)/Tariff_O_Dr!T189,Zero) -> 0 | U209: =IFERROR((Tariff_O_F!U189-Tariff_O_Dr!U189)/Tariff_O_Dr!U189,Zero) -> 0
B211: ="Bills - "&$N$15 -> Bills - 4000 kWh/yr
B212: =B205 -> Ausnet | F212: =$M$16 -> $ | I212: =IFERROR((Tariff_O_F!I192-Tariff_O_Dr!I192)/Tariff_O_Dr!I192,Zero) -> 0.06105888744 | J212: =IFERROR((Tariff_O_F!J192-Tariff_O_Dr!J192)/Tariff_O_Dr!J192,Zero) -> 0 | K212: =IFERROR((Tariff_O_F!K192-Tariff_O_Dr!K192)/Tariff_O_Dr!K192,Zero) -> -0.004559821371 | L212: =IFERROR((Tariff_O_F!L192-Tariff_O_Dr!L192)/Tariff_O_Dr!L192,Zero) -> -0.004559821371 | M212: =IFERROR((Tariff_O_F!M192-Tariff_O_Dr!M192)/Tariff_O_Dr!M192,Zero) -> -0.004559821371 | N212: =IFERROR((Tariff_O_F!N192-Tariff_O_Dr!N192)/Tariff_O_Dr!N192,Zero) -> -0.02633431501 | O212: =IFERROR((Tariff_O_F!O192-Tariff_O_Dr!O192)/Tariff_O_Dr!O192,Zero) -> 0 | P212: =IFERROR((Tariff_O_F!P192-Tariff_O_Dr!P192)/Tariff_O_Dr!P192,Zero) -> 0 | Q212: =IFERROR((Tariff_O_F!Q192-Tariff_O_Dr!Q192)/Tariff_O_Dr!Q192,Zero) -> 0 | R212: =IFERROR((Tariff_O_F!R192-Tariff_O_Dr!R192)/Tariff_O_Dr!R192,Zero) -> 0 | S212: =IFERROR((Tariff_O_F!S192-Tariff_O_Dr!S192)/Tariff_O_Dr!S192,Zero) -> 0 | T212: =IFERROR((Tariff_O_F!T192-Tariff_O_Dr!T192)/Tariff_O_Dr!T192,Zero) -> 0 | U212: =IFERROR((Tariff_O_F!U192-Tariff_O_Dr!U192)/Tariff_O_Dr!U192,Zero) -> 0
B213: =B206 -> Citipower | F213: =$M$16 -> $ | I213: =IFERROR((Tariff_O_F!I193-Tariff_O_Dr!I193)/Tariff_O_Dr!I193,Zero) -> 0.05359628203 | J213: =IFERROR((Tariff_O_F!J193-Tariff_O_Dr!J193)/Tariff_O_Dr!J193,Zero) -> 0 | K213: =IFERROR((Tariff_O_F!K193-Tariff_O_Dr!K193)/Tariff_O_Dr!K193,Zero) -> -0.005220418945 | L213: =IFERROR((Tariff_O_F!L193-Tariff_O_Dr!L193)/Tariff_O_Dr!L193,Zero) -> -0.005220418945 | M213: =IFERROR((Tariff_O_F!M193-Tariff_O_Dr!M193)/Tariff_O_Dr!M193,Zero) -> -0.01243810053 | N213: =IFERROR((Tariff_O_F!N193-Tariff_O_Dr!N193)/Tariff_O_Dr!N193,Zero) -> 0 | O213: =IFERROR((Tariff_O_F!O193-Tariff_O_Dr!O193)/Tariff_O_Dr!O193,Zero) -> 0 | P213: =IFERROR((Tariff_O_F!P193-Tariff_O_Dr!P193)/Tariff_O_Dr!P193,Zero) -> 0 | Q213: =IFERROR((Tariff_O_F!Q193-Tariff_O_Dr!Q193)/Tariff_O_Dr!Q193,Zero) -> 0 | R213: =IFERROR((Tariff_O_F!R193-Tariff_O_Dr!R193)/Tariff_O_Dr!R193,Zero) -> 0 | S213: =IFERROR((Tariff_O_F!S193-Tariff_O_Dr!S193)/Tariff_O_Dr!S193,Zero) -> 0 | T213: =IFERROR((Tariff_O_F!T193-Tariff_O_Dr!T193)/Tariff_O_Dr!T193,Zero) -> 0 | U213: =IFERROR((Tariff_O_F!U193-Tariff_O_Dr!U193)/Tariff_O_Dr!U193,Zero) -> 0
B214: Jemena | F214: $ | I214: =IFERROR((Tariff_O_F!I194-Tariff_O_Dr!I194)/Tariff_O_Dr!I194,Zero) -> 0.05692818398 | J214: =IFERROR((Tariff_O_F!J194-Tariff_O_Dr!J194)/Tariff_O_Dr!J194,Zero) -> 0 | K214: =IFERROR((Tariff_O_F!K194-Tariff_O_Dr!K194)/Tariff_O_Dr!K194,Zero) -> -0.002261593782 | L214: =IFERROR((Tariff_O_F!L194-Tariff_O_Dr!L194)/Tariff_O_Dr!L194,Zero) -> -0.005026729553 | M214: =IFERROR((Tariff_O_F!M194-Tariff_O_Dr!M194)/Tariff_O_Dr!M194,Zero) -> -0.005026729553 | N214: =IFERROR((Tariff_O_F!N194-Tariff_O_Dr!N194)/Tariff_O_Dr!N194,Zero) -> 0 | O214: =IFERROR((Tariff_O_F!O194-Tariff_O_Dr!O194)/Tariff_O_Dr!O194,Zero) -> 0 | P214: =IFERROR((Tariff_O_F!P194-Tariff_O_Dr!P194)/Tariff_O_Dr!P194,Zero) -> 0 | Q214: =IFERROR((Tariff_O_F!Q194-Tariff_O_Dr!Q194)/Tariff_O_Dr!Q194,Zero) -> 0 | R214: =IFERROR((Tariff_O_F!R194-Tariff_O_Dr!R194)/Tariff_O_Dr!R194,Zero) -> 0 | S214: =IFERROR((Tariff_O_F!S194-Tariff_O_Dr!S194)/Tariff_O_Dr!S194,Zero) -> 0 | T214: =IFERROR((Tariff_O_F!T194-Tariff_O_Dr!T194)/Tariff_O_Dr!T194,Zero) -> 0 | U214: =IFERROR((Tariff_O_F!U194-Tariff_O_Dr!U194)/Tariff_O_Dr!U194,Zero) -> 0
B215: Powercor | F215: $ | I215: =IFERROR((Tariff_O_F!I195-Tariff_O_Dr!I195)/Tariff_O_Dr!I195,Zero) -> 0.05984872527 | J215: =IFERROR((Tariff_O_F!J195-Tariff_O_Dr!J195)/Tariff_O_Dr!J195,Zero) -> 0 | K215: =IFERROR((Tariff_O_F!K195-Tariff_O_Dr!K195)/Tariff_O_Dr!K195,Zero) -> -0.004934685765 | L215: =IFERROR((Tariff_O_F!L195-Tariff_O_Dr!L195)/Tariff_O_Dr!L195,Zero) -> -0.004934685765 | M215: =IFERROR((Tariff_O_F!M195-Tariff_O_Dr!M195)/Tariff_O_Dr!M195,Zero) -> -0.004934685765 | N215: =IFERROR((Tariff_O_F!N195-Tariff_O_Dr!N195)/Tariff_O_Dr!N195,Zero) -> 0 | O215: =IFERROR((Tariff_O_F!O195-Tariff_O_Dr!O195)/Tariff_O_Dr!O195,Zero) -> -0.004115623022 | P215: =IFERROR((Tariff_O_F!P195-Tariff_O_Dr!P195)/Tariff_O_Dr!P195,Zero) -> 0 | Q215: =IFERROR((Tariff_O_F!Q195-Tariff_O_Dr!Q195)/Tariff_O_Dr!Q195,Zero) -> 0 | R215: =IFERROR((Tariff_O_F!R195-Tariff_O_Dr!R195)/Tariff_O_Dr!R195,Zero) -> 0 | S215: =IFERROR((Tariff_O_F!S195-Tariff_O_Dr!S195)/Tariff_O_Dr!S195,Zero) -> 0 | T215: =IFERROR((Tariff_O_F!T195-Tariff_O_Dr!T195)/Tariff_O_Dr!T195,Zero) -> 0 | U215: =IFERROR((Tariff_O_F!U195-Tariff_O_Dr!U195)/Tariff_O_Dr!U195,Zero) -> 0
B216: United Energy | F216: $ | I216: =IFERROR((Tariff_O_F!I196-Tariff_O_Dr!I196)/Tariff_O_Dr!I196,Zero) -> 0.08249831627 | J216: =IFERROR((Tariff_O_F!J196-Tariff_O_Dr!J196)/Tariff_O_Dr!J196,Zero) -> 0 | K216: =IFERROR((Tariff_O_F!K196-Tariff_O_Dr!K196)/Tariff_O_Dr!K196,Zero) -> -0.00504407943 | L216: =IFERROR((Tariff_O_F!L196-Tariff_O_Dr!L196)/Tariff_O_Dr!L196,Zero) -> -0.00504407943 | M216: =IFERROR((Tariff_O_F!M196-Tariff_O_Dr!M196)/Tariff_O_Dr!M196,Zero) -> -0.00504407943 | N216: =IFERROR((Tariff_O_F!N196-Tariff_O_Dr!N196)/Tariff_O_Dr!N196,Zero) -> 0 | O216: =IFERROR((Tariff_O_F!O196-Tariff_O_Dr!O196)/Tariff_O_Dr!O196,Zero) -> 0 | P216: =IFERROR((Tariff_O_F!P196-Tariff_O_Dr!P196)/Tariff_O_Dr!P196,Zero) -> 0.002793130687 | Q216: =IFERROR((Tariff_O_F!Q196-Tariff_O_Dr!Q196)/Tariff_O_Dr!Q196,Zero) -> 0 | R216: =IFERROR((Tariff_O_F!R196-Tariff_O_Dr!R196)/Tariff_O_Dr!R196,Zero) -> 0 | S216: =IFERROR((Tariff_O_F!S196-Tariff_O_Dr!S196)/Tariff_O_Dr!S196,Zero) -> 0 | T216: =IFERROR((Tariff_O_F!T196-Tariff_O_Dr!T196)/Tariff_O_Dr!T196,Zero) -> 0 | U216: =IFERROR((Tariff_O_F!U196-Tariff_O_Dr!U196)/Tariff_O_Dr!U196,Zero) -> 0
B218: ="Bills - "&$O$15 -> Bills - 8000 kWh/yr
B219: =B212 -> Ausnet | F219: =$M$16 -> $ | I219: =IFERROR((Tariff_O_F!I199-Tariff_O_Dr!I199)/Tariff_O_Dr!I199,Zero) -> 0.04994502491 | J219: =IFERROR((Tariff_O_F!J199-Tariff_O_Dr!J199)/Tariff_O_Dr!J199,Zero) -> 0 | K219: =IFERROR((Tariff_O_F!K199-Tariff_O_Dr!K199)/Tariff_O_Dr!K199,Zero) -> -0.002526717786 | L219: =IFERROR((Tariff_O_F!L199-Tariff_O_Dr!L199)/Tariff_O_Dr!L199,Zero) -> -0.002526717786 | M219: =IFERROR((Tariff_O_F!M199-Tariff_O_Dr!M199)/Tariff_O_Dr!M199,Zero) -> -0.002526717786 | N219: =IFERROR((Tariff_O_F!N199-Tariff_O_Dr!N199)/Tariff_O_Dr!N199,Zero) -> -0.01495170068 | O219: =IFERROR((Tariff_O_F!O199-Tariff_O_Dr!O199)/Tariff_O_Dr!O199,Zero) -> 0 | P219: =IFERROR((Tariff_O_F!P199-Tariff_O_Dr!P199)/Tariff_O_Dr!P199,Zero) -> 0 | Q219: =IFERROR((Tariff_O_F!Q199-Tariff_O_Dr!Q199)/Tariff_O_Dr!Q199,Zero) -> 0 | R219: =IFERROR((Tariff_O_F!R199-Tariff_O_Dr!R199)/Tariff_O_Dr!R199,Zero) -> 0 | S219: =IFERROR((Tariff_O_F!S199-Tariff_O_Dr!S199)/Tariff_O_Dr!S199,Zero) -> 0 | T219: =IFERROR((Tariff_O_F!T199-Tariff_O_Dr!T199)/Tariff_O_Dr!T199,Zero) -> 0 | U219: =IFERROR((Tariff_O_F!U199-Tariff_O_Dr!U199)/Tariff_O_Dr!U199,Zero) -> 0
B220: =B213 -> Citipower | F220: =$M$16 -> $ | I220: =IFERROR((Tariff_O_F!I200-Tariff_O_Dr!I200)/Tariff_O_Dr!I200,Zero) -> 0.06368699821 | J220: =IFERROR((Tariff_O_F!J200-Tariff_O_Dr!J200)/Tariff_O_Dr!J200,Zero) -> 0 | K220: =IFERROR((Tariff_O_F!K200-Tariff_O_Dr!K200)/Tariff_O_Dr!K200,Zero) -> -0.003082067341 | L220: =IFERROR((Tariff_O_F!L200-Tariff_O_Dr!L200)/Tariff_O_Dr!L200,Zero) -> -0.003082067341 | M220: =IFERROR((Tariff_O_F!M200-Tariff_O_Dr!M200)/Tariff_O_Dr!M200,Zero) -> -0.01161164981 | N220: =IFERROR((Tariff_O_F!N200-Tariff_O_Dr!N200)/Tariff_O_Dr!N200,Zero) -> 0 | O220: =IFERROR((Tariff_O_F!O200-Tariff_O_Dr!O200)/Tariff_O_Dr!O200,Zero) -> 0 | P220: =IFERROR((Tariff_O_F!P200-Tariff_O_Dr!P200)/Tariff_O_Dr!P200,Zero) -> 0 | Q220: =IFERROR((Tariff_O_F!Q200-Tariff_O_Dr!Q200)/Tariff_O_Dr!Q200,Zero) -> 0 | R220: =IFERROR((Tariff_O_F!R200-Tariff_O_Dr!R200)/Tariff_O_Dr!R200,Zero) -> 0 | S220: =IFERROR((Tariff_O_F!S200-Tariff_O_Dr!S200)/Tariff_O_Dr!S200,Zero) -> 0 | T220: =IFERROR((Tariff_O_F!T200-Tariff_O_Dr!T200)/Tariff_O_Dr!T200,Zero) -> 0 | U220: =IFERROR((Tariff_O_F!U200-Tariff_O_Dr!U200)/Tariff_O_Dr!U200,Zero) -> 0
B221: Jemena | F221: $ | I221: =IFERROR((Tariff_O_F!I201-Tariff_O_Dr!I201)/Tariff_O_Dr!I201,Zero) -> 0.06530889344 | J221: =IFERROR((Tariff_O_F!J201-Tariff_O_Dr!J201)/Tariff_O_Dr!J201,Zero) -> 0 | K221: =IFERROR((Tariff_O_F!K201-Tariff_O_Dr!K201)/Tariff_O_Dr!K201,Zero) -> -0.001304351272 | L221: =IFERROR((Tariff_O_F!L201-Tariff_O_Dr!L201)/Tariff_O_Dr!L201,Zero) -> -0.002902520007 | M221: =IFERROR((Tariff_O_F!M201-Tariff_O_Dr!M201)/Tariff_O_Dr!M201,Zero) -> -0.002902520007 | N221: =IFERROR((Tariff_O_F!N201-Tariff_O_Dr!N201)/Tariff_O_Dr!N201,Zero) -> 0 | O221: =IFERROR((Tariff_O_F!O201-Tariff_O_Dr!O201)/Tariff_O_Dr!O201,Zero) -> 0 | P221: =IFERROR((Tariff_O_F!P201-Tariff_O_Dr!P201)/Tariff_O_Dr!P201,Zero) -> 0 | Q221: =IFERROR((Tariff_O_F!Q201-Tariff_O_Dr!Q201)/Tariff_O_Dr!Q201,Zero) -> 0 | R221: =IFERROR((Tariff_O_F!R201-Tariff_O_Dr!R201)/Tariff_O_Dr!R201,Zero) -> 0 | S221: =IFERROR((Tariff_O_F!S201-Tariff_O_Dr!S201)/Tariff_O_Dr!S201,Zero) -> 0 | T221: =IFERROR((Tariff_O_F!T201-Tariff_O_Dr!T201)/Tariff_O_Dr!T201,Zero) -> 0 | U221: =IFERROR((Tariff_O_F!U201-Tariff_O_Dr!U201)/Tariff_O_Dr!U201,Zero) -> 0
B222: Powercor | F222: $ | I222: =IFERROR((Tariff_O_F!I202-Tariff_O_Dr!I202)/Tariff_O_Dr!I202,Zero) -> 0.07118540462 | J222: =IFERROR((Tariff_O_F!J202-Tariff_O_Dr!J202)/Tariff_O_Dr!J202,Zero) -> 0 | K222: =IFERROR((Tariff_O_F!K202-Tariff_O_Dr!K202)/Tariff_O_Dr!K202,Zero) -> -0.002941400018 | L222: =IFERROR((Tariff_O_F!L202-Tariff_O_Dr!L202)/Tariff_O_Dr!L202,Zero) -> -0.002941400018 | M222: =IFERROR((Tariff_O_F!M202-Tariff_O_Dr!M202)/Tariff_O_Dr!M202,Zero) -> -0.002941400018 | N222: =IFERROR((Tariff_O_F!N202-Tariff_O_Dr!N202)/Tariff_O_Dr!N202,Zero) -> 0 | O222: =IFERROR((Tariff_O_F!O202-Tariff_O_Dr!O202)/Tariff_O_Dr!O202,Zero) -> -0.002452368915 | P222: =IFERROR((Tariff_O_F!P202-Tariff_O_Dr!P202)/Tariff_O_Dr!P202,Zero) -> 0 | Q222: =IFERROR((Tariff_O_F!Q202-Tariff_O_Dr!Q202)/Tariff_O_Dr!Q202,Zero) -> 0 | R222: =IFERROR((Tariff_O_F!R202-Tariff_O_Dr!R202)/Tariff_O_Dr!R202,Zero) -> 0 | S222: =IFERROR((Tariff_O_F!S202-Tariff_O_Dr!S202)/Tariff_O_Dr!S202,Zero) -> 0 | T222: =IFERROR((Tariff_O_F!T202-Tariff_O_Dr!T202)/Tariff_O_Dr!T202,Zero) -> 0 | U222: =IFERROR((Tariff_O_F!U202-Tariff_O_Dr!U202)/Tariff_O_Dr!U202,Zero) -> 0
B223: United Energy | F223: $ | I223: =IFERROR((Tariff_O_F!I203-Tariff_O_Dr!I203)/Tariff_O_Dr!I203,Zero) -> 0.09408993942 | J223: =IFERROR((Tariff_O_F!J203-Tariff_O_Dr!J203)/Tariff_O_Dr!J203,Zero) -> 0 | K223: =IFERROR((Tariff_O_F!K203-Tariff_O_Dr!K203)/Tariff_O_Dr!K203,Zero) -> -0.002873825488 | L223: =IFERROR((Tariff_O_F!L203-Tariff_O_Dr!L203)/Tariff_O_Dr!L203,Zero) -> -0.002873825488 | M223: =IFERROR((Tariff_O_F!M203-Tariff_O_Dr!M203)/Tariff_O_Dr!M203,Zero) -> -0.002873825488 | N223: =IFERROR((Tariff_O_F!N203-Tariff_O_Dr!N203)/Tariff_O_Dr!N203,Zero) -> 0 | O223: =IFERROR((Tariff_O_F!O203-Tariff_O_Dr!O203)/Tariff_O_Dr!O203,Zero) -> 0 | P223: =IFERROR((Tariff_O_F!P203-Tariff_O_Dr!P203)/Tariff_O_Dr!P203,Zero) -> 0.00158598964 | Q223: =IFERROR((Tariff_O_F!Q203-Tariff_O_Dr!Q203)/Tariff_O_Dr!Q203,Zero) -> 0 | R223: =IFERROR((Tariff_O_F!R203-Tariff_O_Dr!R203)/Tariff_O_Dr!R203,Zero) -> 0 | S223: =IFERROR((Tariff_O_F!S203-Tariff_O_Dr!S203)/Tariff_O_Dr!S203,Zero) -> 0 | T223: =IFERROR((Tariff_O_F!T203-Tariff_O_Dr!T203)/Tariff_O_Dr!T203,Zero) -> 0 | U223: =IFERROR((Tariff_O_F!U203-Tariff_O_Dr!U203)/Tariff_O_Dr!U203,Zero) -> 0
B225: Small business
B227: =B169 -> Supply charge per day
B228: =B170 -> Ausnet | F228: =$F$16 -> $/day | I228: =IFERROR((Tariff_O_F!I208-Tariff_O_Dr!I208)/Tariff_O_Dr!I208,Zero) -> -0.02260121223 | J228: =IFERROR((Tariff_O_F!J208-Tariff_O_Dr!J208)/Tariff_O_Dr!J208,Zero) -> 0 | K228: =IFERROR((Tariff_O_F!K208-Tariff_O_Dr!K208)/Tariff_O_Dr!K208,Zero) -> -0.01658737785 | L228: =IFERROR((Tariff_O_F!L208-Tariff_O_Dr!L208)/Tariff_O_Dr!L208,Zero) -> -0.01658737785 | M228: =IFERROR((Tariff_O_F!M208-Tariff_O_Dr!M208)/Tariff_O_Dr!M208,Zero) -> -0.01658737785 | N228: =IFERROR((Tariff_O_F!N208-Tariff_O_Dr!N208)/Tariff_O_Dr!N208,Zero) -> 0 | O228: =IFERROR((Tariff_O_F!O208-Tariff_O_Dr!O208)/Tariff_O_Dr!O208,Zero) -> 0 | P228: =IFERROR((Tariff_O_F!P208-Tariff_O_Dr!P208)/Tariff_O_Dr!P208,Zero) -> 0 | Q228: =IFERROR((Tariff_O_F!Q208-Tariff_O_Dr!Q208)/Tariff_O_Dr!Q208,Zero) -> 0 | R228: =IFERROR((Tariff_O_F!R208-Tariff_O_Dr!R208)/Tariff_O_Dr!R208,Zero) -> 0 | S228: =IFERROR((Tariff_O_F!S208-Tariff_O_Dr!S208)/Tariff_O_Dr!S208,Zero) -> 0 | T228: =IFERROR((Tariff_O_F!T208-Tariff_O_Dr!T208)/Tariff_O_Dr!T208,Zero) -> 0 | U228: =IFERROR((Tariff_O_F!U208-Tariff_O_Dr!U208)/Tariff_O_Dr!U208,Zero) -> 0
B229: Citipower | F229: =$F$16 -> $/day | I229: =IFERROR((Tariff_O_F!I209-Tariff_O_Dr!I209)/Tariff_O_Dr!I209,Zero) -> -0.001734963487 | J229: =IFERROR((Tariff_O_F!J209-Tariff_O_Dr!J209)/Tariff_O_Dr!J209,Zero) -> 0 | K229: =IFERROR((Tariff_O_F!K209-Tariff_O_Dr!K209)/Tariff_O_Dr!K209,Zero) -> -0.01456590596 | L229: =IFERROR((Tariff_O_F!L209-Tariff_O_Dr!L209)/Tariff_O_Dr!L209,Zero) -> -0.01456590596 | M229: =IFERROR((Tariff_O_F!M209-Tariff_O_Dr!M209)/Tariff_O_Dr!M209,Zero) -> -0.01456590596 | N229: =IFERROR((Tariff_O_F!N209-Tariff_O_Dr!N209)/Tariff_O_Dr!N209,Zero) -> 0 | O229: =IFERROR((Tariff_O_F!O209-Tariff_O_Dr!O209)/Tariff_O_Dr!O209,Zero) -> 0 | P229: =IFERROR((Tariff_O_F!P209-Tariff_O_Dr!P209)/Tariff_O_Dr!P209,Zero) -> 0 | Q229: =IFERROR((Tariff_O_F!Q209-Tariff_O_Dr!Q209)/Tariff_O_Dr!Q209,Zero) -> 0 | R229: =IFERROR((Tariff_O_F!R209-Tariff_O_Dr!R209)/Tariff_O_Dr!R209,Zero) -> 0 | S229: =IFERROR((Tariff_O_F!S209-Tariff_O_Dr!S209)/Tariff_O_Dr!S209,Zero) -> 0 | T229: =IFERROR((Tariff_O_F!T209-Tariff_O_Dr!T209)/Tariff_O_Dr!T209,Zero) -> 0 | U229: =IFERROR((Tariff_O_F!U209-Tariff_O_Dr!U209)/Tariff_O_Dr!U209,Zero) -> 0
B230: Jemena | F230: $/day | I230: =IFERROR((Tariff_O_F!I210-Tariff_O_Dr!I210)/Tariff_O_Dr!I210,Zero) -> -0.04450379662 | J230: =IFERROR((Tariff_O_F!J210-Tariff_O_Dr!J210)/Tariff_O_Dr!J210,Zero) -> 0 | K230: =IFERROR((Tariff_O_F!K210-Tariff_O_Dr!K210)/Tariff_O_Dr!K210,Zero) -> -0.01647017632 | L230: =IFERROR((Tariff_O_F!L210-Tariff_O_Dr!L210)/Tariff_O_Dr!L210,Zero) -> -0.01647017632 | M230: =IFERROR((Tariff_O_F!M210-Tariff_O_Dr!M210)/Tariff_O_Dr!M210,Zero) -> -0.01647017632 | N230: =IFERROR((Tariff_O_F!N210-Tariff_O_Dr!N210)/Tariff_O_Dr!N210,Zero) -> 0 | O230: =IFERROR((Tariff_O_F!O210-Tariff_O_Dr!O210)/Tariff_O_Dr!O210,Zero) -> 0 | P230: =IFERROR((Tariff_O_F!P210-Tariff_O_Dr!P210)/Tariff_O_Dr!P210,Zero) -> 0 | Q230: =IFERROR((Tariff_O_F!Q210-Tariff_O_Dr!Q210)/Tariff_O_Dr!Q210,Zero) -> 0 | R230: =IFERROR((Tariff_O_F!R210-Tariff_O_Dr!R210)/Tariff_O_Dr!R210,Zero) -> 0 | S230: =IFERROR((Tariff_O_F!S210-Tariff_O_Dr!S210)/Tariff_O_Dr!S210,Zero) -> 0 | T230: =IFERROR((Tariff_O_F!T210-Tariff_O_Dr!T210)/Tariff_O_Dr!T210,Zero) -> 0 | U230: =IFERROR((Tariff_O_F!U210-Tariff_O_Dr!U210)/Tariff_O_Dr!U210,Zero) -> 0
B231: Powercor | F231: $/day | I231: =IFERROR((Tariff_O_F!I211-Tariff_O_Dr!I211)/Tariff_O_Dr!I211,Zero) -> 0.0006258217202 | J231: =IFERROR((Tariff_O_F!J211-Tariff_O_Dr!J211)/Tariff_O_Dr!J211,Zero) -> 0 | K231: =IFERROR((Tariff_O_F!K211-Tariff_O_Dr!K211)/Tariff_O_Dr!K211,Zero) -> -0.01389143485 | L231: =IFERROR((Tariff_O_F!L211-Tariff_O_Dr!L211)/Tariff_O_Dr!L211,Zero) -> -0.01389143485 | M231: =IFERROR((Tariff_O_F!M211-Tariff_O_Dr!M211)/Tariff_O_Dr!M211,Zero) -> -0.01389143485 | N231: =IFERROR((Tariff_O_F!N211-Tariff_O_Dr!N211)/Tariff_O_Dr!N211,Zero) -> 0 | O231: =IFERROR((Tariff_O_F!O211-Tariff_O_Dr!O211)/Tariff_O_Dr!O211,Zero) -> 0 | P231: =IFERROR((Tariff_O_F!P211-Tariff_O_Dr!P211)/Tariff_O_Dr!P211,Zero) -> 0 | Q231: =IFERROR((Tariff_O_F!Q211-Tariff_O_Dr!Q211)/Tariff_O_Dr!Q211,Zero) -> 0 | R231: =IFERROR((Tariff_O_F!R211-Tariff_O_Dr!R211)/Tariff_O_Dr!R211,Zero) -> 0 | S231: =IFERROR((Tariff_O_F!S211-Tariff_O_Dr!S211)/Tariff_O_Dr!S211,Zero) -> 0 | T231: =IFERROR((Tariff_O_F!T211-Tariff_O_Dr!T211)/Tariff_O_Dr!T211,Zero) -> 0 | U231: =IFERROR((Tariff_O_F!U211-Tariff_O_Dr!U211)/Tariff_O_Dr!U211,Zero) -> 0
B232: United Energy | F232: $/day | I232: =IFERROR((Tariff_O_F!I212-Tariff_O_Dr!I212)/Tariff_O_Dr!I212,Zero) -> 0.001982849666 | J232: =IFERROR((Tariff_O_F!J212-Tariff_O_Dr!J212)/Tariff_O_Dr!J212,Zero) -> 0 | K232: =IFERROR((Tariff_O_F!K212-Tariff_O_Dr!K212)/Tariff_O_Dr!K212,Zero) -> -0.01940188359 | L232: =IFERROR((Tariff_O_F!L212-Tariff_O_Dr!L212)/Tariff_O_Dr!L212,Zero) -> -0.01940188359 | M232: =IFERROR((Tariff_O_F!M212-Tariff_O_Dr!M212)/Tariff_O_Dr!M212,Zero) -> -0.01940188359 | N232: =IFERROR((Tariff_O_F!N212-Tariff_O_Dr!N212)/Tariff_O_Dr!N212,Zero) -> 0 | O232: =IFERROR((Tariff_O_F!O212-Tariff_O_Dr!O212)/Tariff_O_Dr!O212,Zero) -> 0 | P232: =IFERROR((Tariff_O_F!P212-Tariff_O_Dr!P212)/Tariff_O_Dr!P212,Zero) -> 0 | Q232: =IFERROR((Tariff_O_F!Q212-Tariff_O_Dr!Q212)/Tariff_O_Dr!Q212,Zero) -> 0 | R232: =IFERROR((Tariff_O_F!R212-Tariff_O_Dr!R212)/Tariff_O_Dr!R212,Zero) -> 0 | S232: =IFERROR((Tariff_O_F!S212-Tariff_O_Dr!S212)/Tariff_O_Dr!S212,Zero) -> 0 | T232: =IFERROR((Tariff_O_F!T212-Tariff_O_Dr!T212)/Tariff_O_Dr!T212,Zero) -> 0 | U232: =IFERROR((Tariff_O_F!U212-Tariff_O_Dr!U212)/Tariff_O_Dr!U212,Zero) -> 0
B234: Single rate
B235: Ausnet | F235: =$H$16 -> $/kWh | I235: =IFERROR((Tariff_O_F!I215-Tariff_O_Dr!I215)/Tariff_O_Dr!I215,Zero) -> 0 | J235: =IFERROR((Tariff_O_F!J215-Tariff_O_Dr!J215)/Tariff_O_Dr!J215,Zero) -> 0 | K235: =IFERROR((Tariff_O_F!K215-Tariff_O_Dr!K215)/Tariff_O_Dr!K215,Zero) -> 0 | L235: =IFERROR((Tariff_O_F!L215-Tariff_O_Dr!L215)/Tariff_O_Dr!L215,Zero) -> 0 | M235: =IFERROR((Tariff_O_F!M215-Tariff_O_Dr!M215)/Tariff_O_Dr!M215,Zero) -> 0 | N235: =IFERROR((Tariff_O_F!N215-Tariff_O_Dr!N215)/Tariff_O_Dr!N215,Zero) -> 0 | O235: =IFERROR((Tariff_O_F!O215-Tariff_O_Dr!O215)/Tariff_O_Dr!O215,Zero) -> 0 | P235: =IFERROR((Tariff_O_F!P215-Tariff_O_Dr!P215)/Tariff_O_Dr!P215,Zero) -> 0 | Q235: =IFERROR((Tariff_O_F!Q215-Tariff_O_Dr!Q215)/Tariff_O_Dr!Q215,Zero) -> 0 | R235: =IFERROR((Tariff_O_F!R215-Tariff_O_Dr!R215)/Tariff_O_Dr!R215,Zero) -> 0 | S235: =IFERROR((Tariff_O_F!S215-Tariff_O_Dr!S215)/Tariff_O_Dr!S215,Zero) -> 0 | T235: =IFERROR((Tariff_O_F!T215-Tariff_O_Dr!T215)/Tariff_O_Dr!T215,Zero) -> 0 | U235: =IFERROR((Tariff_O_F!U215-Tariff_O_Dr!U215)/Tariff_O_Dr!U215,Zero) -> 0
B236: Citipower | F236: =$H$16 -> $/kWh | I236: =IFERROR((Tariff_O_F!I216-Tariff_O_Dr!I216)/Tariff_O_Dr!I216,Zero) -> 0.06562137929 | J236: =IFERROR((Tariff_O_F!J216-Tariff_O_Dr!J216)/Tariff_O_Dr!J216,Zero) -> 0 | K236: =IFERROR((Tariff_O_F!K216-Tariff_O_Dr!K216)/Tariff_O_Dr!K216,Zero) -> 0 | L236: =IFERROR((Tariff_O_F!L216-Tariff_O_Dr!L216)/Tariff_O_Dr!L216,Zero) -> 0 | M236: =IFERROR((Tariff_O_F!M216-Tariff_O_Dr!M216)/Tariff_O_Dr!M216,Zero) -> 0 | N236: =IFERROR((Tariff_O_F!N216-Tariff_O_Dr!N216)/Tariff_O_Dr!N216,Zero) -> 0 | O236: =IFERROR((Tariff_O_F!O216-Tariff_O_Dr!O216)/Tariff_O_Dr!O216,Zero) -> 0 | P236: =IFERROR((Tariff_O_F!P216-Tariff_O_Dr!P216)/Tariff_O_Dr!P216,Zero) -> 0 | Q236: =IFERROR((Tariff_O_F!Q216-Tariff_O_Dr!Q216)/Tariff_O_Dr!Q216,Zero) -> 0 | R236: =IFERROR((Tariff_O_F!R216-Tariff_O_Dr!R216)/Tariff_O_Dr!R216,Zero) -> 0 | S236: =IFERROR((Tariff_O_F!S216-Tariff_O_Dr!S216)/Tariff_O_Dr!S216,Zero) -> 0 | T236: =IFERROR((Tariff_O_F!T216-Tariff_O_Dr!T216)/Tariff_O_Dr!T216,Zero) -> 0 | U236: =IFERROR((Tariff_O_F!U216-Tariff_O_Dr!U216)/Tariff_O_Dr!U216,Zero) -> 0
B237: Jemena | F237: $/kWh | I237: =IFERROR((Tariff_O_F!I217-Tariff_O_Dr!I217)/Tariff_O_Dr!I217,Zero) -> 0.06373316888 | J237: =IFERROR((Tariff_O_F!J217-Tariff_O_Dr!J217)/Tariff_O_Dr!J217,Zero) -> 0 | K237: =IFERROR((Tariff_O_F!K217-Tariff_O_Dr!K217)/Tariff_O_Dr!K217,Zero) -> 0 | L237: =IFERROR((Tariff_O_F!L217-Tariff_O_Dr!L217)/Tariff_O_Dr!L217,Zero) -> 0 | M237: =IFERROR((Tariff_O_F!M217-Tariff_O_Dr!M217)/Tariff_O_Dr!M217,Zero) -> 0 | N237: =IFERROR((Tariff_O_F!N217-Tariff_O_Dr!N217)/Tariff_O_Dr!N217,Zero) -> 0 | O237: =IFERROR((Tariff_O_F!O217-Tariff_O_Dr!O217)/Tariff_O_Dr!O217,Zero) -> 0 | P237: =IFERROR((Tariff_O_F!P217-Tariff_O_Dr!P217)/Tariff_O_Dr!P217,Zero) -> 0 | Q237: =IFERROR((Tariff_O_F!Q217-Tariff_O_Dr!Q217)/Tariff_O_Dr!Q217,Zero) -> 0 | R237: =IFERROR((Tariff_O_F!R217-Tariff_O_Dr!R217)/Tariff_O_Dr!R217,Zero) -> 0 | S237: =IFERROR((Tariff_O_F!S217-Tariff_O_Dr!S217)/Tariff_O_Dr!S217,Zero) -> 0 | T237: =IFERROR((Tariff_O_F!T217-Tariff_O_Dr!T217)/Tariff_O_Dr!T217,Zero) -> 0 | U237: =IFERROR((Tariff_O_F!U217-Tariff_O_Dr!U217)/Tariff_O_Dr!U217,Zero) -> 0
B238: Powercor | F238: $/kWh | I238: =IFERROR((Tariff_O_F!I218-Tariff_O_Dr!I218)/Tariff_O_Dr!I218,Zero) -> 0.07538522715 | J238: =IFERROR((Tariff_O_F!J218-Tariff_O_Dr!J218)/Tariff_O_Dr!J218,Zero) -> 0 | K238: =IFERROR((Tariff_O_F!K218-Tariff_O_Dr!K218)/Tariff_O_Dr!K218,Zero) -> 0 | L238: =IFERROR((Tariff_O_F!L218-Tariff_O_Dr!L218)/Tariff_O_Dr!L218,Zero) -> 0 | M238: =IFERROR((Tariff_O_F!M218-Tariff_O_Dr!M218)/Tariff_O_Dr!M218,Zero) -> 0 | N238: =IFERROR((Tariff_O_F!N218-Tariff_O_Dr!N218)/Tariff_O_Dr!N218,Zero) -> 0 | O238: =IFERROR((Tariff_O_F!O218-Tariff_O_Dr!O218)/Tariff_O_Dr!O218,Zero) -> 0 | P238: =IFERROR((Tariff_O_F!P218-Tariff_O_Dr!P218)/Tariff_O_Dr!P218,Zero) -> 0 | Q238: =IFERROR((Tariff_O_F!Q218-Tariff_O_Dr!Q218)/Tariff_O_Dr!Q218,Zero) -> 0 | R238: =IFERROR((Tariff_O_F!R218-Tariff_O_Dr!R218)/Tariff_O_Dr!R218,Zero) -> 0 | S238: =IFERROR((Tariff_O_F!S218-Tariff_O_Dr!S218)/Tariff_O_Dr!S218,Zero) -> 0 | T238: =IFERROR((Tariff_O_F!T218-Tariff_O_Dr!T218)/Tariff_O_Dr!T218,Zero) -> 0 | U238: =IFERROR((Tariff_O_F!U218-Tariff_O_Dr!U218)/Tariff_O_Dr!U218,Zero) -> 0
B239: United Energy | F239: $/kWh | I239: =IFERROR((Tariff_O_F!I219-Tariff_O_Dr!I219)/Tariff_O_Dr!I219,Zero) -> 0.09650735392 | J239: =IFERROR((Tariff_O_F!J219-Tariff_O_Dr!J219)/Tariff_O_Dr!J219,Zero) -> 0 | K239: =IFERROR((Tariff_O_F!K219-Tariff_O_Dr!K219)/Tariff_O_Dr!K219,Zero) -> 0 | L239: =IFERROR((Tariff_O_F!L219-Tariff_O_Dr!L219)/Tariff_O_Dr!L219,Zero) -> 0 | M239: =IFERROR((Tariff_O_F!M219-Tariff_O_Dr!M219)/Tariff_O_Dr!M219,Zero) -> 0 | N239: =IFERROR((Tariff_O_F!N219-Tariff_O_Dr!N219)/Tariff_O_Dr!N219,Zero) -> 0 | O239: =IFERROR((Tariff_O_F!O219-Tariff_O_Dr!O219)/Tariff_O_Dr!O219,Zero) -> 0 | P239: =IFERROR((Tariff_O_F!P219-Tariff_O_Dr!P219)/Tariff_O_Dr!P219,Zero) -> 0 | Q239: =IFERROR((Tariff_O_F!Q219-Tariff_O_Dr!Q219)/Tariff_O_Dr!Q219,Zero) -> 0 | R239: =IFERROR((Tariff_O_F!R219-Tariff_O_Dr!R219)/Tariff_O_Dr!R219,Zero) -> 0 | S239: =IFERROR((Tariff_O_F!S219-Tariff_O_Dr!S219)/Tariff_O_Dr!S219,Zero) -> 0 | T239: =IFERROR((Tariff_O_F!T219-Tariff_O_Dr!T219)/Tariff_O_Dr!T219,Zero) -> 0 | U239: =IFERROR((Tariff_O_F!U219-Tariff_O_Dr!U219)/Tariff_O_Dr!U219,Zero) -> 0
B241: Block 1
B242: Ausnet | F242: =$I$16 -> $/kWh | I242: =IFERROR((Tariff_O_F!I222-Tariff_O_Dr!I222)/Tariff_O_Dr!I222,Zero) -> 0.06086078053 | J242: =IFERROR((Tariff_O_F!J222-Tariff_O_Dr!J222)/Tariff_O_Dr!J222,Zero) -> 0 | K242: =IFERROR((Tariff_O_F!K222-Tariff_O_Dr!K222)/Tariff_O_Dr!K222,Zero) -> -0.03493806516 | L242: =IFERROR((Tariff_O_F!L222-Tariff_O_Dr!L222)/Tariff_O_Dr!L222,Zero) -> 0 | M242: =IFERROR((Tariff_O_F!M222-Tariff_O_Dr!M222)/Tariff_O_Dr!M222,Zero) -> 0 | N242: =IFERROR((Tariff_O_F!N222-Tariff_O_Dr!N222)/Tariff_O_Dr!N222,Zero) -> -0.06819196687 | O242: =IFERROR((Tariff_O_F!O222-Tariff_O_Dr!O222)/Tariff_O_Dr!O222,Zero) -> 0 | P242: =IFERROR((Tariff_O_F!P222-Tariff_O_Dr!P222)/Tariff_O_Dr!P222,Zero) -> 0 | Q242: =IFERROR((Tariff_O_F!Q222-Tariff_O_Dr!Q222)/Tariff_O_Dr!Q222,Zero) -> 0 | R242: =IFERROR((Tariff_O_F!R222-Tariff_O_Dr!R222)/Tariff_O_Dr!R222,Zero) -> 0 | S242: =IFERROR((Tariff_O_F!S222-Tariff_O_Dr!S222)/Tariff_O_Dr!S222,Zero) -> 0 | T242: =IFERROR((Tariff_O_F!T222-Tariff_O_Dr!T222)/Tariff_O_Dr!T222,Zero) -> 0 | U242: =IFERROR((Tariff_O_F!U222-Tariff_O_Dr!U222)/Tariff_O_Dr!U222,Zero) -> 0
B243: Citipower | F243: =$I$16 -> $/kWh | I243: =IFERROR((Tariff_O_F!I223-Tariff_O_Dr!I223)/Tariff_O_Dr!I223,Zero) -> 0 | J243: =IFERROR((Tariff_O_F!J223-Tariff_O_Dr!J223)/Tariff_O_Dr!J223,Zero) -> 0 | K243: =IFERROR((Tariff_O_F!K223-Tariff_O_Dr!K223)/Tariff_O_Dr!K223,Zero) -> 0 | L243: =IFERROR((Tariff_O_F!L223-Tariff_O_Dr!L223)/Tariff_O_Dr!L223,Zero) -> 0 | M243: =IFERROR((Tariff_O_F!M223-Tariff_O_Dr!M223)/Tariff_O_Dr!M223,Zero) -> 0 | N243: =IFERROR((Tariff_O_F!N223-Tariff_O_Dr!N223)/Tariff_O_Dr!N223,Zero) -> 0 | O243: =IFERROR((Tariff_O_F!O223-Tariff_O_Dr!O223)/Tariff_O_Dr!O223,Zero) -> 0 | P243: =IFERROR((Tariff_O_F!P223-Tariff_O_Dr!P223)/Tariff_O_Dr!P223,Zero) -> 0 | Q243: =IFERROR((Tariff_O_F!Q223-Tariff_O_Dr!Q223)/Tariff_O_Dr!Q223,Zero) -> 0 | R243: =IFERROR((Tariff_O_F!R223-Tariff_O_Dr!R223)/Tariff_O_Dr!R223,Zero) -> 0 | S243: =IFERROR((Tariff_O_F!S223-Tariff_O_Dr!S223)/Tariff_O_Dr!S223,Zero) -> 0 | T243: =IFERROR((Tariff_O_F!T223-Tariff_O_Dr!T223)/Tariff_O_Dr!T223,Zero) -> 0 | U243: =IFERROR((Tariff_O_F!U223-Tariff_O_Dr!U223)/Tariff_O_Dr!U223,Zero) -> 0
B244: Jemena | F244: $/kWh | I244: =IFERROR((Tariff_O_F!I224-Tariff_O_Dr!I224)/Tariff_O_Dr!I224,Zero) -> 0 | J244: =IFERROR((Tariff_O_F!J224-Tariff_O_Dr!J224)/Tariff_O_Dr!J224,Zero) -> 0 | K244: =IFERROR((Tariff_O_F!K224-Tariff_O_Dr!K224)/Tariff_O_Dr!K224,Zero) -> 0 | L244: =IFERROR((Tariff_O_F!L224-Tariff_O_Dr!L224)/Tariff_O_Dr!L224,Zero) -> 0 | M244: =IFERROR((Tariff_O_F!M224-Tariff_O_Dr!M224)/Tariff_O_Dr!M224,Zero) -> 0 | N244: =IFERROR((Tariff_O_F!N224-Tariff_O_Dr!N224)/Tariff_O_Dr!N224,Zero) -> 0 | O244: =IFERROR((Tariff_O_F!O224-Tariff_O_Dr!O224)/Tariff_O_Dr!O224,Zero) -> 0 | P244: =IFERROR((Tariff_O_F!P224-Tariff_O_Dr!P224)/Tariff_O_Dr!P224,Zero) -> 0 | Q244: =IFERROR((Tariff_O_F!Q224-Tariff_O_Dr!Q224)/Tariff_O_Dr!Q224,Zero) -> 0 | R244: =IFERROR((Tariff_O_F!R224-Tariff_O_Dr!R224)/Tariff_O_Dr!R224,Zero) -> 0 | S244: =IFERROR((Tariff_O_F!S224-Tariff_O_Dr!S224)/Tariff_O_Dr!S224,Zero) -> 0 | T244: =IFERROR((Tariff_O_F!T224-Tariff_O_Dr!T224)/Tariff_O_Dr!T224,Zero) -> 0 | U244: =IFERROR((Tariff_O_F!U224-Tariff_O_Dr!U224)/Tariff_O_Dr!U224,Zero) -> 0
B245: Powercor | F245: $/kWh | I245: =IFERROR((Tariff_O_F!I225-Tariff_O_Dr!I225)/Tariff_O_Dr!I225,Zero) -> 0 | J245: =IFERROR((Tariff_O_F!J225-Tariff_O_Dr!J225)/Tariff_O_Dr!J225,Zero) -> 0 | K245: =IFERROR((Tariff_O_F!K225-Tariff_O_Dr!K225)/Tariff_O_Dr!K225,Zero) -> 0 | L245: =IFERROR((Tariff_O_F!L225-Tariff_O_Dr!L225)/Tariff_O_Dr!L225,Zero) -> 0 | M245: =IFERROR((Tariff_O_F!M225-Tariff_O_Dr!M225)/Tariff_O_Dr!M225,Zero) -> 0 | N245: =IFERROR((Tariff_O_F!N225-Tariff_O_Dr!N225)/Tariff_O_Dr!N225,Zero) -> 0 | O245: =IFERROR((Tariff_O_F!O225-Tariff_O_Dr!O225)/Tariff_O_Dr!O225,Zero) -> 0 | P245: =IFERROR((Tariff_O_F!P225-Tariff_O_Dr!P225)/Tariff_O_Dr!P225,Zero) -> 0 | Q245: =IFERROR((Tariff_O_F!Q225-Tariff_O_Dr!Q225)/Tariff_O_Dr!Q225,Zero) -> 0 | R245: =IFERROR((Tariff_O_F!R225-Tariff_O_Dr!R225)/Tariff_O_Dr!R225,Zero) -> 0 | S245: =IFERROR((Tariff_O_F!S225-Tariff_O_Dr!S225)/Tariff_O_Dr!S225,Zero) -> 0 | T245: =IFERROR((Tariff_O_F!T225-Tariff_O_Dr!T225)/Tariff_O_Dr!T225,Zero) -> 0 | U245: =IFERROR((Tariff_O_F!U225-Tariff_O_Dr!U225)/Tariff_O_Dr!U225,Zero) -> 0
B246: United Energy | F246: $/kWh | I246: =IFERROR((Tariff_O_F!I226-Tariff_O_Dr!I226)/Tariff_O_Dr!I226,Zero) -> 0 | J246: =IFERROR((Tariff_O_F!J226-Tariff_O_Dr!J226)/Tariff_O_Dr!J226,Zero) -> 0 | K246: =IFERROR((Tariff_O_F!K226-Tariff_O_Dr!K226)/Tariff_O_Dr!K226,Zero) -> 0 | L246: =IFERROR((Tariff_O_F!L226-Tariff_O_Dr!L226)/Tariff_O_Dr!L226,Zero) -> 0 | M246: =IFERROR((Tariff_O_F!M226-Tariff_O_Dr!M226)/Tariff_O_Dr!M226,Zero) -> 0 | N246: =IFERROR((Tariff_O_F!N226-Tariff_O_Dr!N226)/Tariff_O_Dr!N226,Zero) -> 0 | O246: =IFERROR((Tariff_O_F!O226-Tariff_O_Dr!O226)/Tariff_O_Dr!O226,Zero) -> 0 | P246: =IFERROR((Tariff_O_F!P226-Tariff_O_Dr!P226)/Tariff_O_Dr!P226,Zero) -> 0 | Q246: =IFERROR((Tariff_O_F!Q226-Tariff_O_Dr!Q226)/Tariff_O_Dr!Q226,Zero) -> 0 | R246: =IFERROR((Tariff_O_F!R226-Tariff_O_Dr!R226)/Tariff_O_Dr!R226,Zero) -> 0 | S246: =IFERROR((Tariff_O_F!S226-Tariff_O_Dr!S226)/Tariff_O_Dr!S226,Zero) -> 0 | T246: =IFERROR((Tariff_O_F!T226-Tariff_O_Dr!T226)/Tariff_O_Dr!T226,Zero) -> 0 | U246: =IFERROR((Tariff_O_F!U226-Tariff_O_Dr!U226)/Tariff_O_Dr!U226,Zero) -> 0
B248: Balance
B249: Ausnet | F249: =$J$16 -> $/kWh | I249: =IFERROR((Tariff_O_F!I229-Tariff_O_Dr!I229)/Tariff_O_Dr!I229,Zero) -> 0.02909372263 | J249: =IFERROR((Tariff_O_F!J229-Tariff_O_Dr!J229)/Tariff_O_Dr!J229,Zero) -> 0 | K249: =IFERROR((Tariff_O_F!K229-Tariff_O_Dr!K229)/Tariff_O_Dr!K229,Zero) -> 0 | L249: =IFERROR((Tariff_O_F!L229-Tariff_O_Dr!L229)/Tariff_O_Dr!L229,Zero) -> 0 | M249: =IFERROR((Tariff_O_F!M229-Tariff_O_Dr!M229)/Tariff_O_Dr!M229,Zero) -> 0 | N249: =IFERROR((Tariff_O_F!N229-Tariff_O_Dr!N229)/Tariff_O_Dr!N229,Zero) -> 0 | O249: =IFERROR((Tariff_O_F!O229-Tariff_O_Dr!O229)/Tariff_O_Dr!O229,Zero) -> 0 | P249: =IFERROR((Tariff_O_F!P229-Tariff_O_Dr!P229)/Tariff_O_Dr!P229,Zero) -> 0 | Q249: =IFERROR((Tariff_O_F!Q229-Tariff_O_Dr!Q229)/Tariff_O_Dr!Q229,Zero) -> 0 | R249: =IFERROR((Tariff_O_F!R229-Tariff_O_Dr!R229)/Tariff_O_Dr!R229,Zero) -> 0 | S249: =IFERROR((Tariff_O_F!S229-Tariff_O_Dr!S229)/Tariff_O_Dr!S229,Zero) -> 0 | T249: =IFERROR((Tariff_O_F!T229-Tariff_O_Dr!T229)/Tariff_O_Dr!T229,Zero) -> 0 | U249: =IFERROR((Tariff_O_F!U229-Tariff_O_Dr!U229)/Tariff_O_Dr!U229,Zero) -> 0
B250: Citipower | F250: =$J$16 -> $/kWh | I250: =IFERROR((Tariff_O_F!I230-Tariff_O_Dr!I230)/Tariff_O_Dr!I230,Zero) -> 0 | J250: =IFERROR((Tariff_O_F!J230-Tariff_O_Dr!J230)/Tariff_O_Dr!J230,Zero) -> 0 | K250: =IFERROR((Tariff_O_F!K230-Tariff_O_Dr!K230)/Tariff_O_Dr!K230,Zero) -> 0 | L250: =IFERROR((Tariff_O_F!L230-Tariff_O_Dr!L230)/Tariff_O_Dr!L230,Zero) -> 0 | M250: =IFERROR((Tariff_O_F!M230-Tariff_O_Dr!M230)/Tariff_O_Dr!M230,Zero) -> 0 | N250: =IFERROR((Tariff_O_F!N230-Tariff_O_Dr!N230)/Tariff_O_Dr!N230,Zero) -> 0 | O250: =IFERROR((Tariff_O_F!O230-Tariff_O_Dr!O230)/Tariff_O_Dr!O230,Zero) -> 0 | P250: =IFERROR((Tariff_O_F!P230-Tariff_O_Dr!P230)/Tariff_O_Dr!P230,Zero) -> 0 | Q250: =IFERROR((Tariff_O_F!Q230-Tariff_O_Dr!Q230)/Tariff_O_Dr!Q230,Zero) -> 0 | R250: =IFERROR((Tariff_O_F!R230-Tariff_O_Dr!R230)/Tariff_O_Dr!R230,Zero) -> 0 | S250: =IFERROR((Tariff_O_F!S230-Tariff_O_Dr!S230)/Tariff_O_Dr!S230,Zero) -> 0 | T250: =IFERROR((Tariff_O_F!T230-Tariff_O_Dr!T230)/Tariff_O_Dr!T230,Zero) -> 0 | U250: =IFERROR((Tariff_O_F!U230-Tariff_O_Dr!U230)/Tariff_O_Dr!U230,Zero) -> 0
B251: Jemena | F251: $/kWh | I251: =IFERROR((Tariff_O_F!I231-Tariff_O_Dr!I231)/Tariff_O_Dr!I231,Zero) -> 0 | J251: =IFERROR((Tariff_O_F!J231-Tariff_O_Dr!J231)/Tariff_O_Dr!J231,Zero) -> 0 | K251: =IFERROR((Tariff_O_F!K231-Tariff_O_Dr!K231)/Tariff_O_Dr!K231,Zero) -> 0 | L251: =IFERROR((Tariff_O_F!L231-Tariff_O_Dr!L231)/Tariff_O_Dr!L231,Zero) -> 0 | M251: =IFERROR((Tariff_O_F!M231-Tariff_O_Dr!M231)/Tariff_O_Dr!M231,Zero) -> 0 | N251: =IFERROR((Tariff_O_F!N231-Tariff_O_Dr!N231)/Tariff_O_Dr!N231,Zero) -> 0 | O251: =IFERROR((Tariff_O_F!O231-Tariff_O_Dr!O231)/Tariff_O_Dr!O231,Zero) -> 0 | P251: =IFERROR((Tariff_O_F!P231-Tariff_O_Dr!P231)/Tariff_O_Dr!P231,Zero) -> 0 | Q251: =IFERROR((Tariff_O_F!Q231-Tariff_O_Dr!Q231)/Tariff_O_Dr!Q231,Zero) -> 0 | R251: =IFERROR((Tariff_O_F!R231-Tariff_O_Dr!R231)/Tariff_O_Dr!R231,Zero) -> 0 | S251: =IFERROR((Tariff_O_F!S231-Tariff_O_Dr!S231)/Tariff_O_Dr!S231,Zero) -> 0 | T251: =IFERROR((Tariff_O_F!T231-Tariff_O_Dr!T231)/Tariff_O_Dr!T231,Zero) -> 0 | U251: =IFERROR((Tariff_O_F!U231-Tariff_O_Dr!U231)/Tariff_O_Dr!U231,Zero) -> 0
B252: Powercor | F252: $/kWh | I252: =IFERROR((Tariff_O_F!I232-Tariff_O_Dr!I232)/Tariff_O_Dr!I232,Zero) -> 0 | J252: =IFERROR((Tariff_O_F!J232-Tariff_O_Dr!J232)/Tariff_O_Dr!J232,Zero) -> 0 | K252: =IFERROR((Tariff_O_F!K232-Tariff_O_Dr!K232)/Tariff_O_Dr!K232,Zero) -> 0 | L252: =IFERROR((Tariff_O_F!L232-Tariff_O_Dr!L232)/Tariff_O_Dr!L232,Zero) -> 0 | M252: =IFERROR((Tariff_O_F!M232-Tariff_O_Dr!M232)/Tariff_O_Dr!M232,Zero) -> 0 | N252: =IFERROR((Tariff_O_F!N232-Tariff_O_Dr!N232)/Tariff_O_Dr!N232,Zero) -> 0 | O252: =IFERROR((Tariff_O_F!O232-Tariff_O_Dr!O232)/Tariff_O_Dr!O232,Zero) -> 0 | P252: =IFERROR((Tariff_O_F!P232-Tariff_O_Dr!P232)/Tariff_O_Dr!P232,Zero) -> 0 | Q252: =IFERROR((Tariff_O_F!Q232-Tariff_O_Dr!Q232)/Tariff_O_Dr!Q232,Zero) -> 0 | R252: =IFERROR((Tariff_O_F!R232-Tariff_O_Dr!R232)/Tariff_O_Dr!R232,Zero) -> 0 | S252: =IFERROR((Tariff_O_F!S232-Tariff_O_Dr!S232)/Tariff_O_Dr!S232,Zero) -> 0 | T252: =IFERROR((Tariff_O_F!T232-Tariff_O_Dr!T232)/Tariff_O_Dr!T232,Zero) -> 0 | U252: =IFERROR((Tariff_O_F!U232-Tariff_O_Dr!U232)/Tariff_O_Dr!U232,Zero) -> 0
B253: United Energy | F253: $/kWh | I253: =IFERROR((Tariff_O_F!I233-Tariff_O_Dr!I233)/Tariff_O_Dr!I233,Zero) -> 0 | J253: =IFERROR((Tariff_O_F!J233-Tariff_O_Dr!J233)/Tariff_O_Dr!J233,Zero) -> 0 | K253: =IFERROR((Tariff_O_F!K233-Tariff_O_Dr!K233)/Tariff_O_Dr!K233,Zero) -> 0 | L253: =IFERROR((Tariff_O_F!L233-Tariff_O_Dr!L233)/Tariff_O_Dr!L233,Zero) -> 0 | M253: =IFERROR((Tariff_O_F!M233-Tariff_O_Dr!M233)/Tariff_O_Dr!M233,Zero) -> 0 | N253: =IFERROR((Tariff_O_F!N233-Tariff_O_Dr!N233)/Tariff_O_Dr!N233,Zero) -> 0 | O253: =IFERROR((Tariff_O_F!O233-Tariff_O_Dr!O233)/Tariff_O_Dr!O233,Zero) -> 0 | P253: =IFERROR((Tariff_O_F!P233-Tariff_O_Dr!P233)/Tariff_O_Dr!P233,Zero) -> 0 | Q253: =IFERROR((Tariff_O_F!Q233-Tariff_O_Dr!Q233)/Tariff_O_Dr!Q233,Zero) -> 0 | R253: =IFERROR((Tariff_O_F!R233-Tariff_O_Dr!R233)/Tariff_O_Dr!R233,Zero) -> 0 | S253: =IFERROR((Tariff_O_F!S233-Tariff_O_Dr!S233)/Tariff_O_Dr!S233,Zero) -> 0 | T253: =IFERROR((Tariff_O_F!T233-Tariff_O_Dr!T233)/Tariff_O_Dr!T233,Zero) -> 0 | U253: =IFERROR((Tariff_O_F!U233-Tariff_O_Dr!U233)/Tariff_O_Dr!U233,Zero) -> 0
B255: Controlled load
B256: Ausnet | F256: =$K$16 -> $/kWh | I256: =IFERROR((Tariff_O_F!I236-Tariff_O_Dr!I236)/Tariff_O_Dr!I236,Zero) -> 0 | J256: =IFERROR((Tariff_O_F!J236-Tariff_O_Dr!J236)/Tariff_O_Dr!J236,Zero) -> 0 | K256: =IFERROR((Tariff_O_F!K236-Tariff_O_Dr!K236)/Tariff_O_Dr!K236,Zero) -> 0 | L256: =IFERROR((Tariff_O_F!L236-Tariff_O_Dr!L236)/Tariff_O_Dr!L236,Zero) -> 0 | M256: =IFERROR((Tariff_O_F!M236-Tariff_O_Dr!M236)/Tariff_O_Dr!M236,Zero) -> 0 | N256: =IFERROR((Tariff_O_F!N236-Tariff_O_Dr!N236)/Tariff_O_Dr!N236,Zero) -> 0 | O256: =IFERROR((Tariff_O_F!O236-Tariff_O_Dr!O236)/Tariff_O_Dr!O236,Zero) -> 0 | P256: =IFERROR((Tariff_O_F!P236-Tariff_O_Dr!P236)/Tariff_O_Dr!P236,Zero) -> 0 | Q256: =IFERROR((Tariff_O_F!Q236-Tariff_O_Dr!Q236)/Tariff_O_Dr!Q236,Zero) -> 0 | R256: =IFERROR((Tariff_O_F!R236-Tariff_O_Dr!R236)/Tariff_O_Dr!R236,Zero) -> 0 | S256: =IFERROR((Tariff_O_F!S236-Tariff_O_Dr!S236)/Tariff_O_Dr!S236,Zero) -> 0 | T256: =IFERROR((Tariff_O_F!T236-Tariff_O_Dr!T236)/Tariff_O_Dr!T236,Zero) -> 0 | U256: =IFERROR((Tariff_O_F!U236-Tariff_O_Dr!U236)/Tariff_O_Dr!U236,Zero) -> 0
B257: Citipower | F257: =$K$16 -> $/kWh | I257: =IFERROR((Tariff_O_F!I237-Tariff_O_Dr!I237)/Tariff_O_Dr!I237,Zero) -> 0 | J257: =IFERROR((Tariff_O_F!J237-Tariff_O_Dr!J237)/Tariff_O_Dr!J237,Zero) -> 0 | K257: =IFERROR((Tariff_O_F!K237-Tariff_O_Dr!K237)/Tariff_O_Dr!K237,Zero) -> 0 | L257: =IFERROR((Tariff_O_F!L237-Tariff_O_Dr!L237)/Tariff_O_Dr!L237,Zero) -> 0 | M257: =IFERROR((Tariff_O_F!M237-Tariff_O_Dr!M237)/Tariff_O_Dr!M237,Zero) -> 0 | N257: =IFERROR((Tariff_O_F!N237-Tariff_O_Dr!N237)/Tariff_O_Dr!N237,Zero) -> 0 | O257: =IFERROR((Tariff_O_F!O237-Tariff_O_Dr!O237)/Tariff_O_Dr!O237,Zero) -> 0 | P257: =IFERROR((Tariff_O_F!P237-Tariff_O_Dr!P237)/Tariff_O_Dr!P237,Zero) -> 0 | Q257: =IFERROR((Tariff_O_F!Q237-Tariff_O_Dr!Q237)/Tariff_O_Dr!Q237,Zero) -> 0 | R257: =IFERROR((Tariff_O_F!R237-Tariff_O_Dr!R237)/Tariff_O_Dr!R237,Zero) -> 0 | S257: =IFERROR((Tariff_O_F!S237-Tariff_O_Dr!S237)/Tariff_O_Dr!S237,Zero) -> 0 | T257: =IFERROR((Tariff_O_F!T237-Tariff_O_Dr!T237)/Tariff_O_Dr!T237,Zero) -> 0 | U257: =IFERROR((Tariff_O_F!U237-Tariff_O_Dr!U237)/Tariff_O_Dr!U237,Zero) -> 0
B258: Jemena | F258: $/kWh | I258: =IFERROR((Tariff_O_F!I238-Tariff_O_Dr!I238)/Tariff_O_Dr!I238,Zero) -> 0 | J258: =IFERROR((Tariff_O_F!J238-Tariff_O_Dr!J238)/Tariff_O_Dr!J238,Zero) -> 0 | K258: =IFERROR((Tariff_O_F!K238-Tariff_O_Dr!K238)/Tariff_O_Dr!K238,Zero) -> 0 | L258: =IFERROR((Tariff_O_F!L238-Tariff_O_Dr!L238)/Tariff_O_Dr!L238,Zero) -> 0 | M258: =IFERROR((Tariff_O_F!M238-Tariff_O_Dr!M238)/Tariff_O_Dr!M238,Zero) -> 0 | N258: =IFERROR((Tariff_O_F!N238-Tariff_O_Dr!N238)/Tariff_O_Dr!N238,Zero) -> 0 | O258: =IFERROR((Tariff_O_F!O238-Tariff_O_Dr!O238)/Tariff_O_Dr!O238,Zero) -> 0 | P258: =IFERROR((Tariff_O_F!P238-Tariff_O_Dr!P238)/Tariff_O_Dr!P238,Zero) -> 0 | Q258: =IFERROR((Tariff_O_F!Q238-Tariff_O_Dr!Q238)/Tariff_O_Dr!Q238,Zero) -> 0 | R258: =IFERROR((Tariff_O_F!R238-Tariff_O_Dr!R238)/Tariff_O_Dr!R238,Zero) -> 0 | S258: =IFERROR((Tariff_O_F!S238-Tariff_O_Dr!S238)/Tariff_O_Dr!S238,Zero) -> 0 | T258: =IFERROR((Tariff_O_F!T238-Tariff_O_Dr!T238)/Tariff_O_Dr!T238,Zero) -> 0 | U258: =IFERROR((Tariff_O_F!U238-Tariff_O_Dr!U238)/Tariff_O_Dr!U238,Zero) -> 0
B259: Powercor | F259: $/kWh | I259: =IFERROR((Tariff_O_F!I239-Tariff_O_Dr!I239)/Tariff_O_Dr!I239,Zero) -> 0 | J259: =IFERROR((Tariff_O_F!J239-Tariff_O_Dr!J239)/Tariff_O_Dr!J239,Zero) -> 0 | K259: =IFERROR((Tariff_O_F!K239-Tariff_O_Dr!K239)/Tariff_O_Dr!K239,Zero) -> 0 | L259: =IFERROR((Tariff_O_F!L239-Tariff_O_Dr!L239)/Tariff_O_Dr!L239,Zero) -> 0 | M259: =IFERROR((Tariff_O_F!M239-Tariff_O_Dr!M239)/Tariff_O_Dr!M239,Zero) -> 0 | N259: =IFERROR((Tariff_O_F!N239-Tariff_O_Dr!N239)/Tariff_O_Dr!N239,Zero) -> 0 | O259: =IFERROR((Tariff_O_F!O239-Tariff_O_Dr!O239)/Tariff_O_Dr!O239,Zero) -> 0 | P259: =IFERROR((Tariff_O_F!P239-Tariff_O_Dr!P239)/Tariff_O_Dr!P239,Zero) -> 0 | Q259: =IFERROR((Tariff_O_F!Q239-Tariff_O_Dr!Q239)/Tariff_O_Dr!Q239,Zero) -> 0 | R259: =IFERROR((Tariff_O_F!R239-Tariff_O_Dr!R239)/Tariff_O_Dr!R239,Zero) -> 0 | S259: =IFERROR((Tariff_O_F!S239-Tariff_O_Dr!S239)/Tariff_O_Dr!S239,Zero) -> 0 | T259: =IFERROR((Tariff_O_F!T239-Tariff_O_Dr!T239)/Tariff_O_Dr!T239,Zero) -> 0 | U259: =IFERROR((Tariff_O_F!U239-Tariff_O_Dr!U239)/Tariff_O_Dr!U239,Zero) -> 0
B260: United Energy | F260: $/kWh | I260: =IFERROR((Tariff_O_F!I240-Tariff_O_Dr!I240)/Tariff_O_Dr!I240,Zero) -> 0 | J260: =IFERROR((Tariff_O_F!J240-Tariff_O_Dr!J240)/Tariff_O_Dr!J240,Zero) -> 0 | K260: =IFERROR((Tariff_O_F!K240-Tariff_O_Dr!K240)/Tariff_O_Dr!K240,Zero) -> 0 | L260: =IFERROR((Tariff_O_F!L240-Tariff_O_Dr!L240)/Tariff_O_Dr!L240,Zero) -> 0 | M260: =IFERROR((Tariff_O_F!M240-Tariff_O_Dr!M240)/Tariff_O_Dr!M240,Zero) -> 0 | N260: =IFERROR((Tariff_O_F!N240-Tariff_O_Dr!N240)/Tariff_O_Dr!N240,Zero) -> 0 | O260: =IFERROR((Tariff_O_F!O240-Tariff_O_Dr!O240)/Tariff_O_Dr!O240,Zero) -> 0 | P260: =IFERROR((Tariff_O_F!P240-Tariff_O_Dr!P240)/Tariff_O_Dr!P240,Zero) -> 0 | Q260: =IFERROR((Tariff_O_F!Q240-Tariff_O_Dr!Q240)/Tariff_O_Dr!Q240,Zero) -> 0 | R260: =IFERROR((Tariff_O_F!R240-Tariff_O_Dr!R240)/Tariff_O_Dr!R240,Zero) -> 0 | S260: =IFERROR((Tariff_O_F!S240-Tariff_O_Dr!S240)/Tariff_O_Dr!S240,Zero) -> 0 | T260: =IFERROR((Tariff_O_F!T240-Tariff_O_Dr!T240)/Tariff_O_Dr!T240,Zero) -> 0 | U260: =IFERROR((Tariff_O_F!U240-Tariff_O_Dr!U240)/Tariff_O_Dr!U240,Zero) -> 0
B262: ="Bills - "&$M$32 -> Bills - 12000 kWh/yr
B263: Ausnet | F263: =$M$16 -> $ | I263: =IFERROR((Tariff_O_F!I243-Tariff_O_Dr!I243)/Tariff_O_Dr!I243,Zero) -> 0.03330327272 | J263: =IFERROR((Tariff_O_F!J243-Tariff_O_Dr!J243)/Tariff_O_Dr!J243,Zero) -> 0 | K263: =IFERROR((Tariff_O_F!K243-Tariff_O_Dr!K243)/Tariff_O_Dr!K243,Zero) -> -0.01162356276 | L263: =IFERROR((Tariff_O_F!L243-Tariff_O_Dr!L243)/Tariff_O_Dr!L243,Zero) -> -0.001533488043 | M263: =IFERROR((Tariff_O_F!M243-Tariff_O_Dr!M243)/Tariff_O_Dr!M243,Zero) -> -0.001533488043 | N263: =IFERROR((Tariff_O_F!N243-Tariff_O_Dr!N243)/Tariff_O_Dr!N243,Zero) -> -0.02024962733 | O263: =IFERROR((Tariff_O_F!O243-Tariff_O_Dr!O243)/Tariff_O_Dr!O243,Zero) -> 0 | P263: =IFERROR((Tariff_O_F!P243-Tariff_O_Dr!P243)/Tariff_O_Dr!P243,Zero) -> 0 | Q263: =IFERROR((Tariff_O_F!Q243-Tariff_O_Dr!Q243)/Tariff_O_Dr!Q243,Zero) -> 0 | R263: =IFERROR((Tariff_O_F!R243-Tariff_O_Dr!R243)/Tariff_O_Dr!R243,Zero) -> 0 | S263: =IFERROR((Tariff_O_F!S243-Tariff_O_Dr!S243)/Tariff_O_Dr!S243,Zero) -> 0 | T263: =IFERROR((Tariff_O_F!T243-Tariff_O_Dr!T243)/Tariff_O_Dr!T243,Zero) -> 0 | U263: =IFERROR((Tariff_O_F!U243-Tariff_O_Dr!U243)/Tariff_O_Dr!U243,Zero) -> 0
B264: Citipower | F264: =$M$16 -> $ | I264: =IFERROR((Tariff_O_F!I244-Tariff_O_Dr!I244)/Tariff_O_Dr!I244,Zero) -> 0.0561813702 | J264: =IFERROR((Tariff_O_F!J244-Tariff_O_Dr!J244)/Tariff_O_Dr!J244,Zero) -> 0 | K264: =IFERROR((Tariff_O_F!K244-Tariff_O_Dr!K244)/Tariff_O_Dr!K244,Zero) -> -0.002036303077 | L264: =IFERROR((Tariff_O_F!L244-Tariff_O_Dr!L244)/Tariff_O_Dr!L244,Zero) -> -0.002036303077 | M264: =IFERROR((Tariff_O_F!M244-Tariff_O_Dr!M244)/Tariff_O_Dr!M244,Zero) -> -0.002036303077 | N264: =IFERROR((Tariff_O_F!N244-Tariff_O_Dr!N244)/Tariff_O_Dr!N244,Zero) -> 0 | O264: =IFERROR((Tariff_O_F!O244-Tariff_O_Dr!O244)/Tariff_O_Dr!O244,Zero) -> 0 | P264: =IFERROR((Tariff_O_F!P244-Tariff_O_Dr!P244)/Tariff_O_Dr!P244,Zero) -> 0 | Q264: =IFERROR((Tariff_O_F!Q244-Tariff_O_Dr!Q244)/Tariff_O_Dr!Q244,Zero) -> 0 | R264: =IFERROR((Tariff_O_F!R244-Tariff_O_Dr!R244)/Tariff_O_Dr!R244,Zero) -> 0 | S264: =IFERROR((Tariff_O_F!S244-Tariff_O_Dr!S244)/Tariff_O_Dr!S244,Zero) -> 0 | T264: =IFERROR((Tariff_O_F!T244-Tariff_O_Dr!T244)/Tariff_O_Dr!T244,Zero) -> 0 | U264: =IFERROR((Tariff_O_F!U244-Tariff_O_Dr!U244)/Tariff_O_Dr!U244,Zero) -> 0
... 16 more rows

Sheet Calc_C_F (hidden)
A1: =MdlTtl -> Victorian Default Offer Model
A2: =_xlfn.SHEET() -> 12 | B2: GENERAL CALCULATIONS WITH FINAL INPUTS
B3: General model calculations using final inputs | G3: Period Selected:
B4: =Chk_C!B10 -> Error check breaches: 16. Update model macro: 1 | E4: Start | F4: =Inputs_A_Dr!$C$17 -> 2020-01-01
E5: End | F5: =Inputs_A_Dr!$C$18 -> 2020-12-31
A6: To Contents
A8: =ROUNDDOWN(MAX($A$7:OFFSET(A8,-One,0),$A$2*Sht)+Sxn,0) -> 1201 | B8: Distributor Details
A10: =MAX(A$2:OFFSET($A10,-One,0))+Sbsxn -> 1201.01 | B10: Distributor
B12: =Gen_A!A89 -> 1 | G12: =Gen_A!A90 -> 2 | L12: =Gen_A!A91 -> 3 | Q12: =Gen_A!A92 -> 4 | V12: =Gen_A!A93 -> 5
B13: =INDEX(Gen_A!$B$89:$B$93,$B$12) -> Ausnet | G13: =INDEX(Gen_A!$B$89:$B$93,$G$12) -> Citipower | L13: =INDEX(Gen_A!$B$89:$B$93,$L$12) -> Jemena | Q13: =INDEX(Gen_A!$B$89:$B$93,$Q$12) -> Powercor | V13: =INDEX(Gen_A!$B$89:$B$93,$V$12) -> United Energy
A15: =ROUNDDOWN(MAX($A$7:OFFSET(A15,-One,0),$A$2*Sht)+Sxn,0) -> 1202 | B15: CPI
A17: =MAX(A$2:OFFSET($A17,-One,0))+Sbsxn -> 1202.01 | B17: =B15 -> CPI
B19: Current Period | D19: =Inputs_A_F!$C$18 -> 2020-12-31
B20: Latest CPI Period | D20: =INDEX(Time_A!$B$23:$B$135,MATCH(One,Time_A!$E$23:$E$135,0)) -> 2019-09-30
B21: CPI Index - Latest CPI Period | E21: =INDEX(Time_A!$D$23:$D$135,MATCH(One,Time_A!$E$23:$E$135,0)) -> 115.4
A23: =ROUNDDOWN(MAX($A$7:OFFSET(A23,-One,0),$A$2*Sht)+Sxn,0) -> 1203 | B23: Summary of unit charges
A25: =MAX(A$2:OFFSET($A25,-One,0))+Sbsxn -> 1203.01 | B25: =B23 -> Summary of unit charges
B27: =$B45 -> Fixed Costs | G27: =$B45 -> Fixed Costs | L27: =$B45 -> Fixed Costs | Q27: =$B45 -> Fixed Costs | V27: =$B45 -> Fixed Costs
B28: =Inputs_A_F!B26 -> Retail operating cost | C28: =Inputs_A_F!C26 -> $/customer | E28: =E55 -> 136.21028 | G28: =Inputs_A_F!B26 -> Retail operating cost | H28: =Inputs_A_F!C26 -> $/customer | J28: =$E28 -> 136.21028 | L28: =Inputs_A_F!B26 -> Retail operating cost | M28: =Inputs_A_F!C26 -> $/customer | O28: =$E28 -> 136.21028 | Q28: =Inputs_A_F!B26 -> Retail operating cost | R28: =Inputs_A_F!C26 -> $/customer | T28: =$E28 -> 136.21028 | V28: =Inputs_A_F!B26 -> Retail operating cost | W28: =Inputs_A_F!C26 -> $/customer | Y28: =$E28 -> 136.21028
B29: =Inputs_A_F!B34 -> Customer acquisition and retention cost | C29: =Inputs_A_F!C34 -> $/customer | E29: =E63 -> 38.19860627 | G29: =Inputs_A_F!B34 -> Customer acquisition and retention cost | H29: =Inputs_A_F!C34 -> $/customer | J29: =$E29 -> 38.19860627 | L29: =Inputs_A_F!B34 -> Customer acquisition and retention cost | M29: =Inputs_A_F!C34 -> $/customer | O29: 38.19860627 | Q29: =Inputs_A_F!B34 -> Customer acquisition and retention cost | R29: =Inputs_A_F!C34 -> $/customer | T29: 38.19860627 | V29: =Inputs_A_F!B34 -> Customer acquisition and retention cost | W29: =Inputs_A_F!C34 -> $/customer | Y29: 38.19860627
B30: =Inputs_A_F!B125 -> Network supply charge - Residential | C30: =Inputs_A_F!C128 -> $/customer | E30: =E131 -> 169.4 | G30: =Inputs_A_F!B125 -> Network supply charge - Residential | H30: =Inputs_A_F!C128 -> $/customer | J30: =J131 -> 166.3 | L30: =Inputs_A_F!B125 -> Network supply charge - Residential | M30: =Inputs_A_F!C128 -> $/customer | O30: =O131 -> 138.82 | Q30: =Inputs_A_F!B125 -> Network supply charge - Residential | R30: =Inputs_A_F!C128 -> $/customer | T30: =T131 -> 207.3 | V30: =Inputs_A_F!B125 -> Network supply charge - Residential | W30: =Inputs_A_F!C128 -> $/customer | Y30: =Y131 -> 101.4245
B31: =Inputs_A_F!B172 -> Network supply charge - Small Business | C31: =Inputs_A_F!C175 -> $/customer | E31: =E132 -> 169.4 | G31: =Inputs_A_F!B172 -> Network supply charge - Small Business | H31: =Inputs_A_F!C175 -> $/customer | J31: =J132 -> 231.3 | L31: =Inputs_A_F!B172 -> Network supply charge - Small Business | M31: =Inputs_A_F!C175 -> $/customer | O31: =O132 -> 182.15 | Q31: =Inputs_A_F!B172 -> Network supply charge - Small Business | R31: =Inputs_A_F!C175 -> $/customer | T31: =T132 -> 247.3 | V31: =Inputs_A_F!B172 -> Network supply charge - Small Business | W31: =Inputs_A_F!C175 -> $/customer | Y31: =Y132 -> 121.0615
B32: =Inputs_A_F!B52 -> Ancillary | C32: =Inputs_A_F!C54 -> $/customer | E32: =E101 -> 4.781777013 | G32: =Inputs_A_F!B52 -> Ancillary | H32: =Inputs_A_F!C54 -> $/customer | J32: 4.781777013 | L32: =Inputs_A_F!B52 -> Ancillary | M32: =Inputs_A_F!C54 -> $/customer | O32: 4.781777013 | Q32: =Inputs_A_F!B52 -> Ancillary | R32: =Inputs_A_F!C54 -> $/customer | T32: 4.781777013 | V32: =Inputs_A_F!B52 -> Ancillary | W32: =Inputs_A_F!C54 -> $/customer | Y32: 4.781777013
B33: =Inputs_A_F!B44 -> Feed-in tariff (FiT) | C33: =Inputs_A_F!C44 -> $/customer | E33: =E73 -> 8.392848052 | G33: =Inputs_A_F!B44 -> Feed-in tariff (FiT) | H33: =Inputs_A_F!C44 -> $/customer | J33: 8.392848052 | L33: =Inputs_A_F!B44 -> Feed-in tariff (FiT) | M33: =Inputs_A_F!C44 -> $/customer | O33: 8.392848052 | Q33: =Inputs_A_F!B44 -> Feed-in tariff (FiT) | R33: =Inputs_A_F!C44 -> $/customer | T33: 8.392848052 | V33: =Inputs_A_F!B44 -> Feed-in tariff (FiT) | W33: =Inputs_A_F!C44 -> $/customer | Y33: 8.392848052
B35: =$B134 -> Variable Costs | G35: =$B134 -> Variable Costs | L35: =$B134 -> Variable Costs | Q35: =$B134 -> Variable Costs | V35: =$B134 -> Variable Costs
B36: =Inputs_A_F!B224 -> Wholesale price - residential | C36: =C141 -> $/kWh | E36: =E156 -> 0.1216 | G36: =Inputs_A_F!B224 -> Wholesale price - residential | H36: =H141 -> $/kWh | J36: =J156 -> 0.1184 | L36: =Inputs_A_F!B224 -> Wholesale price - residential | M36: =M141 -> $/kWh | O36: =O156 -> 0.12664 | Q36: =Inputs_A_F!B224 -> Wholesale price - residential | R36: =R141 -> $/kWh | T36: =T156 -> 0.11952 | V36: =Inputs_A_F!B224 -> Wholesale price - residential | W36: =W141 -> $/kWh | Y36: =Y156 -> 0.12763
B37: =Inputs_A_F!B321 -> Wholesale price - small business | C37: =C36 -> $/kWh | E37: =E176 -> 0.11257 | G37: =Inputs_A_F!B321 -> Wholesale price - small business | H37: =H36 -> $/kWh | J37: =J176 -> 0.11555 | L37: =Inputs_A_F!B321 -> Wholesale price - small business | M37: =M36 -> $/kWh | O37: =O176 -> 0.11513 | Q37: =Inputs_A_F!B321 -> Wholesale price - small business | R37: =R36 -> $/kWh | T37: =T176 -> 0.11041 | V37: =Inputs_A_F!B321 -> Wholesale price - small business | W37: =W36 -> $/kWh | Y37: =Y176 -> 0.11724
B38: =B178 -> Environmental programs | C38: =C37 -> $/kWh | E38: =E217 -> 0.01953191513 | G38: =$B38 -> Environmental programs | H38: =H37 -> $/kWh | J38: =J217 -> 0.01953191513 | L38: =$B38 -> Environmental programs | M38: =M37 -> $/kWh | O38: =O217 -> 0.01953191513 | Q38: =$B38 -> Environmental programs | R38: =R37 -> $/kWh | T38: =T217 -> 0.01953191513 | V38: =$B38 -> Environmental programs | W38: =W37 -> $/kWh | Y38: =Y217 -> 0.01953191513
B39: =Inputs_A_F!B483 -> Ancillary | C39: =C222 -> $/kWh | E39: =E253 -> 0.00103256941 | G39: =Inputs_A_F!B483 -> Ancillary | H39: =H222 -> $/kWh | J39: =J253 -> 0.00103256941 | L39: =Inputs_A_F!B483 -> Ancillary | M39: =M222 -> $/kWh | O39: =O253 -> 0.00103256941 | Q39: =Inputs_A_F!B483 -> Ancillary | R39: =R222 -> $/kWh | T39: =T253 -> 0.00103256941 | V39: =Inputs_A_F!B483 -> Ancillary | W39: =W222 -> $/kWh | Y39: =Y253 -> 0.00103256941
B41: Other | G41: Other | L41: Other | Q41: Other | V41: Other
B42: =Inputs_A_F!B862 -> Retail operating margin | C42: =Inputs_A_F!C862 -> % | E42: =Inputs_A_F!I862 -> 0.0604 | G42: =Inputs_A_F!B862 -> Retail operating margin | H42: =Inputs_A_F!C862 -> % | J42: =Inputs_A_F!I862 -> 0.0604 | L42: =Inputs_A_F!B862 -> Retail operating margin | M42: =Inputs_A_F!C862 -> % | O42: =Inputs_A_F!I862 -> 0.0604 | Q42: =Inputs_A_F!B862 -> Retail operating margin | R42: =Inputs_A_F!C862 -> % | T42: =Inputs_A_F!I862 -> 0.0604 | V42: =Inputs_A_F!B862 -> Retail operating margin | W42: =Inputs_A_F!C862 -> % | Y42: =Inputs_A_F!I862 -> 0.0604
B43: =B257 -> Network loss factors | C43: =C42 -> % | E43: =E260 -> 0.05297910278 | G43: =$B43 -> Network loss factors | H43: =H42 -> % | J43: =J260 -> 0.044791974 | L43: =$B43 -> Network loss factors | M43: =M42 -> % | O43: =O260 -> 0.04013312 | Q43: =$B43 -> Network loss factors | R43: =R42 -> % | T43: =T260 -> 0.0462885475 | V43: =$B43 -> Network loss factors | W43: =W42 -> % | Y43: =Y260 -> 0.05263459
A45: =ROUNDDOWN(MAX($A$7:OFFSET(A45,-One,0),$A$2*Sht)+Sxn,0) -> 1204 | B45: Fixed Costs
A47: =MAX(A$2:OFFSET($A47,-One,0))+Sbsxn -> 1204.01 | B47: =Inputs_A_F!B24 -> Retail
B49: =Inputs_A_F!B26 -> Retail operating cost
B50: Cost - Before Escalation | C50: =Inputs_A_F!C26 -> $/customer | E50: =Inputs_A_F!I26 -> 136.21028
B52: CPI Index - Base Period | D52: =Inputs_A_F!I27 -> 2019-09-30 | E52: =INDEX(Time_A!$D$23:$D$135,MATCH(D52,Time_A!$B$23:$B$135,0)) -> 115.4
B53: =$B$21 -> CPI Index - Latest CPI Period | E53: =$E$21 -> 115.4
B54: CPI Escalation | E54: =IF(E52=Zero,Zero,(E53-E52)/E52) -> 0
B55: Cost - Post Escalation | C55: =C50 -> $/customer | E55: =(One+E54)*E50 -> 136.21028
B57: =Inputs_A_F!B34 -> Customer acquisition and retention cost
B58: Cost - Before Escalation | C58: =Inputs_A_F!C44 -> $/customer | E58: =Inputs_A_F!I34 -> 38
B60: CPI Index - Base Period | D60: =Inputs_A_F!I35 -> 2019-06-30 | E60: =INDEX(Time_A!$D$23:$D$135,MATCH(D60,Time_A!$B$23:$B$135,0)) -> 114.8
B61: =$B$21 -> CPI Index - Latest CPI Period | E61: =$E$21 -> 115.4
B62: CPI Escalation | E62: =IF(E60=Zero,Zero,(E61-E60)/E60) -> 0.005226480836
B63: Cost - Post Escalation | C63: =C58 -> $/customer | E63: =(One+E62)*E58 -> 38.19860627
A65: =MAX(A$2:OFFSET($A65,-One,0))+Sbsxn -> 1204.02 | B65: =Inputs_A_F!B42 -> Solar
B67: =Inputs_A_F!B44 -> Feed-in tariff (FiT)
B68: Cost - Before Escalation | C68: =Inputs_A_F!C44 -> $/customer | E68: =Inputs_A_F!I44 -> 8.349211061
B70: CPI Index - Base Period | D70: =Inputs_A_F!I45 -> 2019-06-30 | E70: =INDEX(Time_A!$D$23:$D$135,MATCH(D70,Time_A!$B$23:$B$135,0)) -> 114.8
B71: =$B$21 -> CPI Index - Latest CPI Period | E71: =$E$21 -> 115.4
B72: CPI Escalation | E72: =IF(E70=Zero,Zero,(E71-E70)/E70) -> 0.005226480836
B73: Cost - Post Escalation | C73: =C68 -> $/customer | E73: =(One+E72)*E68 -> 8.392848052
A75: =MAX(A$2:OFFSET($A75,-One,0))+Sbsxn -> 1204.03 | B75: =Inputs_A_F!$B$52 -> Ancillary
B77: =Inputs_A_F!$B$54 -> ESC licence fees
B78: Cost - Before Escalation | C78: =Inputs_A_F!C54 -> $/customer | E78: =Inputs_A_F!I54 -> 0.959361324
B80: CPI Index - Base Period | D80: =Inputs_A_F!I$55 -> 2018-06-30 | E80: =INDEX(Time_A!$D$23:$D$135,MATCH(D80,Time_A!$B$23:$B$135,0)) -> 113
B81: =$B$21 -> CPI Index - Latest CPI Period | E81: =$E$21 -> 115.4
B82: CPI Escalation | E82: =IF(E80=Zero,Zero,(E81-E80)/E80) -> 0.02123893805
B83: Cost - Post Escalation | C83: =C78 -> $/customer | E83: =(One+E82)*E78 -> 0.9797371398
B85: =Inputs_A_F!$B$62 -> Reliability and emergency reserve trader (RERT)
B86: Cost - Before Escalation | C86: =Inputs_A_F!C62 -> $/customer | E86: =Inputs_A_F!I62 -> 3.2
B88: CPI Index - Base Period | D88: =Inputs_A_F!I$63 -> 2018-12-31 | E88: =INDEX(Time_A!$D$23:$D$135,MATCH(D88,Time_A!$B$23:$B$135,0)) -> 114.1
B89: =$B$21 -> CPI Index - Latest CPI Period | E89: =$E$21 -> 115.4
B90: CPI Escalation | E90: =IF(E88=Zero,Zero,(E89-E88)/E88) -> 0.01139351446
B91: Cost - Post Escalation | C91: =C86 -> $/customer | E91: =(One+E90)*E86 -> 3.236459246
B93: =Inputs_A_F!$B$70 -> Electricity consumer advocacy panel
B94: Cost - Before Escalation | C94: =Inputs_A_F!C70 -> $/customer/week | E94: =Inputs_A_F!I70 -> 0.01082
B96: CPI Index - Base Period | D96: =Inputs_A_F!I$71 -> 2019-06-30 | E96: =INDEX(Time_A!$D$23:$D$135,MATCH(D96,Time_A!$B$23:$B$135,0)) -> 114.8
B97: =$B$21 -> CPI Index - Latest CPI Period | E97: =$E$21 -> 115.4
B98: CPI Escalation | E98: =IF(E96=Zero,Zero,(E97-E96)/E96) -> 0.005226480836
B99: Cost - Post Escalation | C99: =C94 -> $/customer/week | E99: =(One+E98)*E94 -> 0.01087655052
B101: =B75 -> Ancillary | C101: =C78 -> $/customer | E101: =SUM(E83,E91,E99*WiY) -> 4.781777013
A103: =MAX(A$2:OFFSET($A103,-One,0))+Sbsxn -> 1204.04 | B103: Network supply charge
B105: =$B$13 -> Ausnet | C105: =$B$12 -> 1 | G105: =$G$13 -> Citipower | H105: =$G$12 -> 2 | L105: =$L$13 -> Jemena | M105: =$L$12 -> 3 | Q105: =$Q$13 -> Powercor | R105: =$Q$12 -> 4 | V105: =$V$13 -> United Energy | W105: =$V$12 -> 5
B107: =Inputs_A_F!B78 -> Metering | G107: =B107 -> Metering | L107: =G107 -> Metering | Q107: =L107 -> Metering | V107: =Q107 -> Metering
B108: Cost - Before Escalation | C108: =Inputs_A_F!C81 -> $/customer | E108: =CHOOSE($C$105,Inputs_A_F!I81,Inputs_A_F!I90,Inputs_A_F!I99,Inputs_A_F!I108,Inputs_A_F!I117) -> 51.4 | G108: =B108 -> Cost - Before Escalation | H108: =Inputs_A_F!C81 -> $/customer | J108: =CHOOSE($H$105,Inputs_A_F!I81,Inputs_A_F!I90,Inputs_A_F!I99,Inputs_A_F!I108,Inputs_A_F!I117) -> 71.3 | L108: =G108 -> Cost - Before Escalation | M108: =Inputs_A_F!C81 -> $/customer | O108: =CHOOSE($M$105,Inputs_A_F!I81,Inputs_A_F!I90,Inputs_A_F!I99,Inputs_A_F!I108,Inputs_A_F!I117) -> 79.64 | Q108: =L108 -> Cost - Before Escalation | R108: =Inputs_A_F!C81 -> $/customer | T108: =CHOOSE($R$105,Inputs_A_F!I81,Inputs_A_F!I90,Inputs_A_F!I99,Inputs_A_F!I108,Inputs_A_F!I117) -> 67.3 | V108: =Q108 -> Cost - Before Escalation | W108: =Inputs_A_F!C81 -> $/customer | Y108: =CHOOSE($W$105,Inputs_A_F!I81,Inputs_A_F!I90,Inputs_A_F!I99,Inputs_A_F!I108,Inputs_A_F!I117) -> 54.23
B110: CPI Index - Base Period | D110: =CHOOSE($C$105,Inputs_A_F!I82,Inputs_A_F!I91,Inputs_A_F!I100,Inputs_A_F!I109,Inputs_A_F!I118) -> 2019-12-31 | E110: =INDEX(Time_A!$D$23:$D$135,MATCH(D110,Time_A!$B$23:$B$135,0)) -> 0 | G110: =B110 -> CPI Index - Base Period | I110: =CHOOSE($H$105,Inputs_A_F!I82,Inputs_A_F!I91,Inputs_A_F!I100,Inputs_A_F!I109,Inputs_A_F!I118) -> 2019-12-31 | J110: =INDEX(Time_A!$D$23:$D$135,MATCH(I110,Time_A!$B$23:$B$135,0)) -> 0 | L110: =G110 -> CPI Index - Base Period | N110: =CHOOSE($M$105,Inputs_A_F!I82,Inputs_A_F!I91,Inputs_A_F!I100,Inputs_A_F!I109,Inputs_A_F!I118) -> 2019-12-31 | O110: =INDEX(Time_A!$D$23:$D$135,MATCH(N110,Time_A!$B$23:$B$135,0)) -> 0 | Q110: =L110 -> CPI Index - Base Period | S110: =CHOOSE($R$105,Inputs_A_F!I82,Inputs_A_F!I91,Inputs_A_F!I100,Inputs_A_F!I109,Inputs_A_F!I118) -> 2019-12-31 | T110: =INDEX(Time_A!$D$23:$D$135,MATCH(S110,Time_A!$B$23:$B$135,0)) -> 0 | V110: =Q110 -> CPI Index - Base Period | X110: =CHOOSE($W$105,Inputs_A_F!I82,Inputs_A_F!I91,Inputs_A_F!I100,Inputs_A_F!I109,Inputs_A_F!I118) -> 2019-12-31 | Y110: =INDEX(Time_A!$D$23:$D$135,MATCH(X110,Time_A!$B$23:$B$135,0)) -> 0
B111: =$B$21 -> CPI Index - Latest CPI Period | E111: =$E$21 -> 115.4 | G111: CPI Index - Latest CPI Period | J111: =$E$21 -> 115.4 | L111: CPI Index - Latest CPI Period | O111: =$E$21 -> 115.4 | Q111: CPI Index - Latest CPI Period | T111: =$E$21 -> 115.4 | V111: CPI Index - Latest CPI Period | Y111: =$E$21 -> 115.4
B112: CPI Escalation | E112: =IF(E110=Zero,Zero,(E111-E110)/E110) -> 0 | G112: CPI Escalation | J112: =IF(J110=Zero,Zero,(J111-J110)/J110) -> 0 | L112: CPI Escalation | O112: =IF(O110=Zero,Zero,(O111-O110)/O110) -> 0 | Q112: CPI Escalation | T112: =IF(T110=Zero,Zero,(T111-T110)/T110) -> 0 | V112: CPI Escalation | Y112: =IF(Y110=Zero,Zero,(Y111-Y110)/Y110) -> 0
B113: Cost - Post Escalation | C113: =C108 -> $/customer | E113: =(One+E112)*E108 -> 51.4 | G113: =B113 -> Cost - Post Escalation | H113: =H108 -> $/customer | J113: =(One+J112)*J108 -> 71.3 | L113: =G113 -> Cost - Post Escalation | M113: =M108 -> $/customer | O113: =(One+O112)*O108 -> 79.64 | Q113: =L113 -> Cost - Post Escalation | R113: =R108 -> $/customer | T113: =(One+T112)*T108 -> 67.3 | V113: =Q113 -> Cost - Post Escalation | W113: =W108 -> $/customer | Y113: =(One+Y112)*Y108 -> 54.23
B115: =Inputs_A_F!B125 -> Network supply charge - Residential | G115: =B115 -> Network supply charge - Residential | L115: =G115 -> Network supply charge - Residential | Q115: =L115 -> Network supply charge - Residential | V115: =Q115 -> Network supply charge - Residential
B116: Cost - Before Escalation | C116: =Inputs_A_F!C128 -> $/customer | E116: =CHOOSE($C$105,Inputs_A_F!I128,Inputs_A_F!I137,Inputs_A_F!I146,Inputs_A_F!I155,Inputs_A_F!I164) -> 118 | G116: Cost - Before Escalation | H116: =Inputs_A_F!C128 -> $/customer | J116: =CHOOSE($H$105,Inputs_A_F!I128,Inputs_A_F!I137,Inputs_A_F!I146,Inputs_A_F!I155,Inputs_A_F!I164) -> 95 | L116: Cost - Before Escalation | M116: =Inputs_A_F!C128 -> $/customer | O116: =CHOOSE($M$105,Inputs_A_F!I128,Inputs_A_F!I137,Inputs_A_F!I146,Inputs_A_F!I155,Inputs_A_F!I164) -> 59.18 | Q116: Cost - Before Escalation | R116: =Inputs_A_F!C128 -> $/customer | T116: =CHOOSE($R$105,Inputs_A_F!I128,Inputs_A_F!I137,Inputs_A_F!I146,Inputs_A_F!I155,Inputs_A_F!I164) -> 140 | V116: Cost - Before Escalation | W116: =Inputs_A_F!C128 -> $/customer | Y116: =CHOOSE($W$105,Inputs_A_F!I128,Inputs_A_F!I137,Inputs_A_F!I146,Inputs_A_F!I155,Inputs_A_F!I164) -> 47.1945
B118: CPI Index - Base Period | D118: =CHOOSE($C$105,Inputs_A_F!I129,Inputs_A_F!I138,Inputs_A_F!I147,Inputs_A_F!I156,Inputs_A_F!I165) -> 2019-12-31 | E118: =INDEX(Time_A!$D$23:$D$135,MATCH(D118,Time_A!$B$23:$B$135,0)) -> 0 | G118: CPI Index - Base Period | I118: =CHOOSE($H$105,Inputs_A_F!I129,Inputs_A_F!I138,Inputs_A_F!I147,Inputs_A_F!I156,Inputs_A_F!I165) -> 2019-12-31 | J118: =INDEX(Time_A!$D$23:$D$135,MATCH(I118,Time_A!$B$23:$B$135,0)) -> 0 | L118: CPI Index - Base Period | N118: =CHOOSE($M$105,Inputs_A_F!I129,Inputs_A_F!I138,Inputs_A_F!I147,Inputs_A_F!I156,Inputs_A_F!I165) -> 2019-12-31 | O118: =INDEX(Time_A!$D$23:$D$135,MATCH(N118,Time_A!$B$23:$B$135,0)) -> 0 | Q118: CPI Index - Base Period | S118: =CHOOSE($R$105,Inputs_A_F!I129,Inputs_A_F!I138,Inputs_A_F!I147,Inputs_A_F!I156,Inputs_A_F!I165) -> 2019-12-31 | T118: =INDEX(Time_A!$D$23:$D$135,MATCH(S118,Time_A!$B$23:$B$135,0)) -> 0 | V118: CPI Index - Base Period | X118: =CHOOSE($W$105,Inputs_A_F!I129,Inputs_A_F!I138,Inputs_A_F!I147,Inputs_A_F!I156,Inputs_A_F!I165) -> 2019-12-31 | Y118: =INDEX(Time_A!$D$23:$D$135,MATCH(X118,Time_A!$B$23:$B$135,0)) -> 0
B119: =$B$21 -> CPI Index - Latest CPI Period | E119: =$E$21 -> 115.4 | G119: CPI Index - Latest CPI Period | J119: =$E$21 -> 115.4 | L119: CPI Index - Latest CPI Period | O119: =$E$21 -> 115.4 | Q119: CPI Index - Latest CPI Period | T119: =$E$21 -> 115.4 | V119: CPI Index - Latest CPI Period | Y119: =$E$21 -> 115.4
B120: CPI Escalation | E120: =IF(E118=Zero,Zero,(E119-E118)/E118) -> 0 | G120: CPI Escalation | J120: =IF(J118=Zero,Zero,(J119-J118)/J118) -> 0 | L120: CPI Escalation | O120: =IF(O118=Zero,Zero,(O119-O118)/O118) -> 0 | Q120: CPI Escalation | T120: =IF(T118=Zero,Zero,(T119-T118)/T118) -> 0 | V120: CPI Escalation | Y120: =IF(Y118=Zero,Zero,(Y119-Y118)/Y118) -> 0
B121: Cost - Post Escalation | C121: =C116 -> $/customer | E121: =(One+E120)*E116 -> 118 | G121: Cost - Post Escalation | H121: =H116 -> $/customer | J121: =(One+J120)*J116 -> 95 | L121: Cost - Post Escalation | M121: =M116 -> $/customer | O121: =(One+O120)*O116 -> 59.18 | Q121: Cost - Post Escalation | R121: =R116 -> $/customer | T121: =(One+T120)*T116 -> 140 | V121: Cost - Post Escalation | W121: =W116 -> $/customer | Y121: =(One+Y120)*Y116 -> 47.1945
B123: =Inputs_A_F!B172 -> Network supply charge - Small Business | G123: Network supply charge - Small Business | L123: Network supply charge - Small Business | Q123: Network supply charge - Small Business | V123: Network supply charge - Small Business
B124: Cost - Before Escalation | C124: =Inputs_A_F!C175 -> $/customer | E124: =CHOOSE($C$105,Inputs_A_F!I175,Inputs_A_F!I184,Inputs_A_F!I193,Inputs_A_F!I202,Inputs_A_F!I211) -> 118 | G124: Cost - Before Escalation | H124: =Inputs_A_F!C175 -> $/customer | J124: =CHOOSE($H$105,Inputs_A_F!I175,Inputs_A_F!I184,Inputs_A_F!I193,Inputs_A_F!I202,Inputs_A_F!I211) -> 160 | L124: Cost - Before Escalation | M124: =Inputs_A_F!C175 -> $/customer | O124: =CHOOSE($M$105,Inputs_A_F!I175,Inputs_A_F!I184,Inputs_A_F!I193,Inputs_A_F!I202,Inputs_A_F!I211) -> 102.51 | Q124: Cost - Before Escalation | R124: =Inputs_A_F!C175 -> $/customer | T124: =CHOOSE($R$105,Inputs_A_F!I175,Inputs_A_F!I184,Inputs_A_F!I193,Inputs_A_F!I202,Inputs_A_F!I211) -> 180 | V124: Cost - Before Escalation | W124: =Inputs_A_F!C175 -> $/customer | Y124: =CHOOSE($W$105,Inputs_A_F!I175,Inputs_A_F!I184,Inputs_A_F!I193,Inputs_A_F!I202,Inputs_A_F!I211) -> 66.8315
B126: CPI Index - Base Period | D126: =CHOOSE($C$105,Inputs_A_F!I176,Inputs_A_F!I185,Inputs_A_F!I194,Inputs_A_F!I203,Inputs_A_F!I212) -> 2019-12-31 | E126: =INDEX(Time_A!$D$23:$D$135,MATCH(D126,Time_A!$B$23:$B$135,0)) -> 0 | G126: CPI Index - Base Period | I126: =CHOOSE($H$105,Inputs_A_F!I176,Inputs_A_F!I185,Inputs_A_F!I194,Inputs_A_F!I203,Inputs_A_F!I212) -> 2019-12-31 | J126: =INDEX(Time_A!$D$23:$D$135,MATCH(I126,Time_A!$B$23:$B$135,0)) -> 0 | L126: CPI Index - Base Period | N126: =CHOOSE($M$105,Inputs_A_F!I176,Inputs_A_F!I185,Inputs_A_F!I194,Inputs_A_F!I203,Inputs_A_F!I212) -> 2019-12-31 | O126: =INDEX(Time_A!$D$23:$D$135,MATCH(N126,Time_A!$B$23:$B$135,0)) -> 0 | Q126: CPI Index - Base Period | S126: =CHOOSE($R$105,Inputs_A_F!I176,Inputs_A_F!I185,Inputs_A_F!I194,Inputs_A_F!I203,Inputs_A_F!I212) -> 2019-12-31 | T126: =INDEX(Time_A!$D$23:$D$135,MATCH(S126,Time_A!$B$23:$B$135,0)) -> 0 | V126: CPI Index - Base Period | X126: =CHOOSE($W$105,Inputs_A_F!I176,Inputs_A_F!I185,Inputs_A_F!I194,Inputs_A_F!I203,Inputs_A_F!I212) -> 2019-12-31 | Y126: =INDEX(Time_A!$D$23:$D$135,MATCH(X126,Time_A!$B$23:$B$135,0)) -> 0
B127: =$B$21 -> CPI Index - Latest CPI Period | E127: =$E$21 -> 115.4 | G127: CPI Index - Latest CPI Period | J127: =$E$21 -> 115.4 | L127: CPI Index - Latest CPI Period | O127: =$E$21 -> 115.4 | Q127: CPI Index - Latest CPI Period | T127: =$E$21 -> 115.4 | V127: CPI Index - Latest CPI Period | Y127: =$E$21 -> 115.4
B128: CPI Escalation | E128: =IF(E126=Zero,Zero,(E127-E126)/E126) -> 0 | G128: CPI Escalation | J128: =IF(J126=Zero,Zero,(J127-J126)/J126) -> 0 | L128: CPI Escalation | O128: =IF(O126=Zero,Zero,(O127-O126)/O126) -> 0 | Q128: CPI Escalation | T128: =IF(T126=Zero,Zero,(T127-T126)/T126) -> 0 | V128: CPI Escalation | Y128: =IF(Y126=Zero,Zero,(Y127-Y126)/Y126) -> 0
B129: Cost - Post Escalation | C129: =C124 -> $/customer | E129: =(One+E128)*E124 -> 118 | G129: Cost - Post Escalation | H129: =H124 -> $/customer | J129: =(One+J128)*J124 -> 160 | L129: Cost - Post Escalation | M129: =M124 -> $/customer | O129: =(One+O128)*O124 -> 102.51 | Q129: Cost - Post Escalation | R129: =R124 -> $/customer | T129: =(One+T128)*T124 -> 180 | V129: Cost - Post Escalation | W129: =W124 -> $/customer | Y129: =(One+Y128)*Y124 -> 66.8315
B131: Network Charge - Residential Inc Metering | C131: =C116 -> $/customer | E131: =SUM(E113,E121) -> 169.4 | G131: Network Charge - Residential Inc Metering | H131: =H116 -> $/customer | J131: =SUM(J113,J121) -> 166.3 | L131: Network Charge - Residential Inc Metering | M131: =M116 -> $/customer | O131: =SUM(O113,O121) -> 138.82 | Q131: Network Charge - Residential Inc Metering | R131: =R116 -> $/customer | T131: =SUM(T113,T121) -> 207.3 | V131: Network Charge - Residential Inc Metering | W131: =W116 -> $/customer | Y131: =SUM(Y113,Y121) -> 101.4245
B132: Network charge - Small Business Inc Metering | C132: =C124 -> $/customer | E132: =SUM(E113,E129) -> 169.4 | G132: Network charge - Small Business Inc Metering | H132: =H124 -> $/customer | J132: =SUM(J113,J129) -> 231.3 | L132: Network charge - Small Business Inc Metering | M132: =M124 -> $/customer | O132: =SUM(O113,O129) -> 182.15 | Q132: Network charge - Small Business Inc Metering | R132: =R124 -> $/customer | T132: =SUM(T113,T129) -> 247.3 | V132: Network charge - Small Business Inc Metering | W132: =W124 -> $/customer | Y132: =SUM(Y113,Y129) -> 121.0615
A134: =ROUNDDOWN(MAX($A$7:OFFSET(A134,-One,0),$A$2*Sht)+Sxn,0) -> 1205 | B134: Variable Costs
A136: =MAX(A$2:OFFSET($A136,-One,0))+Sbsxn -> 1205.01 | B136: =Inputs_A_F!B224 -> Wholesale price - residential
B138: =$B$13 -> Ausnet | C138: =$B$12 -> 1 | G138: =$G$13 -> Citipower | H138: =$G$12 -> 2 | L138: =$L$13 -> Jemena | M138: =$L$12 -> 3 | Q138: =$Q$13 -> Powercor | R138: =$Q$12 -> 4 | V138: =$V$13 -> United Energy | W138: =$V$12 -> 5
B140: =Inputs_A_F!B224 -> Wholesale price - residential | G140: =B140 -> Wholesale price - residential | L140: =G140 -> Wholesale price - residential | Q140: =L140 -> Wholesale price - residential | V140: =Q140 -> Wholesale price - residential
B141: Cost - Before Escalation | C141: $/kWh | E141: =CHOOSE($C$138,Inputs_A_F!I227,Inputs_A_F!I236,Inputs_A_F!I245,Inputs_A_F!I254,Inputs_A_F!I263)/Thousand -> 0.12133 | G141: =B141 -> Cost - Before Escalation | H141: $/kWh | J141: =CHOOSE($H$138,Inputs_A_F!I227,Inputs_A_F!I236,Inputs_A_F!I245,Inputs_A_F!I254,Inputs_A_F!I263)/Thousand -> 0.11811 | L141: =G141 -> Cost - Before Escalation | M141: $/kWh | O141: =CHOOSE($M$138,Inputs_A_F!I227,Inputs_A_F!I236,Inputs_A_F!I245,Inputs_A_F!I254,Inputs_A_F!I263)/Thousand -> 0.12628 | Q141: =L141 -> Cost - Before Escalation | R141: $/kWh | T141: =CHOOSE($R$138,Inputs_A_F!I227,Inputs_A_F!I236,Inputs_A_F!I245,Inputs_A_F!I254,Inputs_A_F!I263)/Thousand -> 0.1192 | V141: =Q141 -> Cost - Before Escalation | W141: $/kWh | Y141: =CHOOSE($W$138,Inputs_A_F!I227,Inputs_A_F!I236,Inputs_A_F!I245,Inputs_A_F!I254,Inputs_A_F!I263)/Thousand -> 0.12727
B143: CPI Index - Base Period | D143: =CHOOSE($C$138,Inputs_A_F!I228,Inputs_A_F!I237,Inputs_A_F!I246,Inputs_A_F!I255,Inputs_A_F!I264) -> 2019-12-31 | E143: =INDEX(Time_A!$D$23:$D$135,MATCH(D143,Time_A!$B$23:$B$135,0)) -> 0 | G143: CPI Index - Base Period | I143: =CHOOSE($H$138,Inputs_A_F!I228,Inputs_A_F!I237,Inputs_A_F!I246,Inputs_A_F!I255,Inputs_A_F!I264) -> 2019-12-31 | J143: =INDEX(Time_A!$D$23:$D$135,MATCH(I143,Time_A!$B$23:$B$135,0)) -> 0 | L143: CPI Index - Base Period | N143: =CHOOSE($M$138,Inputs_A_F!I228,Inputs_A_F!I237,Inputs_A_F!I246,Inputs_A_F!I255,Inputs_A_F!I264) -> 2019-12-31 | O143: =INDEX(Time_A!$D$23:$D$135,MATCH(N143,Time_A!$B$23:$B$135,0)) -> 0 | Q143: CPI Index - Base Period | S143: =CHOOSE($R$138,Inputs_A_F!I228,Inputs_A_F!I237,Inputs_A_F!I246,Inputs_A_F!I255,Inputs_A_F!I264) -> 2019-12-31 | T143: =INDEX(Time_A!$D$23:$D$135,MATCH(S143,Time_A!$B$23:$B$135,0)) -> 0 | V143: CPI Index - Base Period | X143: =CHOOSE($W$138,Inputs_A_F!I228,Inputs_A_F!I237,Inputs_A_F!I246,Inputs_A_F!I255,Inputs_A_F!I264) -> 2019-12-31 | Y143: =INDEX(Time_A!$D$23:$D$135,MATCH(X143,Time_A!$B$23:$B$135,0)) -> 0
B144: =$B$21 -> CPI Index - Latest CPI Period | E144: =$E$21 -> 115.4 | G144: CPI Index - Latest CPI Period | J144: =$E$21 -> 115.4 | L144: CPI Index - Latest CPI Period | O144: =$E$21 -> 115.4 | Q144: CPI Index - Latest CPI Period | T144: =$E$21 -> 115.4 | V144: CPI Index - Latest CPI Period | Y144: =$E$21 -> 115.4
B145: CPI Escalation | E145: =IF(E143=Zero,Zero,(E144-E143)/E143) -> 0 | G145: CPI Escalation | J145: =IF(J143=Zero,Zero,(J144-J143)/J143) -> 0 | L145: CPI Escalation | O145: =IF(O143=Zero,Zero,(O144-O143)/O143) -> 0 | Q145: CPI Escalation | T145: =IF(T143=Zero,Zero,(T144-T143)/T143) -> 0 | V145: CPI Escalation | Y145: =IF(Y143=Zero,Zero,(Y144-Y143)/Y143) -> 0
B146: Cost - Post Escalation | C146: =C141 -> $/kWh | E146: =(One+E145)*E141 -> 0.12133 | G146: Cost - Post Escalation | H146: =H141 -> $/kWh | J146: =(One+J145)*J141 -> 0.11811 | L146: Cost - Post Escalation | M146: =M141 -> $/kWh | O146: =(One+O145)*O141 -> 0.12628 | Q146: Cost - Post Escalation | R146: =R141 -> $/kWh | T146: =(One+T145)*T141 -> 0.1192 | V146: Cost - Post Escalation | W146: =W141 -> $/kWh | Y146: =(One+Y145)*Y141 -> 0.12727
B148: =Inputs_A_F!B271 -> Wholesale volatility - residential | G148: Wholesale volatility - residential | L148: Wholesale volatility - residential | Q148: Wholesale volatility - residential | V148: Wholesale volatility - residential
B149: Cost - Before Escalation | C149: $/kWh | E149: =CHOOSE($C$138,Inputs_A_F!I274,Inputs_A_F!I283,Inputs_A_F!I292,Inputs_A_F!I301,Inputs_A_F!I310)/Thousand -> 0.00027 | G149: Cost - Before Escalation | H149: $/kWh | J149: =CHOOSE($H$138,Inputs_A_F!I274,Inputs_A_F!I283,Inputs_A_F!I292,Inputs_A_F!I301,Inputs_A_F!I310)/Thousand -> 0.00029 | L149: Cost - Before Escalation | M149: $/kWh | O149: =CHOOSE($M$138,Inputs_A_F!I274,Inputs_A_F!I283,Inputs_A_F!I292,Inputs_A_F!I301,Inputs_A_F!I310)/Thousand -> 0.00036 | Q149: Cost - Before Escalation | R149: $/kWh | T149: =CHOOSE($R$138,Inputs_A_F!I274,Inputs_A_F!I283,Inputs_A_F!I292,Inputs_A_F!I301,Inputs_A_F!I310)/Thousand -> 0.00032 | V149: Cost - Before Escalation | W149: $/kWh | Y149: =CHOOSE($W$138,Inputs_A_F!I274,Inputs_A_F!I283,Inputs_A_F!I292,Inputs_A_F!I301,Inputs_A_F!I310)/Thousand -> 0.00036
B151: CPI Index - Base Period | D151: =CHOOSE($C$138,Inputs_A_F!I275,Inputs_A_F!I284,Inputs_A_F!I293,Inputs_A_F!I302,Inputs_A_F!I311) -> 2019-12-31 | E151: =INDEX(Time_A!$D$23:$D$135,MATCH(D151,Time_A!$B$23:$B$135,0)) -> 0 | G151: CPI Index - Base Period | I151: =CHOOSE($H$138,Inputs_A_F!I275,Inputs_A_F!I284,Inputs_A_F!I293,Inputs_A_F!I302,Inputs_A_F!I311) -> 2019-12-31 | J151: =INDEX(Time_A!$D$23:$D$135,MATCH(I151,Time_A!$B$23:$B$135,0)) -> 0 | L151: CPI Index - Base Period | N151: =CHOOSE($M$138,Inputs_A_F!I275,Inputs_A_F!I284,Inputs_A_F!I293,Inputs_A_F!I302,Inputs_A_F!I311) -> 2019-12-31 | O151: =INDEX(Time_A!$D$23:$D$135,MATCH(N151,Time_A!$B$23:$B$135,0)) -> 0 | Q151: CPI Index - Base Period | S151: =CHOOSE($R$138,Inputs_A_F!I275,Inputs_A_F!I284,Inputs_A_F!I293,Inputs_A_F!I302,Inputs_A_F!I311) -> 2019-12-31 | T151: =INDEX(Time_A!$D$23:$D$135,MATCH(S151,Time_A!$B$23:$B$135,0)) -> 0 | V151: CPI Index - Base Period | X151: =CHOOSE($W$138,Inputs_A_F!I275,Inputs_A_F!I284,Inputs_A_F!I293,Inputs_A_F!I302,Inputs_A_F!I311) -> 2019-12-31 | Y151: =INDEX(Time_A!$D$23:$D$135,MATCH(X151,Time_A!$B$23:$B$135,0)) -> 0
B152: =$B$21 -> CPI Index - Latest CPI Period | E152: =$E$21 -> 115.4 | G152: CPI Index - Latest CPI Period | J152: =$E$21 -> 115.4 | L152: CPI Index - Latest CPI Period | O152: =$E$21 -> 115.4 | Q152: CPI Index - Latest CPI Period | T152: =$E$21 -> 115.4 | V152: CPI Index - Latest CPI Period | Y152: =$E$21 -> 115.4
B153: CPI Escalation | E153: =IF(E151=Zero,Zero,(E152-E151)/E151) -> 0 | G153: CPI Escalation | J153: =IF(J151=Zero,Zero,(J152-J151)/J151) -> 0 | L153: CPI Escalation | O153: =IF(O151=Zero,Zero,(O152-O151)/O151) -> 0 | Q153: CPI Escalation | T153: =IF(T151=Zero,Zero,(T152-T151)/T151) -> 0 | V153: CPI Escalation | Y153: =IF(Y151=Zero,Zero,(Y152-Y151)/Y151) -> 0
B154: Cost - Post Escalation | C154: =C149 -> $/kWh | E154: =(One+E153)*E149 -> 0.00027 | G154: Cost - Post Escalation | H154: =H149 -> $/kWh | J154: =(One+J153)*J149 -> 0.00029 | L154: Cost - Post Escalation | M154: =M149 -> $/kWh | O154: =(One+O153)*O149 -> 0.00036 | Q154: Cost - Post Escalation | R154: =R149 -> $/kWh | T154: =(One+T153)*T149 -> 0.00032 | V154: Cost - Post Escalation | W154: =W149 -> $/kWh | Y154: =(One+Y153)*Y149 -> 0.00036
B156: =B136 -> Wholesale price - residential | C156: =C149 -> $/kWh | E156: =SUM(E146,E154) -> 0.1216 | G156: Wholesale price - residential | H156: =H149 -> $/kWh | J156: =SUM(J146,J154) -> 0.1184 | L156: Wholesale price - residential | M156: =M149 -> $/kWh | O156: =SUM(O146,O154) -> 0.12664 | Q156: Wholesale price - residential | R156: =R149 -> $/kWh | T156: =SUM(T146,T154) -> 0.11952 | V156: Wholesale price - residential | W156: =W149 -> $/kWh | Y156: =SUM(Y146,Y154) -> 0.12763
A158: =MAX(A$2:OFFSET($A158,-One,0))+Sbsxn -> 1205.02 | B158: =Inputs_A_F!B321 -> Wholesale price - small business
B160: =B158 -> Wholesale price - small business | G160: =$B160 -> Wholesale price - small business | L160: =$B160 -> Wholesale price - small business | Q160: =$B160 -> Wholesale price - small business | V160: =$B160 -> Wholesale price - small business
B161: Cost - Before Escalation | C161: $/kWh | E161: =CHOOSE($C$138,Inputs_A_F!I324,Inputs_A_F!I334,Inputs_A_F!I343,Inputs_A_F!I352,Inputs_A_F!I361)/Thousand -> 0.11238 | G161: Cost - Before Escalation | H161: $/kWh | J161: =CHOOSE($H$138,Inputs_A_F!I324,Inputs_A_F!I334,Inputs_A_F!I343,Inputs_A_F!I352,Inputs_A_F!I361)/Thousand -> 0.11532 | L161: Cost - Before Escalation | M161: $/kWh | O161: =CHOOSE($M$138,Inputs_A_F!I324,Inputs_A_F!I334,Inputs_A_F!I343,Inputs_A_F!I352,Inputs_A_F!I361)/Thousand -> 0.11485 | Q161: Cost - Before Escalation | R161: $/kWh | T161: =CHOOSE($R$138,Inputs_A_F!I324,Inputs_A_F!I334,Inputs_A_F!I343,Inputs_A_F!I352,Inputs_A_F!I361)/Thousand -> 0.11022 | V161: Cost - Before Escalation | W161: $/kWh | Y161: =CHOOSE($W$138,Inputs_A_F!I324,Inputs_A_F!I334,Inputs_A_F!I343,Inputs_A_F!I352,Inputs_A_F!I361)/Thousand -> 0.11694
B163: CPI Index - Base Period | D163: =CHOOSE($C$138,Inputs_A_F!I325,Inputs_A_F!I335,Inputs_A_F!I344,Inputs_A_F!I353,Inputs_A_F!I362) -> 2019-12-31 | E163: =INDEX(Time_A!$D$23:$D$135,MATCH(D163,Time_A!$B$23:$B$135,0)) -> 0 | G163: =B163 -> CPI Index - Base Period | I163: =CHOOSE($H$138,Inputs_A_F!I325,Inputs_A_F!I335,Inputs_A_F!I344,Inputs_A_F!I353,Inputs_A_F!I362) -> 2019-12-31 | J163: =INDEX(Time_A!$D$23:$D$135,MATCH(I163,Time_A!$B$23:$B$135,0)) -> 0 | L163: =G163 -> CPI Index - Base Period | N163: =CHOOSE($M$138,Inputs_A_F!I325,Inputs_A_F!I335,Inputs_A_F!I344,Inputs_A_F!I353,Inputs_A_F!I362) -> 2019-12-31 | O163: =INDEX(Time_A!$D$23:$D$135,MATCH(N163,Time_A!$B$23:$B$135,0)) -> 0 | Q163: =L163 -> CPI Index - Base Period | S163: =CHOOSE($R$138,Inputs_A_F!I325,Inputs_A_F!I335,Inputs_A_F!I344,Inputs_A_F!I353,Inputs_A_F!I362) -> 2019-12-31 | T163: =INDEX(Time_A!$D$23:$D$135,MATCH(S163,Time_A!$B$23:$B$135,0)) -> 0 | V163: =Q163 -> CPI Index - Base Period | X163: =CHOOSE($W$138,Inputs_A_F!I325,Inputs_A_F!I335,Inputs_A_F!I344,Inputs_A_F!I353,Inputs_A_F!I362) -> 2019-12-31 | Y163: =INDEX(Time_A!$D$23:$D$135,MATCH(X163,Time_A!$B$23:$B$135,0)) -> 0
B164: =$B$21 -> CPI Index - Latest CPI Period | E164: =$E$21 -> 115.4 | G164: CPI Index - Latest CPI Period | J164: =$E$21 -> 115.4 | L164: CPI Index - Latest CPI Period | O164: =$E$21 -> 115.4 | Q164: CPI Index - Latest CPI Period | T164: =$E$21 -> 115.4 | V164: CPI Index - Latest CPI Period | Y164: =$E$21 -> 115.4
B165: CPI Escalation | E165: =IF(E163=Zero,Zero,(E164-E163)/E163) -> 0 | G165: CPI Escalation | J165: =IF(J163=Zero,Zero,(J164-J163)/J163) -> 0 | L165: CPI Escalation | O165: =IF(O163=Zero,Zero,(O164-O163)/O163) -> 0 | Q165: CPI Escalation | T165: =IF(T163=Zero,Zero,(T164-T163)/T163) -> 0 | V165: CPI Escalation | Y165: =IF(Y163=Zero,Zero,(Y164-Y163)/Y163) -> 0
B166: Cost - Post Escalation | C166: =C161 -> $/kWh | E166: =(One+E165)*E161 -> 0.11238 | G166: Cost - Post Escalation | H166: =H161 -> $/kWh | J166: =(One+J165)*J161 -> 0.11532 | L166: Cost - Post Escalation | M166: =M161 -> $/kWh | O166: =(One+O165)*O161 -> 0.11485 | Q166: Cost - Post Escalation | R166: =R161 -> $/kWh | T166: =(One+T165)*T161 -> 0.11022 | V166: Cost - Post Escalation | W166: =W161 -> $/kWh | Y166: =(One+Y165)*Y161 -> 0.11694
B168: =Inputs_A_F!B369 -> Wholesale volatility - small business | G168: =B168 -> Wholesale volatility - small business | L168: =G168 -> Wholesale volatility - small business | Q168: =L168 -> Wholesale volatility - small business | V168: =Q168 -> Wholesale volatility - small business
B169: Cost - Before Escalation | C169: $/kWh | E169: =CHOOSE($C$138,Inputs_A_F!I372,Inputs_A_F!I382,Inputs_A_F!I391,Inputs_A_F!I400,Inputs_A_F!I409)/Thousand -> 0.00019 | G169: Cost - Before Escalation | H169: $/kWh | J169: =CHOOSE($H$138,Inputs_A_F!I372,Inputs_A_F!I382,Inputs_A_F!I391,Inputs_A_F!I400,Inputs_A_F!I409)/Thousand -> 0.00023 | L169: Cost - Before Escalation | M169: $/kWh | O169: =CHOOSE($M$138,Inputs_A_F!I372,Inputs_A_F!I382,Inputs_A_F!I391,Inputs_A_F!I400,Inputs_A_F!I409)/Thousand -> 0.00028 | Q169: Cost - Before Escalation | R169: $/kWh | T169: =CHOOSE($R$138,Inputs_A_F!I372,Inputs_A_F!I382,Inputs_A_F!I391,Inputs_A_F!I400,Inputs_A_F!I409)/Thousand -> 0.00019 | V169: Cost - Before Escalation | W169: $/kWh | Y169: =CHOOSE($W$138,Inputs_A_F!I372,Inputs_A_F!I382,Inputs_A_F!I391,Inputs_A_F!I400,Inputs_A_F!I409)/Thousand -> 0.0003
B171: CPI Index - Base Period | D171: =CHOOSE($C$138,Inputs_A_F!I373,Inputs_A_F!I383,Inputs_A_F!I392,Inputs_A_F!I401,Inputs_A_F!I410) -> 2019-12-31 | E171: =INDEX(Time_A!$D$23:$D$135,MATCH(D171,Time_A!$B$23:$B$135,0)) -> 0 | G171: CPI Index - Base Period | I171: =CHOOSE($H$138,Inputs_A_F!I373,Inputs_A_F!I383,Inputs_A_F!I392,Inputs_A_F!I401,Inputs_A_F!I410) -> 2019-12-31 | J171: =INDEX(Time_A!$D$23:$D$135,MATCH(I171,Time_A!$B$23:$B$135,0)) -> 0 | L171: CPI Index - Base Period | N171: =CHOOSE($M$138,Inputs_A_F!I373,Inputs_A_F!I383,Inputs_A_F!I392,Inputs_A_F!I401,Inputs_A_F!I410) -> 2019-12-31 | O171: =INDEX(Time_A!$D$23:$D$135,MATCH(N171,Time_A!$B$23:$B$135,0)) -> 0 | Q171: CPI Index - Base Period | S171: =CHOOSE($R$138,Inputs_A_F!I373,Inputs_A_F!I383,Inputs_A_F!I392,Inputs_A_F!I401,Inputs_A_F!I410) -> 2019-12-31 | T171: =INDEX(Time_A!$D$23:$D$135,MATCH(S171,Time_A!$B$23:$B$135,0)) -> 0 | V171: CPI Index - Base Period | X171: =CHOOSE($W$138,Inputs_A_F!I373,Inputs_A_F!I383,Inputs_A_F!I392,Inputs_A_F!I401,Inputs_A_F!I410) -> 2019-12-31 | Y171: =INDEX(Time_A!$D$23:$D$135,MATCH(X171,Time_A!$B$23:$B$135,0)) -> 0
B172: =$B$21 -> CPI Index - Latest CPI Period | E172: =$E$21 -> 115.4 | G172: CPI Index - Latest CPI Period | J172: =$E$21 -> 115.4 | L172: CPI Index - Latest CPI Period | O172: =$E$21 -> 115.4 | Q172: CPI Index - Latest CPI Period | T172: =$E$21 -> 115.4 | V172: CPI Index - Latest CPI Period | Y172: =$E$21 -> 115.4
B173: CPI Escalation | E173: =IF(E171=Zero,Zero,(E172-E171)/E171) -> 0 | G173: CPI Escalation | J173: =IF(J171=Zero,Zero,(J172-J171)/J171) -> 0 | L173: CPI Escalation | O173: =IF(O171=Zero,Zero,(O172-O171)/O171) -> 0 | Q173: CPI Escalation | T173: =IF(T171=Zero,Zero,(T172-T171)/T171) -> 0 | V173: CPI Escalation | Y173: =IF(Y171=Zero,Zero,(Y172-Y171)/Y171) -> 0
B174: Cost - Post Escalation | C174: =C169 -> $/kWh | E174: =(One+E173)*E169 -> 0.00019 | G174: Cost - Post Escalation | H174: =H169 -> $/kWh | J174: =(One+J173)*J169 -> 0.00023 | L174: Cost - Post Escalation | M174: =M169 -> $/kWh | O174: =(One+O173)*O169 -> 0.00028 | Q174: Cost - Post Escalation | R174: =R169 -> $/kWh | T174: =(One+T173)*T169 -> 0.00019 | V174: Cost - Post Escalation | W174: =W169 -> $/kWh | Y174: =(One+Y173)*Y169 -> 0.0003
B176: =B158 -> Wholesale price - small business | C176: =C169 -> $/kWh | E176: =SUM(E166,E174) -> 0.11257 | G176: =$B176 -> Wholesale price - small business | H176: =H169 -> $/kWh | J176: =SUM(J166,J174) -> 0.11555 | L176: =$B176 -> Wholesale price - small business | M176: =M169 -> $/kWh | O176: =SUM(O166,O174) -> 0.11513 | Q176: =$B176 -> Wholesale price - small business | R176: =R169 -> $/kWh | T176: =SUM(T166,T174) -> 0.11041 | V176: =$B176 -> Wholesale price - small business | W176: =W169 -> $/kWh | Y176: =SUM(Y166,Y174) -> 0.11724
A178: =MAX(A$2:OFFSET($A178,-One,0))+Sbsxn -> 1205.03 | B178: Environmental programs
B180: Price | G180: Price | L180: Price | Q180: Price | V180: Price
B182: =Inputs_A_F!B422 -> Victorian energy upgrades (VEU) | G182: =B182 -> Victorian energy upgrades (VEU) | L182: =G182 -> Victorian energy upgrades (VEU) | Q182: =L182 -> Victorian energy upgrades (VEU) | V182: =Q182 -> Victorian energy upgrades (VEU)
B183: Cost - Before Escalation | C183: =Inputs_A_F!C423 -> $/certificate | E183: =Inputs_A_F!I423 -> 20.56774925 | G183: =B183 -> Cost - Before Escalation | H183: =Inputs_A_F!C423 -> $/certificate | J183: =Inputs_A_F!I423 -> 20.56774925 | L183: =G183 -> Cost - Before Escalation | M183: =Inputs_A_F!C423 -> $/certificate | O183: =Inputs_A_F!I423 -> 20.56774925 | Q183: =L183 -> Cost - Before Escalation | R183: =Inputs_A_F!C423 -> $/certificate | T183: =Inputs_A_F!I423 -> 20.56774925 | V183: =Q183 -> Cost - Before Escalation | W183: =Inputs_A_F!C423 -> $/certificate | Y183: =Inputs_A_F!I423 -> 20.56774925
B185: CPI Index - Base Period | D185: =Inputs_A_F!I424 -> 2019-09-30 | E185: =INDEX(Time_A!$D$23:$D$135,MATCH(D185,Time_A!$B$23:$B$135,0)) -> 115.4 | G185: CPI Index - Base Period | I185: =Inputs_A_F!I424 -> 2019-09-30 | J185: =INDEX(Time_A!$D$23:$D$135,MATCH(I185,Time_A!$B$23:$B$135,0)) -> 115.4 | L185: CPI Index - Base Period | N185: =Inputs_A_F!I424 -> 2019-09-30 | O185: =INDEX(Time_A!$D$23:$D$135,MATCH(N185,Time_A!$B$23:$B$135,0)) -> 115.4 | Q185: CPI Index - Base Period | S185: =Inputs_A_F!I424 -> 2019-09-30 | T185: =INDEX(Time_A!$D$23:$D$135,MATCH(S185,Time_A!$B$23:$B$135,0)) -> 115.4 | V185: CPI Index - Base Period | X185: =Inputs_A_F!I424 -> 2019-09-30 | Y185: =INDEX(Time_A!$D$23:$D$135,MATCH(X185,Time_A!$B$23:$B$135,0)) -> 115.4
B186: =$B$21 -> CPI Index - Latest CPI Period | E186: =$E$21 -> 115.4 | G186: CPI Index - Latest CPI Period | J186: =$E$21 -> 115.4 | L186: CPI Index - Latest CPI Period | O186: =$E$21 -> 115.4 | Q186: CPI Index - Latest CPI Period | T186: =$E$21 -> 115.4 | V186: CPI Index - Latest CPI Period | Y186: =$E$21 -> 115.4
B187: CPI Escalation | E187: =IF(E185=Zero,Zero,(E186-E185)/E185) -> 0 | G187: CPI Escalation | J187: =IF(J185=Zero,Zero,(J186-J185)/J185) -> 0 | L187: CPI Escalation | O187: =IF(O185=Zero,Zero,(O186-O185)/O185) -> 0 | Q187: CPI Escalation | T187: =IF(T185=Zero,Zero,(T186-T185)/T185) -> 0 | V187: CPI Escalation | Y187: =IF(Y185=Zero,Zero,(Y186-Y185)/Y185) -> 0
B188: Cost - Post Escalation | C188: =C183 -> $/certificate | E188: =(One+E187)*E183 -> 20.56774925 | G188: Cost - Post Escalation | H188: =H183 -> $/certificate | J188: =(One+J187)*J183 -> 20.56774925 | L188: Cost - Post Escalation | M188: =M183 -> $/certificate | O188: =(One+O187)*O183 -> 20.56774925 | Q188: Cost - Post Escalation | R188: =R183 -> $/certificate | T188: =(One+T187)*T183 -> 20.56774925 | V188: Cost - Post Escalation | W188: =W183 -> $/certificate | Y188: =(One+Y187)*Y183 -> 20.56774925
B190: =Inputs_A_F!B432 -> Large-scale renewable energy target (LRET) | G190: Large-scale renewable energy target (LRET) | L190: Large-scale renewable energy target (LRET) | Q190: Large-scale renewable energy target (LRET) | V190: Large-scale renewable energy target (LRET)
B191: Cost - Before Escalation | C191: =$C$183 -> $/certificate | E191: =Inputs_A_F!I433 -> 43.3 | G191: Cost - Before Escalation | H191: =$H$183 -> $/certificate | J191: =Inputs_A_F!I433 -> 43.3 | L191: Cost - Before Escalation | M191: =$M$183 -> $/certificate | O191: =Inputs_A_F!I433 -> 43.3 | Q191: Cost - Before Escalation | R191: =$R$183 -> $/certificate | T191: =Inputs_A_F!I433 -> 43.3 | V191: Cost - Before Escalation | W191: =$W$183 -> $/certificate | Y191: =Inputs_A_F!I433 -> 43.3
B193: CPI Index - Base Period | D193: =Inputs_A_F!I434 -> 2019-12-31 | E193: =INDEX(Time_A!$D$23:$D$135,MATCH(D193,Time_A!$B$23:$B$135,0)) -> 0 | G193: CPI Index - Base Period | I193: =Inputs_A_F!I434 -> 2019-12-31 | J193: =INDEX(Time_A!$D$23:$D$135,MATCH(I193,Time_A!$B$23:$B$135,0)) -> 0 | L193: CPI Index - Base Period | N193: =Inputs_A_F!I434 -> 2019-12-31 | O193: =INDEX(Time_A!$D$23:$D$135,MATCH(N193,Time_A!$B$23:$B$135,0)) -> 0 | Q193: CPI Index - Base Period | S193: =Inputs_A_F!I434 -> 2019-12-31 | T193: =INDEX(Time_A!$D$23:$D$135,MATCH(S193,Time_A!$B$23:$B$135,0)) -> 0 | V193: CPI Index - Base Period | X193: =Inputs_A_F!I434 -> 2019-12-31 | Y193: =INDEX(Time_A!$D$23:$D$135,MATCH(X193,Time_A!$B$23:$B$135,0)) -> 0
B194: =$B$21 -> CPI Index - Latest CPI Period | E194: =$E$21 -> 115.4 | G194: CPI Index - Latest CPI Period | J194: =$E$21 -> 115.4 | L194: CPI Index - Latest CPI Period | O194: =$E$21 -> 115.4 | Q194: CPI Index - Latest CPI Period | T194: =$E$21 -> 115.4 | V194: CPI Index - Latest CPI Period | Y194: =$E$21 -> 115.4
B195: CPI Escalation | E195: =IF(E193=Zero,Zero,(E194-E193)/E193) -> 0 | G195: CPI Escalation | J195: =IF(J193=Zero,Zero,(J194-J193)/J193) -> 0 | L195: CPI Escalation | O195: =IF(O193=Zero,Zero,(O194-O193)/O193) -> 0 | Q195: CPI Escalation | T195: =IF(T193=Zero,Zero,(T194-T193)/T193) -> 0 | V195: CPI Escalation | Y195: =IF(Y193=Zero,Zero,(Y194-Y193)/Y193) -> 0
B196: Cost - Post Escalation | C196: =C191 -> $/certificate | E196: =(One+E195)*E191 -> 43.3 | G196: Cost - Post Escalation | H196: =H191 -> $/certificate | J196: =(One+J195)*J191 -> 43.3 | L196: Cost - Post Escalation | M196: =M191 -> $/certificate | O196: =(One+O195)*O191 -> 43.3 | Q196: Cost - Post Escalation | R196: =R191 -> $/certificate | T196: =(One+T195)*T191 -> 43.3 | V196: Cost - Post Escalation | W196: =W191 -> $/certificate | Y196: =(One+Y195)*Y191 -> 43.3
B198: =Inputs_A_F!B471 -> Small-scale renewable energy scheme (SRES) | G198: Small-scale renewable energy scheme (SRES) | L198: Small-scale renewable energy scheme (SRES) | Q198: Small-scale renewable energy scheme (SRES) | V198: Small-scale renewable energy scheme (SRES)
B199: Cost - Before Escalation | C199: =$C$183 -> $/certificate | E199: =Inputs_A_F!I442 -> 40 | G199: Cost - Before Escalation | H199: =$H$183 -> $/certificate | J199: =Inputs_A_F!I442 -> 40 | L199: Cost - Before Escalation | M199: =$M$183 -> $/certificate | O199: =Inputs_A_F!I442 -> 40 | Q199: Cost - Before Escalation | R199: =$R$183 -> $/certificate | T199: =Inputs_A_F!I442 -> 40 | V199: Cost - Before Escalation | W199: =$W$183 -> $/certificate | Y199: =Inputs_A_F!I442 -> 40
B201: CPI Index - Base Period | D201: =Inputs_A_F!I443 -> 2019-12-31 | E201: =INDEX(Time_A!$D$23:$D$135,MATCH(D201,Time_A!$B$23:$B$135,0)) -> 0 | G201: CPI Index - Base Period | I201: =Inputs_A_F!I443 -> 2019-12-31 | J201: =INDEX(Time_A!$D$23:$D$135,MATCH(I201,Time_A!$B$23:$B$135,0)) -> 0 | L201: CPI Index - Base Period | N201: =Inputs_A_F!I443 -> 2019-12-31 | O201: =INDEX(Time_A!$D$23:$D$135,MATCH(N201,Time_A!$B$23:$B$135,0)) -> 0 | Q201: CPI Index - Base Period | S201: =Inputs_A_F!I443 -> 2019-12-31 | T201: =INDEX(Time_A!$D$23:$D$135,MATCH(S201,Time_A!$B$23:$B$135,0)) -> 0 | V201: CPI Index - Base Period | X201: =Inputs_A_F!I443 -> 2019-12-31 | Y201: =INDEX(Time_A!$D$23:$D$135,MATCH(X201,Time_A!$B$23:$B$135,0)) -> 0
B202: =$B$21 -> CPI Index - Latest CPI Period | E202: =$E$21 -> 115.4 | G202: CPI Index - Latest CPI Period | J202: =$E$21 -> 115.4 | L202: CPI Index - Latest CPI Period | O202: =$E$21 -> 115.4 | Q202: CPI Index - Latest CPI Period | T202: =$E$21 -> 115.4 | V202: CPI Index - Latest CPI Period | Y202: =$E$21 -> 115.4
B203: CPI Escalation | E203: =IF(E201=Zero,Zero,(E202-E201)/E201) -> 0 | G203: CPI Escalation | J203: =IF(J201=Zero,Zero,(J202-J201)/J201) -> 0 | L203: CPI Escalation | O203: =IF(O201=Zero,Zero,(O202-O201)/O201) -> 0 | Q203: CPI Escalation | T203: =IF(T201=Zero,Zero,(T202-T201)/T201) -> 0 | V203: CPI Escalation | Y203: =IF(Y201=Zero,Zero,(Y202-Y201)/Y201) -> 0
B204: Cost - Post Escalation | C204: =C199 -> $/certificate | E204: =(One+E203)*E199 -> 40 | G204: Cost - Post Escalation | H204: =H199 -> $/certificate | J204: =(One+J203)*J199 -> 40 | L204: Cost - Post Escalation | M204: =M199 -> $/certificate | O204: =(One+O203)*O199 -> 40 | Q204: Cost - Post Escalation | R204: =R199 -> $/certificate | T204: =(One+T203)*T199 -> 40 | V204: Cost - Post Escalation | W204: =W199 -> $/certificate | Y204: =(One+Y203)*Y199 -> 40
B206: Liability | G206: Liability | L206: Liability | Q206: Liability | V206: Liability
B208: =B182 -> Victorian energy upgrades (VEU) | G208: =G182 -> Victorian energy upgrades (VEU) | L208: =L182 -> Victorian energy upgrades (VEU) | Q208: =Q182 -> Victorian energy upgrades (VEU) | V208: =V182 -> Victorian energy upgrades (VEU)
B209: Liability | C209: =Inputs_A_F!C453 -> %/year | E209: =Inputs_A_F!I453 -> 0.17255 | G209: Liability | H209: =Inputs_A_F!C453 -> %/year | J209: =Inputs_A_F!I453 -> 0.17255 | L209: Liability | M209: =Inputs_A_F!C453 -> %/year | O209: =Inputs_A_F!I453 -> 0.17255 | Q209: Liability | R209: =Inputs_A_F!C453 -> %/year | T209: =Inputs_A_F!I453 -> 0.17255 | V209: Liability | W209: =Inputs_A_F!C453 -> %/year | Y209: =Inputs_A_F!I453 -> 0.17255
B211: =B190 -> Large-scale renewable energy target (LRET) | G211: =G190 -> Large-scale renewable energy target (LRET) | L211: =L190 -> Large-scale renewable energy target (LRET) | Q211: =Q190 -> Large-scale renewable energy target (LRET) | V211: =V190 -> Large-scale renewable energy target (LRET)
B212: Liability | C212: =$C$209 -> %/year | E212: =Inputs_A_F!I463 -> 0.2015 | G212: Liability | H212: =$H$209 -> %/year | J212: =Inputs_A_F!I463 -> 0.2015 | L212: Liability | M212: =$M$209 -> %/year | O212: =Inputs_A_F!I463 -> 0.2015 | Q212: Liability | R212: =$R$209 -> %/year | T212: =Inputs_A_F!I463 -> 0.2015 | V212: Liability | W212: =$W$209 -> %/year | Y212: =Inputs_A_F!I463 -> 0.2015
B214: =B198 -> Small-scale renewable energy scheme (SRES) | G214: =G198 -> Small-scale renewable energy scheme (SRES) | L214: =L198 -> Small-scale renewable energy scheme (SRES) | Q214: =Q198 -> Small-scale renewable energy scheme (SRES) | V214: =V198 -> Small-scale renewable energy scheme (SRES)
B215: Liability | C215: =$C$209 -> %/year | E215: =Inputs_A_F!I472 -> 0.18145 | G215: Liability | H215: =$H$209 -> %/year | J215: =Inputs_A_F!I472 -> 0.18145 | L215: Liability | M215: =$M$209 -> %/year | O215: =Inputs_A_F!I472 -> 0.18145 | Q215: Liability | R215: =$R$209 -> %/year | T215: =Inputs_A_F!I472 -> 0.18145 | V215: Liability | W215: =$W$209 -> %/year | Y215: =Inputs_A_F!I472 -> 0.18145
B217: =B178 -> Environmental programs | C217: $/kWh | E217: =(E188*E209+E196*E212+E204*E215)/Thousand -> 0.01953191513 | G217: =$B217 -> Environmental programs | H217: $/kWh | J217: =(J188*J209+J196*J212+J204*J215)/Thousand -> 0.01953191513 | L217: =$B217 -> Environmental programs | M217: $/kWh | O217: =(O188*O209+O196*O212+O204*O215)/Thousand -> 0.01953191513 | Q217: =$B217 -> Environmental programs | R217: $/kWh | T217: =(T188*T209+T196*T212+T204*T215)/Thousand -> 0.01953191513 | V217: =$B217 -> Environmental programs | W217: $/kWh | Y217: =(Y188*Y209+Y196*Y212+Y204*Y215)/Thousand -> 0.01953191513
A219: =MAX(A$2:OFFSET($A219,-One,0))+Sbsxn -> 1205.04 | B219: =Inputs_A_F!B483 -> Ancillary
B221: =Inputs_A_F!B485 -> General NEM fees | G221: =Inputs_A_F!B485 -> General NEM fees | L221: =Inputs_A_F!B485 -> General NEM fees | Q221: =Inputs_A_F!B485 -> General NEM fees | V221: =Inputs_A_F!B485 -> General NEM fees
B222: Cost - Before Escalation | C222: $/kWh | E222: =Inputs_A_F!I486/Thousand -> 0.00053 | G222: Cost - Before Escalation | H222: $/kWh | J222: =Inputs_A_F!I486/Thousand -> 0.00053 | L222: Cost - Before Escalation | M222: $/kWh | O222: =Inputs_A_F!I486/Thousand -> 0.00053 | Q222: Cost - Before Escalation | R222: $/kWh | T222: =Inputs_A_F!I486/Thousand -> 0.00053 | V222: Cost - Before Escalation | W222: $/kWh | Y222: =Inputs_A_F!I486/Thousand -> 0.00053
B224: CPI Index - Base Period | D224: =Inputs_A_F!I487 -> 2019-12-31 | E224: =INDEX(Time_A!$D$23:$D$135,MATCH(D224,Time_A!$B$23:$B$135,0)) -> 0 | G224: =B224 -> CPI Index - Base Period | I224: =Inputs_A_F!I487 -> 2019-12-31 | J224: =INDEX(Time_A!$D$23:$D$135,MATCH(I224,Time_A!$B$23:$B$135,0)) -> 0 | L224: =G224 -> CPI Index - Base Period | N224: =Inputs_A_F!I487 -> 2019-12-31 | O224: =INDEX(Time_A!$D$23:$D$135,MATCH(N224,Time_A!$B$23:$B$135,0)) -> 0 | Q224: =L224 -> CPI Index - Base Period | S224: =Inputs_A_F!I487 -> 2019-12-31 | T224: =INDEX(Time_A!$D$23:$D$135,MATCH(S224,Time_A!$B$23:$B$135,0)) -> 0 | V224: =Q224 -> CPI Index - Base Period | X224: =Inputs_A_F!I487 -> 2019-12-31 | Y224: =INDEX(Time_A!$D$23:$D$135,MATCH(X224,Time_A!$B$23:$B$135,0)) -> 0
B225: =$B$21 -> CPI Index - Latest CPI Period | E225: =$E$21 -> 115.4 | G225: CPI Index - Latest CPI Period | J225: =$E$21 -> 115.4 | L225: CPI Index - Latest CPI Period | O225: =$E$21 -> 115.4 | Q225: CPI Index - Latest CPI Period | T225: =$E$21 -> 115.4 | V225: CPI Index - Latest CPI Period | Y225: =$E$21 -> 115.4
B226: CPI Escalation | E226: =IF(E224=Zero,Zero,(E225-E224)/E224) -> 0 | G226: CPI Escalation | J226: =IF(J224=Zero,Zero,(J225-J224)/J224) -> 0 | L226: CPI Escalation | O226: =IF(O224=Zero,Zero,(O225-O224)/O224) -> 0 | Q226: CPI Escalation | T226: =IF(T224=Zero,Zero,(T225-T224)/T224) -> 0 | V226: CPI Escalation | Y226: =IF(Y224=Zero,Zero,(Y225-Y224)/Y224) -> 0
B227: Cost - Post Escalation | C227: =C222 -> $/kWh | E227: =(One+E226)*E222 -> 0.00053 | G227: Cost - Post Escalation | H227: =H222 -> $/kWh | J227: =(One+J226)*J222 -> 0.00053 | L227: Cost - Post Escalation | M227: =M222 -> $/kWh | O227: =(One+O226)*O222 -> 0.00053 | Q227: Cost - Post Escalation | R227: =R222 -> $/kWh | T227: =(One+T226)*T222 -> 0.00053 | V227: Cost - Post Escalation | W227: =W222 -> $/kWh | Y227: =(One+Y226)*Y222 -> 0.00053
B229: =Inputs_A_F!B494 -> Full retail competition (FRC) operations | G229: Full retail competition (FRC) operations | L229: Full retail competition (FRC) operations | Q229: Full retail competition (FRC) operations | V229: Full retail competition (FRC) operations
B230: Cost - Before Escalation | C230: $/kWh | E230: =Inputs_A_F!I495/Thousand -> 8.049965e-05 | G230: Cost - Before Escalation | H230: $/kWh | J230: =Inputs_A_F!I495/Thousand -> 8.049965e-05 | L230: Cost - Before Escalation | M230: $/kWh | O230: =Inputs_A_F!I495/Thousand -> 8.049965e-05 | Q230: Cost - Before Escalation | R230: $/kWh | T230: =Inputs_A_F!I495/Thousand -> 8.049965e-05 | V230: Cost - Before Escalation | W230: $/kWh | Y230: =Inputs_A_F!I495/Thousand -> 8.049965e-05
B232: CPI Index - Base Period | D232: =Inputs_A_F!I496 -> 2019-12-31 | E232: =INDEX(Time_A!$D$23:$D$135,MATCH(D232,Time_A!$B$23:$B$135,0)) -> 0 | G232: CPI Index - Base Period | I232: =Inputs_A_F!I496 -> 2019-12-31 | J232: =INDEX(Time_A!$D$23:$D$135,MATCH(I232,Time_A!$B$23:$B$135,0)) -> 0 | L232: CPI Index - Base Period | N232: =Inputs_A_F!I496 -> 2019-12-31 | O232: =INDEX(Time_A!$D$23:$D$135,MATCH(N232,Time_A!$B$23:$B$135,0)) -> 0 | Q232: CPI Index - Base Period | S232: =Inputs_A_F!I496 -> 2019-12-31 | T232: =INDEX(Time_A!$D$23:$D$135,MATCH(S232,Time_A!$B$23:$B$135,0)) -> 0 | V232: CPI Index - Base Period | X232: =Inputs_A_F!I496 -> 2019-12-31 | Y232: =INDEX(Time_A!$D$23:$D$135,MATCH(X232,Time_A!$B$23:$B$135,0)) -> 0
B233: =$B$21 -> CPI Index - Latest CPI Period | E233: =$E$21 -> 115.4 | G233: CPI Index - Latest CPI Period | J233: =$E$21 -> 115.4 | L233: CPI Index - Latest CPI Period | O233: =$E$21 -> 115.4 | Q233: CPI Index - Latest CPI Period | T233: =$E$21 -> 115.4 | V233: CPI Index - Latest CPI Period | Y233: =$E$21 -> 115.4
B234: CPI Escalation | E234: =IF(E232=Zero,Zero,(E233-E232)/E232) -> 0 | G234: CPI Escalation | J234: =IF(J232=Zero,Zero,(J233-J232)/J232) -> 0 | L234: CPI Escalation | O234: =IF(O232=Zero,Zero,(O233-O232)/O232) -> 0 | Q234: CPI Escalation | T234: =IF(T232=Zero,Zero,(T233-T232)/T232) -> 0 | V234: CPI Escalation | Y234: =IF(Y232=Zero,Zero,(Y233-Y232)/Y232) -> 0
B235: Cost - Post Escalation | C235: =C230 -> $/kWh | E235: =(One+E234)*E230 -> 8.049965e-05 | G235: Cost - Post Escalation | H235: =H230 -> $/kWh | J235: =(One+J234)*J230 -> 8.049965e-05 | L235: Cost - Post Escalation | M235: =M230 -> $/kWh | O235: =(One+O234)*O230 -> 8.049965e-05 | Q235: Cost - Post Escalation | R235: =R230 -> $/kWh | T235: =(One+T234)*T230 -> 8.049965e-05 | V235: Cost - Post Escalation | W235: =W230 -> $/kWh | Y235: =(One+Y234)*Y230 -> 8.049965e-05
B237: =Inputs_A_F!B503 -> National transmission planner | G237: National transmission planner | L237: National transmission planner | Q237: National transmission planner | V237: National transmission planner
B238: Cost - Before Escalation | C238: $/kWh | E238: =Inputs_A_F!I504/Thousand -> 3.496e-05 | G238: Cost - Before Escalation | H238: $/kWh | J238: =Inputs_A_F!I504/Thousand -> 3.496e-05 | L238: Cost - Before Escalation | M238: $/kWh | O238: =Inputs_A_F!I504/Thousand -> 3.496e-05 | Q238: Cost - Before Escalation | R238: $/kWh | T238: =Inputs_A_F!I504/Thousand -> 3.496e-05 | V238: Cost - Before Escalation | W238: $/kWh | Y238: =Inputs_A_F!I504/Thousand -> 3.496e-05
B240: CPI Index - Base Period | D240: =Inputs_A_F!I505 -> 2019-12-31 | E240: =INDEX(Time_A!$D$23:$D$135,MATCH(D240,Time_A!$B$23:$B$135,0)) -> 0 | G240: CPI Index - Base Period | I240: =Inputs_A_F!I505 -> 2019-12-31 | J240: =INDEX(Time_A!$D$23:$D$135,MATCH(I240,Time_A!$B$23:$B$135,0)) -> 0 | L240: CPI Index - Base Period | N240: =Inputs_A_F!I505 -> 2019-12-31 | O240: =INDEX(Time_A!$D$23:$D$135,MATCH(N240,Time_A!$B$23:$B$135,0)) -> 0 | Q240: CPI Index - Base Period | S240: =Inputs_A_F!I505 -> 2019-12-31 | T240: =INDEX(Time_A!$D$23:$D$135,MATCH(S240,Time_A!$B$23:$B$135,0)) -> 0 | V240: CPI Index - Base Period | X240: =Inputs_A_F!I505 -> 2019-12-31 | Y240: =INDEX(Time_A!$D$23:$D$135,MATCH(X240,Time_A!$B$23:$B$135,0)) -> 0
B241: =$B$21 -> CPI Index - Latest CPI Period | E241: =$E$21 -> 115.4 | G241: CPI Index - Latest CPI Period | J241: =$E$21 -> 115.4 | L241: CPI Index - Latest CPI Period | O241: =$E$21 -> 115.4 | Q241: CPI Index - Latest CPI Period | T241: =$E$21 -> 115.4 | V241: CPI Index - Latest CPI Period | Y241: =$E$21 -> 115.4
B242: CPI Escalation | E242: =IF(E240=Zero,Zero,(E241-E240)/E240) -> 0 | G242: CPI Escalation | J242: =IF(J240=Zero,Zero,(J241-J240)/J240) -> 0 | L242: CPI Escalation | O242: =IF(O240=Zero,Zero,(O241-O240)/O240) -> 0 | Q242: CPI Escalation | T242: =IF(T240=Zero,Zero,(T241-T240)/T240) -> 0 | V242: CPI Escalation | Y242: =IF(Y240=Zero,Zero,(Y241-Y240)/Y240) -> 0
B243: Cost - Post Escalation | C243: =C238 -> $/kWh | E243: =(One+E242)*E238 -> 3.496e-05 | G243: Cost - Post Escalation | H243: =H238 -> $/kWh | J243: =(One+J242)*J238 -> 3.496e-05 | L243: Cost - Post Escalation | M243: =M238 -> $/kWh | O243: =(One+O242)*O238 -> 3.496e-05 | Q243: Cost - Post Escalation | R243: =R238 -> $/kWh | T243: =(One+T242)*T238 -> 3.496e-05 | V243: Cost - Post Escalation | W243: =W238 -> $/kWh | Y243: =(One+Y242)*Y238 -> 3.496e-05
B245: =Inputs_A_F!B512 -> Ancillary services | G245: Ancillary services | L245: Ancillary services | Q245: Ancillary services | V245: Ancillary services
